Workbook

Sheet Cover page
C3: Benefits and costs of different road expenditure activities
C4: November 2017
C7: Appendix C: Cost-benefit analysis tool
C8: www.nzta.govt.nz/resources/research/reports/631
C20: M Chow and T Chen
C21: HoustonKemp Economists
C41: NZ Transport Agency research report 631
C42: Contracted research organisation – HoustonKemp Economists

Sheet About
B2: About the NZ Transport Agency cost-benefit analysis (CBA) tool
B4: General
B5: The NZ Transport Agency CBA tool illustrates the inputs and calculations required to implement our proposed framework for investment and activity appraisal. In general, the CBA tool compares a 'business as usual' or 'without' scenario with a 'project' or 'investment' scenario. The basic structure of the CBA tool is illustrated in the figure below:
B33: The layout of the CBA tool follows two modelling conventions: 1) Colour scheme for cells; and 2) Inputs and calculation tab structure. These modelling conventions are described below.
B35: Colour scheme
B36: Each cell in the CBA tool follows a colour scheme that provides guidance as to which cells can be modified by the user and which cells should not be modified. Each colour used is described below:
B38: Colour | C38: Cell type | E38: Cell description | J38: User input
C39: Parameter cell | E39: These cells provide the model with general parameter inputs such as discount rates. They allow the user to change parameters as required. | J39: Yes
C40: Input cell | E40: These cells provide the model with input estimates. They allow the user to enter inputs relevant to the calculation. | J40: Yes
C41: Calculation cell | E41: Calculation cells are where the CBA tool makes the required calculation. These cells do not need input from the user. | J41: No
C42: Output cell | E42: Output cells draw on calculation cells to report results of CBA tool. These cells do not require input from the user. | J42: No
B44: Input tabs
B45: I0 Overall
B46: The 'I0 Overall' input tab enables the user to enter general parameters on the discount rate that applies in discounting future costs and benefits, and inflation index that is used to calculate costs and benefits in real dollars from nominal dollars where required.
B48: I1 Minor works and operations
B49: The 'I1 Minor works and operations' input tab enables users to enter estimates required for cost and benefit calculations for safety, efficiency and resilience activities or investments. The key inputs for safety activities or investments are reduction in fatalities, serious injuries and minor injuries and their costs. Key inputs for resilience activities or investments are route lengths, road types and traffic volumes. Lastly, key inputs for efficiency activities or investments are time savings and traffic volumes.
B51: I2 Maintenance
B52: The 'Maintenance' tab gives the user space to enter inputs for maintenance CBA. The CBA for maintenance is centred around progression of road conditions expressed in terms of IRI, required service levels and treatments to maintain pavements. Inputs required from the user include IRI levels, traffic composition and road type, traffic growth rates, pavement treatment inputs, Equivalent Standard Axles (ESA) for vehicle types, and vehicle operating cost (VOC). The ESA for vehicle types and VOC are based on those in the EEM.
B54: I3 Portfolio
B55: The 'I3 Portfolio' tab requires the same types of inputs for minor works and operations but for 40 different operations/activities rather than just one. The portfolio tab is organised into a 'Funding and service level improvements' section, which the user can input budget and service level constraints. Below the 'Funding and service level improvements' section are safety, reliability and efficiency sections to enter parameters. These parameters come from the NZ Transport Agency's Economic evaluation manual (EEM) and do not need user input unless different parameters are required. Lastly the 'Minor works project inputs' section allows the user to input investment or activity specific inputs. These inputs inform portfolio optimisation and selection calculations located in the 'C3 Portfolio' tab.
B57: I4 Detailed VOC assumptions
B58: I4 Detailed VOC assumptions' includes inputs drawing from NZ Transport Agency's EEM regarding vehicle operating costs, which is informed by gradient, speed, and road type. These inputs are used in 'C1 Minor works & operations' and 'C3 Portfolio' calculations.
B60: Calculation tabs
B61: C1 Minor works & Operations
B62: C1 Minor works & Operations' combines parameters and inputs in 'I1 Minor works and operations' for safety, reliance, and efficiency operations and investments. Safety calculation calculates net benefits by taking the difference between the base case and project case for cost of fatalities and injuries, and taking into account of costs. Resilience calculation looks at the decrease in extra time and VOC that would be incurred if road closures were to occur relative to a no activity/investment base case. Lastly, the efficiency calculation compares the time spent travelling in the base case and the activity/investment case, and applies a time value to travelling time.
B64: C2 Maintenance
B65: The two tabs generates road authority maintenance costs and road user costs under various levels of required service. Agency costs are a function of the cost of maintenance works and vehicle operating costs. The progression of the road condition affects when road authorities undertake maintenance as well as vehicle operating costs incurred.
B67: C3 Portfolio
B68: 'C3 Portfolio' tab takes the inputs and calculates individual net benefits for each project from safety, resilience and efficiency initiatives. Outputs for each projects are then used to select a portfolio of projects with an objective to maximise overall NPV subject to a budget constraint and service level requirements. The optimal portfolio is found using the solver add-in, which is described below.
B70: Solver add-in
B71: The CBA tool uses a Solver add-in to find the highest NPV portfolio of individual activities or investments. The solver add-in performs the optimisation task by using linear programing to maximise portfolio NPV, constrained by budget and service level requirements.
B73: Other constraints required are required to run the tool, which are binary 0/1 switches to enable the solver add-in to turn on and off activities and investments and that the remaining unused funding need to be larger than zero.
B75: A screenshot of the solver add-in interface is shown below.
B98: The solver can be activated by pressing the 'Start' button in C3 Portfolio.

Sheet Inputs ->

Sheet I0 Overall
A1: =MID(CELL("filename",A2),FIND("]",CELL("filename",A2))+1,256) -> I0 Overall
A2: Inflation and discount rate assumptions
B4: Current scenario
B6: Model parameters | C6: Value
B7: Discount rate | C7: 0.06
B9: Inflation factor
B11: Source
B12: Reserve Bank of NZ
B15: 2002-07-01 | C15: 900.166389
B16: 2003-07-01 | C16: 913.477537
B17: 2004-07-01 | C17: 935.108153
B18: 2005-07-01 | C18: 961.730449
B19: 2006-07-01 | C19: 1000
B20: 2007-07-01 | C20: 1020
B21: 2008-07-01 | C21: 1061
B22: 2009-07-01 | C22: 1081
B23: 2010-07-01 | C23: 1099
B24: 2011-07-01 | C24: 1157
B25: 2012-07-01 | C25: 1168
B26: 2013-07-01 | C26: 1176
B27: 2014-07-01 | C27: 1195
B28: 2015-07-01 | C28: 1200
B29: 2016-07-01 | C29: 1205
B31: ="Single payment present worth factors (SPPWF) for "&C7*100&"% discount rate" -> Single payment present worth factors (SPPWF) for 6% discount rate
B33: Year | C33: 0 | D33: =+C33+1 -> 1 | E33: 2 | F33: 3 | G33: 4 | H33: 5 | I33: 6 | J33: 7 | K33: 8 | L33: 9 | M33: 10 | N33: 11 | O33: 12 | P33: 13 | Q33: 14 | R33: 15 | S33: 16 | T33: 17 | U33: 18 | V33: 19 | W33: 20 | X33: 21 | Y33: 22 | Z33: 23 | AA33: 24 | AB33: 25 | AC33: 26 | AD33: 27 | AE33: 28 | AF33: 29 | AG33: 30 | AH33: 31 | AI33: 32 | AJ33: 33 | AK33: 34 | AL33: 35 | AM33: 36 | AN33: 37 | AO33: 38 | AP33: 39 | AQ33: 40
B34: Discount factor | C34: =1/(1+$C$7)^C33 -> 1 | D34: 0.9433962264 | E34: 0.88999644 | F34: 0.839619283 | G34: 0.7920936632 | H34: 0.7472581729 | I34: 0.7049605404 | J34: 0.6650571136 | K34: 0.6274123713 | L34: 0.5918984635 | M34: 0.5583947769 | N34: 0.5267875254 | O34: 0.4969693636 | P34: 0.4688390222 | Q34: 0.4423009644 | R34: 0.4172650607 | S34: 0.3936462837 | T34: 0.3713644186 | U34: 0.3503437911 | V34: 0.3305130105 | W34: 0.3118047269 | X34: 0.2941554027 | Y34: 0.2775050969 | Z34: 0.2617972612 | AA34: 0.2469785483 | AB34: 0.2329986305 | AC34: 0.2198100288 | AD34: 0.2073679517 | AE34: 0.1956301431 | AF34: 0.1845567388 | AG34: 0.1741101309 | AH34: 0.1642548405 | AI34: 0.1549573967 | AJ34: 0.1461862233 | AK34: 0.1379115314 | AL34: 0.1301052183 | AM34: 0.122740772 | AN34: 0.1157931811 | AO34: 0.1092388501 | AP34: 0.103055519 | AQ34: 0.09722218771

Sheet I1 Minor works & Operations
A1: =MID(CELL("filename",A2),FIND("]",CELL("filename",A2))+1,256) -> I1 Minor works & Operations
B4: Minor works - safety
B6: User input
B8: Project costs | C8: Inputs | D8: Comments
B9: Project upfront cost | C9: ='I3 Portfolio'!D46 -> 210000 | D9: Upfront capital cost in first year
B10: Project ongoing cost | C10: ='I3 Portfolio'!D47 -> 21000 | D10: Ongoing cost per year in year two and onwards
B11: Years of ongoing cost | C11: ='I3 Portfolio'!D48 -> 10
B13: Timing of benefits | C13: Inputs | D13: Comments
B14: Start year of benefits | C14: =+'I3 Portfolio'!D49 -> 1 | D14: Enter 0 if benefits start accruing in the first year
B15: Years of benefit | C15: ='I3 Portfolio'!D50 -> 10 | D15: Number of years project is expected to deliver benefits
B17: Reported injuries | C17: Avg reduction per year | D17: Comments
B18: Fatalities | C18: =+'I3 Portfolio'!D51 -> 0.06 | D18: Expected reduction in reported injuries per year
B19: Serious injuries | C19: =+'I3 Portfolio'!D52 -> 0.06
B20: Minor injuries | C20: =+'I3 Portfolio'!D53 -> 0.17
B22: Assumptions
B24: Average cost per reported accident | C24: Cost by type | D24: Comments
B25: Fatalities | C25: =4094500*'I0 Overall'!C29/'I0 Overall'!C28 -> 4111560.417 | D25: Source: Ministry of Transport (2016) Social cost of road crashes and injuries 2015 update
B26: Serious injuries | C26: =760000*'I0 Overall'!C29/'I0 Overall'!C28 -> 763166.6667 | D26: Inflated to 2016 values. Figures have also been scaled up to include under- reporting
B27: Minor injuries | C27: =75000*'I0 Overall'!C29/'I0 Overall'!C28 -> 75312.5
B29: Minor works - Resilience
B31: User input
B33: Project costs | C33: Inputs | D33: Comments
B34: Project upfront cost | C34: =+'I3 Portfolio'!T46 -> 125000 | D34: Upfront capital cost in first year
B35: Project ongoing cost | C35: =+'I3 Portfolio'!T47 -> 12500 | D35: Ongoing cost per year in year two and onwards
B36: Years of ongoing cost | C36: =+'I3 Portfolio'!T48 -> 10
B38: Timing of benefits | C38: Inputs | D38: Comments
B39: Start year of benefits | C39: =+'I3 Portfolio'!T49 -> 1 | D39: Enter 0 if benefits start accruing in the first year
B40: Years of benefit | C40: =+'I3 Portfolio'!T50 -> 10 | D40: Number of years project is expected to deliver benefits
C42: User input | D42: Comments
B43: Disruptions avoided per year | C43: =+'I3 Portfolio'!T54 -> 0.35 | D43: Number of road closure that project is expected to reduce per year
B44: Period of disruption (Days) | C44: =+'I3 Portfolio'!T55 -> 1 | D44: Average days it takes to restate road
B45: AADT | C45: =+'I3 Portfolio'!T56 -> 3700 | D45: Annual average daily traffic
B46: No. of trips effected | C46: =PRODUCT(C43:C45) -> 1295 | D46: Expected number of trips affected due to closure.
B47: Reinstatement cost per closure | C47: =+'I3 Portfolio'!T57 -> 110000
B48: Expected reinstatement cost per year | C48: =C47*C43 -> 38500
B50: Characteristics of routes | C50: Original route | D50: Detour route | E50: Comments
B51: Road type | C51: Urban arterial | D51: Urban other
B52: Average speed | C52: 90 | D52: 50 | E52: Average speed on the road
B53: Length of trip | C53: =+'I3 Portfolio'!T60 -> 10 | D53: =+'I3 Portfolio'!T63 -> 15 | E53: Measured in kilometres
B54: VOC per km | C54: ='I4 Detailed VOC assumptions'!C32/100 -> 0.2892 | D54: ='I4 Detailed VOC assumptions'!D32/100 -> 0.2681125 | E54: Dollars per km. Sourced from EEM
B55: VOC per trip | C55: =C54*C53 -> 2.892 | D55: =D54*D53 -> 4.0216875 | E55: Dollars per trip
B56: Hours per trip | C56: =C53/C52 -> 0.1111111111 | D56: =D53/D52 -> 0.3 | E56: Average hours required per trip
B57: Time value per trip | C57: =C56*$C$67 -> 2.419966185 | D57: =D56*$C$67 -> 6.533908699 | E57: hours per trip x value of time
B58: Total cost per trip | C58: =C57+C55 -> 5.311966185 | D58: =D57+D55 -> 10.5555962
B60: Assumptions
B62: Value of time ($/hour) | D62: Comments
B63: Urban arterial | C63: =16.27*'I0 Overall'!$C$29/'I0 Overall'!$C$15 -> 21.77969566 | D63: Table A4.3, NZ Transport Agency EEM. Values reflect base value of time for all periods
B64: Urban other | C64: =16.23*'I0 Overall'!$C$29/'I0 Overall'!$C$15 -> 21.72615001 | D64: and vehicle types combined. Also inflated from 2002 values to 2016
B65: Rural Strategic | C65: =23.25*'I0 Overall'!$C$29/'I0 Overall'!$C$15 -> 31.12341267
B66: Rural Other | C66: =22.72*'I0 Overall'!$C$29/'I0 Overall'!$C$15 -> 30.41393273
B67: Active scenario | C67: =SUMIFS(C63:C66,$B$63:$B$66,C51) -> 21.77969566
B69: Characteristics of routes | C69: Original route | D69: Detour route | E69: Comments
B70: Gradient | C70: 3 | D70: 3 | E70: Assumed gradient of original route and detour route
B72: Minor works - Efficiency
B74: User input
B76: Project costs | C76: Inputs | D76: Comments
B77: Project upfront cost | C77: =+'I3 Portfolio'!L46 -> 100000 | D77: Upfront capital cost in first year
B78: Project ongoing cost | C78: =+'I3 Portfolio'!L47 -> 10000 | D78: Ongoing cost per year in year two and onwards
B79: Years of ongoing cost | C79: =+'I3 Portfolio'!L48 -> 10
B81: Timing of benefits | C81: Inputs | D81: Comments
B82: Start year of benefits | C82: =+'I3 Portfolio'!L49 -> 1 | D82: Enter 0 if benefits start accruing in the first year
B83: Years of benefit | C83: =+'I3 Portfolio'!L50 -> 10 | D83: Number of years project is expected to deliver benefits
B84: Road type | C84: Urban other
B86: Total hours saved per year | C86: Existing
B87: Existing users | C87: =+'I3 Portfolio'!L65 -> 9500 | D87: These values can be calculated using current workbook used to assess minor works efficiency projects
B88: New users | C88: =+'I3 Portfolio'!L66 -> 475
B90: Assumptions
B92: Value of time | C92: Existing users | D92: New users | E92: Comments
B93: Urban arterial | C93: =C63 -> 21.77969566 | D93: =C93/2 -> 10.88984783 | E93: Rule of half has been applied to increased traffic
B94: Urban other | C94: =C64 -> 21.72615001 | D94: =C94/2 -> 10.863075
B95: Rural Strategic | C95: 31.12341267 | D95: =C95/2 -> 15.56170634
B96: Rural Other | C96: 30.41393273 | D96: =C96/2 -> 15.20696636
B97: Active scenario | C97: =SUMIF($B$93:$B$96,$C$84,$C$93:$C$96) -> 21.72615001 | D97: =SUMIF($B$93:$B$96,$C$84,$D$93:$D$96) -> 10.863075

Sheet I2 Maintenance
A1: =MID(CELL("filename",A2),FIND("]",CELL("filename",A2))+1,256) -> I2 Maintenance
B4: Maintenance inputs
B6: Scenario inputs
B8: Scenario | D8: Intervention level | E8: IRI after intervention
B9: Scenario 1 | D9: 3.4 | E9: 1.5
B10: Scenario 2 | D10: 4 | E10: 1.5
B12: User input
B14: Road related inputs
B15: AADT type | D15: Urban arterial
B17: AADT inputs | D17: Urban arterial | E17: Urban other | F17: Rural arterial | G17: Rural other
B18: Route length | D18: 1 | E18: 1 | F18: 1 | G18: 1
B19: Passenger cars | D19: 15000 | E19: 3000 | F19: 10000 | G19: 1000
B20: Light commercial vehicles | D20: 1000 | E20: =E19*0.2 -> 600 | F20: 400 | G20: =G19*0.2 -> 200
B21: Medium commercial vehicle | D21: 500 | E21: 75 | F21: =F19*0.1 -> 1000 | G21: =G19*0.1 -> 100
B22: HCV1 | D22: 200 | E22: 100 | F22: 150 | G22: 75
B23: HCV2 | D23: 200 | E23: 100 | F23: 150 | G23: 75
B24: Bus | D24: 50 | E24: 10 | F24: 40 | G24: 6
B25: Modified structural number | D25: 6.5 | E25: 5.5 | F25: 6 | G25: 5
B27: Traffic growth rates
B28: AADT growth rate | D28: 0.02
B29: AADT growth rate - Heavy vehicles | D29: 0.02
B31: Treatment inputs
B32: Initial IRI | D32: 1.5
B34: Mill and resheet | D34: 200000
B35: Number of lanes | D35: 1
B36: IRI at t = 1 | D36: =+'I2 Maintenance'!D32 -> 1.5
B37: IRI at t = 2 | D37: 1.52295
B38: Enviromental constant numerator | D38: =+D37/D36-1 -> 0.0153
B40: ESA per vehicle
B41: Passenger cars | D41: 0
B42: Light commercial vehicles | D42: 0
B43: Medium commercial vehicle | D43: 0.35
B44: HCV1 | D44: 0.83
B45: HCV2 | D45: 1.86
B46: Bus | D46: 0.5
B48: =LEFT($D$15,5)&" road type active scenario (cents/km June 2016)" -> Urban road type active scenario (cents/km June 2016)
B50: IRI | C50: PC | D50: LCV | E50: MCV | F50: HCV1 | G50: HCV2 | H50: Bus
B51: 0 | C51: =IF(LEFT($D$15,5)="Urban",C87,K87)*('I0 Overall'!$C$29/'I0 Overall'!$C$28) -> 0 | D51: =IF(LEFT($D$15,5)="Urban",D87,L87)*('I0 Overall'!$C$29/'I0 Overall'!$C$28) -> 0 | E51: =IF(LEFT($D$15,5)="Urban",E87,M87)*('I0 Overall'!$C$29/'I0 Overall'!$C$28) -> 0 | F51: =IF(LEFT($D$15,5)="Urban",F87,N87)*('I0 Overall'!$C$29/'I0 Overall'!$C$28) -> 0 | G51: =IF(LEFT($D$15,5)="Urban",G87,O87)*('I0 Overall'!$C$29/'I0 Overall'!$C$28) -> 0 | H51: =IF(LEFT($D$15,5)="Urban",H87,P87)*('I0 Overall'!$C$29/'I0 Overall'!$C$28) -> 0
B52: =+B51+0.5 -> 0.5 | C52: =IF(LEFT($D$15,5)="Urban",C88,K88)*('I0 Overall'!$C$29/'I0 Overall'!$C$28) -> 0 | D52: =IF(LEFT($D$15,5)="Urban",D88,L88)*('I0 Overall'!$C$29/'I0 Overall'!$C$28) -> 0 | E52: =IF(LEFT($D$15,5)="Urban",E88,M88)*('I0 Overall'!$C$29/'I0 Overall'!$C$28) -> 0 | F52: =IF(LEFT($D$15,5)="Urban",F88,N88)*('I0 Overall'!$C$29/'I0 Overall'!$C$28) -> 0 | G52: =IF(LEFT($D$15,5)="Urban",G88,O88)*('I0 Overall'!$C$29/'I0 Overall'!$C$28) -> 0 | H52: =IF(LEFT($D$15,5)="Urban",H88,P88)*('I0 Overall'!$C$29/'I0 Overall'!$C$28) -> 0
B53: =+B52+0.5 -> 1 | C53: =IF(LEFT($D$15,5)="Urban",C89,K89)*('I0 Overall'!$C$29/'I0 Overall'!$C$28) -> 0 | D53: =IF(LEFT($D$15,5)="Urban",D89,L89)*('I0 Overall'!$C$29/'I0 Overall'!$C$28) -> 0 | E53: =IF(LEFT($D$15,5)="Urban",E89,M89)*('I0 Overall'!$C$29/'I0 Overall'!$C$28) -> 0 | F53: =IF(LEFT($D$15,5)="Urban",F89,N89)*('I0 Overall'!$C$29/'I0 Overall'!$C$28) -> 0 | G53: =IF(LEFT($D$15,5)="Urban",G89,O89)*('I0 Overall'!$C$29/'I0 Overall'!$C$28) -> 0 | H53: =IF(LEFT($D$15,5)="Urban",H89,P89)*('I0 Overall'!$C$29/'I0 Overall'!$C$28) -> 0
B54: =+B53+0.5 -> 1.5 | C54: =IF(LEFT($D$15,5)="Urban",C90,K90)*('I0 Overall'!$C$29/'I0 Overall'!$C$28) -> 0 | D54: =IF(LEFT($D$15,5)="Urban",D90,L90)*('I0 Overall'!$C$29/'I0 Overall'!$C$28) -> 0 | E54: =IF(LEFT($D$15,5)="Urban",E90,M90)*('I0 Overall'!$C$29/'I0 Overall'!$C$28) -> 0 | F54: =IF(LEFT($D$15,5)="Urban",F90,N90)*('I0 Overall'!$C$29/'I0 Overall'!$C$28) -> 0 | G54: =IF(LEFT($D$15,5)="Urban",G90,O90)*('I0 Overall'!$C$29/'I0 Overall'!$C$28) -> 0 | H54: =IF(LEFT($D$15,5)="Urban",H90,P90)*('I0 Overall'!$C$29/'I0 Overall'!$C$28) -> 0
B55: =+B54+0.5 -> 2 | C55: =IF(LEFT($D$15,5)="Urban",C91,K91)*('I0 Overall'!$C$29/'I0 Overall'!$C$28) -> 0 | D55: =IF(LEFT($D$15,5)="Urban",D91,L91)*('I0 Overall'!$C$29/'I0 Overall'!$C$28) -> 0 | E55: =IF(LEFT($D$15,5)="Urban",E91,M91)*('I0 Overall'!$C$29/'I0 Overall'!$C$28) -> 0 | F55: =IF(LEFT($D$15,5)="Urban",F91,N91)*('I0 Overall'!$C$29/'I0 Overall'!$C$28) -> 0 | G55: =IF(LEFT($D$15,5)="Urban",G91,O91)*('I0 Overall'!$C$29/'I0 Overall'!$C$28) -> 0 | H55: =IF(LEFT($D$15,5)="Urban",H91,P91)*('I0 Overall'!$C$29/'I0 Overall'!$C$28) -> 0
B56: 2.5 | C56: =IF(LEFT($D$15,5)="Urban",C92,K92)*('I0 Overall'!$C$29/'I0 Overall'!$C$28) -> 0 | D56: =IF(LEFT($D$15,5)="Urban",D92,L92)*('I0 Overall'!$C$29/'I0 Overall'!$C$28) -> 0 | E56: =IF(LEFT($D$15,5)="Urban",E92,M92)*('I0 Overall'!$C$29/'I0 Overall'!$C$28) -> 0 | F56: =IF(LEFT($D$15,5)="Urban",F92,N92)*('I0 Overall'!$C$29/'I0 Overall'!$C$28) -> 0 | G56: =IF(LEFT($D$15,5)="Urban",G92,O92)*('I0 Overall'!$C$29/'I0 Overall'!$C$28) -> 0 | H56: =IF(LEFT($D$15,5)="Urban",H92,P92)*('I0 Overall'!$C$29/'I0 Overall'!$C$28) -> 0
B57: =+B56+0.5 -> 3 | C57: =IF(LEFT($D$15,5)="Urban",C93,K93)*('I0 Overall'!$C$29/'I0 Overall'!$C$28) -> 0.30125 | D57: =IF(LEFT($D$15,5)="Urban",D93,L93)*('I0 Overall'!$C$29/'I0 Overall'!$C$28) -> 0.30125 | E57: =IF(LEFT($D$15,5)="Urban",E93,M93)*('I0 Overall'!$C$29/'I0 Overall'!$C$28) -> 0.7029166667 | F57: =IF(LEFT($D$15,5)="Urban",F93,N93)*('I0 Overall'!$C$29/'I0 Overall'!$C$28) -> 0.90375 | G57: =IF(LEFT($D$15,5)="Urban",G93,O93)*('I0 Overall'!$C$29/'I0 Overall'!$C$28) -> 1.405833333 | H57: =IF(LEFT($D$15,5)="Urban",H93,P93)*('I0 Overall'!$C$29/'I0 Overall'!$C$28) -> 0.8033333333
B58: 3.5 | C58: =IF(LEFT($D$15,5)="Urban",C94,K94)*('I0 Overall'!$C$29/'I0 Overall'!$C$28) -> 0.8033333333 | D58: =IF(LEFT($D$15,5)="Urban",D94,L94)*('I0 Overall'!$C$29/'I0 Overall'!$C$28) -> 0.7029166667 | E58: =IF(LEFT($D$15,5)="Urban",E94,M94)*('I0 Overall'!$C$29/'I0 Overall'!$C$28) -> 2.309583333 | F58: =IF(LEFT($D$15,5)="Urban",F94,N94)*('I0 Overall'!$C$29/'I0 Overall'!$C$28) -> 3.112916667 | G58: =IF(LEFT($D$15,5)="Urban",G94,O94)*('I0 Overall'!$C$29/'I0 Overall'!$C$28) -> 4.418333333 | H58: =IF(LEFT($D$15,5)="Urban",H94,P94)*('I0 Overall'!$C$29/'I0 Overall'!$C$28) -> 2.811666667
B59: 4 | C59: =IF(LEFT($D$15,5)="Urban",C95,K95)*('I0 Overall'!$C$29/'I0 Overall'!$C$28) -> 1.606666667 | D59: =IF(LEFT($D$15,5)="Urban",D95,L95)*('I0 Overall'!$C$29/'I0 Overall'!$C$28) -> 1.405833333 | E59: =IF(LEFT($D$15,5)="Urban",E95,M95)*('I0 Overall'!$C$29/'I0 Overall'!$C$28) -> 4.719583333 | F59: =IF(LEFT($D$15,5)="Urban",F95,N95)*('I0 Overall'!$C$29/'I0 Overall'!$C$28) -> 6.32625 | G59: =IF(LEFT($D$15,5)="Urban",G95,O95)*('I0 Overall'!$C$29/'I0 Overall'!$C$28) -> 8.535416667 | H59: =IF(LEFT($D$15,5)="Urban",H95,P95)*('I0 Overall'!$C$29/'I0 Overall'!$C$28) -> 5.72375
B60: 4.5 | C60: =IF(LEFT($D$15,5)="Urban",C96,K96)*('I0 Overall'!$C$29/'I0 Overall'!$C$28) -> 2.71125 | D60: =IF(LEFT($D$15,5)="Urban",D96,L96)*('I0 Overall'!$C$29/'I0 Overall'!$C$28) -> 2.610833333 | E60: =IF(LEFT($D$15,5)="Urban",E96,M96)*('I0 Overall'!$C$29/'I0 Overall'!$C$28) -> 7.631666667 | F60: =IF(LEFT($D$15,5)="Urban",F96,N96)*('I0 Overall'!$C$29/'I0 Overall'!$C$28) -> 10.2425 | G60: =IF(LEFT($D$15,5)="Urban",G96,O96)*('I0 Overall'!$C$29/'I0 Overall'!$C$28) -> 13.65666667 | H60: =IF(LEFT($D$15,5)="Urban",H96,P96)*('I0 Overall'!$C$29/'I0 Overall'!$C$28) -> 9.137916667
B61: 5 | C61: =IF(LEFT($D$15,5)="Urban",C97,K97)*('I0 Overall'!$C$29/'I0 Overall'!$C$28) -> 4.016666667 | D61: =IF(LEFT($D$15,5)="Urban",D97,L97)*('I0 Overall'!$C$29/'I0 Overall'!$C$28) -> 4.2175 | E61: =IF(LEFT($D$15,5)="Urban",E97,M97)*('I0 Overall'!$C$29/'I0 Overall'!$C$28) -> 10.94541667 | F61: =IF(LEFT($D$15,5)="Urban",F97,N97)*('I0 Overall'!$C$29/'I0 Overall'!$C$28) -> 14.76125 | G61: =IF(LEFT($D$15,5)="Urban",G97,O97)*('I0 Overall'!$C$29/'I0 Overall'!$C$28) -> 19.38041667 | H61: =IF(LEFT($D$15,5)="Urban",H97,P97)*('I0 Overall'!$C$29/'I0 Overall'!$C$28) -> 12.95375
B62: 5.5 | C62: =IF(LEFT($D$15,5)="Urban",C98,K98)*('I0 Overall'!$C$29/'I0 Overall'!$C$28) -> 5.522916667 | D62: =IF(LEFT($D$15,5)="Urban",D98,L98)*('I0 Overall'!$C$29/'I0 Overall'!$C$28) -> 6.025 | E62: =IF(LEFT($D$15,5)="Urban",E98,M98)*('I0 Overall'!$C$29/'I0 Overall'!$C$28) -> 14.56041667 | F62: =IF(LEFT($D$15,5)="Urban",F98,N98)*('I0 Overall'!$C$29/'I0 Overall'!$C$28) -> 19.68166667 | G62: =IF(LEFT($D$15,5)="Urban",G98,O98)*('I0 Overall'!$C$29/'I0 Overall'!$C$28) -> 25.50583333 | H62: =IF(LEFT($D$15,5)="Urban",H98,P98)*('I0 Overall'!$C$29/'I0 Overall'!$C$28) -> 16.97041667
B63: 6 | C63: =IF(LEFT($D$15,5)="Urban",C99,K99)*('I0 Overall'!$C$29/'I0 Overall'!$C$28) -> 7.129583333 | D63: =IF(LEFT($D$15,5)="Urban",D99,L99)*('I0 Overall'!$C$29/'I0 Overall'!$C$28) -> 8.13375 | E63: =IF(LEFT($D$15,5)="Urban",E99,M99)*('I0 Overall'!$C$29/'I0 Overall'!$C$28) -> 18.37625 | F63: =IF(LEFT($D$15,5)="Urban",F99,N99)*('I0 Overall'!$C$29/'I0 Overall'!$C$28) -> 24.80291667 | G63: =IF(LEFT($D$15,5)="Urban",G99,O99)*('I0 Overall'!$C$29/'I0 Overall'!$C$28) -> 32.03291667 | H63: =IF(LEFT($D$15,5)="Urban",H99,P99)*('I0 Overall'!$C$29/'I0 Overall'!$C$28) -> 21.28833333
B64: 6.5 | C64: =IF(LEFT($D$15,5)="Urban",C100,K100)*('I0 Overall'!$C$29/'I0 Overall'!$C$28) -> 8.836666667 | D64: =IF(LEFT($D$15,5)="Urban",D100,L100)*('I0 Overall'!$C$29/'I0 Overall'!$C$28) -> 10.34291667 | E64: =IF(LEFT($D$15,5)="Urban",E100,M100)*('I0 Overall'!$C$29/'I0 Overall'!$C$28) -> 22.2925 | F64: =IF(LEFT($D$15,5)="Urban",F100,N100)*('I0 Overall'!$C$29/'I0 Overall'!$C$28) -> 30.125 | G64: =IF(LEFT($D$15,5)="Urban",G100,O100)*('I0 Overall'!$C$29/'I0 Overall'!$C$28) -> 38.76083333 | H64: =IF(LEFT($D$15,5)="Urban",H100,P100)*('I0 Overall'!$C$29/'I0 Overall'!$C$28) -> 25.60625
B65: 7 | C65: =IF(LEFT($D$15,5)="Urban",C101,K101)*('I0 Overall'!$C$29/'I0 Overall'!$C$28) -> 10.54375 | D65: =IF(LEFT($D$15,5)="Urban",D101,L101)*('I0 Overall'!$C$29/'I0 Overall'!$C$28) -> 12.6525 | E65: =IF(LEFT($D$15,5)="Urban",E101,M101)*('I0 Overall'!$C$29/'I0 Overall'!$C$28) -> 26.20875 | F65: =IF(LEFT($D$15,5)="Urban",F101,N101)*('I0 Overall'!$C$29/'I0 Overall'!$C$28) -> 35.5475 | G65: =IF(LEFT($D$15,5)="Urban",G101,O101)*('I0 Overall'!$C$29/'I0 Overall'!$C$28) -> 45.48875 | H65: =IF(LEFT($D$15,5)="Urban",H101,P101)*('I0 Overall'!$C$29/'I0 Overall'!$C$28) -> 29.92416667
B66: 7.5 | C66: =IF(LEFT($D$15,5)="Urban",C102,K102)*('I0 Overall'!$C$29/'I0 Overall'!$C$28) -> 12.35125 | D66: =IF(LEFT($D$15,5)="Urban",D102,L102)*('I0 Overall'!$C$29/'I0 Overall'!$C$28) -> 14.96208333 | E66: =IF(LEFT($D$15,5)="Urban",E102,M102)*('I0 Overall'!$C$29/'I0 Overall'!$C$28) -> 30.22541667 | F66: =IF(LEFT($D$15,5)="Urban",F102,N102)*('I0 Overall'!$C$29/'I0 Overall'!$C$28) -> 40.97 | G66: =IF(LEFT($D$15,5)="Urban",G102,O102)*('I0 Overall'!$C$29/'I0 Overall'!$C$28) -> 52.31708333 | H66: =IF(LEFT($D$15,5)="Urban",H102,P102)*('I0 Overall'!$C$29/'I0 Overall'!$C$28) -> 34.24208333
B67: 8 | C67: =IF(LEFT($D$15,5)="Urban",C103,K103)*('I0 Overall'!$C$29/'I0 Overall'!$C$28) -> 14.15875 | D67: =IF(LEFT($D$15,5)="Urban",D103,L103)*('I0 Overall'!$C$29/'I0 Overall'!$C$28) -> 17.27166667 | E67: =IF(LEFT($D$15,5)="Urban",E103,M103)*('I0 Overall'!$C$29/'I0 Overall'!$C$28) -> 34.14166667 | F67: =IF(LEFT($D$15,5)="Urban",F103,N103)*('I0 Overall'!$C$29/'I0 Overall'!$C$28) -> 46.3925 | G67: =IF(LEFT($D$15,5)="Urban",G103,O103)*('I0 Overall'!$C$29/'I0 Overall'!$C$28) -> 59.045 | H67: =IF(LEFT($D$15,5)="Urban",H103,P103)*('I0 Overall'!$C$29/'I0 Overall'!$C$28) -> 38.66041667
B68: 8.5 | C68: =IF(LEFT($D$15,5)="Urban",C104,K104)*('I0 Overall'!$C$29/'I0 Overall'!$C$28) -> 15.86583333 | D68: =IF(LEFT($D$15,5)="Urban",D104,L104)*('I0 Overall'!$C$29/'I0 Overall'!$C$28) -> 19.58125 | E68: =IF(LEFT($D$15,5)="Urban",E104,M104)*('I0 Overall'!$C$29/'I0 Overall'!$C$28) -> 38.05791667 | F68: =IF(LEFT($D$15,5)="Urban",F104,N104)*('I0 Overall'!$C$29/'I0 Overall'!$C$28) -> 51.815 | G68: =IF(LEFT($D$15,5)="Urban",G104,O104)*('I0 Overall'!$C$29/'I0 Overall'!$C$28) -> 65.77291667 | H68: =IF(LEFT($D$15,5)="Urban",H104,P104)*('I0 Overall'!$C$29/'I0 Overall'!$C$28) -> 42.87791667
B69: 9 | C69: =IF(LEFT($D$15,5)="Urban",C105,K105)*('I0 Overall'!$C$29/'I0 Overall'!$C$28) -> 17.57291667 | D69: =IF(LEFT($D$15,5)="Urban",D105,L105)*('I0 Overall'!$C$29/'I0 Overall'!$C$28) -> 21.79041667 | E69: =IF(LEFT($D$15,5)="Urban",E105,M105)*('I0 Overall'!$C$29/'I0 Overall'!$C$28) -> 41.97416667 | F69: =IF(LEFT($D$15,5)="Urban",F105,N105)*('I0 Overall'!$C$29/'I0 Overall'!$C$28) -> 57.03666667 | G69: =IF(LEFT($D$15,5)="Urban",G105,O105)*('I0 Overall'!$C$29/'I0 Overall'!$C$28) -> 72.50083333 | H69: =IF(LEFT($D$15,5)="Urban",H105,P105)*('I0 Overall'!$C$29/'I0 Overall'!$C$28) -> 47.09541667
B70: 9.5 | C70: =IF(LEFT($D$15,5)="Urban",C106,K106)*('I0 Overall'!$C$29/'I0 Overall'!$C$28) -> 19.28 | D70: =IF(LEFT($D$15,5)="Urban",D106,L106)*('I0 Overall'!$C$29/'I0 Overall'!$C$28) -> 23.99958333 | E70: =IF(LEFT($D$15,5)="Urban",E106,M106)*('I0 Overall'!$C$29/'I0 Overall'!$C$28) -> 45.79 | F70: =IF(LEFT($D$15,5)="Urban",F106,N106)*('I0 Overall'!$C$29/'I0 Overall'!$C$28) -> 62.25833333 | G70: =IF(LEFT($D$15,5)="Urban",G106,O106)*('I0 Overall'!$C$29/'I0 Overall'!$C$28) -> 79.02791667 | H70: =IF(LEFT($D$15,5)="Urban",H106,P106)*('I0 Overall'!$C$29/'I0 Overall'!$C$28) -> 51.31291667
B71: 10 | C71: =IF(LEFT($D$15,5)="Urban",C107,K107)*('I0 Overall'!$C$29/'I0 Overall'!$C$28) -> 20.88666667 | D71: =IF(LEFT($D$15,5)="Urban",D107,L107)*('I0 Overall'!$C$29/'I0 Overall'!$C$28) -> 26.10833333 | E71: =IF(LEFT($D$15,5)="Urban",E107,M107)*('I0 Overall'!$C$29/'I0 Overall'!$C$28) -> 49.405 | F71: =IF(LEFT($D$15,5)="Urban",F107,N107)*('I0 Overall'!$C$29/'I0 Overall'!$C$28) -> 67.37958333 | G71: =IF(LEFT($D$15,5)="Urban",G107,O107)*('I0 Overall'!$C$29/'I0 Overall'!$C$28) -> 85.35416667 | H71: =IF(LEFT($D$15,5)="Urban",H107,P107)*('I0 Overall'!$C$29/'I0 Overall'!$C$28) -> 55.43
B72: 10.5 | C72: =IF(LEFT($D$15,5)="Urban",C108,K108)*('I0 Overall'!$C$29/'I0 Overall'!$C$28) -> 22.49333333 | D72: =IF(LEFT($D$15,5)="Urban",D108,L108)*('I0 Overall'!$C$29/'I0 Overall'!$C$28) -> 28.11666667 | E72: =IF(LEFT($D$15,5)="Urban",E108,M108)*('I0 Overall'!$C$29/'I0 Overall'!$C$28) -> 53.02 | F72: =IF(LEFT($D$15,5)="Urban",F108,N108)*('I0 Overall'!$C$29/'I0 Overall'!$C$28) -> 72.3 | G72: =IF(LEFT($D$15,5)="Urban",G108,O108)*('I0 Overall'!$C$29/'I0 Overall'!$C$28) -> 91.68041667 | H72: =IF(LEFT($D$15,5)="Urban",H108,P108)*('I0 Overall'!$C$29/'I0 Overall'!$C$28) -> 59.44666667
B73: 11 | C73: =IF(LEFT($D$15,5)="Urban",C109,K109)*('I0 Overall'!$C$29/'I0 Overall'!$C$28) -> 23.39708333 | D73: =IF(LEFT($D$15,5)="Urban",D109,L109)*('I0 Overall'!$C$29/'I0 Overall'!$C$28) -> 29.12083333 | E73: =IF(LEFT($D$15,5)="Urban",E109,M109)*('I0 Overall'!$C$29/'I0 Overall'!$C$28) -> 55.22916667 | F73: =IF(LEFT($D$15,5)="Urban",F109,N109)*('I0 Overall'!$C$29/'I0 Overall'!$C$28) -> 75.21208333 | G73: =IF(LEFT($D$15,5)="Urban",G109,O109)*('I0 Overall'!$C$29/'I0 Overall'!$C$28) -> 95.7975 | H73: =IF(LEFT($D$15,5)="Urban",H109,P109)*('I0 Overall'!$C$29/'I0 Overall'!$C$28) -> 61.95708333
B74: 11.5 | C74: =IF(LEFT($D$15,5)="Urban",C110,K110)*('I0 Overall'!$C$29/'I0 Overall'!$C$28) -> 24.20041667 | D74: =IF(LEFT($D$15,5)="Urban",D110,L110)*('I0 Overall'!$C$29/'I0 Overall'!$C$28) -> 29.92416667 | E74: =IF(LEFT($D$15,5)="Urban",E110,M110)*('I0 Overall'!$C$29/'I0 Overall'!$C$28) -> 57.33791667 | F74: =IF(LEFT($D$15,5)="Urban",F110,N110)*('I0 Overall'!$C$29/'I0 Overall'!$C$28) -> 77.82291667 | G74: =IF(LEFT($D$15,5)="Urban",G110,O110)*('I0 Overall'!$C$29/'I0 Overall'!$C$28) -> 99.71375 | H74: =IF(LEFT($D$15,5)="Urban",H110,P110)*('I0 Overall'!$C$29/'I0 Overall'!$C$28) -> 64.4675
B75: 12 | C75: =IF(LEFT($D$15,5)="Urban",C111,K111)*('I0 Overall'!$C$29/'I0 Overall'!$C$28) -> 25.00375 | D75: =IF(LEFT($D$15,5)="Urban",D111,L111)*('I0 Overall'!$C$29/'I0 Overall'!$C$28) -> 30.7275 | E75: =IF(LEFT($D$15,5)="Urban",E111,M111)*('I0 Overall'!$C$29/'I0 Overall'!$C$28) -> 59.34625 | F75: =IF(LEFT($D$15,5)="Urban",F111,N111)*('I0 Overall'!$C$29/'I0 Overall'!$C$28) -> 80.43375 | G75: =IF(LEFT($D$15,5)="Urban",G111,O111)*('I0 Overall'!$C$29/'I0 Overall'!$C$28) -> 103.5295833 | H75: =IF(LEFT($D$15,5)="Urban",H111,P111)*('I0 Overall'!$C$29/'I0 Overall'!$C$28) -> 66.8775
B76: 12.5 | C76: =IF(LEFT($D$15,5)="Urban",C112,K112)*('I0 Overall'!$C$29/'I0 Overall'!$C$28) -> 25.70666667 | D76: =IF(LEFT($D$15,5)="Urban",D112,L112)*('I0 Overall'!$C$29/'I0 Overall'!$C$28) -> 31.63125 | E76: =IF(LEFT($D$15,5)="Urban",E112,M112)*('I0 Overall'!$C$29/'I0 Overall'!$C$28) -> 61.35458333 | F76: =IF(LEFT($D$15,5)="Urban",F112,N112)*('I0 Overall'!$C$29/'I0 Overall'!$C$28) -> 83.04458333 | G76: =IF(LEFT($D$15,5)="Urban",G112,O112)*('I0 Overall'!$C$29/'I0 Overall'!$C$28) -> 107.4458333 | H76: =IF(LEFT($D$15,5)="Urban",H112,P112)*('I0 Overall'!$C$29/'I0 Overall'!$C$28) -> 69.2875
B77: 13 | C77: =IF(LEFT($D$15,5)="Urban",C113,K113)*('I0 Overall'!$C$29/'I0 Overall'!$C$28) -> 26.51 | D77: =IF(LEFT($D$15,5)="Urban",D113,L113)*('I0 Overall'!$C$29/'I0 Overall'!$C$28) -> 32.43458333 | E77: =IF(LEFT($D$15,5)="Urban",E113,M113)*('I0 Overall'!$C$29/'I0 Overall'!$C$28) -> 63.36291667 | F77: =IF(LEFT($D$15,5)="Urban",F113,N113)*('I0 Overall'!$C$29/'I0 Overall'!$C$28) -> 85.65541667 | G77: =IF(LEFT($D$15,5)="Urban",G113,O113)*('I0 Overall'!$C$29/'I0 Overall'!$C$28) -> 111.2616667 | H77: =IF(LEFT($D$15,5)="Urban",H113,P113)*('I0 Overall'!$C$29/'I0 Overall'!$C$28) -> 71.6975
B78: 13.5 | C78: =IF(LEFT($D$15,5)="Urban",C114,K114)*('I0 Overall'!$C$29/'I0 Overall'!$C$28) -> 27.31333333 | D78: =IF(LEFT($D$15,5)="Urban",D114,L114)*('I0 Overall'!$C$29/'I0 Overall'!$C$28) -> 33.23791667 | E78: =IF(LEFT($D$15,5)="Urban",E114,M114)*('I0 Overall'!$C$29/'I0 Overall'!$C$28) -> 65.47166667 | F78: =IF(LEFT($D$15,5)="Urban",F114,N114)*('I0 Overall'!$C$29/'I0 Overall'!$C$28) -> 88.26625 | G78: =IF(LEFT($D$15,5)="Urban",G114,O114)*('I0 Overall'!$C$29/'I0 Overall'!$C$28) -> 115.0775 | H78: =IF(LEFT($D$15,5)="Urban",H114,P114)*('I0 Overall'!$C$29/'I0 Overall'!$C$28) -> 74.1075
B79: 14 | C79: =IF(LEFT($D$15,5)="Urban",C115,K115)*('I0 Overall'!$C$29/'I0 Overall'!$C$28) -> 28.11666667 | D79: =IF(LEFT($D$15,5)="Urban",D115,L115)*('I0 Overall'!$C$29/'I0 Overall'!$C$28) -> 34.04125 | E79: =IF(LEFT($D$15,5)="Urban",E115,M115)*('I0 Overall'!$C$29/'I0 Overall'!$C$28) -> 67.48 | F79: =IF(LEFT($D$15,5)="Urban",F115,N115)*('I0 Overall'!$C$29/'I0 Overall'!$C$28) -> 90.9775 | G79: =IF(LEFT($D$15,5)="Urban",G115,O115)*('I0 Overall'!$C$29/'I0 Overall'!$C$28) -> 118.99375 | H79: =IF(LEFT($D$15,5)="Urban",H115,P115)*('I0 Overall'!$C$29/'I0 Overall'!$C$28) -> 76.5175
B80: 14.5 | C80: =IF(LEFT($D$15,5)="Urban",C116,K116)*('I0 Overall'!$C$29/'I0 Overall'!$C$28) -> 28.81958333 | D80: =IF(LEFT($D$15,5)="Urban",D116,L116)*('I0 Overall'!$C$29/'I0 Overall'!$C$28) -> 34.84458333 | E80: =IF(LEFT($D$15,5)="Urban",E116,M116)*('I0 Overall'!$C$29/'I0 Overall'!$C$28) -> 69.48833333 | F80: =IF(LEFT($D$15,5)="Urban",F116,N116)*('I0 Overall'!$C$29/'I0 Overall'!$C$28) -> 93.58833333 | G80: =IF(LEFT($D$15,5)="Urban",G116,O116)*('I0 Overall'!$C$29/'I0 Overall'!$C$28) -> 122.8095833 | H80: =IF(LEFT($D$15,5)="Urban",H116,P116)*('I0 Overall'!$C$29/'I0 Overall'!$C$28) -> 78.9275
B81: 15 | C81: =IF(LEFT($D$15,5)="Urban",C117,K117)*('I0 Overall'!$C$29/'I0 Overall'!$C$28) -> 29.62291667 | D81: =IF(LEFT($D$15,5)="Urban",D117,L117)*('I0 Overall'!$C$29/'I0 Overall'!$C$28) -> 35.64791667 | E81: =IF(LEFT($D$15,5)="Urban",E117,M117)*('I0 Overall'!$C$29/'I0 Overall'!$C$28) -> 71.49666667 | F81: =IF(LEFT($D$15,5)="Urban",F117,N117)*('I0 Overall'!$C$29/'I0 Overall'!$C$28) -> 96.19916667 | G81: =IF(LEFT($D$15,5)="Urban",G117,O117)*('I0 Overall'!$C$29/'I0 Overall'!$C$28) -> 126.6254167 | H81: =IF(LEFT($D$15,5)="Urban",H117,P117)*('I0 Overall'!$C$29/'I0 Overall'!$C$28) -> 81.3375
B83: Urban additional VOC due to roughness by vehicle class (cents/km July 2015) | J83: Rural additional VOC due to roughness by vehicle class (cents/km July 2015)
B84: Source: EEM, pg 5-245 | J84: Source: EEM, pg 5-246
B86: IRI | C86: PC | D86: LCV | E86: MCV | F86: HCV1 | G86: HCV2 | H86: Bus | J86: IRI | K86: PC | L86: LCV | M86: MCV | N86: HCV1 | O86: HCV2 | P86: Bus
B87: 0 | C87: 0 | D87: 0 | E87: 0 | F87: 0 | G87: 0 | H87: 0 | J87: 0 | K87: 0 | L87: 0 | M87: 0 | N87: 0 | O87: 0 | P87: 0
B88: =+B87+0.5 -> 0.5 | C88: 0 | D88: 0 | E88: 0 | F88: 0 | G88: 0 | H88: 0 | J88: =+J87+0.5 -> 0.5 | K88: 0 | L88: 0 | M88: 0 | N88: 0 | O88: 0 | P88: 0
B89: =+B88+0.5 -> 1 | C89: 0 | D89: 0 | E89: 0 | F89: 0 | G89: 0 | H89: 0 | J89: =+J88+0.5 -> 1 | K89: 0 | L89: 0 | M89: 0 | N89: 0 | O89: 0 | P89: 0
B90: =+B89+0.5 -> 1.5 | C90: 0 | D90: 0 | E90: 0 | F90: 0 | G90: 0 | H90: 0 | J90: =+J89+0.5 -> 1.5 | K90: 0 | L90: 0 | M90: 0 | N90: 0 | O90: 0 | P90: 0
B91: =+B90+0.5 -> 2 | C91: 0 | D91: 0 | E91: 0 | F91: 0 | G91: 0 | H91: 0 | J91: =+J90+0.5 -> 2 | K91: 0 | L91: 0 | M91: 0 | N91: 0 | O91: 0 | P91: 0
B92: 2.5 | C92: 0 | D92: 0 | E92: 0 | F92: 0 | G92: 0 | H92: 0 | J92: 2.5 | K92: 0 | L92: 0 | M92: 0 | N92: 0 | O92: 0 | P92: 0
B93: =+B92+0.5 -> 3 | C93: 0.3 | D93: 0.3 | E93: 0.7 | F93: 0.9 | G93: 1.4 | H93: 0.8 | J93: =+J92+0.5 -> 3 | K93: 0.2 | L93: 0.2 | M93: 0.5 | N93: 0.7 | O93: 1.1 | P93: 0.6
B94: 3.5 | C94: 0.8 | D94: 0.7 | E94: 2.3 | F94: 3.1 | G94: 4.4 | H94: 2.8 | J94: 3.5 | K94: 0.9 | L94: 0.9 | M94: 2.5 | N94: 3.5 | O94: 4.8 | P94: 3.1
B95: 4 | C95: 1.6 | D95: 1.4 | E95: 4.7 | F95: 6.3 | G95: 8.5 | H95: 5.7 | J95: 4 | K95: 2.4 | L95: 2.7 | M95: 6.4 | N95: 8.8 | O95: 11.1 | P95: 7.4
B96: 4.5 | C96: 2.7 | D96: 2.6 | E96: 7.6 | F96: 10.2 | G96: 13.6 | H96: 9.1 | J96: 4.5 | K96: 4.4 | L96: 5.3 | M96: 11.2 | N96: 15.5 | O96: 18.9 | P96: 12.7
B97: 5 | C97: 4 | D97: 4.2 | E97: 10.9 | F97: 14.7 | G97: 19.3 | H97: 12.9 | J97: 5 | K97: 6.6 | L97: 8.2 | M97: 16.3 | N97: 22.7 | O97: 27.3 | P97: 18.2
B98: 5.5 | C98: 5.5 | D98: 6 | E98: 14.5 | F98: 19.6 | G98: 25.4 | H98: 16.9 | J98: 5.5 | K98: 8.9 | L98: 11.1 | M98: 21.3 | N98: 29.8 | O98: 35.6 | P98: 23.7
B99: 6 | C99: 7.1 | D99: 8.1 | E99: 18.3 | F99: 24.7 | G99: 31.9 | H99: 21.2 | J99: 6 | K99: 11 | L99: 14 | M99: 26.2 | N99: 36.6 | O99: 43.7 | P99: 29
B100: 6.5 | C100: 8.8 | D100: 10.3 | E100: 22.2 | F100: 30 | G100: 38.6 | H100: 25.5 | J100: 6.5 | K100: 13.2 | L100: 16.9 | M100: 31 | N100: 43.2 | O100: 51.7 | P100: 34.2
B101: 7 | C101: 10.5 | D101: 12.6 | E101: 26.1 | F101: 35.4 | G101: 45.3 | H101: 29.8 | J101: 7 | K101: 15.3 | L101: 19.8 | M101: 35.7 | N101: 49.8 | O101: 59.7 | P101: 39.4
B102: 7.5 | C102: 12.3 | D102: 14.9 | E102: 30.1 | F102: 40.8 | G102: 52.1 | H102: 34.1 | J102: 7.5 | K102: 17.6 | L102: 22.8 | M102: 40.6 | N102: 56.6 | O102: 67.9 | P102: 44.7
B103: 8 | C103: 14.1 | D103: 17.2 | E103: 34 | F103: 46.2 | G103: 58.8 | H103: 38.5 | J103: 8 | K103: 18.5 | L103: 23.8 | M103: 42.8 | N103: 59.2 | O103: 72 | P103: 47.2
B104: 8.5 | C104: 15.8 | D104: 19.5 | E104: 37.9 | F104: 51.6 | G104: 65.5 | H104: 42.7 | J104: 8.5 | K104: 19.3 | L104: 24.6 | M104: 44.8 | N104: 61.8 | O104: 75.9 | P104: 49.6
B105: 9 | C105: 17.5 | D105: 21.7 | E105: 41.8 | F105: 56.8 | G105: 72.2 | H105: 46.9 | J105: 9 | K105: 20 | L105: 25.5 | M105: 46.8 | N105: 64.4 | O105: 79.7 | P105: 52
B106: 9.5 | C106: 19.2 | D106: 23.9 | E106: 45.6 | F106: 62 | G106: 78.7 | H106: 51.1 | J106: 9.5 | K106: 20.8 | L106: 26.3 | M106: 48.9 | N106: 67 | O106: 83.6 | P106: 54.4
B107: 10 | C107: 20.8 | D107: 26 | E107: 49.2 | F107: 67.1 | G107: 85 | H107: 55.2 | J107: 10 | K107: 21.6 | L107: 27.2 | M107: 50.9 | N107: 69.7 | O107: 87.5 | P107: 56.8
B108: 10.5 | C108: 22.4 | D108: 28 | E108: 52.8 | F108: 72 | G108: 91.3 | H108: 59.2 | J108: 10.5 | K108: 22.4 | L108: 28 | M108: 52.9 | N108: 72.3 | O108: 91.4 | P108: 59.3
B109: 11 | C109: 23.3 | D109: 29 | E109: 55 | F109: 74.9 | G109: 95.4 | H109: 61.7 | J109: 11 | K109: 23.2 | L109: 28.9 | M109: 55 | N109: 74.9 | O109: 95.3 | P109: 61.7
B110: 11.5 | C110: 24.1 | D110: 29.8 | E110: 57.1 | F110: 77.5 | G110: 99.3 | H110: 64.2 | J110: 11.5 | K110: 24 | L110: 29.7 | M110: 57 | N110: 77.5 | O110: 99.1 | P110: 64.1
B111: 12 | C111: 24.9 | D111: 30.6 | E111: 59.1 | F111: 80.1 | G111: 103.1 | H111: 66.6 | J111: 12 | K111: 24.8 | L111: 30.6 | M111: 59.1 | N111: 80.1 | O111: 103 | P111: 66.5
B112: 12.5 | C112: 25.6 | D112: 31.5 | E112: 61.1 | F112: 82.7 | G112: 107 | H112: 69 | J112: 12.5 | K112: 25.6 | L112: 31.4 | M112: 61.1 | N112: 82.7 | O112: 106.9 | P112: 69
B113: 13 | C113: 26.4 | D113: 32.3 | E113: 63.1 | F113: 85.3 | G113: 110.8 | H113: 71.4 | J113: 13 | K113: 26.4 | L113: 32.3 | M113: 63.1 | N113: 85.3 | O113: 110.8 | P113: 71.4
B114: 13.5 | C114: 27.2 | D114: 33.1 | E114: 65.2 | F114: 87.9 | G114: 114.6 | H114: 73.8 | J114: 13.5 | K114: 27.2 | L114: 33.1 | M114: 65.2 | N114: 87.9 | O114: 114.7 | P114: 73.8
B115: 14 | C115: 28 | D115: 33.9 | E115: 67.2 | F115: 90.6 | G115: 118.5 | H115: 76.2 | J115: 14 | K115: 28 | L115: 34 | M115: 67.2 | N115: 90.6 | O115: 118.5 | P115: 76.2
B116: 14.5 | C116: 28.7 | D116: 34.7 | E116: 69.2 | F116: 93.2 | G116: 122.3 | H116: 78.6 | J116: 14.5 | K116: 28.8 | L116: 34.8 | M116: 69.2 | N116: 93.2 | O116: 122.4 | P116: 78.6
B117: 15 | C117: 29.5 | D117: 35.5 | E117: 71.2 | F117: 95.8 | G117: 126.1 | H117: 81 | J117: 15 | K117: 29.6 | L117: 35.7 | M117: 71.3 | N117: 95.8 | O117: 126.3 | P117: 81.1

Sheet I2.1 Maintenance LoS (hidden)
A1: =MID(CELL("filename",A2),FIND("]",CELL("filename",A2))+1,256) -> I2.1 Maintenance LoS
A2: Inputs and assumptions for minor works projects
B4: Maintenance inputs
B6: Scenario inputs
B8: Scenario | D8: Intervention level | E8: IRI after intervention
B9: Scenario 1 | D9: 3 | E9: 1.5
B10: Scenario 2 | D10: 3.2 | E10: 1.5
B11: Scenario 3 | D11: 3.4 | E11: 1.5
B12: Scenario 4 | D12: 3.6 | E12: 1.5
B13: Scenario 5 | D13: 3.8 | E13: 1.5
B14: Scenario 6 | D14: 4 | E14: 1.5
B17: User input
B19: Road related inputs
B20: AADT type | D20: Urban arterial
B22: AADT inputs | D22: Urban arterial | E22: Urban other | F22: Rural arterial | G22: Rural other
B23: Route length | D23: 1 | E23: 1 | F23: 1 | G23: 1
B24: Passenger cars | D24: 15000 | E24: 3000 | F24: 5000 | G24: 1000
B25: Light commercial vehicles | D25: 1000 | E25: 200 | F25: 670 | G25: 70
B26: Medium commercial vehicle | D26: 500 | E26: 100 | F26: 330 | G26: 30
B27: HCV1 | D27: 200 | E27: 40 | F27: 130 | G27: 10
B28: HCV2 | D28: 200 | E28: 40 | F28: 130 | G28: 10
B29: Bus | D29: 50 | E29: 10 | F29: 30 | G29: 0
B30: Modified structural number | D30: 6.5 | E30: 5.5 | F30: 6 | G30: 5
B32: Traffic growth rates
B33: AADT growth rate | D33: 0.02
B34: AADT growth rate - Heavy vehicles | D34: 0.02
B36: Treatment inputs
B37: Initial IRI | D37: 1.5
B39: Mill and resheet | D39: 200000
B40: Number of lanes | D40: 1
B41: IRI at t = 1 | D41: =+'I2.1 Maintenance LoS'!D37 -> 1.5
B42: IRI at t = 2 | D42: 1.52295
B43: Enviromental constant numerator | D43: =+D42/D41-1 -> 0.0153
B45: ESA per vehicle
B46: Passenger cars | D46: 0
B47: Light commercial vehicles | D47: 0
B48: Medium commercial vehicle | D48: 0.35
B49: HCV1 | D49: 0.83
B50: HCV2 | D50: 1.86
B51: Bus | D51: 0.5
B53: Assumptions
B55: IRI | C55: PC | E55: LCV | G55: MCV | I55: HCV1 | K55: HCV2 | M55: Bus | P55: IRI | Q55: =LEFT($D$20,5)&" road type active scenario (cents/km June 2016)" -> Urban road type active scenario (cents/km June 2016)
C56: Urban | D56: Rural | E56: Urban | F56: Rural | G56: Urban | H56: Rural | I56: Urban | J56: Rural | K56: Urban | L56: Rural | M56: Urban | N56: Rural | Q56: PC | R56: LCV | S56: MCV | T56: HCV1 | U56: HCV2 | V56: Bus
B57: 0 | C57: =D91 -> 0 | D57: =M91 -> 0 | E57: =E91 -> 0 | F57: =N91 -> 0 | G57: =F91 -> 0 | H57: =O91 -> 0 | I57: =G91 -> 0 | J57: =P91 -> 0 | K57: =H91 -> 0 | L57: =Q91 -> 0 | M57: =I91 -> 0 | N57: =R91 -> 0 | P57: 0 | Q57: =IF(LEFT($D$20,5)="Urban",C57,D57)*('I0 Overall'!$C$29/'I0 Overall'!$C$28) -> 0 | R57: =IF(LEFT($D$20,5)="Urban",E57,F57)*('I0 Overall'!$C$29/'I0 Overall'!$C$28) -> 0 | S57: =IF(LEFT($D$20,5)="Urban",G57,H57)*('I0 Overall'!$C$29/'I0 Overall'!$C$28) -> 0 | T57: =IF(LEFT($D$20,5)="Urban",I57,J57)*('I0 Overall'!$C$29/'I0 Overall'!$C$28) -> 0 | U57: =IF(LEFT($D$20,5)="Urban",K57,L57)*('I0 Overall'!$C$29/'I0 Overall'!$C$28) -> 0 | V57: =IF(LEFT($D$20,5)="Urban",M57,N57)*('I0 Overall'!$C$29/'I0 Overall'!$C$28) -> 0
B58: =+B57+0.5 -> 0.5 | C58: =D92 -> 0 | D58: =M92 -> 0 | E58: =E92 -> 0 | F58: =N92 -> 0 | G58: =F92 -> 0 | H58: =O92 -> 0 | I58: =G92 -> 0 | J58: =P92 -> 0 | K58: =H92 -> 0 | L58: =Q92 -> 0 | M58: =I92 -> 0 | N58: =R92 -> 0 | P58: =+P57+0.5 -> 0.5 | Q58: =IF(LEFT($D$20,5)="Urban",C58,D58)*('I0 Overall'!$C$29/'I0 Overall'!$C$28) -> 0 | R58: =IF(LEFT($D$20,5)="Urban",E58,F58)*('I0 Overall'!$C$29/'I0 Overall'!$C$28) -> 0 | S58: =IF(LEFT($D$20,5)="Urban",G58,H58)*('I0 Overall'!$C$29/'I0 Overall'!$C$28) -> 0 | T58: =IF(LEFT($D$20,5)="Urban",I58,J58)*('I0 Overall'!$C$29/'I0 Overall'!$C$28) -> 0 | U58: =IF(LEFT($D$20,5)="Urban",K58,L58)*('I0 Overall'!$C$29/'I0 Overall'!$C$28) -> 0 | V58: =IF(LEFT($D$20,5)="Urban",M58,N58)*('I0 Overall'!$C$29/'I0 Overall'!$C$28) -> 0
B59: =+B58+0.5 -> 1 | C59: 0 | D59: 0 | E59: 0 | F59: 0 | G59: 0 | H59: 0 | I59: 0 | J59: 0 | K59: 0 | L59: 0 | M59: 0 | N59: 0 | P59: =+P58+0.5 -> 1 | Q59: =IF(LEFT($D$20,5)="Urban",C59,D59)*('I0 Overall'!$C$29/'I0 Overall'!$C$28) -> 0 | R59: =IF(LEFT($D$20,5)="Urban",E59,F59)*('I0 Overall'!$C$29/'I0 Overall'!$C$28) -> 0 | S59: =IF(LEFT($D$20,5)="Urban",G59,H59)*('I0 Overall'!$C$29/'I0 Overall'!$C$28) -> 0 | T59: =IF(LEFT($D$20,5)="Urban",I59,J59)*('I0 Overall'!$C$29/'I0 Overall'!$C$28) -> 0 | U59: =IF(LEFT($D$20,5)="Urban",K59,L59)*('I0 Overall'!$C$29/'I0 Overall'!$C$28) -> 0 | V59: =IF(LEFT($D$20,5)="Urban",M59,N59)*('I0 Overall'!$C$29/'I0 Overall'!$C$28) -> 0
B60: =+B59+0.5 -> 1.5 | C60: 0 | D60: 0 | E60: 0 | F60: 0 | G60: 0 | H60: 0 | I60: 0 | J60: 0 | K60: 0 | L60: 0 | M60: 0 | N60: 0 | P60: =+P59+0.5 -> 1.5 | Q60: =IF(LEFT($D$20,5)="Urban",C60,D60)*('I0 Overall'!$C$29/'I0 Overall'!$C$28) -> 0 | R60: =IF(LEFT($D$20,5)="Urban",E60,F60)*('I0 Overall'!$C$29/'I0 Overall'!$C$28) -> 0 | S60: =IF(LEFT($D$20,5)="Urban",G60,H60)*('I0 Overall'!$C$29/'I0 Overall'!$C$28) -> 0 | T60: =IF(LEFT($D$20,5)="Urban",I60,J60)*('I0 Overall'!$C$29/'I0 Overall'!$C$28) -> 0 | U60: =IF(LEFT($D$20,5)="Urban",K60,L60)*('I0 Overall'!$C$29/'I0 Overall'!$C$28) -> 0 | V60: =IF(LEFT($D$20,5)="Urban",M60,N60)*('I0 Overall'!$C$29/'I0 Overall'!$C$28) -> 0
B61: =+B60+0.5 -> 2 | C61: 0 | D61: 0 | E61: 0 | F61: 0 | G61: 0 | H61: 0 | I61: 0 | J61: 0 | K61: 0 | L61: 0 | M61: 0 | N61: 0 | P61: =+P60+0.5 -> 2 | Q61: =IF(LEFT($D$20,5)="Urban",C61,D61)*('I0 Overall'!$C$29/'I0 Overall'!$C$28) -> 0 | R61: =IF(LEFT($D$20,5)="Urban",E61,F61)*('I0 Overall'!$C$29/'I0 Overall'!$C$28) -> 0 | S61: =IF(LEFT($D$20,5)="Urban",G61,H61)*('I0 Overall'!$C$29/'I0 Overall'!$C$28) -> 0 | T61: =IF(LEFT($D$20,5)="Urban",I61,J61)*('I0 Overall'!$C$29/'I0 Overall'!$C$28) -> 0 | U61: =IF(LEFT($D$20,5)="Urban",K61,L61)*('I0 Overall'!$C$29/'I0 Overall'!$C$28) -> 0 | V61: =IF(LEFT($D$20,5)="Urban",M61,N61)*('I0 Overall'!$C$29/'I0 Overall'!$C$28) -> 0
B62: 2.5 | C62: 0 | D62: 0 | E62: 0 | F62: 0 | G62: 0 | H62: 0 | I62: 0 | J62: 0 | K62: 0 | L62: 0 | M62: 0 | N62: 0 | P62: 2.5 | Q62: =IF(LEFT($D$20,5)="Urban",C62,D62)*('I0 Overall'!$C$29/'I0 Overall'!$C$28) -> 0 | R62: =IF(LEFT($D$20,5)="Urban",E62,F62)*('I0 Overall'!$C$29/'I0 Overall'!$C$28) -> 0 | S62: =IF(LEFT($D$20,5)="Urban",G62,H62)*('I0 Overall'!$C$29/'I0 Overall'!$C$28) -> 0 | T62: =IF(LEFT($D$20,5)="Urban",I62,J62)*('I0 Overall'!$C$29/'I0 Overall'!$C$28) -> 0 | U62: =IF(LEFT($D$20,5)="Urban",K62,L62)*('I0 Overall'!$C$29/'I0 Overall'!$C$28) -> 0 | V62: =IF(LEFT($D$20,5)="Urban",M62,N62)*('I0 Overall'!$C$29/'I0 Overall'!$C$28) -> 0
B63: =+B62+0.5 -> 3 | C63: 0.3 | D63: 0.2 | E63: 0.3 | F63: 0.2 | G63: 0.7 | H63: 0.5 | I63: 0.9 | J63: 0.7 | K63: 1.4 | L63: 1.1 | M63: 0.8 | N63: 0.6 | P63: =+P62+0.5 -> 3 | Q63: =IF(LEFT($D$20,5)="Urban",C63,D63)*('I0 Overall'!$C$29/'I0 Overall'!$C$28) -> 0.30125 | R63: =IF(LEFT($D$20,5)="Urban",E63,F63)*('I0 Overall'!$C$29/'I0 Overall'!$C$28) -> 0.30125 | S63: =IF(LEFT($D$20,5)="Urban",G63,H63)*('I0 Overall'!$C$29/'I0 Overall'!$C$28) -> 0.7029166667 | T63: =IF(LEFT($D$20,5)="Urban",I63,J63)*('I0 Overall'!$C$29/'I0 Overall'!$C$28) -> 0.90375 | U63: =IF(LEFT($D$20,5)="Urban",K63,L63)*('I0 Overall'!$C$29/'I0 Overall'!$C$28) -> 1.405833333 | V63: =IF(LEFT($D$20,5)="Urban",M63,N63)*('I0 Overall'!$C$29/'I0 Overall'!$C$28) -> 0.8033333333
B64: 3.5 | C64: 0.8 | D64: 0.9 | E64: 0.7 | F64: 0.9 | G64: 2.3 | H64: 2.5 | I64: 3.1 | J64: 3.5 | K64: 4.4 | L64: 4.8 | M64: 2.8 | N64: 3.1 | P64: 3.5 | Q64: =IF(LEFT($D$20,5)="Urban",C64,D64)*('I0 Overall'!$C$29/'I0 Overall'!$C$28) -> 0.8033333333 | R64: =IF(LEFT($D$20,5)="Urban",E64,F64)*('I0 Overall'!$C$29/'I0 Overall'!$C$28) -> 0.7029166667 | S64: =IF(LEFT($D$20,5)="Urban",G64,H64)*('I0 Overall'!$C$29/'I0 Overall'!$C$28) -> 2.309583333 | T64: =IF(LEFT($D$20,5)="Urban",I64,J64)*('I0 Overall'!$C$29/'I0 Overall'!$C$28) -> 3.112916667 | U64: =IF(LEFT($D$20,5)="Urban",K64,L64)*('I0 Overall'!$C$29/'I0 Overall'!$C$28) -> 4.418333333 | V64: =IF(LEFT($D$20,5)="Urban",M64,N64)*('I0 Overall'!$C$29/'I0 Overall'!$C$28) -> 2.811666667
B65: 4 | C65: 1.6 | D65: 2.4 | E65: 1.4 | F65: 2.7 | G65: 4.7 | H65: 6.4 | I65: 6.3 | J65: 8.8 | K65: 8.5 | L65: 11.1 | M65: 5.7 | N65: 7.4 | P65: 4 | Q65: =IF(LEFT($D$20,5)="Urban",C65,D65)*('I0 Overall'!$C$29/'I0 Overall'!$C$28) -> 1.606666667 | R65: =IF(LEFT($D$20,5)="Urban",E65,F65)*('I0 Overall'!$C$29/'I0 Overall'!$C$28) -> 1.405833333 | S65: =IF(LEFT($D$20,5)="Urban",G65,H65)*('I0 Overall'!$C$29/'I0 Overall'!$C$28) -> 4.719583333 | T65: =IF(LEFT($D$20,5)="Urban",I65,J65)*('I0 Overall'!$C$29/'I0 Overall'!$C$28) -> 6.32625 | U65: =IF(LEFT($D$20,5)="Urban",K65,L65)*('I0 Overall'!$C$29/'I0 Overall'!$C$28) -> 8.535416667 | V65: =IF(LEFT($D$20,5)="Urban",M65,N65)*('I0 Overall'!$C$29/'I0 Overall'!$C$28) -> 5.72375
B66: 4.5 | C66: 2.7 | D66: 4.4 | E66: 2.6 | F66: 5.3 | G66: 7.6 | H66: 11.2 | I66: 10.2 | J66: 15.5 | K66: 13.6 | L66: 18.9 | M66: 9.1 | N66: 12.7 | P66: 4.5 | Q66: =IF(LEFT($D$20,5)="Urban",C66,D66)*('I0 Overall'!$C$29/'I0 Overall'!$C$28) -> 2.71125 | R66: =IF(LEFT($D$20,5)="Urban",E66,F66)*('I0 Overall'!$C$29/'I0 Overall'!$C$28) -> 2.610833333 | S66: =IF(LEFT($D$20,5)="Urban",G66,H66)*('I0 Overall'!$C$29/'I0 Overall'!$C$28) -> 7.631666667 | T66: =IF(LEFT($D$20,5)="Urban",I66,J66)*('I0 Overall'!$C$29/'I0 Overall'!$C$28) -> 10.2425 | U66: =IF(LEFT($D$20,5)="Urban",K66,L66)*('I0 Overall'!$C$29/'I0 Overall'!$C$28) -> 13.65666667 | V66: =IF(LEFT($D$20,5)="Urban",M66,N66)*('I0 Overall'!$C$29/'I0 Overall'!$C$28) -> 9.137916667
B67: 5 | C67: 4 | D67: 6.6 | E67: 4.2 | F67: 8.2 | G67: 10.9 | H67: 16.3 | I67: 14.7 | J67: 22.7 | K67: 19.3 | L67: 27.3 | M67: 12.9 | N67: 18.2 | P67: 5 | Q67: =IF(LEFT($D$20,5)="Urban",C67,D67)*('I0 Overall'!$C$29/'I0 Overall'!$C$28) -> 4.016666667 | R67: =IF(LEFT($D$20,5)="Urban",E67,F67)*('I0 Overall'!$C$29/'I0 Overall'!$C$28) -> 4.2175 | S67: =IF(LEFT($D$20,5)="Urban",G67,H67)*('I0 Overall'!$C$29/'I0 Overall'!$C$28) -> 10.94541667 | T67: =IF(LEFT($D$20,5)="Urban",I67,J67)*('I0 Overall'!$C$29/'I0 Overall'!$C$28) -> 14.76125 | U67: =IF(LEFT($D$20,5)="Urban",K67,L67)*('I0 Overall'!$C$29/'I0 Overall'!$C$28) -> 19.38041667 | V67: =IF(LEFT($D$20,5)="Urban",M67,N67)*('I0 Overall'!$C$29/'I0 Overall'!$C$28) -> 12.95375
B68: 5.5 | C68: 5.5 | D68: 8.9 | E68: 6 | F68: 11.1 | G68: 14.5 | H68: 21.3 | I68: 19.6 | J68: 29.8 | K68: 25.4 | L68: 35.6 | M68: 16.9 | N68: 23.7 | P68: 5.5 | Q68: =IF(LEFT($D$20,5)="Urban",C68,D68)*('I0 Overall'!$C$29/'I0 Overall'!$C$28) -> 5.522916667 | R68: =IF(LEFT($D$20,5)="Urban",E68,F68)*('I0 Overall'!$C$29/'I0 Overall'!$C$28) -> 6.025 | S68: =IF(LEFT($D$20,5)="Urban",G68,H68)*('I0 Overall'!$C$29/'I0 Overall'!$C$28) -> 14.56041667 | T68: =IF(LEFT($D$20,5)="Urban",I68,J68)*('I0 Overall'!$C$29/'I0 Overall'!$C$28) -> 19.68166667 | U68: =IF(LEFT($D$20,5)="Urban",K68,L68)*('I0 Overall'!$C$29/'I0 Overall'!$C$28) -> 25.50583333 | V68: =IF(LEFT($D$20,5)="Urban",M68,N68)*('I0 Overall'!$C$29/'I0 Overall'!$C$28) -> 16.97041667
B69: 6 | C69: 7.1 | D69: 11 | E69: 8.1 | F69: 14 | G69: 18.3 | H69: 26.2 | I69: 24.7 | J69: 36.6 | K69: 31.9 | L69: 43.7 | M69: 21.2 | N69: 29 | P69: 6 | Q69: =IF(LEFT($D$20,5)="Urban",C69,D69)*('I0 Overall'!$C$29/'I0 Overall'!$C$28) -> 7.129583333 | R69: =IF(LEFT($D$20,5)="Urban",E69,F69)*('I0 Overall'!$C$29/'I0 Overall'!$C$28) -> 8.13375 | S69: =IF(LEFT($D$20,5)="Urban",G69,H69)*('I0 Overall'!$C$29/'I0 Overall'!$C$28) -> 18.37625 | T69: =IF(LEFT($D$20,5)="Urban",I69,J69)*('I0 Overall'!$C$29/'I0 Overall'!$C$28) -> 24.80291667 | U69: =IF(LEFT($D$20,5)="Urban",K69,L69)*('I0 Overall'!$C$29/'I0 Overall'!$C$28) -> 32.03291667 | V69: =IF(LEFT($D$20,5)="Urban",M69,N69)*('I0 Overall'!$C$29/'I0 Overall'!$C$28) -> 21.28833333
B70: 6.5 | C70: 8.8 | D70: 13.2 | E70: 10.3 | F70: 16.9 | G70: 22.2 | H70: 31 | I70: 30 | J70: 43.2 | K70: 38.6 | L70: 51.7 | M70: 25.5 | N70: 34.2 | P70: 6.5 | Q70: =IF(LEFT($D$20,5)="Urban",C70,D70)*('I0 Overall'!$C$29/'I0 Overall'!$C$28) -> 8.836666667 | R70: =IF(LEFT($D$20,5)="Urban",E70,F70)*('I0 Overall'!$C$29/'I0 Overall'!$C$28) -> 10.34291667 | S70: =IF(LEFT($D$20,5)="Urban",G70,H70)*('I0 Overall'!$C$29/'I0 Overall'!$C$28) -> 22.2925 | T70: =IF(LEFT($D$20,5)="Urban",I70,J70)*('I0 Overall'!$C$29/'I0 Overall'!$C$28) -> 30.125 | U70: =IF(LEFT($D$20,5)="Urban",K70,L70)*('I0 Overall'!$C$29/'I0 Overall'!$C$28) -> 38.76083333 | V70: =IF(LEFT($D$20,5)="Urban",M70,N70)*('I0 Overall'!$C$29/'I0 Overall'!$C$28) -> 25.60625
B71: 7 | C71: 10.5 | D71: 15.3 | E71: 12.6 | F71: 19.8 | G71: 26.1 | H71: 35.7 | I71: 35.4 | J71: 49.8 | K71: 45.3 | L71: 59.7 | M71: 29.8 | N71: 39.4 | P71: 7 | Q71: =IF(LEFT($D$20,5)="Urban",C71,D71)*('I0 Overall'!$C$29/'I0 Overall'!$C$28) -> 10.54375 | R71: =IF(LEFT($D$20,5)="Urban",E71,F71)*('I0 Overall'!$C$29/'I0 Overall'!$C$28) -> 12.6525 | S71: =IF(LEFT($D$20,5)="Urban",G71,H71)*('I0 Overall'!$C$29/'I0 Overall'!$C$28) -> 26.20875 | T71: =IF(LEFT($D$20,5)="Urban",I71,J71)*('I0 Overall'!$C$29/'I0 Overall'!$C$28) -> 35.5475 | U71: =IF(LEFT($D$20,5)="Urban",K71,L71)*('I0 Overall'!$C$29/'I0 Overall'!$C$28) -> 45.48875 | V71: =IF(LEFT($D$20,5)="Urban",M71,N71)*('I0 Overall'!$C$29/'I0 Overall'!$C$28) -> 29.92416667
B72: 7.5 | C72: 12.3 | D72: 17.6 | E72: 14.9 | F72: 22.8 | G72: 30.1 | H72: 40.6 | I72: 40.8 | J72: 56.6 | K72: 52.1 | L72: 67.9 | M72: 34.1 | N72: 44.7 | P72: 7.5 | Q72: =IF(LEFT($D$20,5)="Urban",C72,D72)*('I0 Overall'!$C$29/'I0 Overall'!$C$28) -> 12.35125 | R72: =IF(LEFT($D$20,5)="Urban",E72,F72)*('I0 Overall'!$C$29/'I0 Overall'!$C$28) -> 14.96208333 | S72: =IF(LEFT($D$20,5)="Urban",G72,H72)*('I0 Overall'!$C$29/'I0 Overall'!$C$28) -> 30.22541667 | T72: =IF(LEFT($D$20,5)="Urban",I72,J72)*('I0 Overall'!$C$29/'I0 Overall'!$C$28) -> 40.97 | U72: =IF(LEFT($D$20,5)="Urban",K72,L72)*('I0 Overall'!$C$29/'I0 Overall'!$C$28) -> 52.31708333 | V72: =IF(LEFT($D$20,5)="Urban",M72,N72)*('I0 Overall'!$C$29/'I0 Overall'!$C$28) -> 34.24208333
B73: 8 | C73: 14.1 | D73: 18.5 | E73: 17.2 | F73: 23.8 | G73: 34 | H73: 42.8 | I73: 46.2 | J73: 59.2 | K73: 58.8 | L73: 72 | M73: 38.5 | N73: 47.2 | P73: 8 | Q73: =IF(LEFT($D$20,5)="Urban",C73,D73)*('I0 Overall'!$C$29/'I0 Overall'!$C$28) -> 14.15875 | R73: =IF(LEFT($D$20,5)="Urban",E73,F73)*('I0 Overall'!$C$29/'I0 Overall'!$C$28) -> 17.27166667 | S73: =IF(LEFT($D$20,5)="Urban",G73,H73)*('I0 Overall'!$C$29/'I0 Overall'!$C$28) -> 34.14166667 | T73: =IF(LEFT($D$20,5)="Urban",I73,J73)*('I0 Overall'!$C$29/'I0 Overall'!$C$28) -> 46.3925 | U73: =IF(LEFT($D$20,5)="Urban",K73,L73)*('I0 Overall'!$C$29/'I0 Overall'!$C$28) -> 59.045 | V73: =IF(LEFT($D$20,5)="Urban",M73,N73)*('I0 Overall'!$C$29/'I0 Overall'!$C$28) -> 38.66041667
B74: 8.5 | C74: 15.8 | D74: 19.3 | E74: 19.5 | F74: 24.6 | G74: 37.9 | H74: 44.8 | I74: 51.6 | J74: 61.8 | K74: 65.5 | L74: 75.9 | M74: 42.7 | N74: 49.6 | P74: 8.5 | Q74: =IF(LEFT($D$20,5)="Urban",C74,D74)*('I0 Overall'!$C$29/'I0 Overall'!$C$28) -> 15.86583333 | R74: =IF(LEFT($D$20,5)="Urban",E74,F74)*('I0 Overall'!$C$29/'I0 Overall'!$C$28) -> 19.58125 | S74: =IF(LEFT($D$20,5)="Urban",G74,H74)*('I0 Overall'!$C$29/'I0 Overall'!$C$28) -> 38.05791667 | T74: =IF(LEFT($D$20,5)="Urban",I74,J74)*('I0 Overall'!$C$29/'I0 Overall'!$C$28) -> 51.815 | U74: =IF(LEFT($D$20,5)="Urban",K74,L74)*('I0 Overall'!$C$29/'I0 Overall'!$C$28) -> 65.77291667 | V74: =IF(LEFT($D$20,5)="Urban",M74,N74)*('I0 Overall'!$C$29/'I0 Overall'!$C$28) -> 42.87791667
B75: 9 | C75: 17.5 | D75: 20 | E75: 21.7 | F75: 25.5 | G75: 41.8 | H75: 46.8 | I75: 56.8 | J75: 64.4 | K75: 72.2 | L75: 79.7 | M75: 46.9 | N75: 52 | P75: 9 | Q75: =IF(LEFT($D$20,5)="Urban",C75,D75)*('I0 Overall'!$C$29/'I0 Overall'!$C$28) -> 17.57291667 | R75: =IF(LEFT($D$20,5)="Urban",E75,F75)*('I0 Overall'!$C$29/'I0 Overall'!$C$28) -> 21.79041667 | S75: =IF(LEFT($D$20,5)="Urban",G75,H75)*('I0 Overall'!$C$29/'I0 Overall'!$C$28) -> 41.97416667 | T75: =IF(LEFT($D$20,5)="Urban",I75,J75)*('I0 Overall'!$C$29/'I0 Overall'!$C$28) -> 57.03666667 | U75: =IF(LEFT($D$20,5)="Urban",K75,L75)*('I0 Overall'!$C$29/'I0 Overall'!$C$28) -> 72.50083333 | V75: =IF(LEFT($D$20,5)="Urban",M75,N75)*('I0 Overall'!$C$29/'I0 Overall'!$C$28) -> 47.09541667
B76: 9.5 | C76: 19.2 | D76: 20.8 | E76: 23.9 | F76: 26.3 | G76: 45.6 | H76: 48.9 | I76: 62 | J76: 67 | K76: 78.7 | L76: 83.6 | M76: 51.1 | N76: 54.4 | P76: 9.5 | Q76: =IF(LEFT($D$20,5)="Urban",C76,D76)*('I0 Overall'!$C$29/'I0 Overall'!$C$28) -> 19.28 | R76: =IF(LEFT($D$20,5)="Urban",E76,F76)*('I0 Overall'!$C$29/'I0 Overall'!$C$28) -> 23.99958333 | S76: =IF(LEFT($D$20,5)="Urban",G76,H76)*('I0 Overall'!$C$29/'I0 Overall'!$C$28) -> 45.79 | T76: =IF(LEFT($D$20,5)="Urban",I76,J76)*('I0 Overall'!$C$29/'I0 Overall'!$C$28) -> 62.25833333 | U76: =IF(LEFT($D$20,5)="Urban",K76,L76)*('I0 Overall'!$C$29/'I0 Overall'!$C$28) -> 79.02791667 | V76: =IF(LEFT($D$20,5)="Urban",M76,N76)*('I0 Overall'!$C$29/'I0 Overall'!$C$28) -> 51.31291667
B77: 10 | C77: 20.8 | D77: 21.6 | E77: 26 | F77: 27.2 | G77: 49.2 | H77: 50.9 | I77: 67.1 | J77: 69.7 | K77: 85 | L77: 87.5 | M77: 55.2 | N77: 56.8 | P77: 10 | Q77: =IF(LEFT($D$20,5)="Urban",C77,D77)*('I0 Overall'!$C$29/'I0 Overall'!$C$28) -> 20.88666667 | R77: =IF(LEFT($D$20,5)="Urban",E77,F77)*('I0 Overall'!$C$29/'I0 Overall'!$C$28) -> 26.10833333 | S77: =IF(LEFT($D$20,5)="Urban",G77,H77)*('I0 Overall'!$C$29/'I0 Overall'!$C$28) -> 49.405 | T77: =IF(LEFT($D$20,5)="Urban",I77,J77)*('I0 Overall'!$C$29/'I0 Overall'!$C$28) -> 67.37958333 | U77: =IF(LEFT($D$20,5)="Urban",K77,L77)*('I0 Overall'!$C$29/'I0 Overall'!$C$28) -> 85.35416667 | V77: =IF(LEFT($D$20,5)="Urban",M77,N77)*('I0 Overall'!$C$29/'I0 Overall'!$C$28) -> 55.43
B78: 10.5 | C78: 22.4 | D78: 22.4 | E78: 28 | F78: 28 | G78: 52.8 | H78: 52.9 | I78: 72 | J78: 72.3 | K78: 91.3 | L78: 91.4 | M78: 59.2 | N78: 59.3 | P78: 10.5 | Q78: =IF(LEFT($D$20,5)="Urban",C78,D78)*('I0 Overall'!$C$29/'I0 Overall'!$C$28) -> 22.49333333 | R78: =IF(LEFT($D$20,5)="Urban",E78,F78)*('I0 Overall'!$C$29/'I0 Overall'!$C$28) -> 28.11666667 | S78: =IF(LEFT($D$20,5)="Urban",G78,H78)*('I0 Overall'!$C$29/'I0 Overall'!$C$28) -> 53.02 | T78: =IF(LEFT($D$20,5)="Urban",I78,J78)*('I0 Overall'!$C$29/'I0 Overall'!$C$28) -> 72.3 | U78: =IF(LEFT($D$20,5)="Urban",K78,L78)*('I0 Overall'!$C$29/'I0 Overall'!$C$28) -> 91.68041667 | V78: =IF(LEFT($D$20,5)="Urban",M78,N78)*('I0 Overall'!$C$29/'I0 Overall'!$C$28) -> 59.44666667
B79: 11 | C79: 23.3 | D79: 23.2 | E79: 29 | F79: 28.9 | G79: 55 | H79: 55 | I79: 74.9 | J79: 74.9 | K79: 95.4 | L79: 95.3 | M79: 61.7 | N79: 61.7 | P79: 11 | Q79: =IF(LEFT($D$20,5)="Urban",C79,D79)*('I0 Overall'!$C$29/'I0 Overall'!$C$28) -> 23.39708333 | R79: =IF(LEFT($D$20,5)="Urban",E79,F79)*('I0 Overall'!$C$29/'I0 Overall'!$C$28) -> 29.12083333 | S79: =IF(LEFT($D$20,5)="Urban",G79,H79)*('I0 Overall'!$C$29/'I0 Overall'!$C$28) -> 55.22916667 | T79: =IF(LEFT($D$20,5)="Urban",I79,J79)*('I0 Overall'!$C$29/'I0 Overall'!$C$28) -> 75.21208333 | U79: =IF(LEFT($D$20,5)="Urban",K79,L79)*('I0 Overall'!$C$29/'I0 Overall'!$C$28) -> 95.7975 | V79: =IF(LEFT($D$20,5)="Urban",M79,N79)*('I0 Overall'!$C$29/'I0 Overall'!$C$28) -> 61.95708333
B80: 11.5 | C80: 24.1 | D80: 24 | E80: 29.8 | F80: 29.7 | G80: 57.1 | H80: 57 | I80: 77.5 | J80: 77.5 | K80: 99.3 | L80: 99.1 | M80: 64.2 | N80: 64.1 | P80: 11.5 | Q80: =IF(LEFT($D$20,5)="Urban",C80,D80)*('I0 Overall'!$C$29/'I0 Overall'!$C$28) -> 24.20041667 | R80: =IF(LEFT($D$20,5)="Urban",E80,F80)*('I0 Overall'!$C$29/'I0 Overall'!$C$28) -> 29.92416667 | S80: =IF(LEFT($D$20,5)="Urban",G80,H80)*('I0 Overall'!$C$29/'I0 Overall'!$C$28) -> 57.33791667 | T80: =IF(LEFT($D$20,5)="Urban",I80,J80)*('I0 Overall'!$C$29/'I0 Overall'!$C$28) -> 77.82291667 | U80: =IF(LEFT($D$20,5)="Urban",K80,L80)*('I0 Overall'!$C$29/'I0 Overall'!$C$28) -> 99.71375 | V80: =IF(LEFT($D$20,5)="Urban",M80,N80)*('I0 Overall'!$C$29/'I0 Overall'!$C$28) -> 64.4675
B81: 12 | C81: 24.9 | D81: 24.8 | E81: 30.6 | F81: 30.6 | G81: 59.1 | H81: 59.1 | I81: 80.1 | J81: 80.1 | K81: 103.1 | L81: 103 | M81: 66.6 | N81: 66.5 | P81: 12 | Q81: =IF(LEFT($D$20,5)="Urban",C81,D81)*('I0 Overall'!$C$29/'I0 Overall'!$C$28) -> 25.00375 | R81: =IF(LEFT($D$20,5)="Urban",E81,F81)*('I0 Overall'!$C$29/'I0 Overall'!$C$28) -> 30.7275 | S81: =IF(LEFT($D$20,5)="Urban",G81,H81)*('I0 Overall'!$C$29/'I0 Overall'!$C$28) -> 59.34625 | T81: =IF(LEFT($D$20,5)="Urban",I81,J81)*('I0 Overall'!$C$29/'I0 Overall'!$C$28) -> 80.43375 | U81: =IF(LEFT($D$20,5)="Urban",K81,L81)*('I0 Overall'!$C$29/'I0 Overall'!$C$28) -> 103.5295833 | V81: =IF(LEFT($D$20,5)="Urban",M81,N81)*('I0 Overall'!$C$29/'I0 Overall'!$C$28) -> 66.8775
B82: 12.5 | C82: 25.6 | D82: 25.6 | E82: 31.5 | F82: 31.4 | G82: 61.1 | H82: 61.1 | I82: 82.7 | J82: 82.7 | K82: 107 | L82: 106.9 | M82: 69 | N82: 69 | P82: 12.5 | Q82: =IF(LEFT($D$20,5)="Urban",C82,D82)*('I0 Overall'!$C$29/'I0 Overall'!$C$28) -> 25.70666667 | R82: =IF(LEFT($D$20,5)="Urban",E82,F82)*('I0 Overall'!$C$29/'I0 Overall'!$C$28) -> 31.63125 | S82: =IF(LEFT($D$20,5)="Urban",G82,H82)*('I0 Overall'!$C$29/'I0 Overall'!$C$28) -> 61.35458333 | T82: =IF(LEFT($D$20,5)="Urban",I82,J82)*('I0 Overall'!$C$29/'I0 Overall'!$C$28) -> 83.04458333 | U82: =IF(LEFT($D$20,5)="Urban",K82,L82)*('I0 Overall'!$C$29/'I0 Overall'!$C$28) -> 107.4458333 | V82: =IF(LEFT($D$20,5)="Urban",M82,N82)*('I0 Overall'!$C$29/'I0 Overall'!$C$28) -> 69.2875
B83: 13 | C83: =D117 -> 26.4 | D83: 26.4 | E83: 32.3 | F83: 32.3 | G83: 63.1 | H83: 63.1 | I83: 85.3 | J83: 85.3 | K83: 110.8 | L83: 110.8 | M83: 71.4 | N83: 71.4 | P83: 13 | Q83: =IF(LEFT($D$20,5)="Urban",C83,D83)*('I0 Overall'!$C$29/'I0 Overall'!$C$28) -> 26.51 | R83: =IF(LEFT($D$20,5)="Urban",E83,F83)*('I0 Overall'!$C$29/'I0 Overall'!$C$28) -> 32.43458333 | S83: =IF(LEFT($D$20,5)="Urban",G83,H83)*('I0 Overall'!$C$29/'I0 Overall'!$C$28) -> 63.36291667 | T83: =IF(LEFT($D$20,5)="Urban",I83,J83)*('I0 Overall'!$C$29/'I0 Overall'!$C$28) -> 85.65541667 | U83: =IF(LEFT($D$20,5)="Urban",K83,L83)*('I0 Overall'!$C$29/'I0 Overall'!$C$28) -> 111.2616667 | V83: =IF(LEFT($D$20,5)="Urban",M83,N83)*('I0 Overall'!$C$29/'I0 Overall'!$C$28) -> 71.6975
B84: 13.5 | C84: 27.2 | D84: 27.2 | E84: 33.1 | F84: 33.1 | G84: 65.2 | H84: 65.2 | I84: 87.9 | J84: 87.9 | K84: 114.6 | L84: 114.7 | M84: 73.8 | N84: 73.8 | P84: 13.5 | Q84: =IF(LEFT($D$20,5)="Urban",C84,D84)*('I0 Overall'!$C$29/'I0 Overall'!$C$28) -> 27.31333333 | R84: =IF(LEFT($D$20,5)="Urban",E84,F84)*('I0 Overall'!$C$29/'I0 Overall'!$C$28) -> 33.23791667 | S84: =IF(LEFT($D$20,5)="Urban",G84,H84)*('I0 Overall'!$C$29/'I0 Overall'!$C$28) -> 65.47166667 | T84: =IF(LEFT($D$20,5)="Urban",I84,J84)*('I0 Overall'!$C$29/'I0 Overall'!$C$28) -> 88.26625 | U84: =IF(LEFT($D$20,5)="Urban",K84,L84)*('I0 Overall'!$C$29/'I0 Overall'!$C$28) -> 115.0775 | V84: =IF(LEFT($D$20,5)="Urban",M84,N84)*('I0 Overall'!$C$29/'I0 Overall'!$C$28) -> 74.1075
B85: 14 | C85: 28 | D85: 28 | E85: 33.9 | F85: 34 | G85: 67.2 | H85: 67.2 | I85: 90.6 | J85: 90.6 | K85: 118.5 | L85: 118.5 | M85: 76.2 | N85: 76.2 | P85: 14 | Q85: =IF(LEFT($D$20,5)="Urban",C85,D85)*('I0 Overall'!$C$29/'I0 Overall'!$C$28) -> 28.11666667 | R85: =IF(LEFT($D$20,5)="Urban",E85,F85)*('I0 Overall'!$C$29/'I0 Overall'!$C$28) -> 34.04125 | S85: =IF(LEFT($D$20,5)="Urban",G85,H85)*('I0 Overall'!$C$29/'I0 Overall'!$C$28) -> 67.48 | T85: =IF(LEFT($D$20,5)="Urban",I85,J85)*('I0 Overall'!$C$29/'I0 Overall'!$C$28) -> 90.9775 | U85: =IF(LEFT($D$20,5)="Urban",K85,L85)*('I0 Overall'!$C$29/'I0 Overall'!$C$28) -> 118.99375 | V85: =IF(LEFT($D$20,5)="Urban",M85,N85)*('I0 Overall'!$C$29/'I0 Overall'!$C$28) -> 76.5175
B86: 14.5 | C86: 28.7 | D86: 28.8 | E86: 34.7 | F86: 34.8 | G86: 69.2 | H86: 69.2 | I86: 93.2 | J86: 93.2 | K86: 122.3 | L86: 122.4 | M86: 78.6 | N86: 78.6 | P86: 14.5 | Q86: =IF(LEFT($D$20,5)="Urban",C86,D86)*('I0 Overall'!$C$29/'I0 Overall'!$C$28) -> 28.81958333 | R86: =IF(LEFT($D$20,5)="Urban",E86,F86)*('I0 Overall'!$C$29/'I0 Overall'!$C$28) -> 34.84458333 | S86: =IF(LEFT($D$20,5)="Urban",G86,H86)*('I0 Overall'!$C$29/'I0 Overall'!$C$28) -> 69.48833333 | T86: =IF(LEFT($D$20,5)="Urban",I86,J86)*('I0 Overall'!$C$29/'I0 Overall'!$C$28) -> 93.58833333 | U86: =IF(LEFT($D$20,5)="Urban",K86,L86)*('I0 Overall'!$C$29/'I0 Overall'!$C$28) -> 122.8095833 | V86: =IF(LEFT($D$20,5)="Urban",M86,N86)*('I0 Overall'!$C$29/'I0 Overall'!$C$28) -> 78.9275
B87: 15 | C87: 29.5 | D87: 29.6 | E87: 35.5 | F87: 35.7 | G87: 71.2 | H87: 71.3 | I87: 95.8 | J87: 95.8 | K87: 126.1 | L87: 126.3 | M87: 81 | N87: 81.1 | P87: 15 | Q87: =IF(LEFT($D$20,5)="Urban",C87,D87)*('I0 Overall'!$C$29/'I0 Overall'!$C$28) -> 29.62291667 | R87: =IF(LEFT($D$20,5)="Urban",E87,F87)*('I0 Overall'!$C$29/'I0 Overall'!$C$28) -> 35.64791667 | S87: =IF(LEFT($D$20,5)="Urban",G87,H87)*('I0 Overall'!$C$29/'I0 Overall'!$C$28) -> 71.49666667 | T87: =IF(LEFT($D$20,5)="Urban",I87,J87)*('I0 Overall'!$C$29/'I0 Overall'!$C$28) -> 96.19916667 | U87: =IF(LEFT($D$20,5)="Urban",K87,L87)*('I0 Overall'!$C$29/'I0 Overall'!$C$28) -> 126.6254167 | V87: =IF(LEFT($D$20,5)="Urban",M87,N87)*('I0 Overall'!$C$29/'I0 Overall'!$C$28) -> 81.3375
B89: Urban additional VOC due to roughness by vehicle class (cents/km July 2015) | I89: EEM, pg 5-245 | K89: Rural additional VOC due to roughness by vehicle class (cents/km July 2015) | R89: EEM, pg 5-246
B90: IRI | D90: PC | E90: LCV | F90: MCV | G90: HCV1 | H90: HCV2 | I90: Bus | K90: IRI | M90: PC | N90: LCV | O90: MCV | P90: HCV1 | Q90: HCV2 | R90: Bus
B91: 0 | D91: 0 | E91: 0 | F91: 0 | G91: 0 | H91: 0 | I91: 0 | K91: 0 | M91: 0 | N91: 0 | O91: 0 | P91: 0 | Q91: 0 | R91: 0
B92: =+B91+0.5 -> 0.5 | D92: 0 | E92: 0 | F92: 0 | G92: 0 | H92: 0 | I92: 0 | K92: =+K91+0.5 -> 0.5 | M92: 0 | N92: 0 | O92: 0 | P92: 0 | Q92: 0 | R92: 0
B93: =+B92+0.5 -> 1 | D93: 0 | E93: 0 | F93: 0 | G93: 0 | H93: 0 | I93: 0 | K93: =+K92+0.5 -> 1 | M93: 0 | N93: 0 | O93: 0 | P93: 0 | Q93: 0 | R93: 0
B94: =+B93+0.5 -> 1.5 | D94: 0 | E94: 0 | F94: 0 | G94: 0 | H94: 0 | I94: 0 | K94: =+K93+0.5 -> 1.5 | M94: 0 | N94: 0 | O94: 0 | P94: 0 | Q94: 0 | R94: 0
B95: =+B94+0.5 -> 2 | D95: 0 | E95: 0 | F95: 0 | G95: 0 | H95: 0 | I95: 0 | K95: =+K94+0.5 -> 2 | M95: 0 | N95: 0 | O95: 0 | P95: 0 | Q95: 0 | R95: 0
B96: 2.5 | D96: 0 | E96: 0 | F96: 0 | G96: 0 | H96: 0 | I96: 0 | K96: 2.5 | M96: 0 | N96: 0 | O96: 0 | P96: 0 | Q96: 0 | R96: 0
B97: =+B96+0.5 -> 3 | D97: 0.3 | E97: 0.3 | F97: 0.7 | G97: 0.9 | H97: 1.4 | I97: 0.8 | K97: =+K96+0.5 -> 3 | M97: 0.2 | N97: 0.2 | O97: 0.5 | P97: 0.7 | Q97: 1.1 | R97: 0.6
B98: 3.5 | D98: 0.8 | E98: 0.7 | F98: 2.3 | G98: 3.1 | H98: 4.4 | I98: 2.8 | K98: 3.5 | M98: 0.9 | N98: 0.9 | O98: 2.5 | P98: 3.5 | Q98: 4.8 | R98: 3.1
B99: 4 | D99: 1.6 | E99: 1.4 | F99: 4.7 | G99: 6.3 | H99: 8.5 | I99: 5.7 | K99: 4 | M99: 2.4 | N99: 2.7 | O99: 6.4 | P99: 8.8 | Q99: 11.1 | R99: 7.4
B100: 4.5 | D100: 2.7 | E100: 2.6 | F100: 7.6 | G100: 10.2 | H100: 13.6 | I100: 9.1 | K100: 4.5 | M100: 4.4 | N100: 5.3 | O100: 11.2 | P100: 15.5 | Q100: 18.9 | R100: 12.7
B101: 5 | D101: 4 | E101: 4.2 | F101: 10.9 | G101: 14.7 | H101: 19.3 | I101: 12.9 | K101: 5 | M101: 6.6 | N101: 8.2 | O101: 16.3 | P101: 22.7 | Q101: 27.3 | R101: 18.2
B102: 5.5 | D102: 5.5 | E102: 6 | F102: 14.5 | G102: 19.6 | H102: 25.4 | I102: 16.9 | K102: 5.5 | M102: 8.9 | N102: 11.1 | O102: 21.3 | P102: 29.8 | Q102: 35.6 | R102: 23.7
B103: 6 | D103: 7.1 | E103: 8.1 | F103: 18.3 | G103: 24.7 | H103: 31.9 | I103: 21.2 | K103: 6 | M103: 11 | N103: 14 | O103: 26.2 | P103: 36.6 | Q103: 43.7 | R103: 29
B104: 6.5 | D104: 8.8 | E104: 10.3 | F104: 22.2 | G104: 30 | H104: 38.6 | I104: 25.5 | K104: 6.5 | M104: 13.2 | N104: 16.9 | O104: 31 | P104: 43.2 | Q104: 51.7 | R104: 34.2
B105: 7 | D105: 10.5 | E105: 12.6 | F105: 26.1 | G105: 35.4 | H105: 45.3 | I105: 29.8 | K105: 7 | M105: 15.3 | N105: 19.8 | O105: 35.7 | P105: 49.8 | Q105: 59.7 | R105: 39.4
B106: 7.5 | D106: 12.3 | E106: 14.9 | F106: 30.1 | G106: 40.8 | H106: 52.1 | I106: 34.1 | K106: 7.5 | M106: 17.6 | N106: 22.8 | O106: 40.6 | P106: 56.6 | Q106: 67.9 | R106: 44.7
B107: 8 | D107: 14.1 | E107: 17.2 | F107: 34 | G107: 46.2 | H107: 58.8 | I107: 38.5 | K107: 8 | M107: 18.5 | N107: 23.8 | O107: 42.8 | P107: 59.2 | Q107: 72 | R107: 47.2
B108: 8.5 | D108: 15.8 | E108: 19.5 | F108: 37.9 | G108: 51.6 | H108: 65.5 | I108: 42.7 | K108: 8.5 | M108: 19.3 | N108: 24.6 | O108: 44.8 | P108: 61.8 | Q108: 75.9 | R108: 49.6
B109: 9 | D109: 17.5 | E109: 21.7 | F109: 41.8 | G109: 56.8 | H109: 72.2 | I109: 46.9 | K109: 9 | M109: 20 | N109: 25.5 | O109: 46.8 | P109: 64.4 | Q109: 79.7 | R109: 52
B110: 9.5 | D110: 19.2 | E110: 23.9 | F110: 45.6 | G110: 62 | H110: 78.7 | I110: 51.1 | K110: 9.5 | M110: 20.8 | N110: 26.3 | O110: 48.9 | P110: 67 | Q110: 83.6 | R110: 54.4
B111: 10 | D111: 20.8 | E111: 26 | F111: 49.2 | G111: 67.1 | H111: 85 | I111: 55.2 | K111: 10 | M111: 21.6 | N111: 27.2 | O111: 50.9 | P111: 69.7 | Q111: 87.5 | R111: 56.8
B112: 10.5 | D112: 22.4 | E112: 28 | F112: 52.8 | G112: 72 | H112: 91.3 | I112: 59.2 | K112: 10.5 | M112: 22.4 | N112: 28 | O112: 52.9 | P112: 72.3 | Q112: 91.4 | R112: 59.3
B113: 11 | D113: 23.3 | E113: 29 | F113: 55 | G113: 74.9 | H113: 95.4 | I113: 61.7 | K113: 11 | M113: 23.2 | N113: 28.9 | O113: 55 | P113: 74.9 | Q113: 95.3 | R113: 61.7
B114: 11.5 | D114: 24.1 | E114: 29.8 | F114: 57.1 | G114: 77.5 | H114: 99.3 | I114: 64.2 | K114: 11.5 | M114: 24 | N114: 29.7 | O114: 57 | P114: 77.5 | Q114: 99.1 | R114: 64.1
B115: 12 | D115: 24.9 | E115: 30.6 | F115: 59.1 | G115: 80.1 | H115: 103.1 | I115: 66.6 | K115: 12 | M115: 24.8 | N115: 30.6 | O115: 59.1 | P115: 80.1 | Q115: 103 | R115: 66.5
B116: 12.5 | D116: 25.6 | E116: 31.5 | F116: 61.1 | G116: 82.7 | H116: 107 | I116: 69 | K116: 12.5 | M116: 25.6 | N116: 31.4 | O116: 61.1 | P116: 82.7 | Q116: 106.9 | R116: 69
B117: 13 | D117: 26.4 | E117: 32.3 | F117: 63.1 | G117: 85.3 | H117: 110.8 | I117: 71.4 | K117: 13 | M117: 26.4 | N117: 32.3 | O117: 63.1 | P117: 85.3 | Q117: 110.8 | R117: 71.4
B118: 13.5 | D118: 27.2 | E118: 33.1 | F118: 65.2 | G118: 87.9 | H118: 114.6 | I118: 73.8 | K118: 13.5 | M118: 27.2 | N118: 33.1 | O118: 65.2 | P118: 87.9 | Q118: 114.7 | R118: 73.8
B119: 14 | D119: 28 | E119: 33.9 | F119: 67.2 | G119: 90.6 | H119: 118.5 | I119: 76.2 | K119: 14 | M119: 28 | N119: 34 | O119: 67.2 | P119: 90.6 | Q119: 118.5 | R119: 76.2
B120: 14.5 | D120: 28.7 | E120: 34.7 | F120: 69.2 | G120: 93.2 | H120: 122.3 | I120: 78.6 | K120: 14.5 | M120: 28.8 | N120: 34.8 | O120: 69.2 | P120: 93.2 | Q120: 122.4 | R120: 78.6
B121: 15 | D121: 29.5 | E121: 35.5 | F121: 71.2 | G121: 95.8 | H121: 126.1 | I121: 81 | K121: 15 | M121: 29.6 | N121: 35.7 | O121: 71.3 | P121: 95.8 | Q121: 126.3 | R121: 81.1

Sheet I3 Portfolio
A1: =MID(CELL("filename",A2),FIND("]",CELL("filename",A2))+1,256) -> I3 Portfolio
B4: Assumptions
B6: Funding and service level improvements
B8: Funding level | C8: Value
B9: Funding available for minor works | C9: 4000000 | D9: This is in NPV terms
B11: Service level improvements | C11: Value
B12: DSI prevented | C12: 0.3 | D12: Service level improvements represent the improvement targets the road authority is seeking to
B13: Detour distance avoided (km) | C13: 50000 | D13: achieve
B14: Time saved (hours) | C14: 85000
B16: Safety
B18: Average cost per reported accident | C18: Cost by type | D18: Comments
B19: Fatalities | C19: =4094500*'I0 Overall'!C29/'I0 Overall'!C28 -> 4111560.417 | D19: Source: Ministry of Transport (2016) Social cost of road crashes and injuries 2015 update
B20: Serious injuries | C20: =760000*'I0 Overall'!C29/'I0 Overall'!C28 -> 763166.6667 | D20: Inflated to 2016 values. Figures have also been scaled up to include under- reporting
B21: Minor injuries | C21: =75000*'I0 Overall'!C29/'I0 Overall'!C28 -> 75312.5
B23: Resilience
B25: Characteristics of routes | C25: original route | D25: detour route | E25: Comments
B26: Gradient | C26: 3 | D26: 3 | E26: Assumed gradient of original route and detour route
B28: Value of time ($/hour) | D28: Comments
B29: Urban arterial | C29: =16.27*'I0 Overall'!$C$29/'I0 Overall'!$C$15 -> 21.77969566 | D29: Table A4.3, NZ Transport Agency EEM. Values reflect base value of time for all periods
B30: Urban other | C30: =16.23*'I0 Overall'!$C$29/'I0 Overall'!$C$15 -> 21.72615001 | D30: and vehicle types combined. Also inflated from 2002 values to 2016
B31: Rural Strategic | C31: =23.25*'I0 Overall'!$C$29/'I0 Overall'!$C$15 -> 31.12341267
B32: Rural Other | C32: =22.72*'I0 Overall'!$C$29/'I0 Overall'!$C$15 -> 30.41393273
B34: Efficiency
B36: Value of time ($/hour) | C36: Existing users | D36: New users | E36: Comments
B37: Urban arterial | C37: =C29 -> 21.77969566 | D37: =C37/2 -> 10.88984783 | E37: Rule of half has been applied to new users
B38: Urban other | C38: =C30 -> 21.72615001 | D38: =C38/2 -> 10.863075
B39: Rural strategic | C39: 31.12341267 | D39: =C39/2 -> 15.56170634
B40: Rural other | C40: 30.41393273 | D40: =C40/2 -> 15.20696636
B42: Minor works project inputs
B44: Inputs | C44: Relevant project type | D44: Project 1 | E44: Project 2 | F44: Project 3 | G44: Project 4 | H44: Project 5 | I44: Project 6 | J44: Project 7 | K44: Project 8 | L44: Project 9 | M44: Project 10 | N44: Project 11 | O44: Project 12 | P44: Project 13 | Q44: Project 14 | R44: Project 15 | S44: Project 16 | T44: Project 17 | U44: Project 18 | V44: Project 19 | W44: Project 20 | X44: Project 21 | Y44: Project 22 | Z44: Project 23 | AA44: Project 24 | AB44: Project 25 | AC44: Project 26 | AD44: Project 27 | AE44: Project 28 | AF44: Project 29 | AG44: Project 30 | AH44: Project 31 | AI44: Project 32 | AJ44: Project 33 | AK44: Project 34 | AL44: Project 35 | AM44: Project 36 | AN44: Project 37 | AO44: Project 38 | AP44: Project 39 | AQ44: Project 40
B45: Project type | C45: All | D45: Safety | E45: Safety | F45: Safety | G45: Safety | H45: Safety | I45: Safety | J45: Safety | K45: Safety | L45: Efficiency | M45: Efficiency | N45: Efficiency | O45: Efficiency | P45: Efficiency | Q45: Efficiency | R45: Efficiency | S45: Efficiency | T45: Resilience | U45: Resilience | V45: Resilience | W45: Resilience | X45: Resilience | Y45: Resilience | Z45: Resilience | AA45: Resilience
B46: Project upfront cost | C46: All | D46: 210000 | E46: 60000 | F46: 300000 | G46: 100000 | H46: 210000 | I46: 300000 | J46: 290000 | K46: 280000 | L46: 100000 | M46: 180000 | N46: 250000 | O46: 250000 | P46: 300000 | Q46: 50000 | R46: 90000 | S46: 300000 | T46: 125000 | U46: 165000 | V46: 180000 | W46: 96000 | X46: 300000 | Y46: 300000 | Z46: 206000 | AA46: 120000
B47: Project ongoing cost | C47: All | D47: 21000 | E47: 2500 | F47: 30000 | G47: 10000 | H47: 21000 | I47: 40000 | J47: 30000 | K47: 30000 | L47: =L46*0.1 -> 10000 | M47: =M46*0.1 -> 18000 | N47: 25000 | O47: 25000 | P47: 30000 | Q47: 5000 | R47: 9000 | S47: 30000 | T47: 12500 | U47: =U46*0.1 -> 16500 | V47: 18000 | W47: 9600 | X47: 30000 | Y47: 30000 | Z47: =Z46*0.1 -> 20600 | AA47: =AA46*0.1 -> 12000
B48: Years of ongoing cost | C48: All | D48: 10 | E48: 10 | F48: 10 | G48: 10 | H48: 10 | I48: 10 | J48: 10 | K48: 10 | L48: 10 | M48: 10 | N48: 10 | O48: 10 | P48: 10 | Q48: 10 | R48: 10 | S48: 10 | T48: 10 | U48: 10 | V48: 10 | W48: 10 | X48: 10 | Y48: 10 | Z48: 10 | AA48: 10
B49: Start year of benefits | C49: All | D49: 1 | E49: 1 | F49: 1 | G49: 1 | H49: 1 | I49: 1 | J49: 1 | K49: 1 | L49: 1 | M49: 1 | N49: 1 | O49: 1 | P49: 1 | Q49: 1 | R49: 1 | S49: 1 | T49: 1 | U49: 1 | V49: 1 | W49: 1 | X49: 1 | Y49: 1 | Z49: 1 | AA49: 1
B50: Years of benefit | C50: All | D50: 10 | E50: 10 | F50: 10 | G50: 10 | H50: 10 | I50: 10 | J50: 10 | K50: 10 | L50: 10 | M50: 10 | N50: 10 | O50: 10 | P50: 10 | Q50: 10 | R50: 10 | S50: 10 | T50: 10 | U50: 10 | V50: 10 | W50: 10 | X50: 10 | Y50: 10 | Z50: 10 | AA50: 10
B51: Reduced fatalities per year | C51: Safety related | D51: 0.06 | E51: 0.01 | F51: 0.08 | G51: 0.02 | H51: 0.03 | I51: 0.12 | J51: 0.1 | K51: 0.1
B52: Reduced serious injuries per year | C52: Safety related | D52: 0.06 | E52: 0.01 | F52: 0.08 | G52: 0.02 | H52: 0.03 | I52: 0.12 | J52: 0.1 | K52: 0.1
B53: Reduced minor injuries per year | C53: Safety related | D53: 0.17 | E53: 0.03 | F53: 0.23 | G53: 0.06 | H53: 0.09 | I53: 0.35 | J53: 0.28 | K53: 0.28
B54: Disruptions avoided per year | C54: Resilience related | T54: 0.35 | U54: 0.3 | V54: 0.4 | W54: 0.2 | X54: 0.25 | Y54: 0.45 | Z54: 0.35 | AA54: 0.25
B55: Period of disruption (Days) | C55: Resilience related | T55: 1 | U55: 2 | V55: 2 | W55: 1 | X55: 2 | Y55: 2 | Z55: 2 | AA55: 1
B56: AADT | C56: Resilience related | T56: 3700 | U56: 5000 | V56: 8000 | W56: 3100 | X56: 9700 | Y56: 11000 | Z56: 7100 | AA56: 3300
B57: Reinstatement cost per closure | C57: Resilience related | T57: 110000 | U57: 120000 | V57: 250000 | W57: 80000 | X57: 260000 | Y57: 240000 | Z57: 270000 | AA57: 110000
B58: Original route - Road type | C58: Resilience related | T58: Urban arterial | U58: Rural Strategic | V58: Urban arterial | W58: Rural Strategic | X58: Urban arterial | Y58: Urban arterial | Z58: Urban arterial | AA58: Urban arterial
B59: Original route - Average speed | C59: Resilience related | T59: 90 | U59: 90 | V59: 90 | W59: 90 | X59: 90 | Y59: 90 | Z59: 90 | AA59: 90
B60: Length of original trip | C60: Resilience related | T60: 10 | U60: 13 | V60: 10 | W60: 4 | X60: 6 | Y60: 8 | Z60: 13 | AA60: 6
B61: Alternative route - Road type | C61: Resilience related | T61: Urban other | U61: Rural Other | V61: Urban other | W61: Rural Other | X61: Urban other | Y61: Urban other | Z61: Urban other | AA61: Urban other
B62: Alternative route - Average speed | C62: Resilience related | T62: 50 | U62: 50 | V62: 50 | W62: 50 | X62: 50 | Y62: 50 | Z62: 50 | AA62: 50
B63: Length of alternative trip | C63: Resilience related | T63: 15 | U63: 30 | V63: 15 | W63: 15 | X63: 14 | Y63: 15 | Z63: 20 | AA63: 16
B64: Road type | C64: Efficiency related | L64: Urban other | M64: Rural Strategic | N64: Rural Other | O64: Urban arterial | P64: Urban other | Q64: Rural Strategic | R64: Rural Other | S64: Urban arterial
B65: Hours saved per year existing users | C65: Efficiency related | L65: 9500 | M65: 17500 | N65: 20000 | O65: 22500 | P65: 20000 | Q65: 5000 | R65: 7500 | S65: 12400
B66: Hours saved per year new users | C66: Efficiency related | L66: =L65*0.05 -> 475 | M66: =M65*0.05 -> 875 | N66: 1000 | O66: 1125 | P66: 1000 | Q66: 250 | R66: 375 | S66: 620
V70: 5
V71: =PRODUCT(V54:V56) -> 6400
V72: =V70*V71 -> 32000

Sheet I4 Detailed VOC assumptions
A1: =MID(CELL("filename",A2),FIND("]",CELL("filename",A2))+1,256) -> I4 Detailed VOC assumptions
B5: Detailed VOC assumptions for minor works - resilience
B7: VOC for original route (cents/km)
C9: Project 1 | D9: Project 2 | E9: Project 3 | F9: Project 4 | G9: Project 5 | H9: Project 6 | I9: Project 7 | J9: Project 8 | K9: Project 9 | L9: Project 10 | M9: Project 11 | N9: Project 12 | O9: Project 13 | P9: Project 14 | Q9: Project 15 | R9: Project 16 | S9: Project 17 | T9: Project 18 | U9: Project 19 | V9: Project 20 | W9: Project 21 | X9: Project 22 | Y9: Project 23 | Z9: Project 24 | AA9: Project 25 | AB9: Project 26 | AC9: Project 27 | AD9: Project 28 | AE9: Project 29 | AF9: Project 30 | AG9: Project 31 | AH9: Project 32 | AI9: Project 33 | AJ9: Project 34 | AK9: Project 35 | AL9: Project 36 | AM9: Project 37 | AN9: Project 38 | AO9: Project 39 | AP9: Project 40
B10: Road type | C10: ='I3 Portfolio'!D58 -> 0 | D10: ='I3 Portfolio'!E58 -> 0 | E10: ='I3 Portfolio'!F58 -> 0 | F10: ='I3 Portfolio'!G58 -> 0 | G10: ='I3 Portfolio'!H58 -> 0 | H10: ='I3 Portfolio'!I58 -> 0 | I10: ='I3 Portfolio'!J58 -> 0 | J10: ='I3 Portfolio'!K58 -> 0 | K10: ='I3 Portfolio'!L58 -> 0 | L10: ='I3 Portfolio'!M58 -> 0 | M10: ='I3 Portfolio'!N58 -> 0 | N10: ='I3 Portfolio'!O58 -> 0 | O10: ='I3 Portfolio'!P58 -> 0 | P10: ='I3 Portfolio'!Q58 -> 0 | Q10: ='I3 Portfolio'!R58 -> 0 | R10: ='I3 Portfolio'!S58 -> 0 | S10: ='I3 Portfolio'!T58 -> Urban arterial | T10: ='I3 Portfolio'!U58 -> Rural Strategic | U10: ='I3 Portfolio'!V58 -> Urban arterial | V10: ='I3 Portfolio'!W58 -> Rural Strategic | W10: ='I3 Portfolio'!X58 -> Urban arterial | X10: ='I3 Portfolio'!Y58 -> Urban arterial | Y10: ='I3 Portfolio'!Z58 -> Urban arterial | Z10: ='I3 Portfolio'!AA58 -> Urban arterial | AA10: ='I3 Portfolio'!AB58 -> 0 | AB10: ='I3 Portfolio'!AC58 -> 0 | AC10: ='I3 Portfolio'!AD58 -> 0 | AD10: ='I3 Portfolio'!AE58 -> 0 | AE10: ='I3 Portfolio'!AF58 -> 0 | AF10: ='I3 Portfolio'!AG58 -> 0 | AG10: ='I3 Portfolio'!AH58 -> 0 | AH10: ='I3 Portfolio'!AI58 -> 0 | AI10: ='I3 Portfolio'!AJ58 -> 0 | AJ10: ='I3 Portfolio'!AK58 -> 0 | AK10: ='I3 Portfolio'!AL58 -> 0 | AL10: ='I3 Portfolio'!AM58 -> 0 | AM10: ='I3 Portfolio'!AN58 -> 0 | AN10: ='I3 Portfolio'!AO58 -> 0 | AO10: ='I3 Portfolio'!AP58 -> 0 | AP10: ='I3 Portfolio'!AQ58 -> 0
B11: Speed | C11: ='I3 Portfolio'!D59 -> 0 | D11: ='I3 Portfolio'!E59 -> 0 | E11: ='I3 Portfolio'!F59 -> 0 | F11: ='I3 Portfolio'!G59 -> 0 | G11: ='I3 Portfolio'!H59 -> 0 | H11: ='I3 Portfolio'!I59 -> 0 | I11: ='I3 Portfolio'!J59 -> 0 | J11: ='I3 Portfolio'!K59 -> 0 | K11: ='I3 Portfolio'!L59 -> 0 | L11: ='I3 Portfolio'!M59 -> 0 | M11: ='I3 Portfolio'!N59 -> 0 | N11: ='I3 Portfolio'!O59 -> 0 | O11: ='I3 Portfolio'!P59 -> 0 | P11: ='I3 Portfolio'!Q59 -> 0 | Q11: ='I3 Portfolio'!R59 -> 0 | R11: ='I3 Portfolio'!S59 -> 0 | S11: ='I3 Portfolio'!T59 -> 90 | T11: ='I3 Portfolio'!U59 -> 90 | U11: ='I3 Portfolio'!V59 -> 90 | V11: ='I3 Portfolio'!W59 -> 90 | W11: ='I3 Portfolio'!X59 -> 90 | X11: ='I3 Portfolio'!Y59 -> 90 | Y11: ='I3 Portfolio'!Z59 -> 90 | Z11: ='I3 Portfolio'!AA59 -> 90 | AA11: ='I3 Portfolio'!AB59 -> 0 | AB11: ='I3 Portfolio'!AC59 -> 0 | AC11: ='I3 Portfolio'!AD59 -> 0 | AD11: ='I3 Portfolio'!AE59 -> 0 | AE11: ='I3 Portfolio'!AF59 -> 0 | AF11: ='I3 Portfolio'!AG59 -> 0 | AG11: ='I3 Portfolio'!AH59 -> 0 | AH11: ='I3 Portfolio'!AI59 -> 0 | AI11: ='I3 Portfolio'!AJ59 -> 0 | AJ11: ='I3 Portfolio'!AK59 -> 0 | AK11: ='I3 Portfolio'!AL59 -> 0 | AL11: ='I3 Portfolio'!AM59 -> 0 | AM11: ='I3 Portfolio'!AN59 -> 0 | AN11: ='I3 Portfolio'!AO59 -> 0 | AO11: ='I3 Portfolio'!AP59 -> 0 | AP11: ='I3 Portfolio'!AQ59 -> 0
B12: Gradient | C12: ='I1 Minor works & Operations'!$C$70 -> 3 | D12: ='I1 Minor works & Operations'!$C$70 -> 3 | E12: ='I1 Minor works & Operations'!$C$70 -> 3 | F12: ='I1 Minor works & Operations'!$C$70 -> 3 | G12: ='I1 Minor works & Operations'!$C$70 -> 3 | H12: ='I1 Minor works & Operations'!$C$70 -> 3 | I12: ='I1 Minor works & Operations'!$C$70 -> 3 | J12: ='I1 Minor works & Operations'!$C$70 -> 3 | K12: ='I1 Minor works & Operations'!$C$70 -> 3 | L12: ='I1 Minor works & Operations'!$C$70 -> 3 | M12: ='I1 Minor works & Operations'!$C$70 -> 3 | N12: ='I1 Minor works & Operations'!$C$70 -> 3 | O12: ='I1 Minor works & Operations'!$C$70 -> 3 | P12: ='I1 Minor works & Operations'!$C$70 -> 3 | Q12: ='I1 Minor works & Operations'!$C$70 -> 3 | R12: ='I1 Minor works & Operations'!$C$70 -> 3 | S12: ='I1 Minor works & Operations'!$C$70 -> 3 | T12: ='I1 Minor works & Operations'!$C$70 -> 3 | U12: ='I1 Minor works & Operations'!$C$70 -> 3 | V12: ='I1 Minor works & Operations'!$C$70 -> 3 | W12: ='I1 Minor works & Operations'!$C$70 -> 3 | X12: ='I1 Minor works & Operations'!$C$70 -> 3 | Y12: ='I1 Minor works & Operations'!$C$70 -> 3 | Z12: ='I1 Minor works & Operations'!$C$70 -> 3 | AA12: ='I1 Minor works & Operations'!$C$70 -> 3 | AB12: ='I1 Minor works & Operations'!$C$70 -> 3 | AC12: ='I1 Minor works & Operations'!$C$70 -> 3 | AD12: ='I1 Minor works & Operations'!$C$70 -> 3 | AE12: ='I1 Minor works & Operations'!$C$70 -> 3 | AF12: ='I1 Minor works & Operations'!$C$70 -> 3 | AG12: ='I1 Minor works & Operations'!$C$70 -> 3 | AH12: ='I1 Minor works & Operations'!$C$70 -> 3 | AI12: ='I1 Minor works & Operations'!$C$70 -> 3 | AJ12: ='I1 Minor works & Operations'!$C$70 -> 3 | AK12: ='I1 Minor works & Operations'!$C$70 -> 3 | AL12: ='I1 Minor works & Operations'!$C$70 -> 3 | AM12: ='I1 Minor works & Operations'!$C$70 -> 3 | AN12: ='I1 Minor works & Operations'!$C$70 -> 3 | AO12: ='I1 Minor works & Operations'!$C$70 -> 3 | AP12: ='I1 Minor works & Operations'!$C$70 -> 3
B13: VOC - 2015 | C13: =IFERROR(INDEX(CHOOSE(MATCH(C$10,Setup!$I$7:$I$10,0),$C$39:$O$61,$C$68:$O$90,$C$97:$O$119,$C$126:$O$148),MATCH(C$11,$B$39:$B$61,0),MATCH(C$12,$C$38:$O$38,0)),0) -> 0 | D13: =IFERROR(INDEX(CHOOSE(MATCH(D$10,Setup!$I$7:$I$10,0),$C$39:$O$61,$C$68:$O$90,$C$97:$O$119,$C$126:$O$148),MATCH(D$11,$B$39:$B$61,0),MATCH(D$12,$C$38:$O$38,0)),0) -> 0 | E13: =IFERROR(INDEX(CHOOSE(MATCH(E$10,Setup!$I$7:$I$10,0),$C$39:$O$61,$C$68:$O$90,$C$97:$O$119,$C$126:$O$148),MATCH(E$11,$B$39:$B$61,0),MATCH(E$12,$C$38:$O$38,0)),0) -> 0 | F13: =IFERROR(INDEX(CHOOSE(MATCH(F$10,Setup!$I$7:$I$10,0),$C$39:$O$61,$C$68:$O$90,$C$97:$O$119,$C$126:$O$148),MATCH(F$11,$B$39:$B$61,0),MATCH(F$12,$C$38:$O$38,0)),0) -> 0 | G13: =IFERROR(INDEX(CHOOSE(MATCH(G$10,Setup!$I$7:$I$10,0),$C$39:$O$61,$C$68:$O$90,$C$97:$O$119,$C$126:$O$148),MATCH(G$11,$B$39:$B$61,0),MATCH(G$12,$C$38:$O$38,0)),0) -> 0 | H13: =IFERROR(INDEX(CHOOSE(MATCH(H$10,Setup!$I$7:$I$10,0),$C$39:$O$61,$C$68:$O$90,$C$97:$O$119,$C$126:$O$148),MATCH(H$11,$B$39:$B$61,0),MATCH(H$12,$C$38:$O$38,0)),0) -> 0 | I13: =IFERROR(INDEX(CHOOSE(MATCH(I$10,Setup!$I$7:$I$10,0),$C$39:$O$61,$C$68:$O$90,$C$97:$O$119,$C$126:$O$148),MATCH(I$11,$B$39:$B$61,0),MATCH(I$12,$C$38:$O$38,0)),0) -> 0 | J13: =IFERROR(INDEX(CHOOSE(MATCH(J$10,Setup!$I$7:$I$10,0),$C$39:$O$61,$C$68:$O$90,$C$97:$O$119,$C$126:$O$148),MATCH(J$11,$B$39:$B$61,0),MATCH(J$12,$C$38:$O$38,0)),0) -> 0 | K13: =IFERROR(INDEX(CHOOSE(MATCH(K$10,Setup!$I$7:$I$10,0),$C$39:$O$61,$C$68:$O$90,$C$97:$O$119,$C$126:$O$148),MATCH(K$11,$B$39:$B$61,0),MATCH(K$12,$C$38:$O$38,0)),0) -> 0 | L13: =IFERROR(INDEX(CHOOSE(MATCH(L$10,Setup!$I$7:$I$10,0),$C$39:$O$61,$C$68:$O$90,$C$97:$O$119,$C$126:$O$148),MATCH(L$11,$B$39:$B$61,0),MATCH(L$12,$C$38:$O$38,0)),0) -> 0 | M13: =IFERROR(INDEX(CHOOSE(MATCH(M$10,Setup!$I$7:$I$10,0),$C$39:$O$61,$C$68:$O$90,$C$97:$O$119,$C$126:$O$148),MATCH(M$11,$B$39:$B$61,0),MATCH(M$12,$C$38:$O$38,0)),0) -> 0 | N13: =IFERROR(INDEX(CHOOSE(MATCH(N$10,Setup!$I$7:$I$10,0),$C$39:$O$61,$C$68:$O$90,$C$97:$O$119,$C$126:$O$148),MATCH(N$11,$B$39:$B$61,0),MATCH(N$12,$C$38:$O$38,0)),0) -> 0 | O13: =IFERROR(INDEX(CHOOSE(MATCH(O$10,Setup!$I$7:$I$10,0),$C$39:$O$61,$C$68:$O$90,$C$97:$O$119,$C$126:$O$148),MATCH(O$11,$B$39:$B$61,0),MATCH(O$12,$C$38:$O$38,0)),0) -> 0 | P13: =IFERROR(INDEX(CHOOSE(MATCH(P$10,Setup!$I$7:$I$10,0),$C$39:$O$61,$C$68:$O$90,$C$97:$O$119,$C$126:$O$148),MATCH(P$11,$B$39:$B$61,0),MATCH(P$12,$C$38:$O$38,0)),0) -> 0 | Q13: =IFERROR(INDEX(CHOOSE(MATCH(Q$10,Setup!$I$7:$I$10,0),$C$39:$O$61,$C$68:$O$90,$C$97:$O$119,$C$126:$O$148),MATCH(Q$11,$B$39:$B$61,0),MATCH(Q$12,$C$38:$O$38,0)),0) -> 0 | R13: =IFERROR(INDEX(CHOOSE(MATCH(R$10,Setup!$I$7:$I$10,0),$C$39:$O$61,$C$68:$O$90,$C$97:$O$119,$C$126:$O$148),MATCH(R$11,$B$39:$B$61,0),MATCH(R$12,$C$38:$O$38,0)),0) -> 0 | S13: =IFERROR(INDEX(CHOOSE(MATCH(S$10,Setup!$I$7:$I$10,0),$C$39:$O$61,$C$68:$O$90,$C$97:$O$119,$C$126:$O$148),MATCH(S$11,$B$39:$B$61,0),MATCH(S$12,$C$38:$O$38,0)),0) -> 28.8 | T13: =IFERROR(INDEX(CHOOSE(MATCH(T$10,Setup!$I$7:$I$10,0),$C$39:$O$61,$C$68:$O$90,$C$97:$O$119,$C$126:$O$148),MATCH(T$11,$B$39:$B$61,0),MATCH(T$12,$C$38:$O$38,0)),0) -> 35.5 | U13: =IFERROR(INDEX(CHOOSE(MATCH(U$10,Setup!$I$7:$I$10,0),$C$39:$O$61,$C$68:$O$90,$C$97:$O$119,$C$126:$O$148),MATCH(U$11,$B$39:$B$61,0),MATCH(U$12,$C$38:$O$38,0)),0) -> 28.8 | V13: =IFERROR(INDEX(CHOOSE(MATCH(V$10,Setup!$I$7:$I$10,0),$C$39:$O$61,$C$68:$O$90,$C$97:$O$119,$C$126:$O$148),MATCH(V$11,$B$39:$B$61,0),MATCH(V$12,$C$38:$O$38,0)),0) -> 35.5 | W13: =IFERROR(INDEX(CHOOSE(MATCH(W$10,Setup!$I$7:$I$10,0),$C$39:$O$61,$C$68:$O$90,$C$97:$O$119,$C$126:$O$148),MATCH(W$11,$B$39:$B$61,0),MATCH(W$12,$C$38:$O$38,0)),0) -> 28.8 | X13: =IFERROR(INDEX(CHOOSE(MATCH(X$10,Setup!$I$7:$I$10,0),$C$39:$O$61,$C$68:$O$90,$C$97:$O$119,$C$126:$O$148),MATCH(X$11,$B$39:$B$61,0),MATCH(X$12,$C$38:$O$38,0)),0) -> 28.8 | Y13: =IFERROR(INDEX(CHOOSE(MATCH(Y$10,Setup!$I$7:$I$10,0),$C$39:$O$61,$C$68:$O$90,$C$97:$O$119,$C$126:$O$148),MATCH(Y$11,$B$39:$B$61,0),MATCH(Y$12,$C$38:$O$38,0)),0) -> 28.8 | Z13: =IFERROR(INDEX(CHOOSE(MATCH(Z$10,Setup!$I$7:$I$10,0),$C$39:$O$61,$C$68:$O$90,$C$97:$O$119,$C$126:$O$148),MATCH(Z$11,$B$39:$B$61,0),MATCH(Z$12,$C$38:$O$38,0)),0) -> 28.8 | AA13: =IFERROR(INDEX(CHOOSE(MATCH(AA$10,Setup!$I$7:$I$10,0),$C$39:$O$61,$C$68:$O$90,$C$97:$O$119,$C$126:$O$148),MATCH(AA$11,$B$39:$B$61,0),MATCH(AA$12,$C$38:$O$38,0)),0) -> 0 | AB13: =IFERROR(INDEX(CHOOSE(MATCH(AB$10,Setup!$I$7:$I$10,0),$C$39:$O$61,$C$68:$O$90,$C$97:$O$119,$C$126:$O$148),MATCH(AB$11,$B$39:$B$61,0),MATCH(AB$12,$C$38:$O$38,0)),0) -> 0 | AC13: =IFERROR(INDEX(CHOOSE(MATCH(AC$10,Setup!$I$7:$I$10,0),$C$39:$O$61,$C$68:$O$90,$C$97:$O$119,$C$126:$O$148),MATCH(AC$11,$B$39:$B$61,0),MATCH(AC$12,$C$38:$O$38,0)),0) -> 0 | AD13: =IFERROR(INDEX(CHOOSE(MATCH(AD$10,Setup!$I$7:$I$10,0),$C$39:$O$61,$C$68:$O$90,$C$97:$O$119,$C$126:$O$148),MATCH(AD$11,$B$39:$B$61,0),MATCH(AD$12,$C$38:$O$38,0)),0) -> 0 | AE13: =IFERROR(INDEX(CHOOSE(MATCH(AE$10,Setup!$I$7:$I$10,0),$C$39:$O$61,$C$68:$O$90,$C$97:$O$119,$C$126:$O$148),MATCH(AE$11,$B$39:$B$61,0),MATCH(AE$12,$C$38:$O$38,0)),0) -> 0 | AF13: =IFERROR(INDEX(CHOOSE(MATCH(AF$10,Setup!$I$7:$I$10,0),$C$39:$O$61,$C$68:$O$90,$C$97:$O$119,$C$126:$O$148),MATCH(AF$11,$B$39:$B$61,0),MATCH(AF$12,$C$38:$O$38,0)),0) -> 0 | AG13: =IFERROR(INDEX(CHOOSE(MATCH(AG$10,Setup!$I$7:$I$10,0),$C$39:$O$61,$C$68:$O$90,$C$97:$O$119,$C$126:$O$148),MATCH(AG$11,$B$39:$B$61,0),MATCH(AG$12,$C$38:$O$38,0)),0) -> 0 | AH13: =IFERROR(INDEX(CHOOSE(MATCH(AH$10,Setup!$I$7:$I$10,0),$C$39:$O$61,$C$68:$O$90,$C$97:$O$119,$C$126:$O$148),MATCH(AH$11,$B$39:$B$61,0),MATCH(AH$12,$C$38:$O$38,0)),0) -> 0 | AI13: =IFERROR(INDEX(CHOOSE(MATCH(AI$10,Setup!$I$7:$I$10,0),$C$39:$O$61,$C$68:$O$90,$C$97:$O$119,$C$126:$O$148),MATCH(AI$11,$B$39:$B$61,0),MATCH(AI$12,$C$38:$O$38,0)),0) -> 0 | AJ13: =IFERROR(INDEX(CHOOSE(MATCH(AJ$10,Setup!$I$7:$I$10,0),$C$39:$O$61,$C$68:$O$90,$C$97:$O$119,$C$126:$O$148),MATCH(AJ$11,$B$39:$B$61,0),MATCH(AJ$12,$C$38:$O$38,0)),0) -> 0 | AK13: =IFERROR(INDEX(CHOOSE(MATCH(AK$10,Setup!$I$7:$I$10,0),$C$39:$O$61,$C$68:$O$90,$C$97:$O$119,$C$126:$O$148),MATCH(AK$11,$B$39:$B$61,0),MATCH(AK$12,$C$38:$O$38,0)),0) -> 0 | AL13: =IFERROR(INDEX(CHOOSE(MATCH(AL$10,Setup!$I$7:$I$10,0),$C$39:$O$61,$C$68:$O$90,$C$97:$O$119,$C$126:$O$148),MATCH(AL$11,$B$39:$B$61,0),MATCH(AL$12,$C$38:$O$38,0)),0) -> 0 | AM13: =IFERROR(INDEX(CHOOSE(MATCH(AM$10,Setup!$I$7:$I$10,0),$C$39:$O$61,$C$68:$O$90,$C$97:$O$119,$C$126:$O$148),MATCH(AM$11,$B$39:$B$61,0),MATCH(AM$12,$C$38:$O$38,0)),0) -> 0 | AN13: =IFERROR(INDEX(CHOOSE(MATCH(AN$10,Setup!$I$7:$I$10,0),$C$39:$O$61,$C$68:$O$90,$C$97:$O$119,$C$126:$O$148),MATCH(AN$11,$B$39:$B$61,0),MATCH(AN$12,$C$38:$O$38,0)),0) -> 0 | AO13: =IFERROR(INDEX(CHOOSE(MATCH(AO$10,Setup!$I$7:$I$10,0),$C$39:$O$61,$C$68:$O$90,$C$97:$O$119,$C$126:$O$148),MATCH(AO$11,$B$39:$B$61,0),MATCH(AO$12,$C$38:$O$38,0)),0) -> 0 | AP13: =IFERROR(INDEX(CHOOSE(MATCH(AP$10,Setup!$I$7:$I$10,0),$C$39:$O$61,$C$68:$O$90,$C$97:$O$119,$C$126:$O$148),MATCH(AP$11,$B$39:$B$61,0),MATCH(AP$12,$C$38:$O$38,0)),0) -> 0
B14: VOC - 2016 | C14: =C13*'I0 Overall'!$C$29/'I0 Overall'!$C$28 -> 0 | D14: =D13*'I0 Overall'!$C$29/'I0 Overall'!$C$28 -> 0 | E14: =E13*'I0 Overall'!$C$29/'I0 Overall'!$C$28 -> 0 | F14: =F13*'I0 Overall'!$C$29/'I0 Overall'!$C$28 -> 0 | G14: =G13*'I0 Overall'!$C$29/'I0 Overall'!$C$28 -> 0 | H14: =H13*'I0 Overall'!$C$29/'I0 Overall'!$C$28 -> 0 | I14: =I13*'I0 Overall'!$C$29/'I0 Overall'!$C$28 -> 0 | J14: =J13*'I0 Overall'!$C$29/'I0 Overall'!$C$28 -> 0 | K14: =K13*'I0 Overall'!$C$29/'I0 Overall'!$C$28 -> 0 | L14: =L13*'I0 Overall'!$C$29/'I0 Overall'!$C$28 -> 0 | M14: =M13*'I0 Overall'!$C$29/'I0 Overall'!$C$28 -> 0 | N14: =N13*'I0 Overall'!$C$29/'I0 Overall'!$C$28 -> 0 | O14: =O13*'I0 Overall'!$C$29/'I0 Overall'!$C$28 -> 0 | P14: =P13*'I0 Overall'!$C$29/'I0 Overall'!$C$28 -> 0 | Q14: =Q13*'I0 Overall'!$C$29/'I0 Overall'!$C$28 -> 0 | R14: =R13*'I0 Overall'!$C$29/'I0 Overall'!$C$28 -> 0 | S14: =S13*'I0 Overall'!$C$29/'I0 Overall'!$C$28 -> 28.92 | T14: =T13*'I0 Overall'!$C$29/'I0 Overall'!$C$28 -> 35.64791667 | U14: =U13*'I0 Overall'!$C$29/'I0 Overall'!$C$28 -> 28.92 | V14: =V13*'I0 Overall'!$C$29/'I0 Overall'!$C$28 -> 35.64791667 | W14: =W13*'I0 Overall'!$C$29/'I0 Overall'!$C$28 -> 28.92 | X14: =X13*'I0 Overall'!$C$29/'I0 Overall'!$C$28 -> 28.92 | Y14: =Y13*'I0 Overall'!$C$29/'I0 Overall'!$C$28 -> 28.92 | Z14: =Z13*'I0 Overall'!$C$29/'I0 Overall'!$C$28 -> 28.92 | AA14: =AA13*'I0 Overall'!$C$29/'I0 Overall'!$C$28 -> 0 | AB14: =AB13*'I0 Overall'!$C$29/'I0 Overall'!$C$28 -> 0 | AC14: =AC13*'I0 Overall'!$C$29/'I0 Overall'!$C$28 -> 0 | AD14: =AD13*'I0 Overall'!$C$29/'I0 Overall'!$C$28 -> 0 | AE14: =AE13*'I0 Overall'!$C$29/'I0 Overall'!$C$28 -> 0 | AF14: =AF13*'I0 Overall'!$C$29/'I0 Overall'!$C$28 -> 0 | AG14: =AG13*'I0 Overall'!$C$29/'I0 Overall'!$C$28 -> 0 | AH14: =AH13*'I0 Overall'!$C$29/'I0 Overall'!$C$28 -> 0 | AI14: =AI13*'I0 Overall'!$C$29/'I0 Overall'!$C$28 -> 0 | AJ14: =AJ13*'I0 Overall'!$C$29/'I0 Overall'!$C$28 -> 0 | AK14: =AK13*'I0 Overall'!$C$29/'I0 Overall'!$C$28 -> 0 | AL14: =AL13*'I0 Overall'!$C$29/'I0 Overall'!$C$28 -> 0 | AM14: =AM13*'I0 Overall'!$C$29/'I0 Overall'!$C$28 -> 0 | AN14: =AN13*'I0 Overall'!$C$29/'I0 Overall'!$C$28 -> 0 | AO14: =AO13*'I0 Overall'!$C$29/'I0 Overall'!$C$28 -> 0 | AP14: =AP13*'I0 Overall'!$C$29/'I0 Overall'!$C$28 -> 0
B16: VOC for detour route (cents/km)
C18: Project 1 | D18: Project 2 | E18: Project 3 | F18: Project 4 | G18: Project 5 | H18: Project 6 | I18: Project 7 | J18: Project 8 | K18: Project 9 | L18: Project 10 | M18: Project 11 | N18: Project 12 | O18: Project 13 | P18: Project 14 | Q18: Project 15 | R18: Project 16 | S18: Project 17 | T18: Project 18 | U18: Project 19 | V18: Project 20 | W18: Project 21 | X18: Project 22 | Y18: Project 23 | Z18: Project 24 | AA18: Project 25 | AB18: Project 26 | AC18: Project 27 | AD18: Project 28 | AE18: Project 29 | AF18: Project 30 | AG18: Project 31 | AH18: Project 32 | AI18: Project 33 | AJ18: Project 34 | AK18: Project 35 | AL18: Project 36 | AM18: Project 37 | AN18: Project 38 | AO18: Project 39 | AP18: Project 40
B19: Road type | C19: ='I3 Portfolio'!D61 -> 0 | D19: ='I3 Portfolio'!E61 -> 0 | E19: ='I3 Portfolio'!F61 -> 0 | F19: ='I3 Portfolio'!G61 -> 0 | G19: ='I3 Portfolio'!H61 -> 0 | H19: ='I3 Portfolio'!I61 -> 0 | I19: ='I3 Portfolio'!J61 -> 0 | J19: ='I3 Portfolio'!K61 -> 0 | K19: ='I3 Portfolio'!L61 -> 0 | L19: ='I3 Portfolio'!M61 -> 0 | M19: ='I3 Portfolio'!N61 -> 0 | N19: ='I3 Portfolio'!O61 -> 0 | O19: ='I3 Portfolio'!P61 -> 0 | P19: ='I3 Portfolio'!Q61 -> 0 | Q19: ='I3 Portfolio'!R61 -> 0 | R19: ='I3 Portfolio'!S61 -> 0 | S19: ='I3 Portfolio'!T61 -> Urban other | T19: ='I3 Portfolio'!U61 -> Rural Other | U19: ='I3 Portfolio'!V61 -> Urban other | V19: ='I3 Portfolio'!W61 -> Rural Other | W19: ='I3 Portfolio'!X61 -> Urban other | X19: ='I3 Portfolio'!Y61 -> Urban other | Y19: ='I3 Portfolio'!Z61 -> Urban other | Z19: ='I3 Portfolio'!AA61 -> Urban other | AA19: ='I3 Portfolio'!AB61 -> 0 | AB19: ='I3 Portfolio'!AC61 -> 0 | AC19: ='I3 Portfolio'!AD61 -> 0 | AD19: ='I3 Portfolio'!AE61 -> 0 | AE19: ='I3 Portfolio'!AF61 -> 0 | AF19: ='I3 Portfolio'!AG61 -> 0 | AG19: ='I3 Portfolio'!AH61 -> 0 | AH19: ='I3 Portfolio'!AI61 -> 0 | AI19: ='I3 Portfolio'!AJ61 -> 0 | AJ19: ='I3 Portfolio'!AK61 -> 0 | AK19: ='I3 Portfolio'!AL61 -> 0 | AL19: ='I3 Portfolio'!AM61 -> 0 | AM19: ='I3 Portfolio'!AN61 -> 0 | AN19: ='I3 Portfolio'!AO61 -> 0 | AO19: ='I3 Portfolio'!AP61 -> 0 | AP19: ='I3 Portfolio'!AQ61 -> 0
B20: Speed | C20: ='I3 Portfolio'!D62 -> 0 | D20: ='I3 Portfolio'!E62 -> 0 | E20: ='I3 Portfolio'!F62 -> 0 | F20: ='I3 Portfolio'!G62 -> 0 | G20: ='I3 Portfolio'!H62 -> 0 | H20: ='I3 Portfolio'!I62 -> 0 | I20: ='I3 Portfolio'!J62 -> 0 | J20: ='I3 Portfolio'!K62 -> 0 | K20: ='I3 Portfolio'!L62 -> 0 | L20: ='I3 Portfolio'!M62 -> 0 | M20: ='I3 Portfolio'!N62 -> 0 | N20: ='I3 Portfolio'!O62 -> 0 | O20: ='I3 Portfolio'!P62 -> 0 | P20: ='I3 Portfolio'!Q62 -> 0 | Q20: ='I3 Portfolio'!R62 -> 0 | R20: ='I3 Portfolio'!S62 -> 0 | S20: ='I3 Portfolio'!T62 -> 50 | T20: ='I3 Portfolio'!U62 -> 50 | U20: ='I3 Portfolio'!V62 -> 50 | V20: ='I3 Portfolio'!W62 -> 50 | W20: ='I3 Portfolio'!X62 -> 50 | X20: ='I3 Portfolio'!Y62 -> 50 | Y20: ='I3 Portfolio'!Z62 -> 50 | Z20: ='I3 Portfolio'!AA62 -> 50 | AA20: ='I3 Portfolio'!AB62 -> 0 | AB20: ='I3 Portfolio'!AC62 -> 0 | AC20: ='I3 Portfolio'!AD62 -> 0 | AD20: ='I3 Portfolio'!AE62 -> 0 | AE20: ='I3 Portfolio'!AF62 -> 0 | AF20: ='I3 Portfolio'!AG62 -> 0 | AG20: ='I3 Portfolio'!AH62 -> 0 | AH20: ='I3 Portfolio'!AI62 -> 0 | AI20: ='I3 Portfolio'!AJ62 -> 0 | AJ20: ='I3 Portfolio'!AK62 -> 0 | AK20: ='I3 Portfolio'!AL62 -> 0 | AL20: ='I3 Portfolio'!AM62 -> 0 | AM20: ='I3 Portfolio'!AN62 -> 0 | AN20: ='I3 Portfolio'!AO62 -> 0 | AO20: ='I3 Portfolio'!AP62 -> 0 | AP20: ='I3 Portfolio'!AQ62 -> 0
B21: Gradient | C21: ='I1 Minor works & Operations'!$D$70 -> 3 | D21: ='I1 Minor works & Operations'!$D$70 -> 3 | E21: ='I1 Minor works & Operations'!$D$70 -> 3 | F21: ='I1 Minor works & Operations'!$D$70 -> 3 | G21: ='I1 Minor works & Operations'!$D$70 -> 3 | H21: ='I1 Minor works & Operations'!$D$70 -> 3 | I21: ='I1 Minor works & Operations'!$D$70 -> 3 | J21: ='I1 Minor works & Operations'!$D$70 -> 3 | K21: ='I1 Minor works & Operations'!$D$70 -> 3 | L21: ='I1 Minor works & Operations'!$D$70 -> 3 | M21: ='I1 Minor works & Operations'!$D$70 -> 3 | N21: ='I1 Minor works & Operations'!$D$70 -> 3 | O21: ='I1 Minor works & Operations'!$D$70 -> 3 | P21: ='I1 Minor works & Operations'!$D$70 -> 3 | Q21: ='I1 Minor works & Operations'!$D$70 -> 3 | R21: ='I1 Minor works & Operations'!$D$70 -> 3 | S21: ='I1 Minor works & Operations'!$D$70 -> 3 | T21: ='I1 Minor works & Operations'!$D$70 -> 3 | U21: ='I1 Minor works & Operations'!$D$70 -> 3 | V21: ='I1 Minor works & Operations'!$D$70 -> 3 | W21: ='I1 Minor works & Operations'!$D$70 -> 3 | X21: ='I1 Minor works & Operations'!$D$70 -> 3 | Y21: ='I1 Minor works & Operations'!$D$70 -> 3 | Z21: ='I1 Minor works & Operations'!$D$70 -> 3 | AA21: ='I1 Minor works & Operations'!$D$70 -> 3 | AB21: ='I1 Minor works & Operations'!$D$70 -> 3 | AC21: ='I1 Minor works & Operations'!$D$70 -> 3 | AD21: ='I1 Minor works & Operations'!$D$70 -> 3 | AE21: ='I1 Minor works & Operations'!$D$70 -> 3 | AF21: ='I1 Minor works & Operations'!$D$70 -> 3 | AG21: ='I1 Minor works & Operations'!$D$70 -> 3 | AH21: ='I1 Minor works & Operations'!$D$70 -> 3 | AI21: ='I1 Minor works & Operations'!$D$70 -> 3 | AJ21: ='I1 Minor works & Operations'!$D$70 -> 3 | AK21: ='I1 Minor works & Operations'!$D$70 -> 3 | AL21: ='I1 Minor works & Operations'!$D$70 -> 3 | AM21: ='I1 Minor works & Operations'!$D$70 -> 3 | AN21: ='I1 Minor works & Operations'!$D$70 -> 3 | AO21: ='I1 Minor works & Operations'!$D$70 -> 3 | AP21: ='I1 Minor works & Operations'!$D$70 -> 3
B22: VOC - 2015 | C22: =IFERROR(INDEX(CHOOSE(MATCH(C$19,Setup!$I$7:$I$10,0),$C$39:$O$61,$C$68:$O$90,$C$97:$O$119,$C$126:$O$148),MATCH(C$20,$B$39:$B$61,0),MATCH(C$21,$C$38:$O$38,0)),0) -> 0 | D22: =IFERROR(INDEX(CHOOSE(MATCH(D$19,Setup!$I$7:$I$10,0),$C$39:$O$61,$C$68:$O$90,$C$97:$O$119,$C$126:$O$148),MATCH(D$20,$B$39:$B$61,0),MATCH(D$21,$C$38:$O$38,0)),0) -> 0 | E22: =IFERROR(INDEX(CHOOSE(MATCH(E$19,Setup!$I$7:$I$10,0),$C$39:$O$61,$C$68:$O$90,$C$97:$O$119,$C$126:$O$148),MATCH(E$20,$B$39:$B$61,0),MATCH(E$21,$C$38:$O$38,0)),0) -> 0 | F22: =IFERROR(INDEX(CHOOSE(MATCH(F$19,Setup!$I$7:$I$10,0),$C$39:$O$61,$C$68:$O$90,$C$97:$O$119,$C$126:$O$148),MATCH(F$20,$B$39:$B$61,0),MATCH(F$21,$C$38:$O$38,0)),0) -> 0 | G22: =IFERROR(INDEX(CHOOSE(MATCH(G$19,Setup!$I$7:$I$10,0),$C$39:$O$61,$C$68:$O$90,$C$97:$O$119,$C$126:$O$148),MATCH(G$20,$B$39:$B$61,0),MATCH(G$21,$C$38:$O$38,0)),0) -> 0 | H22: =IFERROR(INDEX(CHOOSE(MATCH(H$19,Setup!$I$7:$I$10,0),$C$39:$O$61,$C$68:$O$90,$C$97:$O$119,$C$126:$O$148),MATCH(H$20,$B$39:$B$61,0),MATCH(H$21,$C$38:$O$38,0)),0) -> 0 | I22: =IFERROR(INDEX(CHOOSE(MATCH(I$19,Setup!$I$7:$I$10,0),$C$39:$O$61,$C$68:$O$90,$C$97:$O$119,$C$126:$O$148),MATCH(I$20,$B$39:$B$61,0),MATCH(I$21,$C$38:$O$38,0)),0) -> 0 | J22: =IFERROR(INDEX(CHOOSE(MATCH(J$19,Setup!$I$7:$I$10,0),$C$39:$O$61,$C$68:$O$90,$C$97:$O$119,$C$126:$O$148),MATCH(J$20,$B$39:$B$61,0),MATCH(J$21,$C$38:$O$38,0)),0) -> 0 | K22: =IFERROR(INDEX(CHOOSE(MATCH(K$19,Setup!$I$7:$I$10,0),$C$39:$O$61,$C$68:$O$90,$C$97:$O$119,$C$126:$O$148),MATCH(K$20,$B$39:$B$61,0),MATCH(K$21,$C$38:$O$38,0)),0) -> 0 | L22: =IFERROR(INDEX(CHOOSE(MATCH(L$19,Setup!$I$7:$I$10,0),$C$39:$O$61,$C$68:$O$90,$C$97:$O$119,$C$126:$O$148),MATCH(L$20,$B$39:$B$61,0),MATCH(L$21,$C$38:$O$38,0)),0) -> 0 | M22: =IFERROR(INDEX(CHOOSE(MATCH(M$19,Setup!$I$7:$I$10,0),$C$39:$O$61,$C$68:$O$90,$C$97:$O$119,$C$126:$O$148),MATCH(M$20,$B$39:$B$61,0),MATCH(M$21,$C$38:$O$38,0)),0) -> 0 | N22: =IFERROR(INDEX(CHOOSE(MATCH(N$19,Setup!$I$7:$I$10,0),$C$39:$O$61,$C$68:$O$90,$C$97:$O$119,$C$126:$O$148),MATCH(N$20,$B$39:$B$61,0),MATCH(N$21,$C$38:$O$38,0)),0) -> 0 | O22: =IFERROR(INDEX(CHOOSE(MATCH(O$19,Setup!$I$7:$I$10,0),$C$39:$O$61,$C$68:$O$90,$C$97:$O$119,$C$126:$O$148),MATCH(O$20,$B$39:$B$61,0),MATCH(O$21,$C$38:$O$38,0)),0) -> 0 | P22: =IFERROR(INDEX(CHOOSE(MATCH(P$19,Setup!$I$7:$I$10,0),$C$39:$O$61,$C$68:$O$90,$C$97:$O$119,$C$126:$O$148),MATCH(P$20,$B$39:$B$61,0),MATCH(P$21,$C$38:$O$38,0)),0) -> 0 | Q22: =IFERROR(INDEX(CHOOSE(MATCH(Q$19,Setup!$I$7:$I$10,0),$C$39:$O$61,$C$68:$O$90,$C$97:$O$119,$C$126:$O$148),MATCH(Q$20,$B$39:$B$61,0),MATCH(Q$21,$C$38:$O$38,0)),0) -> 0 | R22: =IFERROR(INDEX(CHOOSE(MATCH(R$19,Setup!$I$7:$I$10,0),$C$39:$O$61,$C$68:$O$90,$C$97:$O$119,$C$126:$O$148),MATCH(R$20,$B$39:$B$61,0),MATCH(R$21,$C$38:$O$38,0)),0) -> 0 | S22: =IFERROR(INDEX(CHOOSE(MATCH(S$19,Setup!$I$7:$I$10,0),$C$39:$O$61,$C$68:$O$90,$C$97:$O$119,$C$126:$O$148),MATCH(S$20,$B$39:$B$61,0),MATCH(S$21,$C$38:$O$38,0)),0) -> 26.7 | T22: =IFERROR(INDEX(CHOOSE(MATCH(T$19,Setup!$I$7:$I$10,0),$C$39:$O$61,$C$68:$O$90,$C$97:$O$119,$C$126:$O$148),MATCH(T$20,$B$39:$B$61,0),MATCH(T$21,$C$38:$O$38,0)),0) -> 31.4 | U22: =IFERROR(INDEX(CHOOSE(MATCH(U$19,Setup!$I$7:$I$10,0),$C$39:$O$61,$C$68:$O$90,$C$97:$O$119,$C$126:$O$148),MATCH(U$20,$B$39:$B$61,0),MATCH(U$21,$C$38:$O$38,0)),0) -> 26.7 | V22: =IFERROR(INDEX(CHOOSE(MATCH(V$19,Setup!$I$7:$I$10,0),$C$39:$O$61,$C$68:$O$90,$C$97:$O$119,$C$126:$O$148),MATCH(V$20,$B$39:$B$61,0),MATCH(V$21,$C$38:$O$38,0)),0) -> 31.4 | W22: =IFERROR(INDEX(CHOOSE(MATCH(W$19,Setup!$I$7:$I$10,0),$C$39:$O$61,$C$68:$O$90,$C$97:$O$119,$C$126:$O$148),MATCH(W$20,$B$39:$B$61,0),MATCH(W$21,$C$38:$O$38,0)),0) -> 26.7 | X22: =IFERROR(INDEX(CHOOSE(MATCH(X$19,Setup!$I$7:$I$10,0),$C$39:$O$61,$C$68:$O$90,$C$97:$O$119,$C$126:$O$148),MATCH(X$20,$B$39:$B$61,0),MATCH(X$21,$C$38:$O$38,0)),0) -> 26.7 | Y22: =IFERROR(INDEX(CHOOSE(MATCH(Y$19,Setup!$I$7:$I$10,0),$C$39:$O$61,$C$68:$O$90,$C$97:$O$119,$C$126:$O$148),MATCH(Y$20,$B$39:$B$61,0),MATCH(Y$21,$C$38:$O$38,0)),0) -> 26.7 | Z22: =IFERROR(INDEX(CHOOSE(MATCH(Z$19,Setup!$I$7:$I$10,0),$C$39:$O$61,$C$68:$O$90,$C$97:$O$119,$C$126:$O$148),MATCH(Z$20,$B$39:$B$61,0),MATCH(Z$21,$C$38:$O$38,0)),0) -> 26.7 | AA22: =IFERROR(INDEX(CHOOSE(MATCH(AA$19,Setup!$I$7:$I$10,0),$C$39:$O$61,$C$68:$O$90,$C$97:$O$119,$C$126:$O$148),MATCH(AA$20,$B$39:$B$61,0),MATCH(AA$21,$C$38:$O$38,0)),0) -> 0 | AB22: =IFERROR(INDEX(CHOOSE(MATCH(AB$19,Setup!$I$7:$I$10,0),$C$39:$O$61,$C$68:$O$90,$C$97:$O$119,$C$126:$O$148),MATCH(AB$20,$B$39:$B$61,0),MATCH(AB$21,$C$38:$O$38,0)),0) -> 0 | AC22: =IFERROR(INDEX(CHOOSE(MATCH(AC$19,Setup!$I$7:$I$10,0),$C$39:$O$61,$C$68:$O$90,$C$97:$O$119,$C$126:$O$148),MATCH(AC$20,$B$39:$B$61,0),MATCH(AC$21,$C$38:$O$38,0)),0) -> 0 | AD22: =IFERROR(INDEX(CHOOSE(MATCH(AD$19,Setup!$I$7:$I$10,0),$C$39:$O$61,$C$68:$O$90,$C$97:$O$119,$C$126:$O$148),MATCH(AD$20,$B$39:$B$61,0),MATCH(AD$21,$C$38:$O$38,0)),0) -> 0 | AE22: =IFERROR(INDEX(CHOOSE(MATCH(AE$19,Setup!$I$7:$I$10,0),$C$39:$O$61,$C$68:$O$90,$C$97:$O$119,$C$126:$O$148),MATCH(AE$20,$B$39:$B$61,0),MATCH(AE$21,$C$38:$O$38,0)),0) -> 0 | AF22: =IFERROR(INDEX(CHOOSE(MATCH(AF$19,Setup!$I$7:$I$10,0),$C$39:$O$61,$C$68:$O$90,$C$97:$O$119,$C$126:$O$148),MATCH(AF$20,$B$39:$B$61,0),MATCH(AF$21,$C$38:$O$38,0)),0) -> 0 | AG22: =IFERROR(INDEX(CHOOSE(MATCH(AG$19,Setup!$I$7:$I$10,0),$C$39:$O$61,$C$68:$O$90,$C$97:$O$119,$C$126:$O$148),MATCH(AG$20,$B$39:$B$61,0),MATCH(AG$21,$C$38:$O$38,0)),0) -> 0 | AH22: =IFERROR(INDEX(CHOOSE(MATCH(AH$19,Setup!$I$7:$I$10,0),$C$39:$O$61,$C$68:$O$90,$C$97:$O$119,$C$126:$O$148),MATCH(AH$20,$B$39:$B$61,0),MATCH(AH$21,$C$38:$O$38,0)),0) -> 0 | AI22: =IFERROR(INDEX(CHOOSE(MATCH(AI$19,Setup!$I$7:$I$10,0),$C$39:$O$61,$C$68:$O$90,$C$97:$O$119,$C$126:$O$148),MATCH(AI$20,$B$39:$B$61,0),MATCH(AI$21,$C$38:$O$38,0)),0) -> 0 | AJ22: =IFERROR(INDEX(CHOOSE(MATCH(AJ$19,Setup!$I$7:$I$10,0),$C$39:$O$61,$C$68:$O$90,$C$97:$O$119,$C$126:$O$148),MATCH(AJ$20,$B$39:$B$61,0),MATCH(AJ$21,$C$38:$O$38,0)),0) -> 0 | AK22: =IFERROR(INDEX(CHOOSE(MATCH(AK$19,Setup!$I$7:$I$10,0),$C$39:$O$61,$C$68:$O$90,$C$97:$O$119,$C$126:$O$148),MATCH(AK$20,$B$39:$B$61,0),MATCH(AK$21,$C$38:$O$38,0)),0) -> 0 | AL22: =IFERROR(INDEX(CHOOSE(MATCH(AL$19,Setup!$I$7:$I$10,0),$C$39:$O$61,$C$68:$O$90,$C$97:$O$119,$C$126:$O$148),MATCH(AL$20,$B$39:$B$61,0),MATCH(AL$21,$C$38:$O$38,0)),0) -> 0 | AM22: =IFERROR(INDEX(CHOOSE(MATCH(AM$19,Setup!$I$7:$I$10,0),$C$39:$O$61,$C$68:$O$90,$C$97:$O$119,$C$126:$O$148),MATCH(AM$20,$B$39:$B$61,0),MATCH(AM$21,$C$38:$O$38,0)),0) -> 0 | AN22: =IFERROR(INDEX(CHOOSE(MATCH(AN$19,Setup!$I$7:$I$10,0),$C$39:$O$61,$C$68:$O$90,$C$97:$O$119,$C$126:$O$148),MATCH(AN$20,$B$39:$B$61,0),MATCH(AN$21,$C$38:$O$38,0)),0) -> 0 | AO22: =IFERROR(INDEX(CHOOSE(MATCH(AO$19,Setup!$I$7:$I$10,0),$C$39:$O$61,$C$68:$O$90,$C$97:$O$119,$C$126:$O$148),MATCH(AO$20,$B$39:$B$61,0),MATCH(AO$21,$C$38:$O$38,0)),0) -> 0 | AP22: =IFERROR(INDEX(CHOOSE(MATCH(AP$19,Setup!$I$7:$I$10,0),$C$39:$O$61,$C$68:$O$90,$C$97:$O$119,$C$126:$O$148),MATCH(AP$20,$B$39:$B$61,0),MATCH(AP$21,$C$38:$O$38,0)),0) -> 0
B23: VOC - 2016 | C23: =C22*'I0 Overall'!$C$29/'I0 Overall'!$C$28 -> 0 | D23: =D22*'I0 Overall'!$C$29/'I0 Overall'!$C$28 -> 0 | E23: =E22*'I0 Overall'!$C$29/'I0 Overall'!$C$28 -> 0 | F23: =F22*'I0 Overall'!$C$29/'I0 Overall'!$C$28 -> 0 | G23: =G22*'I0 Overall'!$C$29/'I0 Overall'!$C$28 -> 0 | H23: =H22*'I0 Overall'!$C$29/'I0 Overall'!$C$28 -> 0 | I23: =I22*'I0 Overall'!$C$29/'I0 Overall'!$C$28 -> 0 | J23: =J22*'I0 Overall'!$C$29/'I0 Overall'!$C$28 -> 0 | K23: =K22*'I0 Overall'!$C$29/'I0 Overall'!$C$28 -> 0 | L23: =L22*'I0 Overall'!$C$29/'I0 Overall'!$C$28 -> 0 | M23: =M22*'I0 Overall'!$C$29/'I0 Overall'!$C$28 -> 0 | N23: =N22*'I0 Overall'!$C$29/'I0 Overall'!$C$28 -> 0 | O23: =O22*'I0 Overall'!$C$29/'I0 Overall'!$C$28 -> 0 | P23: =P22*'I0 Overall'!$C$29/'I0 Overall'!$C$28 -> 0 | Q23: =Q22*'I0 Overall'!$C$29/'I0 Overall'!$C$28 -> 0 | R23: =R22*'I0 Overall'!$C$29/'I0 Overall'!$C$28 -> 0 | S23: =S22*'I0 Overall'!$C$29/'I0 Overall'!$C$28 -> 26.81125 | T23: =T22*'I0 Overall'!$C$29/'I0 Overall'!$C$28 -> 31.53083333 | U23: =U22*'I0 Overall'!$C$29/'I0 Overall'!$C$28 -> 26.81125 | V23: =V22*'I0 Overall'!$C$29/'I0 Overall'!$C$28 -> 31.53083333 | W23: =W22*'I0 Overall'!$C$29/'I0 Overall'!$C$28 -> 26.81125 | X23: =X22*'I0 Overall'!$C$29/'I0 Overall'!$C$28 -> 26.81125 | Y23: =Y22*'I0 Overall'!$C$29/'I0 Overall'!$C$28 -> 26.81125 | Z23: =Z22*'I0 Overall'!$C$29/'I0 Overall'!$C$28 -> 26.81125 | AA23: =AA22*'I0 Overall'!$C$29/'I0 Overall'!$C$28 -> 0 | AB23: =AB22*'I0 Overall'!$C$29/'I0 Overall'!$C$28 -> 0 | AC23: =AC22*'I0 Overall'!$C$29/'I0 Overall'!$C$28 -> 0 | AD23: =AD22*'I0 Overall'!$C$29/'I0 Overall'!$C$28 -> 0 | AE23: =AE22*'I0 Overall'!$C$29/'I0 Overall'!$C$28 -> 0 | AF23: =AF22*'I0 Overall'!$C$29/'I0 Overall'!$C$28 -> 0 | AG23: =AG22*'I0 Overall'!$C$29/'I0 Overall'!$C$28 -> 0 | AH23: =AH22*'I0 Overall'!$C$29/'I0 Overall'!$C$28 -> 0 | AI23: =AI22*'I0 Overall'!$C$29/'I0 Overall'!$C$28 -> 0 | AJ23: =AJ22*'I0 Overall'!$C$29/'I0 Overall'!$C$28 -> 0 | AK23: =AK22*'I0 Overall'!$C$29/'I0 Overall'!$C$28 -> 0 | AL23: =AL22*'I0 Overall'!$C$29/'I0 Overall'!$C$28 -> 0 | AM23: =AM22*'I0 Overall'!$C$29/'I0 Overall'!$C$28 -> 0 | AN23: =AN22*'I0 Overall'!$C$29/'I0 Overall'!$C$28 -> 0 | AO23: =AO22*'I0 Overall'!$C$29/'I0 Overall'!$C$28 -> 0 | AP23: =AP22*'I0 Overall'!$C$29/'I0 Overall'!$C$28 -> 0
B25: VOC for C1 worksheet
C27: Original route | D27: Detour route
B28: Road type | C28: ='I1 Minor works & Operations'!C51 -> Urban arterial | D28: ='I1 Minor works & Operations'!D51 -> Urban other
B29: Speed | C29: ='I1 Minor works & Operations'!C52 -> 90 | D29: ='I1 Minor works & Operations'!D52 -> 50
B30: Gradient | C30: ='I1 Minor works & Operations'!C70 -> 3 | D30: ='I1 Minor works & Operations'!D70 -> 3
B31: VOC - 2015 | C31: =INDEX(CHOOSE(MATCH(C$28,Setup!$I$7:$I$10,0),$C$39:$O$61,$C$68:$O$90,$C$97:$O$119,$C$126:$O$148),MATCH(C$29,$B$39:$B$61,0),MATCH(C$30,$C$38:$O$38,0)) -> 28.8 | D31: =INDEX(CHOOSE(MATCH(D$28,Setup!$I$7:$I$10,0),$C$39:$O$61,$C$68:$O$90,$C$97:$O$119,$C$126:$O$148),MATCH(D$29,$B$39:$B$61,0),MATCH(D$30,$C$38:$O$38,0)) -> 26.7
B32: VOC - 2016 | C32: =C31*'I0 Overall'!$C$29/'I0 Overall'!$C$28 -> 28.92 | D32: =D31*'I0 Overall'!$C$29/'I0 Overall'!$C$28 -> 26.81125
B34: Urban arterial VOC by speed and gradient (cents/km – July 2015)
B35: Source: NZ Transport Agency EEM, Table A5.7
B37: Speed | C37: Gradient in percent (both directions)
B38: (km/h) | C38: 0 | D38: 1 | E38: 2 | F38: 3 | G38: 4 | H38: 5 | I38: 6 | J38: 7 | K38: 8 | L38: 9 | M38: 10 | N38: 11 | O38: 12
B39: 10 | C39: 39.4 | D39: 39.5 | E39: 39.8 | F39: 40.1 | G39: 40.6 | H39: 41 | I39: 41.5 | J39: 42.1 | K39: 42.7 | L39: 43.4 | M39: 44 | N39: 44.7 | O39: 45.3
B40: =+B39+5 -> 15 | C40: 35.6 | D40: 35.8 | E40: 36 | F40: 36.4 | G40: 36.8 | H40: 37.3 | I40: 37.9 | J40: 38.6 | K40: 39.3 | L40: 40 | M40: 40.8 | N40: 41.6 | O40: 42.4
B41: =+B40+5 -> 20 | C41: 32.8 | D41: 32.9 | E41: 33.2 | F41: 33.6 | G41: 34 | H41: 34.6 | I41: 35.2 | J41: 35.9 | K41: 36.6 | L41: 37.4 | M41: 38.3 | N41: 39.2 | O41: 40.1
B42: 25 | C42: 30.7 | D42: 30.9 | E42: 31.1 | F42: 31.5 | G42: 32 | H42: 32.6 | I42: 33.2 | J42: 33.9 | K42: 34.7 | L42: 35.6 | M42: 36.5 | N42: 37.5 | O42: 38.5
B43: 30 | C43: 29.2 | D43: 29.3 | E43: 29.6 | F43: 30 | G43: 30.5 | H43: 31.1 | I43: 31.8 | J43: 32.5 | K43: 33.4 | L43: 34.3 | M43: 35.2 | N43: 36.2 | O43: 37.3
B44: 35 | C44: 28.1 | D44: 28.3 | E44: 28.5 | F44: 28.9 | G44: 29.4 | H44: 30 | I44: 30.7 | J44: 31.5 | K44: 32.4 | L44: 33.3 | M44: 34.3 | N44: 35.4 | O44: 36.5
B45: 40 | C45: 27.4 | D45: 27.5 | E45: 27.8 | F45: 28.2 | G45: 28.7 | H45: 29.3 | I45: 30 | J45: 30.8 | K45: 31.7 | L45: 32.7 | M45: 33.7 | N45: 34.8 | O45: 36
B46: 45 | C46: 26.9 | D46: 27 | E46: 27.3 | F46: 27.7 | G46: 28.2 | H46: 28.8 | I46: 29.5 | J46: 30.4 | K46: 31.3 | L46: 32.3 | M46: 33.4 | N46: 34.5 | O46: 35.7
B47: 50 | C47: 26.5 | D47: 26.7 | E47: 26.9 | F47: 27.3 | G47: 27.9 | H47: 28.5 | I47: 29.3 | J47: 30.1 | K47: 31 | L47: 32.1 | M47: 33.2 | N47: 34.4 | O47: 35.6
B48: 55 | C48: 26.4 | D48: 26.5 | E48: 26.8 | F48: 27.2 | G48: 27.7 | H48: 28.4 | I48: 29.1 | J48: 30 | K48: 31 | L48: 32 | M48: 33.1 | N48: 34.3 | O48: 35.6
B49: 60 | C49: 26.4 | D49: 26.5 | E49: 26.8 | F49: 27.2 | G49: 27.7 | H49: 28.4 | I49: 29.1 | J49: 30 | K49: 31 | L49: 32.1 | M49: 33.2 | N49: 34.5 | O49: 35.7
B50: 65 | C50: 26.5 | D50: 26.6 | E50: 26.8 | F50: 27.2 | G50: 27.8 | H50: 28.5 | I50: 29.2 | J50: 30.1 | K50: 31.1 | L50: 32.2 | M50: 33.4 | N50: 34.7 | O50: 36
B51: 70 | C51: 26.6 | D51: 26.7 | E51: 27 | F51: 27.4 | G51: 28 | H51: 28.6 | I51: 29.4 | J51: 30.3 | K51: 31.4 | L51: 32.5 | M51: 33.7 | N51: 34.9 | O51: 36.3
B52: 75 | C52: 26.9 | D52: 27 | E52: 27.3 | F52: 27.7 | G52: 28.2 | H52: 28.9 | I52: 29.7 | J52: 30.6 | K52: 31.6 | L52: 32.8 | M52: 34 | N52: 35.3 | O52: 36.7
B53: 80 | C53: 27.2 | D53: 27.3 | E53: 27.6 | F53: 28 | G53: 28.5 | H53: 29.2 | I53: 30 | J53: 31 | K53: 32 | L53: 33.1 | M53: 34.4 | N53: 35.7 | O53: 37.1
B54: 85 | C54: 27.6 | D54: 27.7 | E54: 27.9 | F54: 28.3 | G54: 28.9 | H54: 29.6 | I54: 30.4 | J54: 31.4 | K54: 32.4 | L54: 33.6 | M54: 34.8 | N54: 36.1 | O54: 37.6
B55: 90 | C55: 28 | D55: 28.1 | E55: 28.3 | F55: 28.8 | G55: 29.3 | H55: 30 | I55: 30.8 | J55: 31.8 | K55: 32.9 | L55: 34 | M55: 35.3 | N55: 36.6 | O55: 38.1
B56: 95 | C56: 28.4 | D56: 28.5 | E56: 28.8 | F56: 29.2 | G56: 29.8 | H56: 30.5 | I56: 31.3 | J56: 32.3 | K56: 33.3 | L56: 34.5 | M56: 35.8 | N56: 37.2 | O56: 38.6
B57: =+B56+5 -> 100 | C57: 28.9 | D57: 29 | E57: 29.3 | F57: 29.7 | G57: 30.3 | H57: 31 | I57: 31.8 | J57: 32.8 | K57: 33.9 | L57: 35.1 | M57: 36.4 | N57: 37.7 | O57: 39.2
B58: 105 | C58: 29.4 | D58: 29.5 | E58: 29.8 | F58: 30.2 | G58: 30.8 | H58: 31.5 | I58: 32.3 | J58: 33.3 | K58: 34.4 | L58: 35.6 | M58: 36.9 | N58: 38.3 | O58: 39.8
B59: 110 | C59: 30 | D59: 30.1 | E59: 30.3 | F59: 30.8 | G59: 31.3 | H59: 32 | I59: 32.9 | J59: 33.9 | K59: 35 | L59: 36.2 | M59: 37.5 | N59: 38.9 | O59: 40.4
B60: 115 | C60: 30.5 | D60: 30.6 | E60: 30.9 | F60: 31.3 | G60: 31.9 | H60: 32.6 | I60: 33.5 | J60: 34.5 | K60: 35.6 | L60: 36.8 | M60: 38.1 | N60: 39.6 | O60: 41.1
B61: 120 | C61: 31.1 | D61: 31.2 | E61: 31.5 | F61: 31.9 | G61: 32.5 | H61: 33.2 | I61: 34.1 | J61: 35.1 | K61: 36.2 | L61: 37.4 | M61: 38.8 | N61: 40.2 | O61: 41.7
B63: Urban other VOC by speed and gradient (cents/km – July 2015)
B64: Source: NZ Transport Agency EEM, Table A5.8
B66: Speed | C66: Gradient in percent (both directions)
B67: (km/h) | C67: 0 | D67: 1 | E67: 2 | F67: 3 | G67: 4 | H67: 5 | I67: 6 | J67: 7 | K67: 8 | L67: 9 | M67: 10 | N67: 11 | O67: 12
B68: 10 | C68: 39 | D68: 39.1 | E68: 39.3 | F68: 39.6 | G68: 39.9 | H68: 40.3 | I68: 40.8 | J68: 41.3 | K68: 41.8 | L68: 42.3 | M68: 42.9 | N68: 43.6 | O68: 44.2
B69: =+B68+5 -> 15 | C69: 35.1 | D69: 35.3 | E69: 35.5 | F69: 35.8 | G69: 36.2 | H69: 36.6 | I69: 37.1 | J69: 37.7 | K69: 38.3 | L69: 39 | M69: 39.7 | N69: 40.4 | O69: 41.2
B70: =+B69+5 -> 20 | C70: 32.3 | D70: 32.4 | E70: 32.6 | F70: 33 | G70: 33.4 | H70: 33.8 | I70: 34.4 | J70: 35 | K70: 35.7 | L70: 36.4 | M70: 37.2 | N70: 38 | O70: 38.9
B71: 25 | C71: 30.2 | D71: 30.3 | E71: 30.6 | F71: 30.9 | G71: 31.3 | H71: 31.8 | I71: 32.4 | J71: 33.1 | K71: 33.8 | L71: 34.6 | M71: 35.4 | N71: 36.3 | O71: 37.2
B72: 30 | C72: 28.7 | D72: 28.8 | E72: 29.1 | F72: 29.4 | G72: 29.8 | H72: 30.4 | I72: 31 | J72: 31.6 | K72: 32.4 | L72: 33.2 | M72: 34.1 | N72: 35 | O72: 36
B73: 35 | C73: 27.7 | D73: 27.8 | E73: 28 | F73: 28.3 | G73: 28.8 | H73: 29.3 | I73: 29.9 | J73: 30.6 | K73: 31.4 | L73: 32.3 | M73: 33.2 | N73: 34.2 | O73: 35.2
B74: 40 | C74: 26.9 | D74: 27 | E74: 27.2 | F74: 27.6 | G74: 28 | H74: 28.6 | I74: 29.2 | J74: 29.9 | K74: 30.7 | L74: 31.6 | M74: 32.6 | N74: 33.6 | O74: 34.6
B75: 45 | C75: 26.4 | D75: 26.5 | E75: 26.7 | F75: 27.1 | G75: 27.5 | H75: 28.1 | I75: 28.7 | J75: 29.5 | K75: 30.3 | L75: 31.2 | M75: 32.2 | N75: 33.2 | O75: 34.3
B76: 50 | C76: 26.1 | D76: 26.2 | E76: 26.4 | F76: 26.7 | G76: 27.2 | H76: 27.8 | I76: 28.4 | J76: 29.2 | K76: 30 | L76: 30.9 | M76: 31.9 | N76: 33 | O76: 34.1
B77: 55 | C77: 25.9 | D77: 26 | E77: 26.2 | F77: 26.6 | G77: 27 | H77: 27.6 | I77: 28.3 | J77: 29 | K77: 29.9 | L77: 30.8 | M77: 31.9 | N77: 33 | O77: 34.1
B78: 60 | C78: 25.9 | D78: 26 | E78: 26.2 | F78: 26.6 | G78: 27 | H78: 27.6 | I78: 28.3 | J78: 29 | K78: 29.9 | L78: 30.9 | M78: 31.9 | N78: 33 | O78: 34.2
B79: 65 | C79: 26 | D79: 26.1 | E79: 26.3 | F79: 26.6 | G79: 27.1 | H79: 27.7 | I79: 28.4 | J79: 29.1 | K79: 30 | L79: 31 | M79: 32.1 | N79: 33.2 | O79: 34.4
B80: 70 | C80: 26.2 | D80: 26.2 | E80: 26.4 | F80: 26.8 | G80: 27.3 | H80: 27.8 | I80: 28.5 | J80: 29.3 | K80: 30.2 | L80: 31.2 | M80: 32.3 | N80: 33.4 | O80: 34.7
B81: 75 | C81: 26.4 | D81: 26.5 | E81: 26.7 | F81: 27 | G81: 27.5 | H81: 28.1 | I81: 28.8 | J81: 29.6 | K81: 30.5 | L81: 31.5 | M81: 32.6 | N81: 33.7 | O81: 35
B82: 80 | C82: 26.7 | D82: 26.8 | E82: 27 | F82: 27.3 | G82: 27.8 | H82: 28.4 | I82: 29.1 | J82: 29.9 | K82: 30.8 | L82: 31.8 | M82: 32.9 | N82: 34.1 | O82: 35.4
B83: 85 | C83: 27.1 | D83: 27.1 | E83: 27.3 | F83: 27.7 | G83: 28.2 | H83: 28.7 | I83: 29.5 | J83: 30.3 | K83: 31.2 | L83: 32.2 | M83: 33.3 | N83: 34.5 | O83: 35.8
B84: 90 | C84: 27.5 | D84: 27.5 | E84: 27.7 | F84: 28.1 | G84: 28.6 | H84: 29.2 | I84: 29.9 | J84: 30.7 | K84: 31.6 | L84: 32.7 | M84: 33.8 | N84: 35 | O84: 36.3
B85: 95 | C85: 27.9 | D85: 28 | E85: 28.2 | F85: 28.5 | G85: 29 | H85: 29.6 | I85: 30.3 | J85: 31.1 | K85: 32.1 | L85: 33.1 | M85: 34.3 | N85: 35.5 | O85: 36.8
B86: =+B85+5 -> 100 | C86: 28.4 | D86: 28.5 | E86: 28.7 | F86: 29 | G86: 29.5 | H86: 30.1 | I86: 30.8 | J86: 31.6 | K86: 32.6 | L86: 33.6 | M86: 34.8 | N86: 36 | O86: 37.3
B87: =+B86+5 -> 105 | C87: 28.9 | D87: 29 | E87: 29.2 | F87: 29.5 | G87: 30 | H87: 30.6 | I87: 31.3 | J87: 32.1 | K87: 33.1 | L87: 34.2 | M87: 35.3 | N87: 36.6 | O87: 37.9
B88: =+B87+5 -> 110 | C88: 29.5 | D88: 29.5 | E88: 29.7 | F88: 30 | G88: 30.5 | H88: 31.1 | I88: 31.8 | J88: 32.7 | K88: 33.6 | L88: 34.7 | M88: 35.9 | N88: 37.1 | O88: 38.5
B89: =+B88+5 -> 115 | C89: 30 | D89: 30.1 | E89: 30.2 | F89: 30.6 | G89: 31.1 | H89: 31.7 | I89: 32.4 | J89: 33.2 | K89: 34.2 | L89: 35.3 | M89: 36.4 | N89: 37.7 | O89: 39.1
B90: =+B89+5 -> 120 | C90: 30.6 | D90: 30.6 | E90: 30.8 | F90: 31.1 | G90: 31.6 | H90: 32.2 | I90: 33 | J90: 33.8 | K90: 34.8 | L90: 35.9 | M90: 37 | N90: 38.3 | O90: 39.7
B92: Rural strategic VOC by speed and gradient (cents/km – July 2015)
B93: Source: NZ Transport Agency EEM, Table A5.9
B95: Speed | C95: Gradient in percent (both directions)
B96: (km/h) | C96: 0 | D96: 1 | E96: 2 | F96: 3 | G96: 4 | H96: 5 | I96: 6 | J96: 7 | K96: 8 | L96: 9 | M96: 10 | N96: 11 | O96: 12
B97: 10 | C97: 45.4 | D97: 45.7 | E97: 46.1 | F97: 46.8 | G97: 47.6 | H97: 48.6 | I97: 49.6 | J97: 50.7 | K97: 51.9 | L97: 53 | M97: 54.2 | N97: 55.3 | O97: 56.3
B98: =+B97+5 -> 15 | C98: 41.5 | D98: 41.8 | E98: 42.2 | F98: 42.9 | G98: 43.7 | H98: 44.7 | I98: 45.8 | J98: 47 | K98: 48.3 | L98: 49.6 | M98: 50.9 | N98: 52.1 | O98: 53.3
B99: =+B98+5 -> 20 | C99: 38.6 | D99: 38.8 | E99: 39.2 | F99: 39.9 | G99: 40.8 | H99: 41.8 | I99: 42.9 | J99: 44.2 | K99: 45.5 | L99: 46.9 | M99: 48.3 | N99: 49.7 | O99: 51.1
B100: 25 | C100: 36.4 | D100: 36.6 | E100: 37 | F100: 37.7 | G100: 38.6 | H100: 39.6 | I100: 40.8 | J100: 42.1 | K100: 43.5 | L100: 45 | M100: 46.5 | N100: 48 | O100: 49.4
B101: 30 | C101: 34.8 | D101: 35 | E101: 35.4 | F101: 36.1 | G101: 37 | H101: 38 | I101: 39.3 | J101: 40.6 | K101: 42.1 | L101: 43.6 | M101: 45.2 | N101: 46.8 | O101: 48.4
B102: 35 | C102: 33.7 | D102: 33.8 | E102: 34.3 | F102: 34.9 | G102: 35.8 | H102: 36.9 | I102: 38.2 | J102: 39.6 | K102: 41.1 | L102: 42.7 | M102: 44.3 | N102: 46 | O102: 47.7
B103: 40 | C103: 32.9 | D103: 33 | E103: 33.5 | F103: 34.2 | G103: 35.1 | H103: 36.2 | I103: 37.5 | J103: 38.9 | K103: 40.5 | L103: 42.1 | M103: 43.8 | N103: 45.5 | O103: 47.3
B104: 45 | C104: 32.4 | D104: 32.5 | E104: 33 | F104: 33.6 | G104: 34.6 | H104: 35.7 | I104: 37 | J104: 38.5 | K104: 40.1 | L104: 41.8 | M104: 43.5 | N104: 45.3 | O104: 47.1
B105: 50 | C105: 32.1 | D105: 32.2 | E105: 32.7 | F105: 33.4 | G105: 34.3 | H105: 35.5 | I105: 36.8 | J105: 38.3 | K105: 39.9 | L105: 41.6 | M105: 43.4 | N105: 45.3 | O105: 47.1
B106: 55 | C106: 32 | D106: 32.1 | E106: 32.5 | F106: 33.3 | G106: 34.2 | H106: 35.4 | I106: 36.7 | J106: 38.3 | K106: 39.9 | L106: 41.7 | M106: 43.5 | N106: 45.4 | O106: 47.3
B107: 60 | C107: 32 | D107: 32.1 | E107: 32.6 | F107: 33.3 | G107: 34.3 | H107: 35.4 | I107: 36.8 | J107: 38.4 | K107: 40.1 | L107: 41.9 | M107: 43.7 | N107: 45.7 | O107: 47.6
B108: 65 | C108: 32.1 | D108: 32.3 | E108: 32.7 | F108: 33.4 | G108: 34.4 | H108: 35.6 | I108: 37 | J108: 38.6 | K108: 40.3 | L108: 42.2 | M108: 44.1 | N108: 46.1 | O108: 48.1
B109: 70 | C109: 32.4 | D109: 32.5 | E109: 33 | F109: 33.7 | G109: 34.7 | H109: 35.9 | I109: 37.3 | J109: 38.9 | K109: 40.7 | L109: 42.5 | M109: 44.5 | N109: 46.5 | O109: 48.6
B110: 75 | C110: 32.7 | D110: 32.9 | E110: 33.3 | F110: 34 | G110: 35 | H110: 36.3 | I110: 37.7 | J110: 39.3 | K110: 41.1 | L110: 43 | M110: 45 | N110: 47 | O110: 49.1
B111: 80 | C111: 33.1 | D111: 33.3 | E111: 33.7 | F111: 34.5 | G111: 35.5 | H111: 36.7 | I111: 38.2 | J111: 39.8 | K111: 41.6 | L111: 43.5 | M111: 45.5 | N111: 47.6 | O111: 49.8
B112: 85 | C112: 33.6 | D112: 33.7 | E112: 34.2 | F112: 34.9 | G112: 36 | H112: 37.2 | I112: 38.7 | J112: 40.3 | K112: 42.2 | L112: 44.1 | M112: 46.2 | N112: 48.3 | O112: 50.4
B113: 90 | C113: 34.1 | D113: 34.3 | E113: 34.7 | F113: 35.5 | G113: 36.5 | H113: 37.8 | I113: 39.2 | J113: 40.9 | K113: 42.8 | L113: 44.7 | M113: 46.8 | N113: 49 | O113: 51.2
B114: 95 | C114: 34.7 | D114: 34.8 | E114: 35.3 | F114: 36 | G114: 37.1 | H114: 38.4 | I114: 39.9 | J114: 41.5 | K114: 43.4 | L114: 45.4 | M114: 47.5 | N114: 49.7 | O114: 51.9
B115: =+B114+5 -> 100 | C115: 35.3 | D115: 35.4 | E115: 35.9 | F115: 36.6 | G115: 37.7 | H115: 39 | I115: 40.5 | J115: 42.2 | K115: 44.1 | L115: 46.1 | M115: 48.2 | N115: 50.5 | O115: 52.7
B116: =+B115+5 -> 105 | C116: 35.9 | D116: 36.1 | E116: 36.5 | F116: 37.3 | G116: 38.3 | H116: 39.6 | I116: 41.2 | J116: 42.9 | K116: 44.8 | L116: 46.8 | M116: 49 | N116: 51.2 | O116: 53.5
B117: =+B116+5 -> 110 | C117: 36.6 | D117: 36.7 | E117: 37.2 | F117: 38 | G117: 39 | H117: 40.3 | I117: 41.9 | J117: 43.6 | K117: 45.5 | L117: 47.6 | M117: 49.8 | N117: 52 | O117: 54.4
B118: =+B117+5 -> 115 | C118: 37.3 | D118: 37.4 | E118: 37.9 | F118: 38.7 | G118: 39.7 | H118: 41.1 | I118: 42.6 | J118: 44.4 | K118: 46.3 | L118: 48.4 | M118: 50.6 | N118: 52.9 | O118: 55.2
B119: =+B118+5 -> 120 | C119: 38 | D119: 38.1 | E119: 38.6 | F119: 39.4 | G119: 40.5 | H119: 41.8 | I119: 43.4 | J119: 45.1 | K119: 47.1 | L119: 49.2 | M119: 51.4 | N119: 53.7 | O119: 56.1
B121: Rural other VOC by speed and gradient (cents/km – July 2015)
B122: Source: NZ Transport Agency EEM, Table A5.10
B124: Speed | C124: Gradient in percent (both directions)
B125: (km/h) | C125: 0 | D125: 1 | E125: 2 | F125: 3 | G125: 4 | H125: 5 | I125: 6 | J125: 7 | K125: 8 | L125: 9 | M125: 10 | N125: 11 | O125: 12
B126: 10 | C126: 43.5 | D126: 43.8 | E126: 44.2 | F126: 44.7 | G126: 45.4 | H126: 46.2 | I126: 47 | J126: 48 | K126: 48.9 | L126: 49.9 | M126: 50.9 | N126: 51.8 | O126: 52.7
B127: =+B126+5 -> 15 | C127: 39.7 | D127: 39.9 | E127: 40.3 | F127: 40.8 | G127: 41.5 | H127: 42.4 | I127: 43.3 | J127: 44.3 | K127: 45.3 | L127: 46.4 | M127: 47.6 | N127: 48.7 | O127: 49.8
B128: =+B127+5 -> 20 | C128: 36.8 | D128: 36.9 | E128: 37.3 | F128: 37.9 | G128: 38.6 | H128: 39.4 | I128: 40.4 | J128: 41.5 | K128: 42.6 | L128: 43.8 | M128: 45 | N128: 46.2 | O128: 47.5
B129: 25 | C129: 34.6 | D129: 34.8 | E129: 35.1 | F129: 35.7 | G129: 36.4 | H129: 37.3 | I129: 38.3 | J129: 39.4 | K129: 40.6 | L129: 41.9 | M129: 43.2 | N129: 44.5 | O129: 45.8
B130: 30 | C130: 33 | D130: 33.2 | E130: 33.6 | F130: 34.1 | G130: 34.9 | H130: 35.8 | I130: 36.8 | J130: 38 | K130: 39.2 | L130: 40.5 | M130: 41.9 | N130: 43.3 | O130: 44.7
B131: 35 | C131: 31.9 | D131: 32.1 | E131: 32.4 | F131: 33 | G131: 33.8 | H131: 34.7 | I131: 35.8 | J131: 36.9 | K131: 38.2 | L131: 39.6 | M131: 41 | N131: 42.5 | O131: 43.9
B132: 40 | C132: 31.1 | D132: 31.3 | E132: 31.6 | F132: 32.2 | G132: 33 | H132: 33.9 | I132: 35 | J132: 36.3 | K132: 37.6 | L132: 39 | M132: 40.5 | N132: 42 | O132: 43.5
B133: 45 | C133: 30.6 | D133: 30.7 | E133: 31.1 | F133: 31.7 | G133: 32.5 | H133: 33.5 | I133: 34.6 | J133: 35.8 | K133: 37.2 | L133: 38.6 | M133: 40.1 | N133: 41.7 | O133: 43.3
B134: 50 | C134: 30.3 | D134: 30.4 | E134: 30.8 | F134: 31.4 | G134: 32.2 | H134: 33.2 | I134: 34.3 | J134: 35.6 | K134: 37 | L134: 38.5 | M134: 40 | N134: 41.6 | O134: 43.3
B135: 55 | C135: 30.2 | D135: 30.3 | E135: 30.7 | F135: 31.3 | G135: 32.1 | H135: 33.1 | I135: 34.2 | J135: 35.5 | K135: 36.9 | L135: 38.5 | M135: 40.1 | N135: 41.7 | O135: 43.4
B136: 60 | C136: 30.2 | D136: 30.3 | E136: 30.7 | F136: 31.3 | G136: 32.1 | H136: 33.1 | I136: 34.3 | J136: 35.6 | K136: 37 | L136: 38.6 | M136: 40.2 | N136: 41.9 | O136: 43.6
B137: 65 | C137: 30.3 | D137: 30.4 | E137: 30.8 | F137: 31.4 | G137: 32.2 | H137: 33.3 | I137: 34.4 | J137: 35.8 | K137: 37.3 | L137: 38.8 | M137: 40.5 | N137: 42.2 | O137: 44
B138: 70 | C138: 30.6 | D138: 30.7 | E138: 31 | F138: 31.7 | G138: 32.5 | H138: 33.5 | I138: 34.7 | J138: 36.1 | K138: 37.6 | L138: 39.2 | M138: 40.8 | N138: 42.6 | O138: 44.4
B139: 75 | C139: 30.9 | D139: 31 | E139: 31.3 | F139: 32 | G139: 32.8 | H139: 33.8 | I139: 35.1 | J139: 36.4 | K139: 37.9 | L139: 39.6 | M139: 41.3 | N139: 43.1 | O139: 44.9
B140: 80 | C140: 31.2 | D140: 31.4 | E140: 31.7 | F140: 32.3 | G140: 33.2 | H140: 34.2 | I140: 35.5 | J140: 36.9 | K140: 38.4 | L140: 40 | M140: 41.8 | N140: 43.6 | O140: 45.5
B141: 85 | C141: 31.7 | D141: 31.8 | E141: 32.2 | F141: 32.8 | G141: 33.6 | H141: 34.7 | I141: 35.9 | J141: 37.3 | K141: 38.9 | L141: 40.5 | M141: 42.3 | N141: 44.2 | O141: 46.1
B142: 90 | C142: 32.2 | D142: 32.3 | E142: 32.6 | F142: 33.3 | G142: 34.1 | H142: 35.2 | I142: 36.4 | J142: 37.9 | K142: 39.4 | L142: 41.1 | M142: 42.9 | N142: 44.8 | O142: 46.7
B143: 95 | C143: 32.7 | D143: 32.8 | E143: 33.2 | F143: 33.8 | G143: 34.7 | H143: 35.7 | I143: 37 | J143: 38.4 | K143: 40 | L143: 41.7 | M143: 43.5 | N143: 45.4 | O143: 47.4
B144: =+B143+5 -> 100 | C144: 33.3 | D144: 33.4 | E144: 33.7 | F144: 34.4 | G144: 35.2 | H144: 36.3 | I144: 37.6 | J144: 39 | K144: 40.6 | L144: 42.4 | M144: 44.2 | N144: 46.1 | O144: 48.1
B145: =+B144+5 -> 105 | C145: 33.9 | D145: 34 | E145: 34.3 | F145: 35 | G145: 35.8 | H145: 36.9 | I145: 38.2 | J145: 39.7 | K145: 41.3 | L145: 43 | M145: 44.9 | N145: 46.8 | O145: 48.8
B146: =+B145+5 -> 110 | C146: 34.5 | D146: 34.6 | E146: 35 | F146: 35.6 | G146: 36.5 | H146: 37.6 | I146: 38.9 | J146: 40.3 | K146: 42 | L146: 43.7 | M146: 45.6 | N146: 47.6 | O146: 49.6
B147: =+B146+5 -> 115 | C147: 35.1 | D147: 35.2 | E147: 35.6 | F147: 36.3 | G147: 37.1 | H147: 38.2 | I147: 39.6 | J147: 41 | K147: 42.7 | L147: 44.5 | M147: 46.3 | N147: 48.3 | O147: 50.4
B148: =+B147+5 -> 120 | C148: 35.8 | D148: 35.9 | E148: 36.3 | F148: 36.9 | G148: 37.8 | H148: 38.9 | I148: 40.3 | J148: 41.7 | K148: 43.4 | L148: 45.2 | M148: 47.1 | N148: 49.1 | O148: 51.2

Sheet Setup (hidden)
A1: =MID(CELL("filename",A2),FIND("]",CELL("filename",A2))+1,256) -> Setup
A2: Contains the sets used in model
B4: Sets
B6: Years | C6: Speed limits | D6: IRI | E6: Gradient | F6: Speed | G6: Project types | I6: Road types | J6: Comments
B7: 0 | C7: 50 km/h | D7: 2 | E7: 0 | F7: 10 | G7: Safety | I7: Urban arterial | J7: Arterial and collector roads within urban areas carrying traffic volumes greater than 7,000 motorised vehicles/day
B8: 1 | C8: 60 km/h | D8: 2.1 | E8: 1 | F8: =+F7+5 -> 15 | G8: Resilience | I8: Urban other | J8: Urban roads other than urban arterial
B9: 2 | C9: 70 km/h | D9: 2.2 | E9: 2 | F9: =+F8+5 -> 20 | G9: Efficiency | I9: Rural strategic | J9: Arterial and collector roads connecting main centres of population and carrying traffic of over 2,500 motorised vehicles/day
B10: 3 | C10: 100 km/h | D10: 2.3 | E10: 3 | F10: 25 | I10: Rural other | J10: Rural roads other than rural strategic
B11: 4 | C11: 100 km/h, remote rural area | D11: 2.4 | E11: 4 | F11: 30
B12: 5 | C12: Motorway | D12: 2.5 | E12: 5 | F12: 35
B13: 6 | D13: 2.6 | E13: 6 | F13: 40
B14: 7 | D14: 2.7 | E14: 7 | F14: 45
B15: 8 | D15: 2.8 | E15: 8 | F15: 50
B16: 9 | D16: 2.9 | E16: 9 | F16: 55
B17: 10 | D17: 3 | E17: 10 | F17: 60
B18: 11 | D18: 3.1 | E18: 11 | F18: 65
B19: 12 | D19: 3.2 | E19: 12 | F19: 70
B20: 13 | D20: 3.3 | F20: 75
B21: 14 | D21: 3.4 | F21: 80
B22: 15 | D22: 3.5 | F22: 85
B23: 16 | D23: 3.6 | F23: 90
B24: 17 | D24: 3.7 | F24: 95
B25: 18 | D25: 3.8 | F25: =+F24+5 -> 100
B26: 19 | D26: 3.9 | F26: 105
B27: 20 | D27: 4 | F27: 110
B28: 21 | D28: 4.1 | F28: 115
B29: 22 | D29: 4.2 | F29: 120
B30: 23 | D30: 4.3
B31: 24 | D31: 4.4
B32: 25 | D32: 4.5
B33: 26 | D33: 4.6
B34: 27 | D34: 4.7
B35: 28 | D35: 4.8
B36: 29 | D36: 4.9
B37: 30 | D37: 5
B38: 31 | D38: 5.1
B39: 32 | D39: 5.2
B40: 33 | D40: 5.3
B41: 34 | D41: 5.4
B42: 35 | D42: 5.5
B43: 36 | D43: 5.6
B44: 37 | D44: 5.7
B45: 38 | D45: 5.8
B46: 39 | D46: 5.9
B47: 40 | D47: 6

Sheet calculations ->

Sheet C1 Minor works & Operations
A1: =MID(CELL("filename",A2),FIND("]",CELL("filename",A2))+1,256) -> C1 Minor works & Operations
B4: Summary of benefits and costs
C7: Safety | D7: Resilience | E7: Efficiency
B8: Benefits | C8: =C35 -> 2246937.056 | D8: =C63 -> 333342.029 | E8: =C85 -> 1557088.135
B9: Costs | C9: =C29 -> 364561.8281 | D9: =C57 -> 217001.0881 | E9: =C80 -> 173600.8705
B10: NPV | C10: =C8-C9 -> 1882375.228 | D10: =D8-D9 -> 116340.9409 | E10: =E8-E9 -> 1383487.265
B11: BCR | C11: =C8/C9 -> 6.163390905 | D11: =D8/D9 -> 1.53613068 | E11: =E8/E9 -> 8.969356724
B13: Minor works - safety
B15: User inputs and relevant assumptions
B17: ='I1 Minor works & Operations'!B8 -> Project costs | C17: ='I1 Minor works & Operations'!C8 -> Inputs | E17: ='I1 Minor works & Operations'!B17 -> Reported injuries | G17: ='I1 Minor works & Operations'!C17 -> Avg reduction per year | H17: Cost per event
B18: ='I1 Minor works & Operations'!B9 -> Project upfront cost | C18: ='I1 Minor works & Operations'!C9 -> 210000 | E18: ='I1 Minor works & Operations'!B18 -> Fatalities | G18: ='I1 Minor works & Operations'!C18 -> 0.06 | H18: ='I1 Minor works & Operations'!C25 -> 4111560.417
B19: ='I1 Minor works & Operations'!B10 -> Project ongoing cost | C19: ='I1 Minor works & Operations'!C10 -> 21000 | E19: ='I1 Minor works & Operations'!B19 -> Serious injuries | G19: ='I1 Minor works & Operations'!C19 -> 0.06 | H19: ='I1 Minor works & Operations'!C26 -> 763166.6667
B20: ='I1 Minor works & Operations'!B11 -> Years of ongoing cost | C20: ='I1 Minor works & Operations'!C11 -> 10 | E20: ='I1 Minor works & Operations'!B20 -> Minor injuries | G20: ='I1 Minor works & Operations'!C20 -> 0.17 | H20: ='I1 Minor works & Operations'!C27 -> 75312.5
E21: ='I1 Minor works & Operations'!B14 -> Start year of benefits | G21: ='I1 Minor works & Operations'!C14 -> 1
E22: ='I1 Minor works & Operations'!B15 -> Years of benefit | G22: ='I1 Minor works & Operations'!C15 -> 10
B24: Calculations
B26: Project costs | C26: NPV | D26: 0 | E26: =D26+1 -> 1 | F26: =E26+1 -> 2 | G26: 3 | H26: 4 | I26: 5 | J26: 6 | K26: 7 | L26: 8 | M26: 9 | N26: 10 | O26: 11 | P26: 12 | Q26: 13 | R26: 14 | S26: 15 | T26: 16 | U26: 17 | V26: 18 | W26: 19 | X26: 20 | Y26: 21 | Z26: 22 | AA26: 23 | AB26: 24 | AC26: 25 | AD26: 26 | AE26: 27 | AF26: 28 | AG26: 29 | AH26: 30 | AI26: 31 | AJ26: 32 | AK26: 33 | AL26: 34 | AM26: 35 | AN26: 36 | AO26: 37 | AP26: 38 | AQ26: 39 | AR26: 40
B27: Upfront cost | C27: =SUMPRODUCT(D27:AR27,DiscountFactor) -> 210000 | D27: =C18 -> 210000
B28: Ongoing cost | C28: =SUMPRODUCT(D28:AR28,DiscountFactor) -> 154561.8281 | E28: =$C$19*IF($C$20>=E$26,1,0) -> 21000 | F28: 21000 | G28: 21000 | H28: 21000 | I28: 21000 | J28: 21000 | K28: 21000 | L28: 21000 | M28: 21000 | N28: 21000 | O28: 0 | P28: 0 | Q28: 0 | R28: 0 | S28: 0 | T28: 0 | U28: 0 | V28: 0 | W28: 0 | X28: 0 | Y28: 0 | Z28: 0 | AA28: 0 | AB28: 0 | AC28: 0 | AD28: 0 | AE28: 0 | AF28: 0 | AG28: 0 | AH28: 0 | AI28: 0 | AJ28: 0 | AK28: 0 | AL28: 0 | AM28: 0 | AN28: 0 | AO28: 0 | AP28: 0 | AQ28: 0 | AR28: 0
B29: Total cost | C29: =SUM(C27:C28) -> 364561.8281 | D29: =SUM(D27:D28) -> 210000 | E29: =SUM(E27:E28) -> 21000 | F29: =SUM(F27:F28) -> 21000 | G29: 21000 | H29: 21000 | I29: 21000 | J29: 21000 | K29: 21000 | L29: 21000 | M29: 21000 | N29: 21000 | O29: 0 | P29: 0 | Q29: 0 | R29: 0 | S29: 0 | T29: 0 | U29: 0 | V29: 0 | W29: 0 | X29: 0 | Y29: 0 | Z29: 0 | AA29: 0 | AB29: 0 | AC29: 0 | AD29: 0 | AE29: 0 | AF29: 0 | AG29: 0 | AH29: 0 | AI29: 0 | AJ29: 0 | AK29: 0 | AL29: 0 | AM29: 0 | AN29: 0 | AO29: 0 | AP29: 0 | AQ29: =SUM(AQ27:AQ28) -> 0 | AR29: =SUM(AR27:AR28) -> 0
B31: Project benefits | C31: NPV | D31: 0 | E31: =D31+1 -> 1 | F31: =E31+1 -> 2 | G31: 3 | H31: 4 | I31: 5 | J31: 6 | K31: 7 | L31: 8 | M31: 9 | N31: 10 | O31: 11 | P31: 12 | Q31: 13 | R31: 14 | S31: 15 | T31: 16 | U31: 17 | V31: 18 | W31: 19 | X31: 20 | Y31: 21 | Z31: 22 | AA31: 23 | AB31: 24 | AC31: 25 | AD31: 26 | AE31: 27 | AF31: 28 | AG31: 29 | AH31: 30 | AI31: 31 | AJ31: 32 | AK31: 33 | AL31: 34 | AM31: 35 | AN31: 36 | AO31: 37 | AP31: 38 | AQ31: 39 | AR31: 40
B32: Fatal crashes | C32: =SUMPRODUCT(D32:AR32,DiscountFactor) -> 1815686.555 | D32: =$G18*$H18*IF(AND(($G$22+$G$21-1)>=D$31,D$31>=$G$21),1,0) -> 0 | E32: 246693.625 | F32: 246693.625 | G32: 246693.625 | H32: 246693.625 | I32: 246693.625 | J32: 246693.625 | K32: 246693.625 | L32: 246693.625 | M32: 246693.625 | N32: 246693.625 | O32: 0 | P32: 0 | Q32: 0 | R32: 0 | S32: 0 | T32: 0 | U32: 0 | V32: 0 | W32: 0 | X32: 0 | Y32: 0 | Z32: 0 | AA32: 0 | AB32: 0 | AC32: 0 | AD32: 0 | AE32: 0 | AF32: 0 | AG32: 0 | AH32: 0 | AI32: 0 | AJ32: 0 | AK32: 0 | AL32: 0 | AM32: 0 | AN32: 0 | AO32: 0 | AP32: 0 | AQ32: 0 | AR32: 0
B33: Serious injury crashes | C33: =SUMPRODUCT(D33:AR33,DiscountFactor) -> 337018.3861 | D33: =$G19*$H19*IF(AND(($G$22+$G$21-1)>=D$31,D$31>=$G$21),1,0) -> 0 | E33: 45790 | F33: 45790 | G33: 45790 | H33: 45790 | I33: 45790 | J33: 45790 | K33: 45790 | L33: 45790 | M33: 45790 | N33: 45790 | O33: 0 | P33: 0 | Q33: 0 | R33: 0 | S33: 0 | T33: 0 | U33: 0 | V33: 0 | W33: 0 | X33: 0 | Y33: 0 | Z33: 0 | AA33: 0 | AB33: 0 | AC33: 0 | AD33: 0 | AE33: 0 | AF33: 0 | AG33: 0 | AH33: 0 | AI33: 0 | AJ33: 0 | AK33: 0 | AL33: 0 | AM33: 0 | AN33: 0 | AO33: 0 | AP33: 0 | AQ33: 0 | AR33: 0
B34: Minor injury crashes | C34: =SUMPRODUCT(D34:AR34,DiscountFactor) -> 94232.11453 | D34: =$G20*$H20*IF(AND(($G$22+$G$21-1)>=D$31,D$31>=$G$21),1,0) -> 0 | E34: 12803.125 | F34: 12803.125 | G34: 12803.125 | H34: 12803.125 | I34: 12803.125 | J34: 12803.125 | K34: 12803.125 | L34: 12803.125 | M34: 12803.125 | N34: 12803.125 | O34: 0 | P34: 0 | Q34: 0 | R34: 0 | S34: 0 | T34: 0 | U34: 0 | V34: 0 | W34: 0 | X34: 0 | Y34: 0 | Z34: 0 | AA34: 0 | AB34: 0 | AC34: 0 | AD34: 0 | AE34: 0 | AF34: 0 | AG34: 0 | AH34: 0 | AI34: 0 | AJ34: 0 | AK34: 0 | AL34: 0 | AM34: 0 | AN34: 0 | AO34: 0 | AP34: 0 | AQ34: 0 | AR34: 0
B35: Total | C35: =SUM(C32:C34) -> 2246937.056 | D35: 0 | E35: 305286.75 | F35: 305286.75 | G35: 305286.75 | H35: 305286.75 | I35: 305286.75 | J35: 305286.75 | K35: 305286.75 | L35: 305286.75 | M35: 305286.75 | N35: 305286.75 | O35: 0 | P35: 0 | Q35: 0 | R35: 0 | S35: 0 | T35: 0 | U35: 0 | V35: 0 | W35: 0 | X35: 0 | Y35: 0 | Z35: 0 | AA35: 0 | AB35: 0 | AC35: 0 | AD35: 0 | AE35: 0 | AF35: 0 | AG35: 0 | AH35: 0 | AI35: 0 | AJ35: 0 | AK35: 0 | AL35: 0 | AM35: 0 | AN35: 0 | AO35: 0 | AP35: 0 | AQ35: 0 | AR35: 0
B37: Minor works - resilience
B39: User inputs and relevant assumptions
B41: ='I1 Minor works & Operations'!B33 -> Project costs | C41: ='I1 Minor works & Operations'!C33 -> Inputs | E41: Benefits
B42: ='I1 Minor works & Operations'!B34 -> Project upfront cost | C42: ='I1 Minor works & Operations'!C34 -> 125000 | E42: No. of trips effected | H42: ='I1 Minor works & Operations'!C46 -> 1295
B43: ='I1 Minor works & Operations'!B35 -> Project ongoing cost | C43: ='I1 Minor works & Operations'!C35 -> 12500 | E43: ='I1 Minor works & Operations'!B48 -> Expected reinstatement cost per year | H43: ='I1 Minor works & Operations'!$C$48 -> 38500
B44: ='I1 Minor works & Operations'!B36 -> Years of ongoing cost | C44: ='I1 Minor works & Operations'!C36 -> 10 | E44: ='I1 Minor works & Operations'!B39 -> Start year of benefits | H44: ='I1 Minor works & Operations'!C39 -> 1
E45: ='I1 Minor works & Operations'!B40 -> Years of benefit | H45: ='I1 Minor works & Operations'!C40 -> 10
E47: Cost per trip | F47: ='I1 Minor works & Operations'!C50 -> Original route | G47: ='I1 Minor works & Operations'!D50 -> Detour route | H47: Saving
E48: VOC per trip | F48: ='I1 Minor works & Operations'!C55 -> 2.892 | G48: ='I1 Minor works & Operations'!D55 -> 4.0216875 | H48: =+G48-F48 -> 1.1296875
E49: Time value per trip | F49: ='I1 Minor works & Operations'!C57 -> 2.419966185 | G49: ='I1 Minor works & Operations'!D57 -> 6.533908699 | H49: =+G49-F49 -> 4.113942514
E50: Total | F50: =SUM(F48:F49) -> 5.311966185 | G50: =SUM(G48:G49) -> 10.5555962 | H50: =SUM(H48:H49) -> 5.243630014
B52: Calculations
B54: Project costs | C54: NPV | D54: 0 | E54: =D54+1 -> 1 | F54: =E54+1 -> 2 | G54: 3 | H54: 4 | I54: 5 | J54: 6 | K54: 7 | L54: 8 | M54: 9 | N54: 10 | O54: 11 | P54: 12 | Q54: 13 | R54: 14 | S54: 15 | T54: 16 | U54: 17 | V54: 18 | W54: 19 | X54: 20 | Y54: 21 | Z54: 22 | AA54: 23 | AB54: 24 | AC54: 25 | AD54: 26 | AE54: 27 | AF54: 28 | AG54: 29 | AH54: 30 | AI54: 31 | AJ54: 32 | AK54: 33 | AL54: 34 | AM54: 35 | AN54: 36 | AO54: 37 | AP54: 38 | AQ54: 39 | AR54: 40
B55: Upfront cost | C55: =SUMPRODUCT(D55:AR55,DiscountFactor) -> 125000 | D55: =C42 -> 125000
B56: Ongoing cost | C56: =SUMPRODUCT(D56:AR56,DiscountFactor) -> 92001.08814 | E56: =$C$43*IF($C$44>=E$54,1,0) -> 12500 | F56: =$C$43*IF($C$44>=F$54,1,0) -> 12500 | G56: 12500 | H56: 12500 | I56: 12500 | J56: 12500 | K56: 12500 | L56: 12500 | M56: 12500 | N56: 12500 | O56: 0 | P56: 0 | Q56: 0 | R56: 0 | S56: 0 | T56: 0 | U56: 0 | V56: 0 | W56: 0 | X56: 0 | Y56: 0 | Z56: 0 | AA56: 0 | AB56: 0 | AC56: 0 | AD56: 0 | AE56: 0 | AF56: 0 | AG56: 0 | AH56: 0 | AI56: 0 | AJ56: 0 | AK56: 0 | AL56: 0 | AM56: 0 | AN56: 0 | AO56: 0 | AP56: 0 | AQ56: 0 | AR56: 0
B57: Total cost | C57: =SUM(C55:C56) -> 217001.0881 | D57: 125000 | E57: 12500 | F57: 12500 | G57: 12500 | H57: 12500 | I57: 12500 | J57: 12500 | K57: 12500 | L57: 12500 | M57: 12500 | N57: 12500 | O57: 0 | P57: 0 | Q57: 0 | R57: 0 | S57: 0 | T57: 0 | U57: 0 | V57: 0 | W57: 0 | X57: 0 | Y57: 0 | Z57: 0 | AA57: 0 | AB57: 0 | AC57: 0 | AD57: 0 | AE57: 0 | AF57: 0 | AG57: 0 | AH57: 0 | AI57: 0 | AJ57: 0 | AK57: 0 | AL57: 0 | AM57: 0 | AN57: 0 | AO57: 0 | AP57: 0 | AQ57: 0 | AR57: 0
B59: Benefits | C59: NPV | D59: 0 | E59: =D59+1 -> 1 | F59: =E59+1 -> 2 | G59: 3 | H59: 4 | I59: 5 | J59: 6 | K59: 7 | L59: 8 | M59: 9 | N59: 10 | O59: 11 | P59: 12 | Q59: 13 | R59: 14 | S59: 15 | T59: 16 | U59: 17 | V59: 18 | W59: 19 | X59: 20 | Y59: 21 | Z59: 22 | AA59: 23 | AB59: 24 | AC59: 25 | AD59: 26 | AE59: 27 | AF59: 28 | AG59: 29 | AH59: 30 | AI59: 31 | AJ59: 32 | AK59: 33 | AL59: 34 | AM59: 35 | AN59: 36 | AO59: 37 | AP59: 38 | AQ59: 39 | AR59: 40
B60: VOC saving | C60: =SUMPRODUCT(D60:AR60,DiscountFactor) -> 10767.40485 | D60: =$H$42*$H48*IF(AND(($H$45+$H$44)>D$31,D$31>=$H$44),1,0) -> 0 | E60: =$H$42*$H48*IF(AND(($H$45+$H$44-1)>=E$59,E$59>=$H$44),1,0) -> 1462.945313 | F60: 1462.945313 | G60: 1462.945313 | H60: 1462.945313 | I60: 1462.945313 | J60: 1462.945313 | K60: 1462.945313 | L60: 1462.945313 | M60: 1462.945313 | N60: 1462.945313 | O60: 0 | P60: 0 | Q60: 0 | R60: 0 | S60: 0 | T60: 0 | U60: 0 | V60: 0 | W60: 0 | X60: 0 | Y60: 0 | Z60: 0 | AA60: 0 | AB60: 0 | AC60: 0 | AD60: 0 | AE60: 0 | AF60: 0 | AG60: 0 | AH60: 0 | AI60: 0 | AJ60: 0 | AK60: 0 | AL60: 0 | AM60: 0 | AN60: 0 | AO60: 0 | AP60: 0 | AQ60: 0 | AR60: 0
B61: Time savings | C61: =SUMPRODUCT(D61:AR61,DiscountFactor) -> 39211.27266 | D61: =$H$42*$H49*IF(AND(($H$45+$H$44)>D$31,D$31>=$H$44),1,0) -> 0 | E61: =$H$42*$H49*IF(AND(($H$45+$H$44-1)>=E$59,E$59>=$H$44),1,0) -> 5327.555556 | F61: 5327.555556 | G61: 5327.555556 | H61: 5327.555556 | I61: 5327.555556 | J61: 5327.555556 | K61: 5327.555556 | L61: 5327.555556 | M61: 5327.555556 | N61: 5327.555556 | O61: 0 | P61: 0 | Q61: 0 | R61: 0 | S61: 0 | T61: 0 | U61: 0 | V61: 0 | W61: 0 | X61: 0 | Y61: 0 | Z61: 0 | AA61: 0 | AB61: 0 | AC61: 0 | AD61: 0 | AE61: 0 | AF61: 0 | AG61: 0 | AH61: 0 | AI61: 0 | AJ61: 0 | AK61: 0 | AL61: 0 | AM61: 0 | AN61: 0 | AO61: 0 | AP61: 0 | AQ61: 0 | AR61: 0
B62: Avoided reinstatement cost | C62: =SUMPRODUCT(D62:AR62,DiscountFactor) -> 283363.3515 | D62: =$H$43*IF(AND(($H$45+$H$44)>D$31,D$31>=$H$44),1,0) -> 0 | E62: =$H$43*IF(AND(($H$45+$H$44-1)>=E$59,E$59>=$H$44),1,0) -> 38500 | F62: 38500 | G62: 38500 | H62: 38500 | I62: 38500 | J62: 38500 | K62: 38500 | L62: 38500 | M62: 38500 | N62: 38500 | O62: 0 | P62: 0 | Q62: 0 | R62: 0 | S62: 0 | T62: 0 | U62: 0 | V62: 0 | W62: 0 | X62: 0 | Y62: 0 | Z62: 0 | AA62: 0 | AB62: 0 | AC62: 0 | AD62: 0 | AE62: 0 | AF62: 0 | AG62: 0 | AH62: 0 | AI62: 0 | AJ62: 0 | AK62: 0 | AL62: 0 | AM62: 0 | AN62: 0 | AO62: 0 | AP62: 0 | AQ62: 0 | AR62: 0
B63: Total | C63: =SUM(C60:C62) -> 333342.029 | D63: 0 | E63: =SUM(E60:E62) -> 45290.50087 | F63: 45290.50087 | G63: 45290.50087 | H63: 45290.50087 | I63: 45290.50087 | J63: 45290.50087 | K63: 45290.50087 | L63: 45290.50087 | M63: 45290.50087 | N63: 45290.50087 | O63: 0 | P63: 0 | Q63: 0 | R63: 0 | S63: 0 | T63: 0 | U63: 0 | V63: 0 | W63: 0 | X63: 0 | Y63: 0 | Z63: 0 | AA63: 0 | AB63: 0 | AC63: 0 | AD63: 0 | AE63: 0 | AF63: 0 | AG63: 0 | AH63: 0 | AI63: 0 | AJ63: 0 | AK63: 0 | AL63: 0 | AM63: 0 | AN63: 0 | AO63: 0 | AP63: 0 | AQ63: 0 | AR63: 0
B65: Minor works - efficiency
B67: User inputs and relevant assumptions
B69: ='I1 Minor works & Operations'!B76 -> Project costs | C69: ='I1 Minor works & Operations'!C76 -> Inputs | E69: Total hours saved per hour | G69: Existing | H69: Increased
B70: ='I1 Minor works & Operations'!B77 -> Project upfront cost | C70: ='I1 Minor works & Operations'!C77 -> 100000 | E70: Total hours saved per year | G70: ='I1 Minor works & Operations'!C87 -> 9500 | H70: ='I1 Minor works & Operations'!C88 -> 475
B71: ='I1 Minor works & Operations'!B78 -> Project ongoing cost | C71: ='I1 Minor works & Operations'!C78 -> 10000 | E71: Value of time | G71: =+'I1 Minor works & Operations'!C97 -> 21.72615001 | H71: =+'I1 Minor works & Operations'!D97 -> 10.863075
B72: ='I1 Minor works & Operations'!B79 -> Years of ongoing cost | C72: ='I1 Minor works & Operations'!C79 -> 10 | E72: Start year of benefits | G72: ='I1 Minor works & Operations'!C82 -> 1
E73: Years of benefit | G73: ='I1 Minor works & Operations'!C83 -> 10
B75: Calculations
B77: Project costs | C77: NPV | D77: 0 | E77: =D77+1 -> 1 | F77: =E77+1 -> 2 | G77: 3 | H77: 4 | I77: 5 | J77: 6 | K77: 7 | L77: 8 | M77: 9 | N77: 10 | O77: 11 | P77: 12 | Q77: 13 | R77: 14 | S77: 15 | T77: 16 | U77: 17 | V77: 18 | W77: 19 | X77: 20 | Y77: 21 | Z77: 22 | AA77: 23 | AB77: 24 | AC77: 25 | AD77: 26 | AE77: 27 | AF77: 28 | AG77: 29 | AH77: 30 | AI77: 31 | AJ77: 32 | AK77: 33 | AL77: 34 | AM77: 35 | AN77: 36 | AO77: 37 | AP77: 38 | AQ77: 39 | AR77: 40
B78: Upfront cost | C78: =SUMPRODUCT(D78:AR78,DiscountFactor) -> 100000 | D78: =C70 -> 100000
B79: Ongoing cost | C79: =SUMPRODUCT(D79:AR79,DiscountFactor) -> 73600.87051 | E79: =$C$71*IF($C$72>=E$77,1,0) -> 10000 | F79: 10000 | G79: 10000 | H79: 10000 | I79: 10000 | J79: 10000 | K79: 10000 | L79: 10000 | M79: 10000 | N79: 10000 | O79: 0 | P79: 0 | Q79: 0 | R79: 0 | S79: 0 | T79: 0 | U79: 0 | V79: 0 | W79: 0 | X79: 0 | Y79: 0 | Z79: 0 | AA79: 0 | AB79: 0 | AC79: 0 | AD79: 0 | AE79: 0 | AF79: 0 | AG79: 0 | AH79: 0 | AI79: 0 | AJ79: 0 | AK79: 0 | AL79: 0 | AM79: 0 | AN79: 0 | AO79: 0 | AP79: 0 | AQ79: 0 | AR79: 0
B80: Total cost | C80: =SUM(C78:C79) -> 173600.8705 | D80: 100000 | E80: 10000 | F80: 10000 | G80: 10000 | H80: 10000 | I80: 10000 | J80: 10000 | K80: 10000 | L80: 10000 | M80: 10000 | N80: 10000 | O80: 0 | P80: 0 | Q80: 0 | R80: 0 | S80: 0 | T80: 0 | U80: 0 | V80: 0 | W80: 0 | X80: 0 | Y80: 0 | Z80: 0 | AA80: 0 | AB80: 0 | AC80: 0 | AD80: 0 | AE80: 0 | AF80: 0 | AG80: 0 | AH80: 0 | AI80: 0 | AJ80: 0 | AK80: 0 | AL80: 0 | AM80: 0 | AN80: 0 | AO80: 0 | AP80: 0 | AQ80: 0 | AR80: 0
B82: Benefits | C82: NPV | D82: 0 | E82: =D82+1 -> 1 | F82: =E82+1 -> 2 | G82: 3 | H82: 4 | I82: 5 | J82: 6 | K82: 7 | L82: 8 | M82: 9 | N82: 10 | O82: 11 | P82: 12 | Q82: 13 | R82: 14 | S82: 15 | T82: 16 | U82: 17 | V82: 18 | W82: 19 | X82: 20 | Y82: 21 | Z82: 22 | AA82: 23 | AB82: 24 | AC82: 25 | AD82: 26 | AE82: 27 | AF82: 28 | AG82: 29 | AH82: 30 | AI82: 31 | AJ82: 32 | AK82: 33 | AL82: 34 | AM82: 35 | AN82: 36 | AO82: 37 | AP82: 38 | AQ82: 39 | AR82: 40
B83: Existing | C83: =SUMPRODUCT(D83:AR83,DiscountFactor) -> 1519110.376 | D83: =PRODUCT($G$70:$G$71)*IF(AND(($G$73+$G$72)>D$82,D$82>=$G$72),1,0) -> 0 | E83: 206398.4251 | F83: 206398.4251 | G83: 206398.4251 | H83: 206398.4251 | I83: 206398.4251 | J83: 206398.4251 | K83: 206398.4251 | L83: 206398.4251 | M83: 206398.4251 | N83: 206398.4251 | O83: 0 | P83: 0 | Q83: 0 | R83: 0 | S83: 0 | T83: 0 | U83: 0 | V83: 0 | W83: 0 | X83: 0 | Y83: 0 | Z83: 0 | AA83: 0 | AB83: 0 | AC83: 0 | AD83: 0 | AE83: 0 | AF83: 0 | AG83: 0 | AH83: 0 | AI83: 0 | AJ83: 0 | AK83: 0 | AL83: 0 | AM83: 0 | AN83: 0 | AO83: 0 | AP83: 0 | AQ83: 0 | AR83: 0
B84: Increased | C84: =SUMPRODUCT(D84:AR84,DiscountFactor) -> 37977.7594 | D84: =PRODUCT($H$70:$H$71)*IF(AND(($G$73+$G$72)>D$82,D$82>=$G$72),1,0) -> 0 | E84: 5159.960627 | F84: 5159.960627 | G84: 5159.960627 | H84: 5159.960627 | I84: 5159.960627 | J84: 5159.960627 | K84: 5159.960627 | L84: 5159.960627 | M84: 5159.960627 | N84: 5159.960627 | O84: 0 | P84: 0 | Q84: 0 | R84: 0 | S84: 0 | T84: 0 | U84: 0 | V84: 0 | W84: 0 | X84: 0 | Y84: 0 | Z84: 0 | AA84: 0 | AB84: 0 | AC84: 0 | AD84: 0 | AE84: 0 | AF84: 0 | AG84: 0 | AH84: 0 | AI84: 0 | AJ84: 0 | AK84: 0 | AL84: 0 | AM84: 0 | AN84: 0 | AO84: 0 | AP84: 0 | AQ84: 0 | AR84: 0
B85: Total | C85: =SUM(C83:C84) -> 1557088.135 | D85: 0 | E85: 211558.3857 | F85: 211558.3857 | G85: 211558.3857 | H85: 211558.3857 | I85: 211558.3857 | J85: 211558.3857 | K85: 211558.3857 | L85: 211558.3857 | M85: 211558.3857 | N85: 211558.3857 | O85: 0 | P85: 0 | Q85: 0 | R85: 0 | S85: 0 | T85: 0 | U85: 0 | V85: 0 | W85: 0 | X85: 0 | Y85: 0 | Z85: 0 | AA85: 0 | AB85: 0 | AC85: 0 | AD85: 0 | AE85: 0 | AF85: 0 | AG85: 0 | AH85: 0 | AI85: 0 | AJ85: 0 | AK85: 0 | AL85: 0 | AM85: 0 | AN85: 0 | AO85: 0 | AP85: 0 | AQ85: 0 | AR85: 0

Sheet C2 Maintenance
A1: =MID(CELL("filename",A2),FIND("]",CELL("filename",A2))+1,256) -> C2 Maintenance
B5: Results
B7: =+'I2 Maintenance'!D15 -> Urban arterial | C7: Scenario 1 | D7: Scenario 2 | E7: Difference | G7: Level of roughness | O7: Road user costs | W7: Total cost | AF7: Cost breakdown for scenario 1 | AK7: Cost breakdown for scenario 2
B8: IRI standard | C8: =+'I2 Maintenance'!D9 -> 3.4 | D8: =+'I2 Maintenance'!D10 -> 4 | E8: =C8-D8 -> -0.6
B9: Road authority costs | C9: =TRANSPOSE(C53:C54) -> 200355.7254 | D9: 149680.3841 | E9: =C9-D9 -> 50675.3413
B10: Road user costs | C10: =TRANSPOSE(C49:C50) -> 117519.0003 | D10: 279027.9609 | E10: =C10-D10 -> -161508.9606
B11: Total costs, PV | C11: =SUM(C9:C10) -> 317874.7256 | D11: =SUM(D9:D10) -> 428708.3449 | E11: =C11-D11 -> -110833.6193
B25: Calculations
B27: AADT | D27: 0 | E27: 1 | F27: 2 | G27: 3 | H27: 4 | I27: 5 | J27: 6 | K27: 7 | L27: 8 | M27: 9 | N27: 10 | O27: 11 | P27: 12 | Q27: 13 | R27: 14 | S27: 15 | T27: 16 | U27: 17 | V27: 18 | W27: 19 | X27: 20 | Y27: 21 | Z27: 22 | AA27: 23 | AB27: 24 | AC27: 25 | AD27: 26 | AE27: 27 | AF27: 28 | AG27: 29 | AH27: 30 | AI27: 31 | AJ27: 32 | AK27: 33 | AL27: 34 | AM27: 35 | AN27: 36 | AO27: 37 | AP27: 38 | AQ27: 39 | AR27: 40
B28: Passenger cars | D28: =INDEX('I2 Maintenance'!$D$19:$G$24,MATCH('C2 Maintenance'!$B28,'I2 Maintenance'!$B$19:$B$24,0),MATCH('I2 Maintenance'!$D$15,'I2 Maintenance'!$D$17:$G$17,0)) -> 15000 | E28: =ROUND(D28*(1+'I2 Maintenance'!$D$28),0) -> 15300 | F28: =ROUND(E28*(1+'I2 Maintenance'!$D$28),0) -> 15606 | G28: =ROUND(F28*(1+'I2 Maintenance'!$D$28),0) -> 15918 | H28: =ROUND(G28*(1+'I2 Maintenance'!$D$28),0) -> 16236 | I28: =ROUND(H28*(1+'I2 Maintenance'!$D$28),0) -> 16561 | J28: =ROUND(I28*(1+'I2 Maintenance'!$D$28),0) -> 16892 | K28: =ROUND(J28*(1+'I2 Maintenance'!$D$28),0) -> 17230 | L28: =ROUND(K28*(1+'I2 Maintenance'!$D$28),0) -> 17575 | M28: =ROUND(L28*(1+'I2 Maintenance'!$D$28),0) -> 17927 | N28: =ROUND(M28*(1+'I2 Maintenance'!$D$28),0) -> 18286 | O28: =ROUND(N28*(1+'I2 Maintenance'!$D$28),0) -> 18652 | P28: =ROUND(O28*(1+'I2 Maintenance'!$D$28),0) -> 19025 | Q28: =ROUND(P28*(1+'I2 Maintenance'!$D$28),0) -> 19406 | R28: =ROUND(Q28*(1+'I2 Maintenance'!$D$28),0) -> 19794 | S28: =ROUND(R28*(1+'I2 Maintenance'!$D$28),0) -> 20190 | T28: =ROUND(S28*(1+'I2 Maintenance'!$D$28),0) -> 20594 | U28: =ROUND(T28*(1+'I2 Maintenance'!$D$28),0) -> 21006 | V28: =ROUND(U28*(1+'I2 Maintenance'!$D$28),0) -> 21426 | W28: =ROUND(V28*(1+'I2 Maintenance'!$D$28),0) -> 21855 | X28: =ROUND(W28*(1+'I2 Maintenance'!$D$28),0) -> 22292 | Y28: =ROUND(X28*(1+'I2 Maintenance'!$D$28),0) -> 22738 | Z28: =ROUND(Y28*(1+'I2 Maintenance'!$D$28),0) -> 23193 | AA28: =ROUND(Z28*(1+'I2 Maintenance'!$D$28),0) -> 23657 | AB28: =ROUND(AA28*(1+'I2 Maintenance'!$D$28),0) -> 24130 | AC28: =ROUND(AB28*(1+'I2 Maintenance'!$D$28),0) -> 24613 | AD28: =ROUND(AC28*(1+'I2 Maintenance'!$D$28),0) -> 25105 | AE28: =ROUND(AD28*(1+'I2 Maintenance'!$D$28),0) -> 25607 | AF28: =ROUND(AE28*(1+'I2 Maintenance'!$D$28),0) -> 26119 | AG28: =ROUND(AF28*(1+'I2 Maintenance'!$D$28),0) -> 26641 | AH28: =ROUND(AG28*(1+'I2 Maintenance'!$D$28),0) -> 27174 | AI28: =ROUND(AH28*(1+'I2 Maintenance'!$D$28),0) -> 27717 | AJ28: =ROUND(AI28*(1+'I2 Maintenance'!$D$28),0) -> 28271 | AK28: =ROUND(AJ28*(1+'I2 Maintenance'!$D$28),0) -> 28836 | AL28: =ROUND(AK28*(1+'I2 Maintenance'!$D$28),0) -> 29413 | AM28: =ROUND(AL28*(1+'I2 Maintenance'!$D$28),0) -> 30001 | AN28: =ROUND(AM28*(1+'I2 Maintenance'!$D$28),0) -> 30601 | AO28: =ROUND(AN28*(1+'I2 Maintenance'!$D$28),0) -> 31213 | AP28: =ROUND(AO28*(1+'I2 Maintenance'!$D$28),0) -> 31837 | AQ28: =ROUND(AP28*(1+'I2 Maintenance'!$D$28),0) -> 32474 | AR28: =ROUND(AQ28*(1+'I2 Maintenance'!$D$28),0) -> 33123
B29: Light commercial vehicles | D29: =INDEX('I2 Maintenance'!$D$19:$G$24,MATCH('C2 Maintenance'!$B29,'I2 Maintenance'!$B$19:$B$24,0),MATCH('I2 Maintenance'!$D$15,'I2 Maintenance'!$D$17:$G$17,0)) -> 1000 | E29: =ROUND(D29*(1+'I2 Maintenance'!$D$29),0) -> 1020 | F29: =ROUND(E29*(1+'I2 Maintenance'!$D$29),0) -> 1040 | G29: =ROUND(F29*(1+'I2 Maintenance'!$D$29),0) -> 1061 | H29: =ROUND(G29*(1+'I2 Maintenance'!$D$29),0) -> 1082 | I29: =ROUND(H29*(1+'I2 Maintenance'!$D$29),0) -> 1104 | J29: =ROUND(I29*(1+'I2 Maintenance'!$D$29),0) -> 1126 | K29: =ROUND(J29*(1+'I2 Maintenance'!$D$29),0) -> 1149 | L29: =ROUND(K29*(1+'I2 Maintenance'!$D$29),0) -> 1172 | M29: =ROUND(L29*(1+'I2 Maintenance'!$D$29),0) -> 1195 | N29: =ROUND(M29*(1+'I2 Maintenance'!$D$29),0) -> 1219 | O29: =ROUND(N29*(1+'I2 Maintenance'!$D$29),0) -> 1243 | P29: =ROUND(O29*(1+'I2 Maintenance'!$D$29),0) -> 1268 | Q29: =ROUND(P29*(1+'I2 Maintenance'!$D$29),0) -> 1293 | R29: =ROUND(Q29*(1+'I2 Maintenance'!$D$29),0) -> 1319 | S29: =ROUND(R29*(1+'I2 Maintenance'!$D$29),0) -> 1345 | T29: =ROUND(S29*(1+'I2 Maintenance'!$D$29),0) -> 1372 | U29: =ROUND(T29*(1+'I2 Maintenance'!$D$29),0) -> 1399 | V29: =ROUND(U29*(1+'I2 Maintenance'!$D$29),0) -> 1427 | W29: =ROUND(V29*(1+'I2 Maintenance'!$D$29),0) -> 1456 | X29: =ROUND(W29*(1+'I2 Maintenance'!$D$29),0) -> 1485 | Y29: =ROUND(X29*(1+'I2 Maintenance'!$D$29),0) -> 1515 | Z29: =ROUND(Y29*(1+'I2 Maintenance'!$D$29),0) -> 1545 | AA29: =ROUND(Z29*(1+'I2 Maintenance'!$D$29),0) -> 1576 | AB29: =ROUND(AA29*(1+'I2 Maintenance'!$D$29),0) -> 1608 | AC29: =ROUND(AB29*(1+'I2 Maintenance'!$D$29),0) -> 1640 | AD29: =ROUND(AC29*(1+'I2 Maintenance'!$D$29),0) -> 1673 | AE29: =ROUND(AD29*(1+'I2 Maintenance'!$D$29),0) -> 1706 | AF29: =ROUND(AE29*(1+'I2 Maintenance'!$D$29),0) -> 1740 | AG29: =ROUND(AF29*(1+'I2 Maintenance'!$D$29),0) -> 1775 | AH29: =ROUND(AG29*(1+'I2 Maintenance'!$D$29),0) -> 1811 | AI29: =ROUND(AH29*(1+'I2 Maintenance'!$D$29),0) -> 1847 | AJ29: =ROUND(AI29*(1+'I2 Maintenance'!$D$29),0) -> 1884 | AK29: =ROUND(AJ29*(1+'I2 Maintenance'!$D$29),0) -> 1922 | AL29: =ROUND(AK29*(1+'I2 Maintenance'!$D$29),0) -> 1960 | AM29: =ROUND(AL29*(1+'I2 Maintenance'!$D$29),0) -> 1999 | AN29: =ROUND(AM29*(1+'I2 Maintenance'!$D$29),0) -> 2039 | AO29: =ROUND(AN29*(1+'I2 Maintenance'!$D$29),0) -> 2080 | AP29: =ROUND(AO29*(1+'I2 Maintenance'!$D$29),0) -> 2122 | AQ29: =ROUND(AP29*(1+'I2 Maintenance'!$D$29),0) -> 2164 | AR29: =ROUND(AQ29*(1+'I2 Maintenance'!$D$29),0) -> 2207
B30: Medium commercial vehicle | D30: =INDEX('I2 Maintenance'!$D$19:$G$24,MATCH('C2 Maintenance'!$B30,'I2 Maintenance'!$B$19:$B$24,0),MATCH('I2 Maintenance'!$D$15,'I2 Maintenance'!$D$17:$G$17,0)) -> 500 | E30: =ROUND(D30*(1+'I2 Maintenance'!$D$29),0) -> 510 | F30: =ROUND(E30*(1+'I2 Maintenance'!$D$29),0) -> 520 | G30: =ROUND(F30*(1+'I2 Maintenance'!$D$29),0) -> 530 | H30: =ROUND(G30*(1+'I2 Maintenance'!$D$29),0) -> 541 | I30: =ROUND(H30*(1+'I2 Maintenance'!$D$29),0) -> 552 | J30: =ROUND(I30*(1+'I2 Maintenance'!$D$29),0) -> 563 | K30: =ROUND(J30*(1+'I2 Maintenance'!$D$29),0) -> 574 | L30: =ROUND(K30*(1+'I2 Maintenance'!$D$29),0) -> 585 | M30: =ROUND(L30*(1+'I2 Maintenance'!$D$29),0) -> 597 | N30: =ROUND(M30*(1+'I2 Maintenance'!$D$29),0) -> 609 | O30: =ROUND(N30*(1+'I2 Maintenance'!$D$29),0) -> 621 | P30: =ROUND(O30*(1+'I2 Maintenance'!$D$29),0) -> 633 | Q30: =ROUND(P30*(1+'I2 Maintenance'!$D$29),0) -> 646 | R30: =ROUND(Q30*(1+'I2 Maintenance'!$D$29),0) -> 659 | S30: =ROUND(R30*(1+'I2 Maintenance'!$D$29),0) -> 672 | T30: =ROUND(S30*(1+'I2 Maintenance'!$D$29),0) -> 685 | U30: =ROUND(T30*(1+'I2 Maintenance'!$D$29),0) -> 699 | V30: =ROUND(U30*(1+'I2 Maintenance'!$D$29),0) -> 713 | W30: =ROUND(V30*(1+'I2 Maintenance'!$D$29),0) -> 727 | X30: =ROUND(W30*(1+'I2 Maintenance'!$D$29),0) -> 742 | Y30: =ROUND(X30*(1+'I2 Maintenance'!$D$29),0) -> 757 | Z30: =ROUND(Y30*(1+'I2 Maintenance'!$D$29),0) -> 772 | AA30: =ROUND(Z30*(1+'I2 Maintenance'!$D$29),0) -> 787 | AB30: =ROUND(AA30*(1+'I2 Maintenance'!$D$29),0) -> 803 | AC30: =ROUND(AB30*(1+'I2 Maintenance'!$D$29),0) -> 819 | AD30: =ROUND(AC30*(1+'I2 Maintenance'!$D$29),0) -> 835 | AE30: =ROUND(AD30*(1+'I2 Maintenance'!$D$29),0) -> 852 | AF30: =ROUND(AE30*(1+'I2 Maintenance'!$D$29),0) -> 869 | AG30: =ROUND(AF30*(1+'I2 Maintenance'!$D$29),0) -> 886 | AH30: =ROUND(AG30*(1+'I2 Maintenance'!$D$29),0) -> 904 | AI30: =ROUND(AH30*(1+'I2 Maintenance'!$D$29),0) -> 922 | AJ30: =ROUND(AI30*(1+'I2 Maintenance'!$D$29),0) -> 940 | AK30: =ROUND(AJ30*(1+'I2 Maintenance'!$D$29),0) -> 959 | AL30: =ROUND(AK30*(1+'I2 Maintenance'!$D$29),0) -> 978 | AM30: =ROUND(AL30*(1+'I2 Maintenance'!$D$29),0) -> 998 | AN30: =ROUND(AM30*(1+'I2 Maintenance'!$D$29),0) -> 1018 | AO30: =ROUND(AN30*(1+'I2 Maintenance'!$D$29),0) -> 1038 | AP30: =ROUND(AO30*(1+'I2 Maintenance'!$D$29),0) -> 1059 | AQ30: =ROUND(AP30*(1+'I2 Maintenance'!$D$29),0) -> 1080 | AR30: =ROUND(AQ30*(1+'I2 Maintenance'!$D$29),0) -> 1102
B31: HCV1 | D31: =INDEX('I2 Maintenance'!$D$19:$G$24,MATCH('C2 Maintenance'!$B31,'I2 Maintenance'!$B$19:$B$24,0),MATCH('I2 Maintenance'!$D$15,'I2 Maintenance'!$D$17:$G$17,0)) -> 200 | E31: =ROUND(D31*(1+'I2 Maintenance'!$D$29),0) -> 204 | F31: =ROUND(E31*(1+'I2 Maintenance'!$D$29),0) -> 208 | G31: =ROUND(F31*(1+'I2 Maintenance'!$D$29),0) -> 212 | H31: =ROUND(G31*(1+'I2 Maintenance'!$D$29),0) -> 216 | I31: =ROUND(H31*(1+'I2 Maintenance'!$D$29),0) -> 220 | J31: =ROUND(I31*(1+'I2 Maintenance'!$D$29),0) -> 224 | K31: =ROUND(J31*(1+'I2 Maintenance'!$D$29),0) -> 228 | L31: =ROUND(K31*(1+'I2 Maintenance'!$D$29),0) -> 233 | M31: =ROUND(L31*(1+'I2 Maintenance'!$D$29),0) -> 238 | N31: =ROUND(M31*(1+'I2 Maintenance'!$D$29),0) -> 243 | O31: =ROUND(N31*(1+'I2 Maintenance'!$D$29),0) -> 248 | P31: =ROUND(O31*(1+'I2 Maintenance'!$D$29),0) -> 253 | Q31: =ROUND(P31*(1+'I2 Maintenance'!$D$29),0) -> 258 | R31: =ROUND(Q31*(1+'I2 Maintenance'!$D$29),0) -> 263 | S31: =ROUND(R31*(1+'I2 Maintenance'!$D$29),0) -> 268 | T31: =ROUND(S31*(1+'I2 Maintenance'!$D$29),0) -> 273 | U31: =ROUND(T31*(1+'I2 Maintenance'!$D$29),0) -> 278 | V31: =ROUND(U31*(1+'I2 Maintenance'!$D$29),0) -> 284 | W31: =ROUND(V31*(1+'I2 Maintenance'!$D$29),0) -> 290 | X31: =ROUND(W31*(1+'I2 Maintenance'!$D$29),0) -> 296 | Y31: =ROUND(X31*(1+'I2 Maintenance'!$D$29),0) -> 302 | Z31: =ROUND(Y31*(1+'I2 Maintenance'!$D$29),0) -> 308 | AA31: =ROUND(Z31*(1+'I2 Maintenance'!$D$29),0) -> 314 | AB31: =ROUND(AA31*(1+'I2 Maintenance'!$D$29),0) -> 320 | AC31: =ROUND(AB31*(1+'I2 Maintenance'!$D$29),0) -> 326 | AD31: =ROUND(AC31*(1+'I2 Maintenance'!$D$29),0) -> 333 | AE31: =ROUND(AD31*(1+'I2 Maintenance'!$D$29),0) -> 340 | AF31: =ROUND(AE31*(1+'I2 Maintenance'!$D$29),0) -> 347 | AG31: =ROUND(AF31*(1+'I2 Maintenance'!$D$29),0) -> 354 | AH31: =ROUND(AG31*(1+'I2 Maintenance'!$D$29),0) -> 361 | AI31: =ROUND(AH31*(1+'I2 Maintenance'!$D$29),0) -> 368 | AJ31: =ROUND(AI31*(1+'I2 Maintenance'!$D$29),0) -> 375 | AK31: =ROUND(AJ31*(1+'I2 Maintenance'!$D$29),0) -> 383 | AL31: =ROUND(AK31*(1+'I2 Maintenance'!$D$29),0) -> 391 | AM31: =ROUND(AL31*(1+'I2 Maintenance'!$D$29),0) -> 399 | AN31: =ROUND(AM31*(1+'I2 Maintenance'!$D$29),0) -> 407 | AO31: =ROUND(AN31*(1+'I2 Maintenance'!$D$29),0) -> 415 | AP31: =ROUND(AO31*(1+'I2 Maintenance'!$D$29),0) -> 423 | AQ31: =ROUND(AP31*(1+'I2 Maintenance'!$D$29),0) -> 431 | AR31: =ROUND(AQ31*(1+'I2 Maintenance'!$D$29),0) -> 440
B32: HCV2 | D32: =INDEX('I2 Maintenance'!$D$19:$G$24,MATCH('C2 Maintenance'!$B32,'I2 Maintenance'!$B$19:$B$24,0),MATCH('I2 Maintenance'!$D$15,'I2 Maintenance'!$D$17:$G$17,0)) -> 200 | E32: =ROUND(D32*(1+'I2 Maintenance'!$D$29),0) -> 204 | F32: =ROUND(E32*(1+'I2 Maintenance'!$D$29),0) -> 208 | G32: =ROUND(F32*(1+'I2 Maintenance'!$D$29),0) -> 212 | H32: =ROUND(G32*(1+'I2 Maintenance'!$D$29),0) -> 216 | I32: =ROUND(H32*(1+'I2 Maintenance'!$D$29),0) -> 220 | J32: =ROUND(I32*(1+'I2 Maintenance'!$D$29),0) -> 224 | K32: =ROUND(J32*(1+'I2 Maintenance'!$D$29),0) -> 228 | L32: =ROUND(K32*(1+'I2 Maintenance'!$D$29),0) -> 233 | M32: =ROUND(L32*(1+'I2 Maintenance'!$D$29),0) -> 238 | N32: =ROUND(M32*(1+'I2 Maintenance'!$D$29),0) -> 243 | O32: =ROUND(N32*(1+'I2 Maintenance'!$D$29),0) -> 248 | P32: =ROUND(O32*(1+'I2 Maintenance'!$D$29),0) -> 253 | Q32: =ROUND(P32*(1+'I2 Maintenance'!$D$29),0) -> 258 | R32: =ROUND(Q32*(1+'I2 Maintenance'!$D$29),0) -> 263 | S32: =ROUND(R32*(1+'I2 Maintenance'!$D$29),0) -> 268 | T32: =ROUND(S32*(1+'I2 Maintenance'!$D$29),0) -> 273 | U32: =ROUND(T32*(1+'I2 Maintenance'!$D$29),0) -> 278 | V32: =ROUND(U32*(1+'I2 Maintenance'!$D$29),0) -> 284 | W32: =ROUND(V32*(1+'I2 Maintenance'!$D$29),0) -> 290 | X32: =ROUND(W32*(1+'I2 Maintenance'!$D$29),0) -> 296 | Y32: =ROUND(X32*(1+'I2 Maintenance'!$D$29),0) -> 302 | Z32: =ROUND(Y32*(1+'I2 Maintenance'!$D$29),0) -> 308 | AA32: =ROUND(Z32*(1+'I2 Maintenance'!$D$29),0) -> 314 | AB32: =ROUND(AA32*(1+'I2 Maintenance'!$D$29),0) -> 320 | AC32: =ROUND(AB32*(1+'I2 Maintenance'!$D$29),0) -> 326 | AD32: =ROUND(AC32*(1+'I2 Maintenance'!$D$29),0) -> 333 | AE32: =ROUND(AD32*(1+'I2 Maintenance'!$D$29),0) -> 340 | AF32: =ROUND(AE32*(1+'I2 Maintenance'!$D$29),0) -> 347 | AG32: =ROUND(AF32*(1+'I2 Maintenance'!$D$29),0) -> 354 | AH32: =ROUND(AG32*(1+'I2 Maintenance'!$D$29),0) -> 361 | AI32: =ROUND(AH32*(1+'I2 Maintenance'!$D$29),0) -> 368 | AJ32: =ROUND(AI32*(1+'I2 Maintenance'!$D$29),0) -> 375 | AK32: =ROUND(AJ32*(1+'I2 Maintenance'!$D$29),0) -> 383 | AL32: =ROUND(AK32*(1+'I2 Maintenance'!$D$29),0) -> 391 | AM32: =ROUND(AL32*(1+'I2 Maintenance'!$D$29),0) -> 399 | AN32: =ROUND(AM32*(1+'I2 Maintenance'!$D$29),0) -> 407 | AO32: =ROUND(AN32*(1+'I2 Maintenance'!$D$29),0) -> 415 | AP32: =ROUND(AO32*(1+'I2 Maintenance'!$D$29),0) -> 423 | AQ32: =ROUND(AP32*(1+'I2 Maintenance'!$D$29),0) -> 431 | AR32: =ROUND(AQ32*(1+'I2 Maintenance'!$D$29),0) -> 440
B33: Bus | D33: =INDEX('I2 Maintenance'!$D$19:$G$24,MATCH('C2 Maintenance'!$B33,'I2 Maintenance'!$B$19:$B$24,0),MATCH('I2 Maintenance'!$D$15,'I2 Maintenance'!$D$17:$G$17,0)) -> 50 | E33: =ROUND(D33*(1+'I2 Maintenance'!$D$29),0) -> 51 | F33: =ROUND(E33*(1+'I2 Maintenance'!$D$29),0) -> 52 | G33: =ROUND(F33*(1+'I2 Maintenance'!$D$29),0) -> 53 | H33: =ROUND(G33*(1+'I2 Maintenance'!$D$29),0) -> 54 | I33: =ROUND(H33*(1+'I2 Maintenance'!$D$29),0) -> 55 | J33: =ROUND(I33*(1+'I2 Maintenance'!$D$29),0) -> 56 | K33: =ROUND(J33*(1+'I2 Maintenance'!$D$29),0) -> 57 | L33: =ROUND(K33*(1+'I2 Maintenance'!$D$29),0) -> 58 | M33: =ROUND(L33*(1+'I2 Maintenance'!$D$29),0) -> 59 | N33: =ROUND(M33*(1+'I2 Maintenance'!$D$29),0) -> 60 | O33: =ROUND(N33*(1+'I2 Maintenance'!$D$29),0) -> 61 | P33: =ROUND(O33*(1+'I2 Maintenance'!$D$29),0) -> 62 | Q33: =ROUND(P33*(1+'I2 Maintenance'!$D$29),0) -> 63 | R33: =ROUND(Q33*(1+'I2 Maintenance'!$D$29),0) -> 64 | S33: =ROUND(R33*(1+'I2 Maintenance'!$D$29),0) -> 65 | T33: =ROUND(S33*(1+'I2 Maintenance'!$D$29),0) -> 66 | U33: =ROUND(T33*(1+'I2 Maintenance'!$D$29),0) -> 67 | V33: =ROUND(U33*(1+'I2 Maintenance'!$D$29),0) -> 68 | W33: =ROUND(V33*(1+'I2 Maintenance'!$D$29),0) -> 69 | X33: =ROUND(W33*(1+'I2 Maintenance'!$D$29),0) -> 70 | Y33: =ROUND(X33*(1+'I2 Maintenance'!$D$29),0) -> 71 | Z33: =ROUND(Y33*(1+'I2 Maintenance'!$D$29),0) -> 72 | AA33: =ROUND(Z33*(1+'I2 Maintenance'!$D$29),0) -> 73 | AB33: =ROUND(AA33*(1+'I2 Maintenance'!$D$29),0) -> 74 | AC33: =ROUND(AB33*(1+'I2 Maintenance'!$D$29),0) -> 75 | AD33: =ROUND(AC33*(1+'I2 Maintenance'!$D$29),0) -> 77 | AE33: =ROUND(AD33*(1+'I2 Maintenance'!$D$29),0) -> 79 | AF33: =ROUND(AE33*(1+'I2 Maintenance'!$D$29),0) -> 81 | AG33: =ROUND(AF33*(1+'I2 Maintenance'!$D$29),0) -> 83 | AH33: =ROUND(AG33*(1+'I2 Maintenance'!$D$29),0) -> 85 | AI33: =ROUND(AH33*(1+'I2 Maintenance'!$D$29),0) -> 87 | AJ33: =ROUND(AI33*(1+'I2 Maintenance'!$D$29),0) -> 89 | AK33: =ROUND(AJ33*(1+'I2 Maintenance'!$D$29),0) -> 91 | AL33: =ROUND(AK33*(1+'I2 Maintenance'!$D$29),0) -> 93 | AM33: =ROUND(AL33*(1+'I2 Maintenance'!$D$29),0) -> 95 | AN33: =ROUND(AM33*(1+'I2 Maintenance'!$D$29),0) -> 97 | AO33: =ROUND(AN33*(1+'I2 Maintenance'!$D$29),0) -> 99 | AP33: =ROUND(AO33*(1+'I2 Maintenance'!$D$29),0) -> 101 | AQ33: =ROUND(AP33*(1+'I2 Maintenance'!$D$29),0) -> 103 | AR33: =ROUND(AQ33*(1+'I2 Maintenance'!$D$29),0) -> 105
B34: ESA per day/lane | D34: =SUMPRODUCT('I2 Maintenance'!$D$41:$D$46,D28:D33) -> 738 | E34: =SUMPRODUCT('I2 Maintenance'!$D$41:$D$46,E28:E33) -> 752.76 | F34: =SUMPRODUCT('I2 Maintenance'!$D$41:$D$46,F28:F33) -> 767.52 | G34: =SUMPRODUCT('I2 Maintenance'!$D$41:$D$46,G28:G33) -> 782.28 | H34: =SUMPRODUCT('I2 Maintenance'!$D$41:$D$46,H28:H33) -> 797.39 | I34: =SUMPRODUCT('I2 Maintenance'!$D$41:$D$46,I28:I33) -> 812.5 | J34: =SUMPRODUCT('I2 Maintenance'!$D$41:$D$46,J28:J33) -> 827.61 | K34: =SUMPRODUCT('I2 Maintenance'!$D$41:$D$46,K28:K33) -> 842.72 | L34: =SUMPRODUCT('I2 Maintenance'!$D$41:$D$46,L28:L33) -> 860.52 | M34: =SUMPRODUCT('I2 Maintenance'!$D$41:$D$46,M28:M33) -> 878.67 | N34: =SUMPRODUCT('I2 Maintenance'!$D$41:$D$46,N28:N33) -> 896.82 | O34: =SUMPRODUCT('I2 Maintenance'!$D$41:$D$46,O28:O33) -> 914.97 | P34: =SUMPRODUCT('I2 Maintenance'!$D$41:$D$46,P28:P33) -> 933.12 | Q34: =SUMPRODUCT('I2 Maintenance'!$D$41:$D$46,Q28:Q33) -> 951.62 | R34: =SUMPRODUCT('I2 Maintenance'!$D$41:$D$46,R28:R33) -> 970.12 | S34: =SUMPRODUCT('I2 Maintenance'!$D$41:$D$46,S28:S33) -> 988.62 | T34: =SUMPRODUCT('I2 Maintenance'!$D$41:$D$46,T28:T33) -> 1007.12 | U34: =SUMPRODUCT('I2 Maintenance'!$D$41:$D$46,U28:U33) -> 1025.97 | V34: =SUMPRODUCT('I2 Maintenance'!$D$41:$D$46,V28:V33) -> 1047.51 | W34: =SUMPRODUCT('I2 Maintenance'!$D$41:$D$46,W28:W33) -> 1069.05 | X34: =SUMPRODUCT('I2 Maintenance'!$D$41:$D$46,X28:X33) -> 1090.94 | Y34: =SUMPRODUCT('I2 Maintenance'!$D$41:$D$46,Y28:Y33) -> 1112.83 | Z34: =SUMPRODUCT('I2 Maintenance'!$D$41:$D$46,Z28:Z33) -> 1134.72 | AA34: =SUMPRODUCT('I2 Maintenance'!$D$41:$D$46,AA28:AA33) -> 1156.61 | AB34: =SUMPRODUCT('I2 Maintenance'!$D$41:$D$46,AB28:AB33) -> 1178.85 | AC34: =SUMPRODUCT('I2 Maintenance'!$D$41:$D$46,AC28:AC33) -> 1201.09 | AD34: =SUMPRODUCT('I2 Maintenance'!$D$41:$D$46,AD28:AD33) -> 1226.52 | AE34: =SUMPRODUCT('I2 Maintenance'!$D$41:$D$46,AE28:AE33) -> 1252.3 | AF34: =SUMPRODUCT('I2 Maintenance'!$D$41:$D$46,AF28:AF33) -> 1278.08 | AG34: =SUMPRODUCT('I2 Maintenance'!$D$41:$D$46,AG28:AG33) -> 1303.86 | AH34: =SUMPRODUCT('I2 Maintenance'!$D$41:$D$46,AH28:AH33) -> 1329.99 | AI34: =SUMPRODUCT('I2 Maintenance'!$D$41:$D$46,AI28:AI33) -> 1356.12 | AJ34: =SUMPRODUCT('I2 Maintenance'!$D$41:$D$46,AJ28:AJ33) -> 1382.25 | AK34: =SUMPRODUCT('I2 Maintenance'!$D$41:$D$46,AK28:AK33) -> 1411.42 | AL34: =SUMPRODUCT('I2 Maintenance'!$D$41:$D$46,AL28:AL33) -> 1440.59 | AM34: =SUMPRODUCT('I2 Maintenance'!$D$41:$D$46,AM28:AM33) -> 1470.11 | AN34: =SUMPRODUCT('I2 Maintenance'!$D$41:$D$46,AN28:AN33) -> 1499.63 | AO34: =SUMPRODUCT('I2 Maintenance'!$D$41:$D$46,AO28:AO33) -> 1529.15 | AP34: =SUMPRODUCT('I2 Maintenance'!$D$41:$D$46,AP28:AP33) -> 1559.02 | AQ34: =SUMPRODUCT('I2 Maintenance'!$D$41:$D$46,AQ28:AQ33) -> 1588.89 | AR34: =SUMPRODUCT('I2 Maintenance'!$D$41:$D$46,AR28:AR33) -> 1621.8
B36: IRI without intervention | D36: 0 | E36: 1 | F36: 2 | G36: 3 | H36: 4 | I36: 5 | J36: 6 | K36: 7 | L36: 8 | M36: 9 | N36: 10 | O36: 11 | P36: 12 | Q36: 13 | R36: 14 | S36: 15 | T36: 16 | U36: 17 | V36: 18 | W36: 19 | X36: 20 | Y36: 21 | Z36: 22 | AA36: 23 | AB36: 24 | AC36: 25 | AD36: 26 | AE36: 27 | AF36: 28 | AG36: 29 | AH36: 30 | AI36: 31 | AJ36: 32 | AK36: 33 | AL36: 34 | AM36: 35 | AN36: 36 | AO36: 37 | AP36: 38 | AQ36: 39 | AR36: 40
B37: IRI over time | D37: ='I2 Maintenance'!$D$32 -> 1.5 | E37: =+D37+('I2 Maintenance'!$D$38*D37+((0.2175*((1+INDEX('I2 Maintenance'!$D$25:$G$25,1,MATCH('I2 Maintenance'!$D$15,'I2 Maintenance'!$D$17:$G$17,0)))^(-4.99))*SUM($E$34:E$34)*(1+'I2 Maintenance'!$D$38))))*EXP('I2 Maintenance'!$D$38) -> 1.530561538 | F37: =+E37+('I2 Maintenance'!$D$38*E37+((0.2175*((1+INDEX('I2 Maintenance'!$D$25:$G$25,1,MATCH('I2 Maintenance'!$D$15,'I2 Maintenance'!$D$17:$G$17,0)))^(-4.99))*SUM($E$34:F$34)*(1+'I2 Maintenance'!$D$38))))*EXP('I2 Maintenance'!$D$38) -> 1.568997887 | G37: =+F37+('I2 Maintenance'!$D$38*F37+((0.2175*((1+INDEX('I2 Maintenance'!$D$25:$G$25,1,MATCH('I2 Maintenance'!$D$15,'I2 Maintenance'!$D$17:$G$17,0)))^(-4.99))*SUM($E$34:G$34)*(1+'I2 Maintenance'!$D$38))))*EXP('I2 Maintenance'!$D$38) -> 1.615573698 | H37: =+G37+('I2 Maintenance'!$D$38*G37+((0.2175*((1+INDEX('I2 Maintenance'!$D$25:$G$25,1,MATCH('I2 Maintenance'!$D$15,'I2 Maintenance'!$D$17:$G$17,0)))^(-4.99))*SUM($E$34:H$34)*(1+'I2 Maintenance'!$D$38))))*EXP('I2 Maintenance'!$D$38) -> 1.670561106 | I37: =+H37+('I2 Maintenance'!$D$38*H37+((0.2175*((1+INDEX('I2 Maintenance'!$D$25:$G$25,1,MATCH('I2 Maintenance'!$D$15,'I2 Maintenance'!$D$17:$G$17,0)))^(-4.99))*SUM($E$34:I$34)*(1+'I2 Maintenance'!$D$38))))*EXP('I2 Maintenance'!$D$38) -> 1.734236476 | J37: =+I37+('I2 Maintenance'!$D$38*I37+((0.2175*((1+INDEX('I2 Maintenance'!$D$25:$G$25,1,MATCH('I2 Maintenance'!$D$15,'I2 Maintenance'!$D$17:$G$17,0)))^(-4.99))*SUM($E$34:J$34)*(1+'I2 Maintenance'!$D$38))))*EXP('I2 Maintenance'!$D$38) -> 1.806880466 | K37: =+J37+('I2 Maintenance'!$D$38*J37+((0.2175*((1+INDEX('I2 Maintenance'!$D$25:$G$25,1,MATCH('I2 Maintenance'!$D$15,'I2 Maintenance'!$D$17:$G$17,0)))^(-4.99))*SUM($E$34:K$34)*(1+'I2 Maintenance'!$D$38))))*EXP('I2 Maintenance'!$D$38) -> 1.888778093 | L37: =+K37+('I2 Maintenance'!$D$38*K37+((0.2175*((1+INDEX('I2 Maintenance'!$D$25:$G$25,1,MATCH('I2 Maintenance'!$D$15,'I2 Maintenance'!$D$17:$G$17,0)))^(-4.99))*SUM($E$34:L$34)*(1+'I2 Maintenance'!$D$38))))*EXP('I2 Maintenance'!$D$38) -> 1.980244739 | M37: =+L37+('I2 Maintenance'!$D$38*L37+((0.2175*((1+INDEX('I2 Maintenance'!$D$25:$G$25,1,MATCH('I2 Maintenance'!$D$15,'I2 Maintenance'!$D$17:$G$17,0)))^(-4.99))*SUM($E$34:M$34)*(1+'I2 Maintenance'!$D$38))))*EXP('I2 Maintenance'!$D$38) -> 2.081604059 | N37: =+M37+('I2 Maintenance'!$D$38*M37+((0.2175*((1+INDEX('I2 Maintenance'!$D$25:$G$25,1,MATCH('I2 Maintenance'!$D$15,'I2 Maintenance'!$D$17:$G$17,0)))^(-4.99))*SUM($E$34:N$34)*(1+'I2 Maintenance'!$D$38))))*EXP('I2 Maintenance'!$D$38) -> 2.193184737 | O37: =+N37+('I2 Maintenance'!$D$38*N37+((0.2175*((1+INDEX('I2 Maintenance'!$D$25:$G$25,1,MATCH('I2 Maintenance'!$D$15,'I2 Maintenance'!$D$17:$G$17,0)))^(-4.99))*SUM($E$34:O$34)*(1+'I2 Maintenance'!$D$38))))*EXP('I2 Maintenance'!$D$38) -> 2.315320564 | P37: =+O37+('I2 Maintenance'!$D$38*O37+((0.2175*((1+INDEX('I2 Maintenance'!$D$25:$G$25,1,MATCH('I2 Maintenance'!$D$15,'I2 Maintenance'!$D$17:$G$17,0)))^(-4.99))*SUM($E$34:P$34)*(1+'I2 Maintenance'!$D$38))))*EXP('I2 Maintenance'!$D$38) -> 2.448350516 | Q37: =+P37+('I2 Maintenance'!$D$38*P37+((0.2175*((1+INDEX('I2 Maintenance'!$D$25:$G$25,1,MATCH('I2 Maintenance'!$D$15,'I2 Maintenance'!$D$17:$G$17,0)))^(-4.99))*SUM($E$34:Q$34)*(1+'I2 Maintenance'!$D$38))))*EXP('I2 Maintenance'!$D$38) -> 2.592622209 | R37: =+Q37+('I2 Maintenance'!$D$38*Q37+((0.2175*((1+INDEX('I2 Maintenance'!$D$25:$G$25,1,MATCH('I2 Maintenance'!$D$15,'I2 Maintenance'!$D$17:$G$17,0)))^(-4.99))*SUM($E$34:R$34)*(1+'I2 Maintenance'!$D$38))))*EXP('I2 Maintenance'!$D$38) -> 2.748488661 | S37: =+R37+('I2 Maintenance'!$D$38*R37+((0.2175*((1+INDEX('I2 Maintenance'!$D$25:$G$25,1,MATCH('I2 Maintenance'!$D$15,'I2 Maintenance'!$D$17:$G$17,0)))^(-4.99))*SUM($E$34:S$34)*(1+'I2 Maintenance'!$D$38))))*EXP('I2 Maintenance'!$D$38) -> 2.916308374 | T37: =+S37+('I2 Maintenance'!$D$38*S37+((0.2175*((1+INDEX('I2 Maintenance'!$D$25:$G$25,1,MATCH('I2 Maintenance'!$D$15,'I2 Maintenance'!$D$17:$G$17,0)))^(-4.99))*SUM($E$34:T$34)*(1+'I2 Maintenance'!$D$38))))*EXP('I2 Maintenance'!$D$38) -> 3.096445419 | U37: =+T37+('I2 Maintenance'!$D$38*T37+((0.2175*((1+INDEX('I2 Maintenance'!$D$25:$G$25,1,MATCH('I2 Maintenance'!$D$15,'I2 Maintenance'!$D$17:$G$17,0)))^(-4.99))*SUM($E$34:U$34)*(1+'I2 Maintenance'!$D$38))))*EXP('I2 Maintenance'!$D$38) -> 3.289272899 | V37: =+U37+('I2 Maintenance'!$D$38*U37+((0.2175*((1+INDEX('I2 Maintenance'!$D$25:$G$25,1,MATCH('I2 Maintenance'!$D$15,'I2 Maintenance'!$D$17:$G$17,0)))^(-4.99))*SUM($E$34:V$34)*(1+'I2 Maintenance'!$D$38))))*EXP('I2 Maintenance'!$D$38) -> 3.495195648 | W37: =+V37+('I2 Maintenance'!$D$38*V37+((0.2175*((1+INDEX('I2 Maintenance'!$D$25:$G$25,1,MATCH('I2 Maintenance'!$D$15,'I2 Maintenance'!$D$17:$G$17,0)))^(-4.99))*SUM($E$34:W$34)*(1+'I2 Maintenance'!$D$38))))*EXP('I2 Maintenance'!$D$38) -> 3.714624789 | X37: =+W37+('I2 Maintenance'!$D$38*W37+((0.2175*((1+INDEX('I2 Maintenance'!$D$25:$G$25,1,MATCH('I2 Maintenance'!$D$15,'I2 Maintenance'!$D$17:$G$17,0)))^(-4.99))*SUM($E$34:X$34)*(1+'I2 Maintenance'!$D$38))))*EXP('I2 Maintenance'!$D$38) -> 3.947981207 | Y37: =+X37+('I2 Maintenance'!$D$38*X37+((0.2175*((1+INDEX('I2 Maintenance'!$D$25:$G$25,1,MATCH('I2 Maintenance'!$D$15,'I2 Maintenance'!$D$17:$G$17,0)))^(-4.99))*SUM($E$34:Y$34)*(1+'I2 Maintenance'!$D$38))))*EXP('I2 Maintenance'!$D$38) -> 4.195692327 | Z37: =+Y37+('I2 Maintenance'!$D$38*Y37+((0.2175*((1+INDEX('I2 Maintenance'!$D$25:$G$25,1,MATCH('I2 Maintenance'!$D$15,'I2 Maintenance'!$D$17:$G$17,0)))^(-4.99))*SUM($E$34:Z$34)*(1+'I2 Maintenance'!$D$38))))*EXP('I2 Maintenance'!$D$38) -> 4.458192214 | AA37: =+Z37+('I2 Maintenance'!$D$38*Z37+((0.2175*((1+INDEX('I2 Maintenance'!$D$25:$G$25,1,MATCH('I2 Maintenance'!$D$15,'I2 Maintenance'!$D$17:$G$17,0)))^(-4.99))*SUM($E$34:AA$34)*(1+'I2 Maintenance'!$D$38))))*EXP('I2 Maintenance'!$D$38) -> 4.735921675 | AB37: =+AA37+('I2 Maintenance'!$D$38*AA37+((0.2175*((1+INDEX('I2 Maintenance'!$D$25:$G$25,1,MATCH('I2 Maintenance'!$D$15,'I2 Maintenance'!$D$17:$G$17,0)))^(-4.99))*SUM($E$34:AB$34)*(1+'I2 Maintenance'!$D$38))))*EXP('I2 Maintenance'!$D$38) -> 5.029331741 | AC37: =+AB37+('I2 Maintenance'!$D$38*AB37+((0.2175*((1+INDEX('I2 Maintenance'!$D$25:$G$25,1,MATCH('I2 Maintenance'!$D$15,'I2 Maintenance'!$D$17:$G$17,0)))^(-4.99))*SUM($E$34:AC$34)*(1+'I2 Maintenance'!$D$38))))*EXP('I2 Maintenance'!$D$38) -> 5.338880451 | AD37: =+AC37+('I2 Maintenance'!$D$38*AC37+((0.2175*((1+INDEX('I2 Maintenance'!$D$25:$G$25,1,MATCH('I2 Maintenance'!$D$15,'I2 Maintenance'!$D$17:$G$17,0)))^(-4.99))*SUM($E$34:AD$34)*(1+'I2 Maintenance'!$D$38))))*EXP('I2 Maintenance'!$D$38) -> 5.665063715 | AE37: =+AD37+('I2 Maintenance'!$D$38*AD37+((0.2175*((1+INDEX('I2 Maintenance'!$D$25:$G$25,1,MATCH('I2 Maintenance'!$D$15,'I2 Maintenance'!$D$17:$G$17,0)))^(-4.99))*SUM($E$34:AE$34)*(1+'I2 Maintenance'!$D$38))))*EXP('I2 Maintenance'!$D$38) -> 6.008388522 | AF37: =+AE37+('I2 Maintenance'!$D$38*AE37+((0.2175*((1+INDEX('I2 Maintenance'!$D$25:$G$25,1,MATCH('I2 Maintenance'!$D$15,'I2 Maintenance'!$D$17:$G$17,0)))^(-4.99))*SUM($E$34:AF$34)*(1+'I2 Maintenance'!$D$38))))*EXP('I2 Maintenance'!$D$38) -> 6.369369738 | AG37: =+AF37+('I2 Maintenance'!$D$38*AF37+((0.2175*((1+INDEX('I2 Maintenance'!$D$25:$G$25,1,MATCH('I2 Maintenance'!$D$15,'I2 Maintenance'!$D$17:$G$17,0)))^(-4.99))*SUM($E$34:AG$34)*(1+'I2 Maintenance'!$D$38))))*EXP('I2 Maintenance'!$D$38) -> 6.748530229 | AH37: =+AG37+('I2 Maintenance'!$D$38*AG37+((0.2175*((1+INDEX('I2 Maintenance'!$D$25:$G$25,1,MATCH('I2 Maintenance'!$D$15,'I2 Maintenance'!$D$17:$G$17,0)))^(-4.99))*SUM($E$34:AH$34)*(1+'I2 Maintenance'!$D$38))))*EXP('I2 Maintenance'!$D$38) -> 7.146404356 | AI37: =+AH37+('I2 Maintenance'!$D$38*AH37+((0.2175*((1+INDEX('I2 Maintenance'!$D$25:$G$25,1,MATCH('I2 Maintenance'!$D$15,'I2 Maintenance'!$D$17:$G$17,0)))^(-4.99))*SUM($E$34:AI$34)*(1+'I2 Maintenance'!$D$38))))*EXP('I2 Maintenance'!$D$38) -> 7.563534783 | AJ37: =+AI37+('I2 Maintenance'!$D$38*AI37+((0.2175*((1+INDEX('I2 Maintenance'!$D$25:$G$25,1,MATCH('I2 Maintenance'!$D$15,'I2 Maintenance'!$D$17:$G$17,0)))^(-4.99))*SUM($E$34:AJ$34)*(1+'I2 Maintenance'!$D$38))))*EXP('I2 Maintenance'!$D$38) -> 8.000472607 | AK37: =+AJ37+('I2 Maintenance'!$D$38*AJ37+((0.2175*((1+INDEX('I2 Maintenance'!$D$25:$G$25,1,MATCH('I2 Maintenance'!$D$15,'I2 Maintenance'!$D$17:$G$17,0)))^(-4.99))*SUM($E$34:AK$34)*(1+'I2 Maintenance'!$D$38))))*EXP('I2 Maintenance'!$D$38) -> 8.457806793 | AL37: =+AK37+('I2 Maintenance'!$D$38*AK37+((0.2175*((1+INDEX('I2 Maintenance'!$D$25:$G$25,1,MATCH('I2 Maintenance'!$D$15,'I2 Maintenance'!$D$17:$G$17,0)))^(-4.99))*SUM($E$34:AL$34)*(1+'I2 Maintenance'!$D$38))))*EXP('I2 Maintenance'!$D$38) -> 8.936135458 | AM37: =+AL37+('I2 Maintenance'!$D$38*AL37+((0.2175*((1+INDEX('I2 Maintenance'!$D$25:$G$25,1,MATCH('I2 Maintenance'!$D$15,'I2 Maintenance'!$D$17:$G$17,0)))^(-4.99))*SUM($E$34:AM$34)*(1+'I2 Maintenance'!$D$38))))*EXP('I2 Maintenance'!$D$38) -> 9.436069387 | AN37: =+AM37+('I2 Maintenance'!$D$38*AM37+((0.2175*((1+INDEX('I2 Maintenance'!$D$25:$G$25,1,MATCH('I2 Maintenance'!$D$15,'I2 Maintenance'!$D$17:$G$17,0)))^(-4.99))*SUM($E$34:AN$34)*(1+'I2 Maintenance'!$D$38))))*EXP('I2 Maintenance'!$D$38) -> 9.958228851 | AO37: =+AN37+('I2 Maintenance'!$D$38*AN37+((0.2175*((1+INDEX('I2 Maintenance'!$D$25:$G$25,1,MATCH('I2 Maintenance'!$D$15,'I2 Maintenance'!$D$17:$G$17,0)))^(-4.99))*SUM($E$34:AO$34)*(1+'I2 Maintenance'!$D$38))))*EXP('I2 Maintenance'!$D$38) -> 10.50324376 | AP37: =+AO37+('I2 Maintenance'!$D$38*AO37+((0.2175*((1+INDEX('I2 Maintenance'!$D$25:$G$25,1,MATCH('I2 Maintenance'!$D$15,'I2 Maintenance'!$D$17:$G$17,0)))^(-4.99))*SUM($E$34:AP$34)*(1+'I2 Maintenance'!$D$38))))*EXP('I2 Maintenance'!$D$38) -> 11.07175719 | AQ37: =+AP37+('I2 Maintenance'!$D$38*AP37+((0.2175*((1+INDEX('I2 Maintenance'!$D$25:$G$25,1,MATCH('I2 Maintenance'!$D$15,'I2 Maintenance'!$D$17:$G$17,0)))^(-4.99))*SUM($E$34:AQ$34)*(1+'I2 Maintenance'!$D$38))))*EXP('I2 Maintenance'!$D$38) -> 11.66442219 | AR37: =+AQ37+('I2 Maintenance'!$D$38*AQ37+((0.2175*((1+INDEX('I2 Maintenance'!$D$25:$G$25,1,MATCH('I2 Maintenance'!$D$15,'I2 Maintenance'!$D$17:$G$17,0)))^(-4.99))*SUM($E$34:AR$34)*(1+'I2 Maintenance'!$D$38))))*EXP('I2 Maintenance'!$D$38) -> 12.28193128
B38: Annual increase | E38: =E37-D37 -> 0.03056153777 | F38: =F37-E37 -> 0.0384363492 | G38: 0.04657581072 | H38: 0.05498740844 | I38: 0.06367537022 | J38: 0.07264398962 | K38: 0.08189762692 | L38: 0.09146664564 | M38: 0.10135932 | N38: 0.1115806783 | O38: 0.122135827 | P38: 0.1330299517 | Q38: 0.1442716933 | R38: 0.1558664522 | S38: 0.1678197131 | T38: 0.1801370454 | U38: 0.1928274799 | V38: 0.2059227486 | W38: 0.2194291409 | X38: 0.2333564185 | Y38: 0.2477111202 | Z38: 0.2624998865 | AA38: 0.2777294609 | AB38: 0.2934100663 | AC38: 0.3095487099 | AD38: 0.3261832639 | AE38: 0.3433248072 | AF38: 0.3609812164 | AG38: 0.3791604904 | AH38: 0.3978741269 | AI38: 0.4171304276 | AJ38: 0.4369378233 | AK38: 0.4573341859 | AL38: 0.4783286654 | AM38: 0.4999339286 | AN38: 0.5221594646 | AO38: 0.5450149099 | AP38: 0.5685134251 | AQ38: 0.592665001 | AR38: 0.6175090935
B40: IRI under different scenarios | D40: 0 | E40: 1 | F40: 2 | G40: 3 | H40: 4 | I40: 5 | J40: 6 | K40: 7 | L40: 8 | M40: 9 | N40: 10 | O40: 11 | P40: 12 | Q40: 13 | R40: 14 | S40: 15 | T40: 16 | U40: 17 | V40: 18 | W40: 19 | X40: 20 | Y40: 21 | Z40: 22 | AA40: 23 | AB40: 24 | AC40: 25 | AD40: 26 | AE40: 27 | AF40: 28 | AG40: 29 | AH40: 30 | AI40: 31 | AJ40: 32 | AK40: 33 | AL40: 34 | AM40: 35 | AN40: 36 | AO40: 37 | AP40: 38 | AQ40: 39 | AR40: 40
B41: Scenario 1 | D41: ='I2 Maintenance'!$D$32 -> 1.5 | E41: =IF(D45=1,'I2 Maintenance'!$E9,D41+E$38) -> 1.530561538 | F41: =IF(E45=1,'I2 Maintenance'!$E9,E41+F$38) -> 1.568997887 | G41: =IF(F45=1,'I2 Maintenance'!$E9,F41+G$38) -> 1.615573698 | H41: =IF(G45=1,'I2 Maintenance'!$E9,G41+H$38) -> 1.670561106 | I41: =IF(H45=1,'I2 Maintenance'!$E9,H41+I$38) -> 1.734236476 | J41: =IF(I45=1,'I2 Maintenance'!$E9,I41+J$38) -> 1.806880466 | K41: =IF(J45=1,'I2 Maintenance'!$E9,J41+K$38) -> 1.888778093 | L41: =IF(K45=1,'I2 Maintenance'!$E9,K41+L$38) -> 1.980244739 | M41: =IF(L45=1,'I2 Maintenance'!$E9,L41+M$38) -> 2.081604059 | N41: =IF(M45=1,'I2 Maintenance'!$E9,M41+N$38) -> 2.193184737 | O41: =IF(N45=1,'I2 Maintenance'!$E9,N41+O$38) -> 2.315320564 | P41: =IF(O45=1,'I2 Maintenance'!$E9,O41+P$38) -> 2.448350516 | Q41: =IF(P45=1,'I2 Maintenance'!$E9,P41+Q$38) -> 2.592622209 | R41: =IF(Q45=1,'I2 Maintenance'!$E9,Q41+R$38) -> 2.748488661 | S41: =IF(R45=1,'I2 Maintenance'!$E9,R41+S$38) -> 2.916308374 | T41: =IF(S45=1,'I2 Maintenance'!$E9,S41+T$38) -> 3.096445419 | U41: =IF(T45=1,'I2 Maintenance'!$E9,T41+U$38) -> 3.289272899 | V41: =IF(U45=1,'I2 Maintenance'!$E9,U41+V$38) -> 1.5 | W41: =IF(V45=1,'I2 Maintenance'!$E9,V41+W$38) -> 1.719429141 | X41: =IF(W45=1,'I2 Maintenance'!$E9,W41+X$38) -> 1.952785559 | Y41: =IF(X45=1,'I2 Maintenance'!$E9,X41+Y$38) -> 2.20049668 | Z41: =IF(Y45=1,'I2 Maintenance'!$E9,Y41+Z$38) -> 2.462996566 | AA41: =IF(Z45=1,'I2 Maintenance'!$E9,Z41+AA$38) -> 2.740726027 | AB41: =IF(AA45=1,'I2 Maintenance'!$E9,AA41+AB$38) -> 3.034136093 | AC41: =IF(AB45=1,'I2 Maintenance'!$E9,AB41+AC$38) -> 3.343684803 | AD41: =IF(AC45=1,'I2 Maintenance'!$E9,AC41+AD$38) -> 1.5 | AE41: =IF(AD45=1,'I2 Maintenance'!$E9,AD41+AE$38) -> 1.843324807 | AF41: =IF(AE45=1,'I2 Maintenance'!$E9,AE41+AF$38) -> 2.204306024 | AG41: =IF(AF45=1,'I2 Maintenance'!$E9,AF41+AG$38) -> 2.583466514 | AH41: =IF(AG45=1,'I2 Maintenance'!$E9,AG41+AH$38) -> 2.981340641 | AI41: =IF(AH45=1,'I2 Maintenance'!$E9,AH41+AI$38) -> 3.398471068 | AJ41: =IF(AI45=1,'I2 Maintenance'!$E9,AI41+AJ$38) -> 1.5 | AK41: =IF(AJ45=1,'I2 Maintenance'!$E9,AJ41+AK$38) -> 1.957334186 | AL41: =IF(AK45=1,'I2 Maintenance'!$E9,AK41+AL$38) -> 2.435662851 | AM41: =IF(AL45=1,'I2 Maintenance'!$E9,AL41+AM$38) -> 2.93559678 | AN41: =IF(AM45=1,'I2 Maintenance'!$E9,AM41+AN$38) -> 1.5 | AO41: =IF(AN45=1,'I2 Maintenance'!$E9,AN41+AO$38) -> 2.04501491 | AP41: =IF(AO45=1,'I2 Maintenance'!$E9,AO41+AP$38) -> 2.613528335 | AQ41: =IF(AP45=1,'I2 Maintenance'!$E9,AP41+AQ$38) -> 3.206193336 | AR41: =IF(AQ45=1,'I2 Maintenance'!$E9,AQ41+AR$38) -> 1.5
B42: Scenario 2 | D42: ='I2 Maintenance'!$D$32 -> 1.5 | E42: =IF(D46=1,'I2 Maintenance'!$E10,D42+E$38) -> 1.530561538 | F42: =IF(E46=1,'I2 Maintenance'!$E10,E42+F$38) -> 1.568997887 | G42: =IF(F46=1,'I2 Maintenance'!$E10,F42+G$38) -> 1.615573698 | H42: =IF(G46=1,'I2 Maintenance'!$E10,G42+H$38) -> 1.670561106 | I42: =IF(H46=1,'I2 Maintenance'!$E10,H42+I$38) -> 1.734236476 | J42: =IF(I46=1,'I2 Maintenance'!$E10,I42+J$38) -> 1.806880466 | K42: =IF(J46=1,'I2 Maintenance'!$E10,J42+K$38) -> 1.888778093 | L42: =IF(K46=1,'I2 Maintenance'!$E10,K42+L$38) -> 1.980244739 | M42: =IF(L46=1,'I2 Maintenance'!$E10,L42+M$38) -> 2.081604059 | N42: =IF(M46=1,'I2 Maintenance'!$E10,M42+N$38) -> 2.193184737 | O42: =IF(N46=1,'I2 Maintenance'!$E10,N42+O$38) -> 2.315320564 | P42: =IF(O46=1,'I2 Maintenance'!$E10,O42+P$38) -> 2.448350516 | Q42: =IF(P46=1,'I2 Maintenance'!$E10,P42+Q$38) -> 2.592622209 | R42: =IF(Q46=1,'I2 Maintenance'!$E10,Q42+R$38) -> 2.748488661 | S42: =IF(R46=1,'I2 Maintenance'!$E10,R42+S$38) -> 2.916308374 | T42: =IF(S46=1,'I2 Maintenance'!$E10,S42+T$38) -> 3.096445419 | U42: =IF(T46=1,'I2 Maintenance'!$E10,T42+U$38) -> 3.289272899 | V42: =IF(U46=1,'I2 Maintenance'!$E10,U42+V$38) -> 3.495195648 | W42: =IF(V46=1,'I2 Maintenance'!$E10,V42+W$38) -> 3.714624789 | X42: =IF(W46=1,'I2 Maintenance'!$E10,W42+X$38) -> 3.947981207 | Y42: =IF(X46=1,'I2 Maintenance'!$E10,X42+Y$38) -> 1.5 | Z42: =IF(Y46=1,'I2 Maintenance'!$E10,Y42+Z$38) -> 1.762499886 | AA42: =IF(Z46=1,'I2 Maintenance'!$E10,Z42+AA$38) -> 2.040229347 | AB42: =IF(AA46=1,'I2 Maintenance'!$E10,AA42+AB$38) -> 2.333639414 | AC42: =IF(AB46=1,'I2 Maintenance'!$E10,AB42+AC$38) -> 2.643188124 | AD42: =IF(AC46=1,'I2 Maintenance'!$E10,AC42+AD$38) -> 2.969371387 | AE42: =IF(AD46=1,'I2 Maintenance'!$E10,AD42+AE$38) -> 3.312696195 | AF42: =IF(AE46=1,'I2 Maintenance'!$E10,AE42+AF$38) -> 3.673677411 | AG42: =IF(AF46=1,'I2 Maintenance'!$E10,AF42+AG$38) -> 1.5 | AH42: =IF(AG46=1,'I2 Maintenance'!$E10,AG42+AH$38) -> 1.897874127 | AI42: =IF(AH46=1,'I2 Maintenance'!$E10,AH42+AI$38) -> 2.315004554 | AJ42: =IF(AI46=1,'I2 Maintenance'!$E10,AI42+AJ$38) -> 2.751942378 | AK42: =IF(AJ46=1,'I2 Maintenance'!$E10,AJ42+AK$38) -> 3.209276564 | AL42: =IF(AK46=1,'I2 Maintenance'!$E10,AK42+AL$38) -> 3.687605229 | AM42: =IF(AL46=1,'I2 Maintenance'!$E10,AL42+AM$38) -> 1.5 | AN42: =IF(AM46=1,'I2 Maintenance'!$E10,AM42+AN$38) -> 2.022159465 | AO42: =IF(AN46=1,'I2 Maintenance'!$E10,AN42+AO$38) -> 2.567174374 | AP42: =IF(AO46=1,'I2 Maintenance'!$E10,AO42+AP$38) -> 3.1356878 | AQ42: =IF(AP46=1,'I2 Maintenance'!$E10,AP42+AQ$38) -> 3.728352801 | AR42: =IF(AQ46=1,'I2 Maintenance'!$E10,AQ42+AR$38) -> 1.5
B44: Years with interventions | D44: 0 | E44: 1 | F44: 2 | G44: 3 | H44: 4 | I44: 5 | J44: 6 | K44: 7 | L44: 8 | M44: 9 | N44: 10 | O44: 11 | P44: 12 | Q44: 13 | R44: 14 | S44: 15 | T44: 16 | U44: 17 | V44: 18 | W44: 19 | X44: 20 | Y44: 21 | Z44: 22 | AA44: 23 | AB44: 24 | AC44: 25 | AD44: 26 | AE44: 27 | AF44: 28 | AG44: 29 | AH44: 30 | AI44: 31 | AJ44: 32 | AK44: 33 | AL44: 34 | AM44: 35 | AN44: 36 | AO44: 37 | AP44: 38 | AQ44: 39 | AR44: 40
B45: ="IRI "&'I2 Maintenance'!D9 -> IRI 3.4 | D45: =IF(D41+E$38>'I2 Maintenance'!$D9,1,0) -> 0 | E45: =IF(E41+F$38>'I2 Maintenance'!$D9,1,0) -> 0 | F45: =IF(F41+G$38>'I2 Maintenance'!$D9,1,0) -> 0 | G45: =IF(G41+H$38>'I2 Maintenance'!$D9,1,0) -> 0 | H45: =IF(H41+I$38>'I2 Maintenance'!$D9,1,0) -> 0 | I45: =IF(I41+J$38>'I2 Maintenance'!$D9,1,0) -> 0 | J45: =IF(J41+K$38>'I2 Maintenance'!$D9,1,0) -> 0 | K45: =IF(K41+L$38>'I2 Maintenance'!$D9,1,0) -> 0 | L45: =IF(L41+M$38>'I2 Maintenance'!$D9,1,0) -> 0 | M45: =IF(M41+N$38>'I2 Maintenance'!$D9,1,0) -> 0 | N45: =IF(N41+O$38>'I2 Maintenance'!$D9,1,0) -> 0 | O45: =IF(O41+P$38>'I2 Maintenance'!$D9,1,0) -> 0 | P45: =IF(P41+Q$38>'I2 Maintenance'!$D9,1,0) -> 0 | Q45: =IF(Q41+R$38>'I2 Maintenance'!$D9,1,0) -> 0 | R45: =IF(R41+S$38>'I2 Maintenance'!$D9,1,0) -> 0 | S45: =IF(S41+T$38>'I2 Maintenance'!$D9,1,0) -> 0 | T45: =IF(T41+U$38>'I2 Maintenance'!$D9,1,0) -> 0 | U45: =IF(U41+V$38>'I2 Maintenance'!$D9,1,0) -> 1 | V45: =IF(V41+W$38>'I2 Maintenance'!$D9,1,0) -> 0 | W45: =IF(W41+X$38>'I2 Maintenance'!$D9,1,0) -> 0 | X45: =IF(X41+Y$38>'I2 Maintenance'!$D9,1,0) -> 0 | Y45: =IF(Y41+Z$38>'I2 Maintenance'!$D9,1,0) -> 0 | Z45: =IF(Z41+AA$38>'I2 Maintenance'!$D9,1,0) -> 0 | AA45: =IF(AA41+AB$38>'I2 Maintenance'!$D9,1,0) -> 0 | AB45: =IF(AB41+AC$38>'I2 Maintenance'!$D9,1,0) -> 0 | AC45: =IF(AC41+AD$38>'I2 Maintenance'!$D9,1,0) -> 1 | AD45: =IF(AD41+AE$38>'I2 Maintenance'!$D9,1,0) -> 0 | AE45: =IF(AE41+AF$38>'I2 Maintenance'!$D9,1,0) -> 0 | AF45: =IF(AF41+AG$38>'I2 Maintenance'!$D9,1,0) -> 0 | AG45: =IF(AG41+AH$38>'I2 Maintenance'!$D9,1,0) -> 0 | AH45: =IF(AH41+AI$38>'I2 Maintenance'!$D9,1,0) -> 0 | AI45: =IF(AI41+AJ$38>'I2 Maintenance'!$D9,1,0) -> 1 | AJ45: =IF(AJ41+AK$38>'I2 Maintenance'!$D9,1,0) -> 0 | AK45: =IF(AK41+AL$38>'I2 Maintenance'!$D9,1,0) -> 0 | AL45: =IF(AL41+AM$38>'I2 Maintenance'!$D9,1,0) -> 0 | AM45: =IF(AM41+AN$38>'I2 Maintenance'!$D9,1,0) -> 1 | AN45: =IF(AN41+AO$38>'I2 Maintenance'!$D9,1,0) -> 0 | AO45: =IF(AO41+AP$38>'I2 Maintenance'!$D9,1,0) -> 0 | AP45: =IF(AP41+AQ$38>'I2 Maintenance'!$D9,1,0) -> 0 | AQ45: =IF(AQ41+AR$38>'I2 Maintenance'!$D9,1,0) -> 1 | AR45: =IF(AR41+AS$38>'I2 Maintenance'!$D9,1,0) -> 0
B46: ="IRI "&'I2 Maintenance'!D10 -> IRI 4 | D46: =IF(D42+E$38>'I2 Maintenance'!$D10,1,0) -> 0 | E46: =IF(E42+F$38>'I2 Maintenance'!$D10,1,0) -> 0 | F46: =IF(F42+G$38>'I2 Maintenance'!$D10,1,0) -> 0 | G46: =IF(G42+H$38>'I2 Maintenance'!$D10,1,0) -> 0 | H46: =IF(H42+I$38>'I2 Maintenance'!$D10,1,0) -> 0 | I46: =IF(I42+J$38>'I2 Maintenance'!$D10,1,0) -> 0 | J46: =IF(J42+K$38>'I2 Maintenance'!$D10,1,0) -> 0 | K46: =IF(K42+L$38>'I2 Maintenance'!$D10,1,0) -> 0 | L46: =IF(L42+M$38>'I2 Maintenance'!$D10,1,0) -> 0 | M46: =IF(M42+N$38>'I2 Maintenance'!$D10,1,0) -> 0 | N46: =IF(N42+O$38>'I2 Maintenance'!$D10,1,0) -> 0 | O46: =IF(O42+P$38>'I2 Maintenance'!$D10,1,0) -> 0 | P46: =IF(P42+Q$38>'I2 Maintenance'!$D10,1,0) -> 0 | Q46: =IF(Q42+R$38>'I2 Maintenance'!$D10,1,0) -> 0 | R46: =IF(R42+S$38>'I2 Maintenance'!$D10,1,0) -> 0 | S46: =IF(S42+T$38>'I2 Maintenance'!$D10,1,0) -> 0 | T46: =IF(T42+U$38>'I2 Maintenance'!$D10,1,0) -> 0 | U46: =IF(U42+V$38>'I2 Maintenance'!$D10,1,0) -> 0 | V46: =IF(V42+W$38>'I2 Maintenance'!$D10,1,0) -> 0 | W46: =IF(W42+X$38>'I2 Maintenance'!$D10,1,0) -> 0 | X46: =IF(X42+Y$38>'I2 Maintenance'!$D10,1,0) -> 1 | Y46: =IF(Y42+Z$38>'I2 Maintenance'!$D10,1,0) -> 0 | Z46: =IF(Z42+AA$38>'I2 Maintenance'!$D10,1,0) -> 0 | AA46: =IF(AA42+AB$38>'I2 Maintenance'!$D10,1,0) -> 0 | AB46: =IF(AB42+AC$38>'I2 Maintenance'!$D10,1,0) -> 0 | AC46: =IF(AC42+AD$38>'I2 Maintenance'!$D10,1,0) -> 0 | AD46: =IF(AD42+AE$38>'I2 Maintenance'!$D10,1,0) -> 0 | AE46: =IF(AE42+AF$38>'I2 Maintenance'!$D10,1,0) -> 0 | AF46: =IF(AF42+AG$38>'I2 Maintenance'!$D10,1,0) -> 1 | AG46: =IF(AG42+AH$38>'I2 Maintenance'!$D10,1,0) -> 0 | AH46: =IF(AH42+AI$38>'I2 Maintenance'!$D10,1,0) -> 0 | AI46: =IF(AI42+AJ$38>'I2 Maintenance'!$D10,1,0) -> 0 | AJ46: =IF(AJ42+AK$38>'I2 Maintenance'!$D10,1,0) -> 0 | AK46: =IF(AK42+AL$38>'I2 Maintenance'!$D10,1,0) -> 0 | AL46: =IF(AL42+AM$38>'I2 Maintenance'!$D10,1,0) -> 1 | AM46: =IF(AM42+AN$38>'I2 Maintenance'!$D10,1,0) -> 0 | AN46: =IF(AN42+AO$38>'I2 Maintenance'!$D10,1,0) -> 0 | AO46: =IF(AO42+AP$38>'I2 Maintenance'!$D10,1,0) -> 0 | AP46: =IF(AP42+AQ$38>'I2 Maintenance'!$D10,1,0) -> 0 | AQ46: =IF(AQ42+AR$38>'I2 Maintenance'!$D10,1,0) -> 1 | AR46: =IF(AR42+AS$38>'I2 Maintenance'!$D10,1,0) -> 0
B48: Road user costs per km | C48: PV | D48: 0 | E48: 1 | F48: 2 | G48: 3 | H48: 4 | I48: 5 | J48: 6 | K48: 7 | L48: 8 | M48: 9 | N48: 10 | O48: 11 | P48: 12 | Q48: 13 | R48: 14 | S48: 15 | T48: 16 | U48: 17 | V48: 18 | W48: 19 | X48: 20 | Y48: 21 | Z48: 22 | AA48: 23 | AB48: 24 | AC48: 25 | AD48: 26 | AE48: 27 | AF48: 28 | AG48: 29 | AH48: 30 | AI48: 31 | AJ48: 32 | AK48: 33 | AL48: 34 | AM48: 35 | AN48: 36 | AO48: 37 | AP48: 38 | AQ48: 39 | AR48: 40
B49: =B45 -> IRI 3.4 | C49: =D49+NPV('I0 Overall'!$C$7,$E49:$AR49) -> 117519.0003 | D49: =SUMPRODUCT(D$28:D$33,OFFSET($C$71:$C$76,0,IFERROR(MATCH(ROUND(D41,1),$C$66:$AQ$66,0)-1,0)))*365/100*'I2 Maintenance'!$D$35 -> 0 | E49: =SUMPRODUCT(E$28:E$33,OFFSET($C$71:$C$76,0,IFERROR(MATCH(ROUND(E41,1),$C$66:$AQ$66,0)-1,0)))*365/100*'I2 Maintenance'!$D$35 -> 0 | F49: =SUMPRODUCT(F$28:F$33,OFFSET($C$71:$C$76,0,IFERROR(MATCH(ROUND(F41,1),$C$66:$AQ$66,0)-1,0)))*365/100*'I2 Maintenance'!$D$35 -> 0 | G49: =SUMPRODUCT(G$28:G$33,OFFSET($C$71:$C$76,0,IFERROR(MATCH(ROUND(G41,1),$C$66:$AQ$66,0)-1,0)))*365/100*'I2 Maintenance'!$D$35 -> 0 | H49: =SUMPRODUCT(H$28:H$33,OFFSET($C$71:$C$76,0,IFERROR(MATCH(ROUND(H41,1),$C$66:$AQ$66,0)-1,0)))*365/100*'I2 Maintenance'!$D$35 -> 0 | I49: =SUMPRODUCT(I$28:I$33,OFFSET($C$71:$C$76,0,IFERROR(MATCH(ROUND(I41,1),$C$66:$AQ$66,0)-1,0)))*365/100*'I2 Maintenance'!$D$35 -> 0 | J49: =SUMPRODUCT(J$28:J$33,OFFSET($C$71:$C$76,0,IFERROR(MATCH(ROUND(J41,1),$C$66:$AQ$66,0)-1,0)))*365/100*'I2 Maintenance'!$D$35 -> 0 | K49: =SUMPRODUCT(K$28:K$33,OFFSET($C$71:$C$76,0,IFERROR(MATCH(ROUND(K41,1),$C$66:$AQ$66,0)-1,0)))*365/100*'I2 Maintenance'!$D$35 -> 0 | L49: =SUMPRODUCT(L$28:L$33,OFFSET($C$71:$C$76,0,IFERROR(MATCH(ROUND(L41,1),$C$66:$AQ$66,0)-1,0)))*365/100*'I2 Maintenance'!$D$35 -> 0 | M49: =SUMPRODUCT(M$28:M$33,OFFSET($C$71:$C$76,0,IFERROR(MATCH(ROUND(M41,1),$C$66:$AQ$66,0)-1,0)))*365/100*'I2 Maintenance'!$D$35 -> 0 | N49: =SUMPRODUCT(N$28:N$33,OFFSET($C$71:$C$76,0,IFERROR(MATCH(ROUND(N41,1),$C$66:$AQ$66,0)-1,0)))*365/100*'I2 Maintenance'!$D$35 -> 0 | O49: =SUMPRODUCT(O$28:O$33,OFFSET($C$71:$C$76,0,IFERROR(MATCH(ROUND(O41,1),$C$66:$AQ$66,0)-1,0)))*365/100*'I2 Maintenance'!$D$35 -> 0 | P49: =SUMPRODUCT(P$28:P$33,OFFSET($C$71:$C$76,0,IFERROR(MATCH(ROUND(P41,1),$C$66:$AQ$66,0)-1,0)))*365/100*'I2 Maintenance'!$D$35 -> 0 | Q49: =SUMPRODUCT(Q$28:Q$33,OFFSET($C$71:$C$76,0,IFERROR(MATCH(ROUND(Q41,1),$C$66:$AQ$66,0)-1,0)))*365/100*'I2 Maintenance'!$D$35 -> 5355.382504 | R49: =SUMPRODUCT(R$28:R$33,OFFSET($C$71:$C$76,0,IFERROR(MATCH(ROUND(R41,1),$C$66:$AQ$66,0)-1,0)))*365/100*'I2 Maintenance'!$D$35 -> 10924.22674 | S49: =SUMPRODUCT(S$28:S$33,OFFSET($C$71:$C$76,0,IFERROR(MATCH(ROUND(S41,1),$C$66:$AQ$66,0)-1,0)))*365/100*'I2 Maintenance'!$D$35 -> 22282.41415 | T49: =SUMPRODUCT(T$28:T$33,OFFSET($C$71:$C$76,0,IFERROR(MATCH(ROUND(T41,1),$C$66:$AQ$66,0)-1,0)))*365/100*'I2 Maintenance'!$D$35 -> 38296.58901 | U49: =SUMPRODUCT(U$28:U$33,OFFSET($C$71:$C$76,0,IFERROR(MATCH(ROUND(U41,1),$C$66:$AQ$66,0)-1,0)))*365/100*'I2 Maintenance'!$D$35 -> 59230.3531 | V49: =SUMPRODUCT(V$28:V$33,OFFSET($C$71:$C$76,0,IFERROR(MATCH(ROUND(V41,1),$C$66:$AQ$66,0)-1,0)))*365/100*'I2 Maintenance'!$D$35 -> 0 | W49: =SUMPRODUCT(W$28:W$33,OFFSET($C$71:$C$76,0,IFERROR(MATCH(ROUND(W41,1),$C$66:$AQ$66,0)-1,0)))*365/100*'I2 Maintenance'!$D$35 -> 0 | X49: =SUMPRODUCT(X$28:X$33,OFFSET($C$71:$C$76,0,IFERROR(MATCH(ROUND(X41,1),$C$66:$AQ$66,0)-1,0)))*365/100*'I2 Maintenance'!$D$35 -> 0 | Y49: =SUMPRODUCT(Y$28:Y$33,OFFSET($C$71:$C$76,0,IFERROR(MATCH(ROUND(Y41,1),$C$66:$AQ$66,0)-1,0)))*365/100*'I2 Maintenance'!$D$35 -> 0 | Z49: =SUMPRODUCT(Z$28:Z$33,OFFSET($C$71:$C$76,0,IFERROR(MATCH(ROUND(Z41,1),$C$66:$AQ$66,0)-1,0)))*365/100*'I2 Maintenance'!$D$35 -> 0 | AA49: =SUMPRODUCT(AA$28:AA$33,OFFSET($C$71:$C$76,0,IFERROR(MATCH(ROUND(AA41,1),$C$66:$AQ$66,0)-1,0)))*365/100*'I2 Maintenance'!$D$35 -> 13050.19418 | AB49: =SUMPRODUCT(AB$28:AB$33,OFFSET($C$71:$C$76,0,IFERROR(MATCH(ROUND(AB41,1),$C$66:$AQ$66,0)-1,0)))*365/100*'I2 Maintenance'!$D$35 -> 33275.3269 | AC49: =SUMPRODUCT(AC$28:AC$33,OFFSET($C$71:$C$76,0,IFERROR(MATCH(ROUND(AC41,1),$C$66:$AQ$66,0)-1,0)))*365/100*'I2 Maintenance'!$D$35 -> 69381.88062 | AD49: =SUMPRODUCT(AD$28:AD$33,OFFSET($C$71:$C$76,0,IFERROR(MATCH(ROUND(AD41,1),$C$66:$AQ$66,0)-1,0)))*365/100*'I2 Maintenance'!$D$35 -> 0 | AE49: =SUMPRODUCT(AE$28:AE$33,OFFSET($C$71:$C$76,0,IFERROR(MATCH(ROUND(AE41,1),$C$66:$AQ$66,0)-1,0)))*365/100*'I2 Maintenance'!$D$35 -> 0 | AF49: =SUMPRODUCT(AF$28:AF$33,OFFSET($C$71:$C$76,0,IFERROR(MATCH(ROUND(AF41,1),$C$66:$AQ$66,0)-1,0)))*365/100*'I2 Maintenance'!$D$35 -> 0 | AG49: =SUMPRODUCT(AG$28:AG$33,OFFSET($C$71:$C$76,0,IFERROR(MATCH(ROUND(AG41,1),$C$66:$AQ$66,0)-1,0)))*365/100*'I2 Maintenance'!$D$35 -> 7349.182533 | AH49: =SUMPRODUCT(AH$28:AH$33,OFFSET($C$71:$C$76,0,IFERROR(MATCH(ROUND(AH41,1),$C$66:$AQ$66,0)-1,0)))*365/100*'I2 Maintenance'!$D$35 -> 37482.61954 | AI49: =SUMPRODUCT(AI$28:AI$33,OFFSET($C$71:$C$76,0,IFERROR(MATCH(ROUND(AI41,1),$C$66:$AQ$66,0)-1,0)))*365/100*'I2 Maintenance'!$D$35 -> 91478.76192 | AJ49: =SUMPRODUCT(AJ$28:AJ$33,OFFSET($C$71:$C$76,0,IFERROR(MATCH(ROUND(AJ41,1),$C$66:$AQ$66,0)-1,0)))*365/100*'I2 Maintenance'!$D$35 -> 0 | AK49: =SUMPRODUCT(AK$28:AK$33,OFFSET($C$71:$C$76,0,IFERROR(MATCH(ROUND(AK41,1),$C$66:$AQ$66,0)-1,0)))*365/100*'I2 Maintenance'!$D$35 -> 0 | AL49: =SUMPRODUCT(AL$28:AL$33,OFFSET($C$71:$C$76,0,IFERROR(MATCH(ROUND(AL41,1),$C$66:$AQ$66,0)-1,0)))*365/100*'I2 Maintenance'!$D$35 -> 0 | AM49: =SUMPRODUCT(AM$28:AM$33,OFFSET($C$71:$C$76,0,IFERROR(MATCH(ROUND(AM41,1),$C$66:$AQ$66,0)-1,0)))*365/100*'I2 Maintenance'!$D$35 -> 33110.90565 | AN49: =SUMPRODUCT(AN$28:AN$33,OFFSET($C$71:$C$76,0,IFERROR(MATCH(ROUND(AN41,1),$C$66:$AQ$66,0)-1,0)))*365/100*'I2 Maintenance'!$D$35 -> 0 | AO49: =SUMPRODUCT(AO$28:AO$33,OFFSET($C$71:$C$76,0,IFERROR(MATCH(ROUND(AO41,1),$C$66:$AQ$66,0)-1,0)))*365/100*'I2 Maintenance'!$D$35 -> 0 | AP49: =SUMPRODUCT(AP$28:AP$33,OFFSET($C$71:$C$76,0,IFERROR(MATCH(ROUND(AP41,1),$C$66:$AQ$66,0)-1,0)))*365/100*'I2 Maintenance'!$D$35 -> 8783.818379 | AQ49: =SUMPRODUCT(AQ$28:AQ$33,OFFSET($C$71:$C$76,0,IFERROR(MATCH(ROUND(AQ41,1),$C$66:$AQ$66,0)-1,0)))*365/100*'I2 Maintenance'!$D$35 -> 75987.90551 | AR49: =SUMPRODUCT(AR$28:AR$33,OFFSET($C$71:$C$76,0,IFERROR(MATCH(ROUND(AR41,1),$C$66:$AQ$66,0)-1,0)))*365/100*'I2 Maintenance'!$D$35 -> 0
B50: =B46 -> IRI 4 | C50: =D50+NPV('I0 Overall'!$C$7,$E50:$AR50) -> 279027.9609 | D50: =SUMPRODUCT(D$28:D$33,OFFSET($C$71:$C$76,0,IFERROR(MATCH(ROUND(D42,1),$C$66:$AQ$66,0)-1,0)))*365/100*'I2 Maintenance'!$D$35 -> 0 | E50: =SUMPRODUCT(E$28:E$33,OFFSET($C$71:$C$76,0,IFERROR(MATCH(ROUND(E42,1),$C$66:$AQ$66,0)-1,0)))*365/100*'I2 Maintenance'!$D$35 -> 0 | F50: =SUMPRODUCT(F$28:F$33,OFFSET($C$71:$C$76,0,IFERROR(MATCH(ROUND(F42,1),$C$66:$AQ$66,0)-1,0)))*365/100*'I2 Maintenance'!$D$35 -> 0 | G50: =SUMPRODUCT(G$28:G$33,OFFSET($C$71:$C$76,0,IFERROR(MATCH(ROUND(G42,1),$C$66:$AQ$66,0)-1,0)))*365/100*'I2 Maintenance'!$D$35 -> 0 | H50: =SUMPRODUCT(H$28:H$33,OFFSET($C$71:$C$76,0,IFERROR(MATCH(ROUND(H42,1),$C$66:$AQ$66,0)-1,0)))*365/100*'I2 Maintenance'!$D$35 -> 0 | I50: =SUMPRODUCT(I$28:I$33,OFFSET($C$71:$C$76,0,IFERROR(MATCH(ROUND(I42,1),$C$66:$AQ$66,0)-1,0)))*365/100*'I2 Maintenance'!$D$35 -> 0 | J50: =SUMPRODUCT(J$28:J$33,OFFSET($C$71:$C$76,0,IFERROR(MATCH(ROUND(J42,1),$C$66:$AQ$66,0)-1,0)))*365/100*'I2 Maintenance'!$D$35 -> 0 | K50: =SUMPRODUCT(K$28:K$33,OFFSET($C$71:$C$76,0,IFERROR(MATCH(ROUND(K42,1),$C$66:$AQ$66,0)-1,0)))*365/100*'I2 Maintenance'!$D$35 -> 0 | L50: =SUMPRODUCT(L$28:L$33,OFFSET($C$71:$C$76,0,IFERROR(MATCH(ROUND(L42,1),$C$66:$AQ$66,0)-1,0)))*365/100*'I2 Maintenance'!$D$35 -> 0 | M50: =SUMPRODUCT(M$28:M$33,OFFSET($C$71:$C$76,0,IFERROR(MATCH(ROUND(M42,1),$C$66:$AQ$66,0)-1,0)))*365/100*'I2 Maintenance'!$D$35 -> 0 | N50: =SUMPRODUCT(N$28:N$33,OFFSET($C$71:$C$76,0,IFERROR(MATCH(ROUND(N42,1),$C$66:$AQ$66,0)-1,0)))*365/100*'I2 Maintenance'!$D$35 -> 0 | O50: =SUMPRODUCT(O$28:O$33,OFFSET($C$71:$C$76,0,IFERROR(MATCH(ROUND(O42,1),$C$66:$AQ$66,0)-1,0)))*365/100*'I2 Maintenance'!$D$35 -> 0 | P50: =SUMPRODUCT(P$28:P$33,OFFSET($C$71:$C$76,0,IFERROR(MATCH(ROUND(P42,1),$C$66:$AQ$66,0)-1,0)))*365/100*'I2 Maintenance'!$D$35 -> 0 | Q50: =SUMPRODUCT(Q$28:Q$33,OFFSET($C$71:$C$76,0,IFERROR(MATCH(ROUND(Q42,1),$C$66:$AQ$66,0)-1,0)))*365/100*'I2 Maintenance'!$D$35 -> 5355.382504 | R50: =SUMPRODUCT(R$28:R$33,OFFSET($C$71:$C$76,0,IFERROR(MATCH(ROUND(R42,1),$C$66:$AQ$66,0)-1,0)))*365/100*'I2 Maintenance'!$D$35 -> 10924.22674 | S50: =SUMPRODUCT(S$28:S$33,OFFSET($C$71:$C$76,0,IFERROR(MATCH(ROUND(S42,1),$C$66:$AQ$66,0)-1,0)))*365/100*'I2 Maintenance'!$D$35 -> 22282.41415 | T50: =SUMPRODUCT(T$28:T$33,OFFSET($C$71:$C$76,0,IFERROR(MATCH(ROUND(T42,1),$C$66:$AQ$66,0)-1,0)))*365/100*'I2 Maintenance'!$D$35 -> 38296.58901 | U50: =SUMPRODUCT(U$28:U$33,OFFSET($C$71:$C$76,0,IFERROR(MATCH(ROUND(U42,1),$C$66:$AQ$66,0)-1,0)))*365/100*'I2 Maintenance'!$D$35 -> 59230.3531 | V50: =SUMPRODUCT(V$28:V$33,OFFSET($C$71:$C$76,0,IFERROR(MATCH(ROUND(V42,1),$C$66:$AQ$66,0)-1,0)))*365/100*'I2 Maintenance'!$D$35 -> 81001.10417 | W50: =SUMPRODUCT(W$28:W$33,OFFSET($C$71:$C$76,0,IFERROR(MATCH(ROUND(W42,1),$C$66:$AQ$66,0)-1,0)))*365/100*'I2 Maintenance'!$D$35 -> 115708.9411 | X50: =SUMPRODUCT(X$28:X$33,OFFSET($C$71:$C$76,0,IFERROR(MATCH(ROUND(X42,1),$C$66:$AQ$66,0)-1,0)))*365/100*'I2 Maintenance'!$D$35 -> 151775.764 | Y50: =SUMPRODUCT(Y$28:Y$33,OFFSET($C$71:$C$76,0,IFERROR(MATCH(ROUND(Y42,1),$C$66:$AQ$66,0)-1,0)))*365/100*'I2 Maintenance'!$D$35 -> 0 | Z50: =SUMPRODUCT(Z$28:Z$33,OFFSET($C$71:$C$76,0,IFERROR(MATCH(ROUND(Z42,1),$C$66:$AQ$66,0)-1,0)))*365/100*'I2 Maintenance'!$D$35 -> 0 | AA50: =SUMPRODUCT(AA$28:AA$33,OFFSET($C$71:$C$76,0,IFERROR(MATCH(ROUND(AA42,1),$C$66:$AQ$66,0)-1,0)))*365/100*'I2 Maintenance'!$D$35 -> 0 | AB50: =SUMPRODUCT(AB$28:AB$33,OFFSET($C$71:$C$76,0,IFERROR(MATCH(ROUND(AB42,1),$C$66:$AQ$66,0)-1,0)))*365/100*'I2 Maintenance'!$D$35 -> 0 | AC50: =SUMPRODUCT(AC$28:AC$33,OFFSET($C$71:$C$76,0,IFERROR(MATCH(ROUND(AC42,1),$C$66:$AQ$66,0)-1,0)))*365/100*'I2 Maintenance'!$D$35 -> 6787.232792 | AD50: =SUMPRODUCT(AD$28:AD$33,OFFSET($C$71:$C$76,0,IFERROR(MATCH(ROUND(AD42,1),$C$66:$AQ$66,0)-1,0)))*365/100*'I2 Maintenance'!$D$35 -> 34619.35879 | AE50: =SUMPRODUCT(AE$28:AE$33,OFFSET($C$71:$C$76,0,IFERROR(MATCH(ROUND(AE42,1),$C$66:$AQ$66,0)-1,0)))*365/100*'I2 Maintenance'!$D$35 -> 72206.65668 | AF50: =SUMPRODUCT(AF$28:AF$33,OFFSET($C$71:$C$76,0,IFERROR(MATCH(ROUND(AF42,1),$C$66:$AQ$66,0)-1,0)))*365/100*'I2 Maintenance'!$D$35 -> 138280.6868 | AG50: =SUMPRODUCT(AG$28:AG$33,OFFSET($C$71:$C$76,0,IFERROR(MATCH(ROUND(AG42,1),$C$66:$AQ$66,0)-1,0)))*365/100*'I2 Maintenance'!$D$35 -> 0 | AH50: =SUMPRODUCT(AH$28:AH$33,OFFSET($C$71:$C$76,0,IFERROR(MATCH(ROUND(AH42,1),$C$66:$AQ$66,0)-1,0)))*365/100*'I2 Maintenance'!$D$35 -> 0 | AI50: =SUMPRODUCT(AI$28:AI$33,OFFSET($C$71:$C$76,0,IFERROR(MATCH(ROUND(AI42,1),$C$66:$AQ$66,0)-1,0)))*365/100*'I2 Maintenance'!$D$35 -> 0 | AJ50: =SUMPRODUCT(AJ$28:AJ$33,OFFSET($C$71:$C$76,0,IFERROR(MATCH(ROUND(AJ42,1),$C$66:$AQ$66,0)-1,0)))*365/100*'I2 Maintenance'!$D$35 -> 23394.73157 | AK50: =SUMPRODUCT(AK$28:AK$33,OFFSET($C$71:$C$76,0,IFERROR(MATCH(ROUND(AK42,1),$C$66:$AQ$66,0)-1,0)))*365/100*'I2 Maintenance'!$D$35 -> 67477.65828 | AL50: =SUMPRODUCT(AL$28:AL$33,OFFSET($C$71:$C$76,0,IFERROR(MATCH(ROUND(AL42,1),$C$66:$AQ$66,0)-1,0)))*365/100*'I2 Maintenance'!$D$35 -> 155749.876 | AM50: =SUMPRODUCT(AM$28:AM$33,OFFSET($C$71:$C$76,0,IFERROR(MATCH(ROUND(AM42,1),$C$66:$AQ$66,0)-1,0)))*365/100*'I2 Maintenance'!$D$35 -> 0 | AN50: =SUMPRODUCT(AN$28:AN$33,OFFSET($C$71:$C$76,0,IFERROR(MATCH(ROUND(AN42,1),$C$66:$AQ$66,0)-1,0)))*365/100*'I2 Maintenance'!$D$35 -> 0 | AO50: =SUMPRODUCT(AO$28:AO$33,OFFSET($C$71:$C$76,0,IFERROR(MATCH(ROUND(AO42,1),$C$66:$AQ$66,0)-1,0)))*365/100*'I2 Maintenance'!$D$35 -> 8611.920108 | AP50: =SUMPRODUCT(AP$28:AP$33,OFFSET($C$71:$C$76,0,IFERROR(MATCH(ROUND(AP42,1),$C$66:$AQ$66,0)-1,0)))*365/100*'I2 Maintenance'!$D$35 -> 59212.7601 | AQ50: =SUMPRODUCT(AQ$28:AQ$33,OFFSET($C$71:$C$76,0,IFERROR(MATCH(ROUND(AQ42,1),$C$66:$AQ$66,0)-1,0)))*365/100*'I2 Maintenance'!$D$35 -> 171939.6877 | AR50: =SUMPRODUCT(AR$28:AR$33,OFFSET($C$71:$C$76,0,IFERROR(MATCH(ROUND(AR42,1),$C$66:$AQ$66,0)-1,0)))*365/100*'I2 Maintenance'!$D$35 -> 0
B52: Agency costs per km | C52: PV | D52: 0 | E52: 1 | F52: 2 | G52: 3 | H52: 4 | I52: 5 | J52: 6 | K52: 7 | L52: 8 | M52: 9 | N52: 10 | O52: 11 | P52: 12 | Q52: 13 | R52: 14 | S52: 15 | T52: 16 | U52: 17 | V52: 18 | W52: 19 | X52: 20 | Y52: 21 | Z52: 22 | AA52: 23 | AB52: 24 | AC52: 25 | AD52: 26 | AE52: 27 | AF52: 28 | AG52: 29 | AH52: 30 | AI52: 31 | AJ52: 32 | AK52: 33 | AL52: 34 | AM52: 35 | AN52: 36 | AO52: 37 | AP52: 38 | AQ52: 39 | AR52: 40
B53: =B49 -> IRI 3.4 | C53: =D53+NPV('I0 Overall'!$C$7,$E53:$AR53) -> 200355.7254 | D53: =D45*'I2 Maintenance'!$D$34 -> 0 | E53: =E45*'I2 Maintenance'!$D$34 -> 0 | F53: =F45*'I2 Maintenance'!$D$34 -> 0 | G53: =G45*'I2 Maintenance'!$D$34 -> 0 | H53: =H45*'I2 Maintenance'!$D$34 -> 0 | I53: =I45*'I2 Maintenance'!$D$34 -> 0 | J53: =J45*'I2 Maintenance'!$D$34 -> 0 | K53: =K45*'I2 Maintenance'!$D$34 -> 0 | L53: =L45*'I2 Maintenance'!$D$34 -> 0 | M53: =M45*'I2 Maintenance'!$D$34 -> 0 | N53: =N45*'I2 Maintenance'!$D$34 -> 0 | O53: =O45*'I2 Maintenance'!$D$34 -> 0 | P53: =P45*'I2 Maintenance'!$D$34 -> 0 | Q53: =Q45*'I2 Maintenance'!$D$34 -> 0 | R53: =R45*'I2 Maintenance'!$D$34 -> 0 | S53: =S45*'I2 Maintenance'!$D$34 -> 0 | T53: =T45*'I2 Maintenance'!$D$34 -> 0 | U53: =U45*'I2 Maintenance'!$D$34 -> 200000 | V53: =V45*'I2 Maintenance'!$D$34 -> 0 | W53: =W45*'I2 Maintenance'!$D$34 -> 0 | X53: =X45*'I2 Maintenance'!$D$34 -> 0 | Y53: =Y45*'I2 Maintenance'!$D$34 -> 0 | Z53: =Z45*'I2 Maintenance'!$D$34 -> 0 | AA53: =AA45*'I2 Maintenance'!$D$34 -> 0 | AB53: =AB45*'I2 Maintenance'!$D$34 -> 0 | AC53: =AC45*'I2 Maintenance'!$D$34 -> 200000 | AD53: =AD45*'I2 Maintenance'!$D$34 -> 0 | AE53: =AE45*'I2 Maintenance'!$D$34 -> 0 | AF53: =AF45*'I2 Maintenance'!$D$34 -> 0 | AG53: =AG45*'I2 Maintenance'!$D$34 -> 0 | AH53: =AH45*'I2 Maintenance'!$D$34 -> 0 | AI53: =AI45*'I2 Maintenance'!$D$34 -> 200000 | AJ53: =AJ45*'I2 Maintenance'!$D$34 -> 0 | AK53: =AK45*'I2 Maintenance'!$D$34 -> 0 | AL53: =AL45*'I2 Maintenance'!$D$34 -> 0 | AM53: =AM45*'I2 Maintenance'!$D$34 -> 200000 | AN53: =AN45*'I2 Maintenance'!$D$34 -> 0 | AO53: =AO45*'I2 Maintenance'!$D$34 -> 0 | AP53: =AP45*'I2 Maintenance'!$D$34 -> 0 | AQ53: =AQ45*'I2 Maintenance'!$D$34 -> 200000 | AR53: =AR45*'I2 Maintenance'!$D$34 -> 0
B54: =B50 -> IRI 4 | C54: =D54+NPV('I0 Overall'!$C$7,$E54:$AR54) -> 149680.3841 | D54: =D46*'I2 Maintenance'!$D$34 -> 0 | E54: =E46*'I2 Maintenance'!$D$34 -> 0 | F54: =F46*'I2 Maintenance'!$D$34 -> 0 | G54: =G46*'I2 Maintenance'!$D$34 -> 0 | H54: =H46*'I2 Maintenance'!$D$34 -> 0 | I54: =I46*'I2 Maintenance'!$D$34 -> 0 | J54: =J46*'I2 Maintenance'!$D$34 -> 0 | K54: =K46*'I2 Maintenance'!$D$34 -> 0 | L54: =L46*'I2 Maintenance'!$D$34 -> 0 | M54: =M46*'I2 Maintenance'!$D$34 -> 0 | N54: =N46*'I2 Maintenance'!$D$34 -> 0 | O54: =O46*'I2 Maintenance'!$D$34 -> 0 | P54: =P46*'I2 Maintenance'!$D$34 -> 0 | Q54: =Q46*'I2 Maintenance'!$D$34 -> 0 | R54: =R46*'I2 Maintenance'!$D$34 -> 0 | S54: =S46*'I2 Maintenance'!$D$34 -> 0 | T54: =T46*'I2 Maintenance'!$D$34 -> 0 | U54: =U46*'I2 Maintenance'!$D$34 -> 0 | V54: =V46*'I2 Maintenance'!$D$34 -> 0 | W54: =W46*'I2 Maintenance'!$D$34 -> 0 | X54: =X46*'I2 Maintenance'!$D$34 -> 200000 | Y54: =Y46*'I2 Maintenance'!$D$34 -> 0 | Z54: =Z46*'I2 Maintenance'!$D$34 -> 0 | AA54: =AA46*'I2 Maintenance'!$D$34 -> 0 | AB54: =AB46*'I2 Maintenance'!$D$34 -> 0 | AC54: =AC46*'I2 Maintenance'!$D$34 -> 0 | AD54: =AD46*'I2 Maintenance'!$D$34 -> 0 | AE54: =AE46*'I2 Maintenance'!$D$34 -> 0 | AF54: =AF46*'I2 Maintenance'!$D$34 -> 200000 | AG54: =AG46*'I2 Maintenance'!$D$34 -> 0 | AH54: =AH46*'I2 Maintenance'!$D$34 -> 0 | AI54: =AI46*'I2 Maintenance'!$D$34 -> 0 | AJ54: =AJ46*'I2 Maintenance'!$D$34 -> 0 | AK54: =AK46*'I2 Maintenance'!$D$34 -> 0 | AL54: =AL46*'I2 Maintenance'!$D$34 -> 200000 | AM54: =AM46*'I2 Maintenance'!$D$34 -> 0 | AN54: =AN46*'I2 Maintenance'!$D$34 -> 0 | AO54: =AO46*'I2 Maintenance'!$D$34 -> 0 | AP54: =AP46*'I2 Maintenance'!$D$34 -> 0 | AQ54: =AQ46*'I2 Maintenance'!$D$34 -> 200000 | AR54: =AR46*'I2 Maintenance'!$D$34 -> 0
B56: Total costs per km | C56: PV | D56: 0 | E56: 1 | F56: 2 | G56: 3 | H56: 4 | I56: 5 | J56: 6 | K56: 7 | L56: 8 | M56: 9 | N56: 10 | O56: 11 | P56: 12 | Q56: 13 | R56: 14 | S56: 15 | T56: 16 | U56: 17 | V56: 18 | W56: 19 | X56: 20 | Y56: 21 | Z56: 22 | AA56: 23 | AB56: 24 | AC56: 25 | AD56: 26 | AE56: 27 | AF56: 28 | AG56: 29 | AH56: 30 | AI56: 31 | AJ56: 32 | AK56: 33 | AL56: 34 | AM56: 35 | AN56: 36 | AO56: 37 | AP56: 38 | AQ56: 39 | AR56: 40
B57: =B53 -> IRI 3.4 | C57: =D57+NPV('I0 Overall'!$C$7,$E57:$AR57) -> 317874.7256 | D57: =D49+D53 -> 0 | E57: 0 | F57: 0 | G57: 0 | H57: 0 | I57: 0 | J57: 0 | K57: 0 | L57: 0 | M57: 0 | N57: 0 | O57: 0 | P57: 0 | Q57: 5355.382504 | R57: 10924.22674 | S57: 22282.41415 | T57: 38296.58901 | U57: 259230.3531 | V57: 0 | W57: 0 | X57: 0 | Y57: 0 | Z57: 0 | AA57: 13050.19418 | AB57: 33275.3269 | AC57: 269381.8806 | AD57: 0 | AE57: 0 | AF57: 0 | AG57: 7349.182533 | AH57: 37482.61954 | AI57: 291478.7619 | AJ57: 0 | AK57: 0 | AL57: 0 | AM57: 233110.9057 | AN57: 0 | AO57: 0 | AP57: 8783.818379 | AQ57: 275987.9055 | AR57: 0
B58: =B54 -> IRI 4 | C58: =D58+NPV('I0 Overall'!$C$7,$E58:$AR58) -> 428708.3449 | D58: =D50+D54 -> 0 | E58: 0 | F58: 0 | G58: 0 | H58: 0 | I58: 0 | J58: 0 | K58: 0 | L58: 0 | M58: 0 | N58: 0 | O58: 0 | P58: 0 | Q58: 5355.382504 | R58: 10924.22674 | S58: 22282.41415 | T58: 38296.58901 | U58: 59230.3531 | V58: 81001.10417 | W58: 115708.9411 | X58: 351775.764 | Y58: 0 | Z58: 0 | AA58: 0 | AB58: 0 | AC58: 6787.232792 | AD58: 34619.35879 | AE58: 72206.65668 | AF58: 338280.6868 | AG58: 0 | AH58: 0 | AI58: 0 | AJ58: 23394.73157 | AK58: 67477.65828 | AL58: 355749.876 | AM58: 0 | AN58: 0 | AO58: 8611.920108 | AP58: 59212.7601 | AQ58: 371939.6877 | AR58: 0
B60: Minimum service targets | D60: 0 | E60: 1 | F60: 2 | G60: 3 | H60: 4 | I60: 5 | J60: 6 | K60: 7 | L60: 8 | M60: 9 | N60: 10 | O60: 11 | P60: 12 | Q60: 13 | R60: 14 | S60: 15 | T60: 16 | U60: 17 | V60: 18 | W60: 19 | X60: 20 | Y60: 21 | Z60: 22 | AA60: 23 | AB60: 24 | AC60: 25 | AD60: 26 | AE60: 27 | AF60: 28 | AG60: 29 | AH60: 30 | AI60: 31 | AJ60: 32 | AK60: 33 | AL60: 34 | AM60: 35 | AN60: 36 | AO60: 37 | AP60: 38 | AQ60: 39 | AR60: 40
B61: Scenario 1 | D61: ='I2 Maintenance'!$D9 -> 3.4 | E61: ='I2 Maintenance'!$D9 -> 3.4 | F61: ='I2 Maintenance'!$D9 -> 3.4 | G61: ='I2 Maintenance'!$D9 -> 3.4 | H61: ='I2 Maintenance'!$D9 -> 3.4 | I61: ='I2 Maintenance'!$D9 -> 3.4 | J61: ='I2 Maintenance'!$D9 -> 3.4 | K61: ='I2 Maintenance'!$D9 -> 3.4 | L61: ='I2 Maintenance'!$D9 -> 3.4 | M61: ='I2 Maintenance'!$D9 -> 3.4 | N61: ='I2 Maintenance'!$D9 -> 3.4 | O61: ='I2 Maintenance'!$D9 -> 3.4 | P61: ='I2 Maintenance'!$D9 -> 3.4 | Q61: ='I2 Maintenance'!$D9 -> 3.4 | R61: ='I2 Maintenance'!$D9 -> 3.4 | S61: ='I2 Maintenance'!$D9 -> 3.4 | T61: ='I2 Maintenance'!$D9 -> 3.4 | U61: ='I2 Maintenance'!$D9 -> 3.4 | V61: ='I2 Maintenance'!$D9 -> 3.4 | W61: ='I2 Maintenance'!$D9 -> 3.4 | X61: ='I2 Maintenance'!$D9 -> 3.4 | Y61: ='I2 Maintenance'!$D9 -> 3.4 | Z61: ='I2 Maintenance'!$D9 -> 3.4 | AA61: ='I2 Maintenance'!$D9 -> 3.4 | AB61: ='I2 Maintenance'!$D9 -> 3.4 | AC61: ='I2 Maintenance'!$D9 -> 3.4 | AD61: ='I2 Maintenance'!$D9 -> 3.4 | AE61: ='I2 Maintenance'!$D9 -> 3.4 | AF61: ='I2 Maintenance'!$D9 -> 3.4 | AG61: ='I2 Maintenance'!$D9 -> 3.4 | AH61: ='I2 Maintenance'!$D9 -> 3.4 | AI61: ='I2 Maintenance'!$D9 -> 3.4 | AJ61: ='I2 Maintenance'!$D9 -> 3.4 | AK61: ='I2 Maintenance'!$D9 -> 3.4 | AL61: ='I2 Maintenance'!$D9 -> 3.4 | AM61: ='I2 Maintenance'!$D9 -> 3.4 | AN61: ='I2 Maintenance'!$D9 -> 3.4 | AO61: ='I2 Maintenance'!$D9 -> 3.4 | AP61: ='I2 Maintenance'!$D9 -> 3.4 | AQ61: ='I2 Maintenance'!$D9 -> 3.4 | AR61: ='I2 Maintenance'!$D9 -> 3.4
B62: Scenario 2 | D62: ='I2 Maintenance'!$D10 -> 4 | E62: ='I2 Maintenance'!$D10 -> 4 | F62: ='I2 Maintenance'!$D10 -> 4 | G62: ='I2 Maintenance'!$D10 -> 4 | H62: ='I2 Maintenance'!$D10 -> 4 | I62: ='I2 Maintenance'!$D10 -> 4 | J62: ='I2 Maintenance'!$D10 -> 4 | K62: ='I2 Maintenance'!$D10 -> 4 | L62: ='I2 Maintenance'!$D10 -> 4 | M62: ='I2 Maintenance'!$D10 -> 4 | N62: ='I2 Maintenance'!$D10 -> 4 | O62: ='I2 Maintenance'!$D10 -> 4 | P62: ='I2 Maintenance'!$D10 -> 4 | Q62: ='I2 Maintenance'!$D10 -> 4 | R62: ='I2 Maintenance'!$D10 -> 4 | S62: ='I2 Maintenance'!$D10 -> 4 | T62: ='I2 Maintenance'!$D10 -> 4 | U62: ='I2 Maintenance'!$D10 -> 4 | V62: ='I2 Maintenance'!$D10 -> 4 | W62: ='I2 Maintenance'!$D10 -> 4 | X62: ='I2 Maintenance'!$D10 -> 4 | Y62: ='I2 Maintenance'!$D10 -> 4 | Z62: ='I2 Maintenance'!$D10 -> 4 | AA62: ='I2 Maintenance'!$D10 -> 4 | AB62: ='I2 Maintenance'!$D10 -> 4 | AC62: ='I2 Maintenance'!$D10 -> 4 | AD62: ='I2 Maintenance'!$D10 -> 4 | AE62: ='I2 Maintenance'!$D10 -> 4 | AF62: ='I2 Maintenance'!$D10 -> 4 | AG62: ='I2 Maintenance'!$D10 -> 4 | AH62: ='I2 Maintenance'!$D10 -> 4 | AI62: ='I2 Maintenance'!$D10 -> 4 | AJ62: ='I2 Maintenance'!$D10 -> 4 | AK62: ='I2 Maintenance'!$D10 -> 4 | AL62: ='I2 Maintenance'!$D10 -> 4 | AM62: ='I2 Maintenance'!$D10 -> 4 | AN62: ='I2 Maintenance'!$D10 -> 4 | AO62: ='I2 Maintenance'!$D10 -> 4 | AP62: ='I2 Maintenance'!$D10 -> 4 | AQ62: ='I2 Maintenance'!$D10 -> 4 | AR62: ='I2 Maintenance'!$D10 -> 4
B64: IRI and VOC relationship
B66: IRI | C66: 2 | D66: 2.1 | E66: 2.2 | F66: 2.3 | G66: 2.4 | H66: 2.5 | I66: 2.6 | J66: 2.7 | K66: 2.8 | L66: 2.9 | M66: 3 | N66: 3.1 | O66: 3.2 | P66: 3.3 | Q66: 3.4 | R66: 3.5 | S66: 3.6 | T66: 3.7 | U66: 3.8 | V66: 3.9 | W66: 4 | X66: 4.1 | Y66: 4.2 | Z66: 4.3 | AA66: 4.4 | AB66: 4.5 | AC66: 4.6 | AD66: 4.7 | AE66: 4.8 | AF66: 4.9 | AG66: 5 | AH66: 5.1 | AI66: 5.2 | AJ66: 5.3 | AK66: 5.4 | AL66: 5.5 | AM66: 5.6 | AN66: 5.7 | AO66: 5.8 | AP66: 5.9 | AQ66: 6
B67: IRI range | C67: 0 | D67: 0.2 | E67: 0.4 | F67: 0.6 | G67: 0.8 | H67: =C67 -> 0 | I67: =D67 -> 0.2 | J67: 0.4 | K67: 0.6 | L67: 0.8 | M67: 0 | N67: 0.2 | O67: 0.4 | P67: 0.6 | Q67: 0.8 | R67: 0 | S67: 0.2 | T67: 0.4 | U67: 0.6 | V67: 0.8 | W67: 0 | X67: 0.2 | Y67: 0.4 | Z67: 0.6 | AA67: 0.8 | AB67: 0 | AC67: 0.2 | AD67: 0.4 | AE67: 0.6 | AF67: 0.8 | AG67: 0 | AH67: 0.2 | AI67: 0.4 | AJ67: 0.6 | AK67: 0.8 | AL67: 0 | AM67: 0.2 | AN67: 0.4 | AO67: 0.6 | AP67: 0.8 | AQ67: 0
B68: Lower IRI | C68: =ROUNDDOWN(C66,0.5) -> 2 | D68: =ROUNDDOWN(C66,0.5) -> 2 | E68: =ROUNDDOWN(D66,0.5) -> 2 | F68: =ROUNDDOWN(E66,0.5) -> 2 | G68: =ROUNDDOWN(F66,0.5) -> 2 | H68: =C68+0.5 -> 2.5 | I68: =D68+0.5 -> 2.5 | J68: 2.5 | K68: 2.5 | L68: 2.5 | M68: 3 | N68: 3 | O68: 3 | P68: 3 | Q68: 3 | R68: 3.5 | S68: 3.5 | T68: 3.5 | U68: 3.5 | V68: 3.5 | W68: 4 | X68: 4 | Y68: =T68+0.5 -> 4 | Z68: 4 | AA68: 4 | AB68: 4.5 | AC68: 4.5 | AD68: 4.5 | AE68: 4.5 | AF68: 4.5 | AG68: 5 | AH68: 5 | AI68: 5 | AJ68: 5 | AK68: 5 | AL68: 5.5 | AM68: 5.5 | AN68: 5.5 | AO68: =AJ68+0.5 -> 5.5 | AP68: 5.5 | AQ68: 6
B69: Upper IRI | C69: 2.5 | D69: 2.5 | E69: 2.5 | F69: 2.5 | G69: 2.5 | H69: 2.5 | I69: =D69+0.5 -> 3 | J69: 3 | K69: 3 | L69: 3 | M69: 3 | N69: 3.5 | O69: 3.5 | P69: 3.5 | Q69: 3.5 | R69: 3.5 | S69: 4 | T69: 4 | U69: 4 | V69: 4 | W69: 4 | X69: 4.5 | Y69: 4.5 | Z69: 4.5 | AA69: 4.5 | AB69: 4.5 | AC69: 5 | AD69: 5 | AE69: 5 | AF69: 5 | AG69: 5 | AH69: 5.5 | AI69: 5.5 | AJ69: 5.5 | AK69: 5.5 | AL69: 5.5 | AM69: 6 | AN69: 6 | AO69: 6 | AP69: 6 | AQ69: 6
B71: Passenger cars | C71: =SUMIFS('I2 Maintenance'!$C$51:$C$81,'I2 Maintenance'!$B$51:$B$81,C$68)*(1-C$67)+SUMIFS('I2 Maintenance'!$C$51:$C$81,'I2 Maintenance'!$B$51:$B$81,C$69)*(C$67) -> 0 | D71: =SUMIFS('I2 Maintenance'!$C$51:$C$81,'I2 Maintenance'!$B$51:$B$81,D$68)*(1-D$67)+SUMIFS('I2 Maintenance'!$C$51:$C$81,'I2 Maintenance'!$B$51:$B$81,D$69)*(D$67) -> 0 | E71: =SUMIFS('I2 Maintenance'!$C$51:$C$81,'I2 Maintenance'!$B$51:$B$81,E$68)*(1-E$67)+SUMIFS('I2 Maintenance'!$C$51:$C$81,'I2 Maintenance'!$B$51:$B$81,E$69)*(E$67) -> 0 | F71: =SUMIFS('I2 Maintenance'!$C$51:$C$81,'I2 Maintenance'!$B$51:$B$81,F$68)*(1-F$67)+SUMIFS('I2 Maintenance'!$C$51:$C$81,'I2 Maintenance'!$B$51:$B$81,F$69)*(F$67) -> 0 | G71: =SUMIFS('I2 Maintenance'!$C$51:$C$81,'I2 Maintenance'!$B$51:$B$81,G$68)*(1-G$67)+SUMIFS('I2 Maintenance'!$C$51:$C$81,'I2 Maintenance'!$B$51:$B$81,G$69)*(G$67) -> 0 | H71: =SUMIFS('I2 Maintenance'!$C$51:$C$81,'I2 Maintenance'!$B$51:$B$81,H$68)*(1-H$67)+SUMIFS('I2 Maintenance'!$C$51:$C$81,'I2 Maintenance'!$B$51:$B$81,H$69)*(H$67) -> 0 | I71: =SUMIFS('I2 Maintenance'!$C$51:$C$81,'I2 Maintenance'!$B$51:$B$81,I$68)*(1-I$67)+SUMIFS('I2 Maintenance'!$C$51:$C$81,'I2 Maintenance'!$B$51:$B$81,I$69)*(I$67) -> 0.06025 | J71: =SUMIFS('I2 Maintenance'!$C$51:$C$81,'I2 Maintenance'!$B$51:$B$81,J$68)*(1-J$67)+SUMIFS('I2 Maintenance'!$C$51:$C$81,'I2 Maintenance'!$B$51:$B$81,J$69)*(J$67) -> 0.1205 | K71: =SUMIFS('I2 Maintenance'!$C$51:$C$81,'I2 Maintenance'!$B$51:$B$81,K$68)*(1-K$67)+SUMIFS('I2 Maintenance'!$C$51:$C$81,'I2 Maintenance'!$B$51:$B$81,K$69)*(K$67) -> 0.18075 | L71: =SUMIFS('I2 Maintenance'!$C$51:$C$81,'I2 Maintenance'!$B$51:$B$81,L$68)*(1-L$67)+SUMIFS('I2 Maintenance'!$C$51:$C$81,'I2 Maintenance'!$B$51:$B$81,L$69)*(L$67) -> 0.241 | M71: =SUMIFS('I2 Maintenance'!$C$51:$C$81,'I2 Maintenance'!$B$51:$B$81,M$68)*(1-M$67)+SUMIFS('I2 Maintenance'!$C$51:$C$81,'I2 Maintenance'!$B$51:$B$81,M$69)*(M$67) -> 0.30125 | N71: =SUMIFS('I2 Maintenance'!$C$51:$C$81,'I2 Maintenance'!$B$51:$B$81,N$68)*(1-N$67)+SUMIFS('I2 Maintenance'!$C$51:$C$81,'I2 Maintenance'!$B$51:$B$81,N$69)*(N$67) -> 0.4016666667 | O71: =SUMIFS('I2 Maintenance'!$C$51:$C$81,'I2 Maintenance'!$B$51:$B$81,O$68)*(1-O$67)+SUMIFS('I2 Maintenance'!$C$51:$C$81,'I2 Maintenance'!$B$51:$B$81,O$69)*(O$67) -> 0.5020833333 | P71: =SUMIFS('I2 Maintenance'!$C$51:$C$81,'I2 Maintenance'!$B$51:$B$81,P$68)*(1-P$67)+SUMIFS('I2 Maintenance'!$C$51:$C$81,'I2 Maintenance'!$B$51:$B$81,P$69)*(P$67) -> 0.6025 | Q71: =SUMIFS('I2 Maintenance'!$C$51:$C$81,'I2 Maintenance'!$B$51:$B$81,Q$68)*(1-Q$67)+SUMIFS('I2 Maintenance'!$C$51:$C$81,'I2 Maintenance'!$B$51:$B$81,Q$69)*(Q$67) -> 0.7029166667 | R71: =SUMIFS('I2 Maintenance'!$C$51:$C$81,'I2 Maintenance'!$B$51:$B$81,R$68)*(1-R$67)+SUMIFS('I2 Maintenance'!$C$51:$C$81,'I2 Maintenance'!$B$51:$B$81,R$69)*(R$67) -> 0.8033333333 | S71: =SUMIFS('I2 Maintenance'!$C$51:$C$81,'I2 Maintenance'!$B$51:$B$81,S$68)*(1-S$67)+SUMIFS('I2 Maintenance'!$C$51:$C$81,'I2 Maintenance'!$B$51:$B$81,S$69)*(S$67) -> 0.964 | T71: =SUMIFS('I2 Maintenance'!$C$51:$C$81,'I2 Maintenance'!$B$51:$B$81,T$68)*(1-T$67)+SUMIFS('I2 Maintenance'!$C$51:$C$81,'I2 Maintenance'!$B$51:$B$81,T$69)*(T$67) -> 1.124666667 | U71: =SUMIFS('I2 Maintenance'!$C$51:$C$81,'I2 Maintenance'!$B$51:$B$81,U$68)*(1-U$67)+SUMIFS('I2 Maintenance'!$C$51:$C$81,'I2 Maintenance'!$B$51:$B$81,U$69)*(U$67) -> 1.285333333 | V71: =SUMIFS('I2 Maintenance'!$C$51:$C$81,'I2 Maintenance'!$B$51:$B$81,V$68)*(1-V$67)+SUMIFS('I2 Maintenance'!$C$51:$C$81,'I2 Maintenance'!$B$51:$B$81,V$69)*(V$67) -> 1.446 | W71: =SUMIFS('I2 Maintenance'!$C$51:$C$81,'I2 Maintenance'!$B$51:$B$81,W$68)*(1-W$67)+SUMIFS('I2 Maintenance'!$C$51:$C$81,'I2 Maintenance'!$B$51:$B$81,W$69)*(W$67) -> 1.606666667 | X71: =SUMIFS('I2 Maintenance'!$C$51:$C$81,'I2 Maintenance'!$B$51:$B$81,X$68)*(1-X$67)+SUMIFS('I2 Maintenance'!$C$51:$C$81,'I2 Maintenance'!$B$51:$B$81,X$69)*(X$67) -> 1.827583333 | Y71: =SUMIFS('I2 Maintenance'!$C$51:$C$81,'I2 Maintenance'!$B$51:$B$81,Y$68)*(1-Y$67)+SUMIFS('I2 Maintenance'!$C$51:$C$81,'I2 Maintenance'!$B$51:$B$81,Y$69)*(Y$67) -> 2.0485 | Z71: =SUMIFS('I2 Maintenance'!$C$51:$C$81,'I2 Maintenance'!$B$51:$B$81,Z$68)*(1-Z$67)+SUMIFS('I2 Maintenance'!$C$51:$C$81,'I2 Maintenance'!$B$51:$B$81,Z$69)*(Z$67) -> 2.269416667 | AA71: =SUMIFS('I2 Maintenance'!$C$51:$C$81,'I2 Maintenance'!$B$51:$B$81,AA$68)*(1-AA$67)+SUMIFS('I2 Maintenance'!$C$51:$C$81,'I2 Maintenance'!$B$51:$B$81,AA$69)*(AA$67) -> 2.490333333 | AB71: =SUMIFS('I2 Maintenance'!$C$51:$C$81,'I2 Maintenance'!$B$51:$B$81,AB$68)*(1-AB$67)+SUMIFS('I2 Maintenance'!$C$51:$C$81,'I2 Maintenance'!$B$51:$B$81,AB$69)*(AB$67) -> 2.71125 | AC71: =SUMIFS('I2 Maintenance'!$C$51:$C$81,'I2 Maintenance'!$B$51:$B$81,AC$68)*(1-AC$67)+SUMIFS('I2 Maintenance'!$C$51:$C$81,'I2 Maintenance'!$B$51:$B$81,AC$69)*(AC$67) -> 2.972333333 | AD71: =SUMIFS('I2 Maintenance'!$C$51:$C$81,'I2 Maintenance'!$B$51:$B$81,AD$68)*(1-AD$67)+SUMIFS('I2 Maintenance'!$C$51:$C$81,'I2 Maintenance'!$B$51:$B$81,AD$69)*(AD$67) -> 3.233416667 | AE71: =SUMIFS('I2 Maintenance'!$C$51:$C$81,'I2 Maintenance'!$B$51:$B$81,AE$68)*(1-AE$67)+SUMIFS('I2 Maintenance'!$C$51:$C$81,'I2 Maintenance'!$B$51:$B$81,AE$69)*(AE$67) -> 3.4945 | AF71: =SUMIFS('I2 Maintenance'!$C$51:$C$81,'I2 Maintenance'!$B$51:$B$81,AF$68)*(1-AF$67)+SUMIFS('I2 Maintenance'!$C$51:$C$81,'I2 Maintenance'!$B$51:$B$81,AF$69)*(AF$67) -> 3.755583333 | AG71: =SUMIFS('I2 Maintenance'!$C$51:$C$81,'I2 Maintenance'!$B$51:$B$81,AG$68)*(1-AG$67)+SUMIFS('I2 Maintenance'!$C$51:$C$81,'I2 Maintenance'!$B$51:$B$81,AG$69)*(AG$67) -> 4.016666667 | AH71: =SUMIFS('I2 Maintenance'!$C$51:$C$81,'I2 Maintenance'!$B$51:$B$81,AH$68)*(1-AH$67)+SUMIFS('I2 Maintenance'!$C$51:$C$81,'I2 Maintenance'!$B$51:$B$81,AH$69)*(AH$67) -> 4.317916667 | AI71: =SUMIFS('I2 Maintenance'!$C$51:$C$81,'I2 Maintenance'!$B$51:$B$81,AI$68)*(1-AI$67)+SUMIFS('I2 Maintenance'!$C$51:$C$81,'I2 Maintenance'!$B$51:$B$81,AI$69)*(AI$67) -> 4.619166667 | AJ71: =SUMIFS('I2 Maintenance'!$C$51:$C$81,'I2 Maintenance'!$B$51:$B$81,AJ$68)*(1-AJ$67)+SUMIFS('I2 Maintenance'!$C$51:$C$81,'I2 Maintenance'!$B$51:$B$81,AJ$69)*(AJ$67) -> 4.920416667 | AK71: =SUMIFS('I2 Maintenance'!$C$51:$C$81,'I2 Maintenance'!$B$51:$B$81,AK$68)*(1-AK$67)+SUMIFS('I2 Maintenance'!$C$51:$C$81,'I2 Maintenance'!$B$51:$B$81,AK$69)*(AK$67) -> 5.221666667 | AL71: =SUMIFS('I2 Maintenance'!$C$51:$C$81,'I2 Maintenance'!$B$51:$B$81,AL$68)*(1-AL$67)+SUMIFS('I2 Maintenance'!$C$51:$C$81,'I2 Maintenance'!$B$51:$B$81,AL$69)*(AL$67) -> 5.522916667 | AM71: =SUMIFS('I2 Maintenance'!$C$51:$C$81,'I2 Maintenance'!$B$51:$B$81,AM$68)*(1-AM$67)+SUMIFS('I2 Maintenance'!$C$51:$C$81,'I2 Maintenance'!$B$51:$B$81,AM$69)*(AM$67) -> 5.84425 | AN71: =SUMIFS('I2 Maintenance'!$C$51:$C$81,'I2 Maintenance'!$B$51:$B$81,AN$68)*(1-AN$67)+SUMIFS('I2 Maintenance'!$C$51:$C$81,'I2 Maintenance'!$B$51:$B$81,AN$69)*(AN$67) -> 6.165583333 | AO71: =SUMIFS('I2 Maintenance'!$C$51:$C$81,'I2 Maintenance'!$B$51:$B$81,AO$68)*(1-AO$67)+SUMIFS('I2 Maintenance'!$C$51:$C$81,'I2 Maintenance'!$B$51:$B$81,AO$69)*(AO$67) -> 6.486916667 | AP71: =SUMIFS('I2 Maintenance'!$C$51:$C$81,'I2 Maintenance'!$B$51:$B$81,AP$68)*(1-AP$67)+SUMIFS('I2 Maintenance'!$C$51:$C$81,'I2 Maintenance'!$B$51:$B$81,AP$69)*(AP$67) -> 6.80825 | AQ71: =SUMIFS('I2 Maintenance'!$C$51:$C$81,'I2 Maintenance'!$B$51:$B$81,AQ$68)*(1-AQ$67)+SUMIFS('I2 Maintenance'!$C$51:$C$81,'I2 Maintenance'!$B$51:$B$81,AQ$69)*(AQ$67) -> 7.129583333
B72: Light commercial vehicles | C72: =SUMIFS('I2 Maintenance'!$D$51:$D$81,'I2 Maintenance'!$B$51:$B$81,C$68)*(1-C$67)+SUMIFS('I2 Maintenance'!$D$51:$D$81,'I2 Maintenance'!$B$51:$B$81,C$69)*(C$67) -> 0 | D72: =SUMIFS('I2 Maintenance'!$D$51:$D$81,'I2 Maintenance'!$B$51:$B$81,D$68)*(1-D$67)+SUMIFS('I2 Maintenance'!$D$51:$D$81,'I2 Maintenance'!$B$51:$B$81,D$69)*(D$67) -> 0 | E72: =SUMIFS('I2 Maintenance'!$D$51:$D$81,'I2 Maintenance'!$B$51:$B$81,E$68)*(1-E$67)+SUMIFS('I2 Maintenance'!$D$51:$D$81,'I2 Maintenance'!$B$51:$B$81,E$69)*(E$67) -> 0 | F72: =SUMIFS('I2 Maintenance'!$D$51:$D$81,'I2 Maintenance'!$B$51:$B$81,F$68)*(1-F$67)+SUMIFS('I2 Maintenance'!$D$51:$D$81,'I2 Maintenance'!$B$51:$B$81,F$69)*(F$67) -> 0 | G72: =SUMIFS('I2 Maintenance'!$D$51:$D$81,'I2 Maintenance'!$B$51:$B$81,G$68)*(1-G$67)+SUMIFS('I2 Maintenance'!$D$51:$D$81,'I2 Maintenance'!$B$51:$B$81,G$69)*(G$67) -> 0 | H72: =SUMIFS('I2 Maintenance'!$D$51:$D$81,'I2 Maintenance'!$B$51:$B$81,H$68)*(1-H$67)+SUMIFS('I2 Maintenance'!$D$51:$D$81,'I2 Maintenance'!$B$51:$B$81,H$69)*(H$67) -> 0 | I72: =SUMIFS('I2 Maintenance'!$D$51:$D$81,'I2 Maintenance'!$B$51:$B$81,I$68)*(1-I$67)+SUMIFS('I2 Maintenance'!$D$51:$D$81,'I2 Maintenance'!$B$51:$B$81,I$69)*(I$67) -> 0.06025 | J72: =SUMIFS('I2 Maintenance'!$D$51:$D$81,'I2 Maintenance'!$B$51:$B$81,J$68)*(1-J$67)+SUMIFS('I2 Maintenance'!$D$51:$D$81,'I2 Maintenance'!$B$51:$B$81,J$69)*(J$67) -> 0.1205 | K72: =SUMIFS('I2 Maintenance'!$D$51:$D$81,'I2 Maintenance'!$B$51:$B$81,K$68)*(1-K$67)+SUMIFS('I2 Maintenance'!$D$51:$D$81,'I2 Maintenance'!$B$51:$B$81,K$69)*(K$67) -> 0.18075 | L72: =SUMIFS('I2 Maintenance'!$D$51:$D$81,'I2 Maintenance'!$B$51:$B$81,L$68)*(1-L$67)+SUMIFS('I2 Maintenance'!$D$51:$D$81,'I2 Maintenance'!$B$51:$B$81,L$69)*(L$67) -> 0.241 | M72: =SUMIFS('I2 Maintenance'!$D$51:$D$81,'I2 Maintenance'!$B$51:$B$81,M$68)*(1-M$67)+SUMIFS('I2 Maintenance'!$D$51:$D$81,'I2 Maintenance'!$B$51:$B$81,M$69)*(M$67) -> 0.30125 | N72: =SUMIFS('I2 Maintenance'!$D$51:$D$81,'I2 Maintenance'!$B$51:$B$81,N$68)*(1-N$67)+SUMIFS('I2 Maintenance'!$D$51:$D$81,'I2 Maintenance'!$B$51:$B$81,N$69)*(N$67) -> 0.3815833333 | O72: =SUMIFS('I2 Maintenance'!$D$51:$D$81,'I2 Maintenance'!$B$51:$B$81,O$68)*(1-O$67)+SUMIFS('I2 Maintenance'!$D$51:$D$81,'I2 Maintenance'!$B$51:$B$81,O$69)*(O$67) -> 0.4619166667 | P72: =SUMIFS('I2 Maintenance'!$D$51:$D$81,'I2 Maintenance'!$B$51:$B$81,P$68)*(1-P$67)+SUMIFS('I2 Maintenance'!$D$51:$D$81,'I2 Maintenance'!$B$51:$B$81,P$69)*(P$67) -> 0.54225 | Q72: =SUMIFS('I2 Maintenance'!$D$51:$D$81,'I2 Maintenance'!$B$51:$B$81,Q$68)*(1-Q$67)+SUMIFS('I2 Maintenance'!$D$51:$D$81,'I2 Maintenance'!$B$51:$B$81,Q$69)*(Q$67) -> 0.6225833333 | R72: =SUMIFS('I2 Maintenance'!$D$51:$D$81,'I2 Maintenance'!$B$51:$B$81,R$68)*(1-R$67)+SUMIFS('I2 Maintenance'!$D$51:$D$81,'I2 Maintenance'!$B$51:$B$81,R$69)*(R$67) -> 0.7029166667 | S72: =SUMIFS('I2 Maintenance'!$D$51:$D$81,'I2 Maintenance'!$B$51:$B$81,S$68)*(1-S$67)+SUMIFS('I2 Maintenance'!$D$51:$D$81,'I2 Maintenance'!$B$51:$B$81,S$69)*(S$67) -> 0.8435 | T72: =SUMIFS('I2 Maintenance'!$D$51:$D$81,'I2 Maintenance'!$B$51:$B$81,T$68)*(1-T$67)+SUMIFS('I2 Maintenance'!$D$51:$D$81,'I2 Maintenance'!$B$51:$B$81,T$69)*(T$67) -> 0.9840833333 | U72: =SUMIFS('I2 Maintenance'!$D$51:$D$81,'I2 Maintenance'!$B$51:$B$81,U$68)*(1-U$67)+SUMIFS('I2 Maintenance'!$D$51:$D$81,'I2 Maintenance'!$B$51:$B$81,U$69)*(U$67) -> 1.124666667 | V72: =SUMIFS('I2 Maintenance'!$D$51:$D$81,'I2 Maintenance'!$B$51:$B$81,V$68)*(1-V$67)+SUMIFS('I2 Maintenance'!$D$51:$D$81,'I2 Maintenance'!$B$51:$B$81,V$69)*(V$67) -> 1.26525 | W72: =SUMIFS('I2 Maintenance'!$D$51:$D$81,'I2 Maintenance'!$B$51:$B$81,W$68)*(1-W$67)+SUMIFS('I2 Maintenance'!$D$51:$D$81,'I2 Maintenance'!$B$51:$B$81,W$69)*(W$67) -> 1.405833333 | X72: =SUMIFS('I2 Maintenance'!$D$51:$D$81,'I2 Maintenance'!$B$51:$B$81,X$68)*(1-X$67)+SUMIFS('I2 Maintenance'!$D$51:$D$81,'I2 Maintenance'!$B$51:$B$81,X$69)*(X$67) -> 1.646833333 | Y72: =SUMIFS('I2 Maintenance'!$D$51:$D$81,'I2 Maintenance'!$B$51:$B$81,Y$68)*(1-Y$67)+SUMIFS('I2 Maintenance'!$D$51:$D$81,'I2 Maintenance'!$B$51:$B$81,Y$69)*(Y$67) -> 1.887833333 | Z72: =SUMIFS('I2 Maintenance'!$D$51:$D$81,'I2 Maintenance'!$B$51:$B$81,Z$68)*(1-Z$67)+SUMIFS('I2 Maintenance'!$D$51:$D$81,'I2 Maintenance'!$B$51:$B$81,Z$69)*(Z$67) -> 2.128833333 | AA72: =SUMIFS('I2 Maintenance'!$D$51:$D$81,'I2 Maintenance'!$B$51:$B$81,AA$68)*(1-AA$67)+SUMIFS('I2 Maintenance'!$D$51:$D$81,'I2 Maintenance'!$B$51:$B$81,AA$69)*(AA$67) -> 2.369833333 | AB72: =SUMIFS('I2 Maintenance'!$D$51:$D$81,'I2 Maintenance'!$B$51:$B$81,AB$68)*(1-AB$67)+SUMIFS('I2 Maintenance'!$D$51:$D$81,'I2 Maintenance'!$B$51:$B$81,AB$69)*(AB$67) -> 2.610833333 | AC72: =SUMIFS('I2 Maintenance'!$D$51:$D$81,'I2 Maintenance'!$B$51:$B$81,AC$68)*(1-AC$67)+SUMIFS('I2 Maintenance'!$D$51:$D$81,'I2 Maintenance'!$B$51:$B$81,AC$69)*(AC$67) -> 2.932166667 | AD72: =SUMIFS('I2 Maintenance'!$D$51:$D$81,'I2 Maintenance'!$B$51:$B$81,AD$68)*(1-AD$67)+SUMIFS('I2 Maintenance'!$D$51:$D$81,'I2 Maintenance'!$B$51:$B$81,AD$69)*(AD$67) -> 3.2535 | AE72: =SUMIFS('I2 Maintenance'!$D$51:$D$81,'I2 Maintenance'!$B$51:$B$81,AE$68)*(1-AE$67)+SUMIFS('I2 Maintenance'!$D$51:$D$81,'I2 Maintenance'!$B$51:$B$81,AE$69)*(AE$67) -> 3.574833333 | AF72: =SUMIFS('I2 Maintenance'!$D$51:$D$81,'I2 Maintenance'!$B$51:$B$81,AF$68)*(1-AF$67)+SUMIFS('I2 Maintenance'!$D$51:$D$81,'I2 Maintenance'!$B$51:$B$81,AF$69)*(AF$67) -> 3.896166667 | AG72: =SUMIFS('I2 Maintenance'!$D$51:$D$81,'I2 Maintenance'!$B$51:$B$81,AG$68)*(1-AG$67)+SUMIFS('I2 Maintenance'!$D$51:$D$81,'I2 Maintenance'!$B$51:$B$81,AG$69)*(AG$67) -> 4.2175 | AH72: =SUMIFS('I2 Maintenance'!$D$51:$D$81,'I2 Maintenance'!$B$51:$B$81,AH$68)*(1-AH$67)+SUMIFS('I2 Maintenance'!$D$51:$D$81,'I2 Maintenance'!$B$51:$B$81,AH$69)*(AH$67) -> 4.579 | AI72: =SUMIFS('I2 Maintenance'!$D$51:$D$81,'I2 Maintenance'!$B$51:$B$81,AI$68)*(1-AI$67)+SUMIFS('I2 Maintenance'!$D$51:$D$81,'I2 Maintenance'!$B$51:$B$81,AI$69)*(AI$67) -> 4.9405 | AJ72: =SUMIFS('I2 Maintenance'!$D$51:$D$81,'I2 Maintenance'!$B$51:$B$81,AJ$68)*(1-AJ$67)+SUMIFS('I2 Maintenance'!$D$51:$D$81,'I2 Maintenance'!$B$51:$B$81,AJ$69)*(AJ$67) -> 5.302 | AK72: =SUMIFS('I2 Maintenance'!$D$51:$D$81,'I2 Maintenance'!$B$51:$B$81,AK$68)*(1-AK$67)+SUMIFS('I2 Maintenance'!$D$51:$D$81,'I2 Maintenance'!$B$51:$B$81,AK$69)*(AK$67) -> 5.6635 | AL72: =SUMIFS('I2 Maintenance'!$D$51:$D$81,'I2 Maintenance'!$B$51:$B$81,AL$68)*(1-AL$67)+SUMIFS('I2 Maintenance'!$D$51:$D$81,'I2 Maintenance'!$B$51:$B$81,AL$69)*(AL$67) -> 6.025 | AM72: =SUMIFS('I2 Maintenance'!$D$51:$D$81,'I2 Maintenance'!$B$51:$B$81,AM$68)*(1-AM$67)+SUMIFS('I2 Maintenance'!$D$51:$D$81,'I2 Maintenance'!$B$51:$B$81,AM$69)*(AM$67) -> 6.44675 | AN72: =SUMIFS('I2 Maintenance'!$D$51:$D$81,'I2 Maintenance'!$B$51:$B$81,AN$68)*(1-AN$67)+SUMIFS('I2 Maintenance'!$D$51:$D$81,'I2 Maintenance'!$B$51:$B$81,AN$69)*(AN$67) -> 6.8685 | AO72: =SUMIFS('I2 Maintenance'!$D$51:$D$81,'I2 Maintenance'!$B$51:$B$81,AO$68)*(1-AO$67)+SUMIFS('I2 Maintenance'!$D$51:$D$81,'I2 Maintenance'!$B$51:$B$81,AO$69)*(AO$67) -> 7.29025 | AP72: =SUMIFS('I2 Maintenance'!$D$51:$D$81,'I2 Maintenance'!$B$51:$B$81,AP$68)*(1-AP$67)+SUMIFS('I2 Maintenance'!$D$51:$D$81,'I2 Maintenance'!$B$51:$B$81,AP$69)*(AP$67) -> 7.712 | AQ72: =SUMIFS('I2 Maintenance'!$D$51:$D$81,'I2 Maintenance'!$B$51:$B$81,AQ$68)*(1-AQ$67)+SUMIFS('I2 Maintenance'!$D$51:$D$81,'I2 Maintenance'!$B$51:$B$81,AQ$69)*(AQ$67) -> 8.13375
B73: Medium commercial vehicle | C73: =SUMIFS('I2 Maintenance'!$E$51:$E$81,'I2 Maintenance'!$B$51:$B$81,C$68)*(1-C$67)+SUMIFS('I2 Maintenance'!$E$51:$E$81,'I2 Maintenance'!$B$51:$B$81,C$69)*(C$67) -> 0 | D73: =SUMIFS('I2 Maintenance'!$E$51:$E$81,'I2 Maintenance'!$B$51:$B$81,D$68)*(1-D$67)+SUMIFS('I2 Maintenance'!$E$51:$E$81,'I2 Maintenance'!$B$51:$B$81,D$69)*(D$67) -> 0 | E73: =SUMIFS('I2 Maintenance'!$E$51:$E$81,'I2 Maintenance'!$B$51:$B$81,E$68)*(1-E$67)+SUMIFS('I2 Maintenance'!$E$51:$E$81,'I2 Maintenance'!$B$51:$B$81,E$69)*(E$67) -> 0 | F73: =SUMIFS('I2 Maintenance'!$E$51:$E$81,'I2 Maintenance'!$B$51:$B$81,F$68)*(1-F$67)+SUMIFS('I2 Maintenance'!$E$51:$E$81,'I2 Maintenance'!$B$51:$B$81,F$69)*(F$67) -> 0 | G73: =SUMIFS('I2 Maintenance'!$E$51:$E$81,'I2 Maintenance'!$B$51:$B$81,G$68)*(1-G$67)+SUMIFS('I2 Maintenance'!$E$51:$E$81,'I2 Maintenance'!$B$51:$B$81,G$69)*(G$67) -> 0 | H73: =SUMIFS('I2 Maintenance'!$E$51:$E$81,'I2 Maintenance'!$B$51:$B$81,H$68)*(1-H$67)+SUMIFS('I2 Maintenance'!$E$51:$E$81,'I2 Maintenance'!$B$51:$B$81,H$69)*(H$67) -> 0 | I73: =SUMIFS('I2 Maintenance'!$E$51:$E$81,'I2 Maintenance'!$B$51:$B$81,I$68)*(1-I$67)+SUMIFS('I2 Maintenance'!$E$51:$E$81,'I2 Maintenance'!$B$51:$B$81,I$69)*(I$67) -> 0.1405833333 | J73: =SUMIFS('I2 Maintenance'!$E$51:$E$81,'I2 Maintenance'!$B$51:$B$81,J$68)*(1-J$67)+SUMIFS('I2 Maintenance'!$E$51:$E$81,'I2 Maintenance'!$B$51:$B$81,J$69)*(J$67) -> 0.2811666667 | K73: =SUMIFS('I2 Maintenance'!$E$51:$E$81,'I2 Maintenance'!$B$51:$B$81,K$68)*(1-K$67)+SUMIFS('I2 Maintenance'!$E$51:$E$81,'I2 Maintenance'!$B$51:$B$81,K$69)*(K$67) -> 0.42175 | L73: =SUMIFS('I2 Maintenance'!$E$51:$E$81,'I2 Maintenance'!$B$51:$B$81,L$68)*(1-L$67)+SUMIFS('I2 Maintenance'!$E$51:$E$81,'I2 Maintenance'!$B$51:$B$81,L$69)*(L$67) -> 0.5623333333 | M73: =SUMIFS('I2 Maintenance'!$E$51:$E$81,'I2 Maintenance'!$B$51:$B$81,M$68)*(1-M$67)+SUMIFS('I2 Maintenance'!$E$51:$E$81,'I2 Maintenance'!$B$51:$B$81,M$69)*(M$67) -> 0.7029166667 | N73: =SUMIFS('I2 Maintenance'!$E$51:$E$81,'I2 Maintenance'!$B$51:$B$81,N$68)*(1-N$67)+SUMIFS('I2 Maintenance'!$E$51:$E$81,'I2 Maintenance'!$B$51:$B$81,N$69)*(N$67) -> 1.02425 | O73: =SUMIFS('I2 Maintenance'!$E$51:$E$81,'I2 Maintenance'!$B$51:$B$81,O$68)*(1-O$67)+SUMIFS('I2 Maintenance'!$E$51:$E$81,'I2 Maintenance'!$B$51:$B$81,O$69)*(O$67) -> 1.345583333 | P73: =SUMIFS('I2 Maintenance'!$E$51:$E$81,'I2 Maintenance'!$B$51:$B$81,P$68)*(1-P$67)+SUMIFS('I2 Maintenance'!$E$51:$E$81,'I2 Maintenance'!$B$51:$B$81,P$69)*(P$67) -> 1.666916667 | Q73: =SUMIFS('I2 Maintenance'!$E$51:$E$81,'I2 Maintenance'!$B$51:$B$81,Q$68)*(1-Q$67)+SUMIFS('I2 Maintenance'!$E$51:$E$81,'I2 Maintenance'!$B$51:$B$81,Q$69)*(Q$67) -> 1.98825 | R73: =SUMIFS('I2 Maintenance'!$E$51:$E$81,'I2 Maintenance'!$B$51:$B$81,R$68)*(1-R$67)+SUMIFS('I2 Maintenance'!$E$51:$E$81,'I2 Maintenance'!$B$51:$B$81,R$69)*(R$67) -> 2.309583333 | S73: =SUMIFS('I2 Maintenance'!$E$51:$E$81,'I2 Maintenance'!$B$51:$B$81,S$68)*(1-S$67)+SUMIFS('I2 Maintenance'!$E$51:$E$81,'I2 Maintenance'!$B$51:$B$81,S$69)*(S$67) -> 2.791583333 | T73: =SUMIFS('I2 Maintenance'!$E$51:$E$81,'I2 Maintenance'!$B$51:$B$81,T$68)*(1-T$67)+SUMIFS('I2 Maintenance'!$E$51:$E$81,'I2 Maintenance'!$B$51:$B$81,T$69)*(T$67) -> 3.273583333 | U73: =SUMIFS('I2 Maintenance'!$E$51:$E$81,'I2 Maintenance'!$B$51:$B$81,U$68)*(1-U$67)+SUMIFS('I2 Maintenance'!$E$51:$E$81,'I2 Maintenance'!$B$51:$B$81,U$69)*(U$67) -> 3.755583333 | V73: =SUMIFS('I2 Maintenance'!$E$51:$E$81,'I2 Maintenance'!$B$51:$B$81,V$68)*(1-V$67)+SUMIFS('I2 Maintenance'!$E$51:$E$81,'I2 Maintenance'!$B$51:$B$81,V$69)*(V$67) -> 4.237583333 | W73: =SUMIFS('I2 Maintenance'!$E$51:$E$81,'I2 Maintenance'!$B$51:$B$81,W$68)*(1-W$67)+SUMIFS('I2 Maintenance'!$E$51:$E$81,'I2 Maintenance'!$B$51:$B$81,W$69)*(W$67) -> 4.719583333 | X73: =SUMIFS('I2 Maintenance'!$E$51:$E$81,'I2 Maintenance'!$B$51:$B$81,X$68)*(1-X$67)+SUMIFS('I2 Maintenance'!$E$51:$E$81,'I2 Maintenance'!$B$51:$B$81,X$69)*(X$67) -> 5.302 | Y73: =SUMIFS('I2 Maintenance'!$E$51:$E$81,'I2 Maintenance'!$B$51:$B$81,Y$68)*(1-Y$67)+SUMIFS('I2 Maintenance'!$E$51:$E$81,'I2 Maintenance'!$B$51:$B$81,Y$69)*(Y$67) -> 5.884416667 | Z73: =SUMIFS('I2 Maintenance'!$E$51:$E$81,'I2 Maintenance'!$B$51:$B$81,Z$68)*(1-Z$67)+SUMIFS('I2 Maintenance'!$E$51:$E$81,'I2 Maintenance'!$B$51:$B$81,Z$69)*(Z$67) -> 6.466833333 | AA73: =SUMIFS('I2 Maintenance'!$E$51:$E$81,'I2 Maintenance'!$B$51:$B$81,AA$68)*(1-AA$67)+SUMIFS('I2 Maintenance'!$E$51:$E$81,'I2 Maintenance'!$B$51:$B$81,AA$69)*(AA$67) -> 7.04925 | AB73: =SUMIFS('I2 Maintenance'!$E$51:$E$81,'I2 Maintenance'!$B$51:$B$81,AB$68)*(1-AB$67)+SUMIFS('I2 Maintenance'!$E$51:$E$81,'I2 Maintenance'!$B$51:$B$81,AB$69)*(AB$67) -> 7.631666667 | AC73: =SUMIFS('I2 Maintenance'!$E$51:$E$81,'I2 Maintenance'!$B$51:$B$81,AC$68)*(1-AC$67)+SUMIFS('I2 Maintenance'!$E$51:$E$81,'I2 Maintenance'!$B$51:$B$81,AC$69)*(AC$67) -> 8.294416667 | AD73: =SUMIFS('I2 Maintenance'!$E$51:$E$81,'I2 Maintenance'!$B$51:$B$81,AD$68)*(1-AD$67)+SUMIFS('I2 Maintenance'!$E$51:$E$81,'I2 Maintenance'!$B$51:$B$81,AD$69)*(AD$67) -> 8.957166667 | AE73: =SUMIFS('I2 Maintenance'!$E$51:$E$81,'I2 Maintenance'!$B$51:$B$81,AE$68)*(1-AE$67)+SUMIFS('I2 Maintenance'!$E$51:$E$81,'I2 Maintenance'!$B$51:$B$81,AE$69)*(AE$67) -> 9.619916667 | AF73: =SUMIFS('I2 Maintenance'!$E$51:$E$81,'I2 Maintenance'!$B$51:$B$81,AF$68)*(1-AF$67)+SUMIFS('I2 Maintenance'!$E$51:$E$81,'I2 Maintenance'!$B$51:$B$81,AF$69)*(AF$67) -> 10.28266667 | AG73: =SUMIFS('I2 Maintenance'!$E$51:$E$81,'I2 Maintenance'!$B$51:$B$81,AG$68)*(1-AG$67)+SUMIFS('I2 Maintenance'!$E$51:$E$81,'I2 Maintenance'!$B$51:$B$81,AG$69)*(AG$67) -> 10.94541667 | AH73: =SUMIFS('I2 Maintenance'!$E$51:$E$81,'I2 Maintenance'!$B$51:$B$81,AH$68)*(1-AH$67)+SUMIFS('I2 Maintenance'!$E$51:$E$81,'I2 Maintenance'!$B$51:$B$81,AH$69)*(AH$67) -> 11.66841667 | AI73: =SUMIFS('I2 Maintenance'!$E$51:$E$81,'I2 Maintenance'!$B$51:$B$81,AI$68)*(1-AI$67)+SUMIFS('I2 Maintenance'!$E$51:$E$81,'I2 Maintenance'!$B$51:$B$81,AI$69)*(AI$67) -> 12.39141667 | AJ73: =SUMIFS('I2 Maintenance'!$E$51:$E$81,'I2 Maintenance'!$B$51:$B$81,AJ$68)*(1-AJ$67)+SUMIFS('I2 Maintenance'!$E$51:$E$81,'I2 Maintenance'!$B$51:$B$81,AJ$69)*(AJ$67) -> 13.11441667 | AK73: =SUMIFS('I2 Maintenance'!$E$51:$E$81,'I2 Maintenance'!$B$51:$B$81,AK$68)*(1-AK$67)+SUMIFS('I2 Maintenance'!$E$51:$E$81,'I2 Maintenance'!$B$51:$B$81,AK$69)*(AK$67) -> 13.83741667 | AL73: =SUMIFS('I2 Maintenance'!$E$51:$E$81,'I2 Maintenance'!$B$51:$B$81,AL$68)*(1-AL$67)+SUMIFS('I2 Maintenance'!$E$51:$E$81,'I2 Maintenance'!$B$51:$B$81,AL$69)*(AL$67) -> 14.56041667 | AM73: =SUMIFS('I2 Maintenance'!$E$51:$E$81,'I2 Maintenance'!$B$51:$B$81,AM$68)*(1-AM$67)+SUMIFS('I2 Maintenance'!$E$51:$E$81,'I2 Maintenance'!$B$51:$B$81,AM$69)*(AM$67) -> 15.32358333 | AN73: =SUMIFS('I2 Maintenance'!$E$51:$E$81,'I2 Maintenance'!$B$51:$B$81,AN$68)*(1-AN$67)+SUMIFS('I2 Maintenance'!$E$51:$E$81,'I2 Maintenance'!$B$51:$B$81,AN$69)*(AN$67) -> 16.08675 | AO73: =SUMIFS('I2 Maintenance'!$E$51:$E$81,'I2 Maintenance'!$B$51:$B$81,AO$68)*(1-AO$67)+SUMIFS('I2 Maintenance'!$E$51:$E$81,'I2 Maintenance'!$B$51:$B$81,AO$69)*(AO$67) -> 16.84991667 | AP73: =SUMIFS('I2 Maintenance'!$E$51:$E$81,'I2 Maintenance'!$B$51:$B$81,AP$68)*(1-AP$67)+SUMIFS('I2 Maintenance'!$E$51:$E$81,'I2 Maintenance'!$B$51:$B$81,AP$69)*(AP$67) -> 17.61308333 | AQ73: =SUMIFS('I2 Maintenance'!$E$51:$E$81,'I2 Maintenance'!$B$51:$B$81,AQ$68)*(1-AQ$67)+SUMIFS('I2 Maintenance'!$E$51:$E$81,'I2 Maintenance'!$B$51:$B$81,AQ$69)*(AQ$67) -> 18.37625
B74: HCV1 | C74: =SUMIFS('I2 Maintenance'!$F$51:$F$81,'I2 Maintenance'!$B$51:$B$81,C$68)*(1-C$67)+SUMIFS('I2 Maintenance'!$F$51:$F$81,'I2 Maintenance'!$B$51:$B$81,C$69)*(C$67) -> 0 | D74: =SUMIFS('I2 Maintenance'!$F$51:$F$81,'I2 Maintenance'!$B$51:$B$81,D$68)*(1-D$67)+SUMIFS('I2 Maintenance'!$F$51:$F$81,'I2 Maintenance'!$B$51:$B$81,D$69)*(D$67) -> 0 | E74: =SUMIFS('I2 Maintenance'!$F$51:$F$81,'I2 Maintenance'!$B$51:$B$81,E$68)*(1-E$67)+SUMIFS('I2 Maintenance'!$F$51:$F$81,'I2 Maintenance'!$B$51:$B$81,E$69)*(E$67) -> 0 | F74: =SUMIFS('I2 Maintenance'!$F$51:$F$81,'I2 Maintenance'!$B$51:$B$81,F$68)*(1-F$67)+SUMIFS('I2 Maintenance'!$F$51:$F$81,'I2 Maintenance'!$B$51:$B$81,F$69)*(F$67) -> 0 | G74: =SUMIFS('I2 Maintenance'!$F$51:$F$81,'I2 Maintenance'!$B$51:$B$81,G$68)*(1-G$67)+SUMIFS('I2 Maintenance'!$F$51:$F$81,'I2 Maintenance'!$B$51:$B$81,G$69)*(G$67) -> 0 | H74: =SUMIFS('I2 Maintenance'!$F$51:$F$81,'I2 Maintenance'!$B$51:$B$81,H$68)*(1-H$67)+SUMIFS('I2 Maintenance'!$F$51:$F$81,'I2 Maintenance'!$B$51:$B$81,H$69)*(H$67) -> 0 | I74: =SUMIFS('I2 Maintenance'!$F$51:$F$81,'I2 Maintenance'!$B$51:$B$81,I$68)*(1-I$67)+SUMIFS('I2 Maintenance'!$F$51:$F$81,'I2 Maintenance'!$B$51:$B$81,I$69)*(I$67) -> 0.18075 | J74: =SUMIFS('I2 Maintenance'!$F$51:$F$81,'I2 Maintenance'!$B$51:$B$81,J$68)*(1-J$67)+SUMIFS('I2 Maintenance'!$F$51:$F$81,'I2 Maintenance'!$B$51:$B$81,J$69)*(J$67) -> 0.3615 | K74: =SUMIFS('I2 Maintenance'!$F$51:$F$81,'I2 Maintenance'!$B$51:$B$81,K$68)*(1-K$67)+SUMIFS('I2 Maintenance'!$F$51:$F$81,'I2 Maintenance'!$B$51:$B$81,K$69)*(K$67) -> 0.54225 | L74: =SUMIFS('I2 Maintenance'!$F$51:$F$81,'I2 Maintenance'!$B$51:$B$81,L$68)*(1-L$67)+SUMIFS('I2 Maintenance'!$F$51:$F$81,'I2 Maintenance'!$B$51:$B$81,L$69)*(L$67) -> 0.723 | M74: =SUMIFS('I2 Maintenance'!$F$51:$F$81,'I2 Maintenance'!$B$51:$B$81,M$68)*(1-M$67)+SUMIFS('I2 Maintenance'!$F$51:$F$81,'I2 Maintenance'!$B$51:$B$81,M$69)*(M$67) -> 0.90375 | N74: =SUMIFS('I2 Maintenance'!$F$51:$F$81,'I2 Maintenance'!$B$51:$B$81,N$68)*(1-N$67)+SUMIFS('I2 Maintenance'!$F$51:$F$81,'I2 Maintenance'!$B$51:$B$81,N$69)*(N$67) -> 1.345583333 | O74: =SUMIFS('I2 Maintenance'!$F$51:$F$81,'I2 Maintenance'!$B$51:$B$81,O$68)*(1-O$67)+SUMIFS('I2 Maintenance'!$F$51:$F$81,'I2 Maintenance'!$B$51:$B$81,O$69)*(O$67) -> 1.787416667 | P74: =SUMIFS('I2 Maintenance'!$F$51:$F$81,'I2 Maintenance'!$B$51:$B$81,P$68)*(1-P$67)+SUMIFS('I2 Maintenance'!$F$51:$F$81,'I2 Maintenance'!$B$51:$B$81,P$69)*(P$67) -> 2.22925 | Q74: =SUMIFS('I2 Maintenance'!$F$51:$F$81,'I2 Maintenance'!$B$51:$B$81,Q$68)*(1-Q$67)+SUMIFS('I2 Maintenance'!$F$51:$F$81,'I2 Maintenance'!$B$51:$B$81,Q$69)*(Q$67) -> 2.671083333 | R74: =SUMIFS('I2 Maintenance'!$F$51:$F$81,'I2 Maintenance'!$B$51:$B$81,R$68)*(1-R$67)+SUMIFS('I2 Maintenance'!$F$51:$F$81,'I2 Maintenance'!$B$51:$B$81,R$69)*(R$67) -> 3.112916667 | S74: =SUMIFS('I2 Maintenance'!$F$51:$F$81,'I2 Maintenance'!$B$51:$B$81,S$68)*(1-S$67)+SUMIFS('I2 Maintenance'!$F$51:$F$81,'I2 Maintenance'!$B$51:$B$81,S$69)*(S$67) -> 3.755583333 | T74: =SUMIFS('I2 Maintenance'!$F$51:$F$81,'I2 Maintenance'!$B$51:$B$81,T$68)*(1-T$67)+SUMIFS('I2 Maintenance'!$F$51:$F$81,'I2 Maintenance'!$B$51:$B$81,T$69)*(T$67) -> 4.39825 | U74: =SUMIFS('I2 Maintenance'!$F$51:$F$81,'I2 Maintenance'!$B$51:$B$81,U$68)*(1-U$67)+SUMIFS('I2 Maintenance'!$F$51:$F$81,'I2 Maintenance'!$B$51:$B$81,U$69)*(U$67) -> 5.040916667 | V74: =SUMIFS('I2 Maintenance'!$F$51:$F$81,'I2 Maintenance'!$B$51:$B$81,V$68)*(1-V$67)+SUMIFS('I2 Maintenance'!$F$51:$F$81,'I2 Maintenance'!$B$51:$B$81,V$69)*(V$67) -> 5.683583333 | W74: =SUMIFS('I2 Maintenance'!$F$51:$F$81,'I2 Maintenance'!$B$51:$B$81,W$68)*(1-W$67)+SUMIFS('I2 Maintenance'!$F$51:$F$81,'I2 Maintenance'!$B$51:$B$81,W$69)*(W$67) -> 6.32625 | X74: =SUMIFS('I2 Maintenance'!$F$51:$F$81,'I2 Maintenance'!$B$51:$B$81,X$68)*(1-X$67)+SUMIFS('I2 Maintenance'!$F$51:$F$81,'I2 Maintenance'!$B$51:$B$81,X$69)*(X$67) -> 7.1095 | Y74: =SUMIFS('I2 Maintenance'!$F$51:$F$81,'I2 Maintenance'!$B$51:$B$81,Y$68)*(1-Y$67)+SUMIFS('I2 Maintenance'!$F$51:$F$81,'I2 Maintenance'!$B$51:$B$81,Y$69)*(Y$67) -> 7.89275 | Z74: =SUMIFS('I2 Maintenance'!$F$51:$F$81,'I2 Maintenance'!$B$51:$B$81,Z$68)*(1-Z$67)+SUMIFS('I2 Maintenance'!$F$51:$F$81,'I2 Maintenance'!$B$51:$B$81,Z$69)*(Z$67) -> 8.676 | AA74: =SUMIFS('I2 Maintenance'!$F$51:$F$81,'I2 Maintenance'!$B$51:$B$81,AA$68)*(1-AA$67)+SUMIFS('I2 Maintenance'!$F$51:$F$81,'I2 Maintenance'!$B$51:$B$81,AA$69)*(AA$67) -> 9.45925 | AB74: =SUMIFS('I2 Maintenance'!$F$51:$F$81,'I2 Maintenance'!$B$51:$B$81,AB$68)*(1-AB$67)+SUMIFS('I2 Maintenance'!$F$51:$F$81,'I2 Maintenance'!$B$51:$B$81,AB$69)*(AB$67) -> 10.2425 | AC74: =SUMIFS('I2 Maintenance'!$F$51:$F$81,'I2 Maintenance'!$B$51:$B$81,AC$68)*(1-AC$67)+SUMIFS('I2 Maintenance'!$F$51:$F$81,'I2 Maintenance'!$B$51:$B$81,AC$69)*(AC$67) -> 11.14625 | AD74: =SUMIFS('I2 Maintenance'!$F$51:$F$81,'I2 Maintenance'!$B$51:$B$81,AD$68)*(1-AD$67)+SUMIFS('I2 Maintenance'!$F$51:$F$81,'I2 Maintenance'!$B$51:$B$81,AD$69)*(AD$67) -> 12.05 | AE74: =SUMIFS('I2 Maintenance'!$F$51:$F$81,'I2 Maintenance'!$B$51:$B$81,AE$68)*(1-AE$67)+SUMIFS('I2 Maintenance'!$F$51:$F$81,'I2 Maintenance'!$B$51:$B$81,AE$69)*(AE$67) -> 12.95375 | AF74: =SUMIFS('I2 Maintenance'!$F$51:$F$81,'I2 Maintenance'!$B$51:$B$81,AF$68)*(1-AF$67)+SUMIFS('I2 Maintenance'!$F$51:$F$81,'I2 Maintenance'!$B$51:$B$81,AF$69)*(AF$67) -> 13.8575 | AG74: =SUMIFS('I2 Maintenance'!$F$51:$F$81,'I2 Maintenance'!$B$51:$B$81,AG$68)*(1-AG$67)+SUMIFS('I2 Maintenance'!$F$51:$F$81,'I2 Maintenance'!$B$51:$B$81,AG$69)*(AG$67) -> 14.76125 | AH74: =SUMIFS('I2 Maintenance'!$F$51:$F$81,'I2 Maintenance'!$B$51:$B$81,AH$68)*(1-AH$67)+SUMIFS('I2 Maintenance'!$F$51:$F$81,'I2 Maintenance'!$B$51:$B$81,AH$69)*(AH$67) -> 15.74533333 | AI74: =SUMIFS('I2 Maintenance'!$F$51:$F$81,'I2 Maintenance'!$B$51:$B$81,AI$68)*(1-AI$67)+SUMIFS('I2 Maintenance'!$F$51:$F$81,'I2 Maintenance'!$B$51:$B$81,AI$69)*(AI$67) -> 16.72941667 | AJ74: =SUMIFS('I2 Maintenance'!$F$51:$F$81,'I2 Maintenance'!$B$51:$B$81,AJ$68)*(1-AJ$67)+SUMIFS('I2 Maintenance'!$F$51:$F$81,'I2 Maintenance'!$B$51:$B$81,AJ$69)*(AJ$67) -> 17.7135 | AK74: =SUMIFS('I2 Maintenance'!$F$51:$F$81,'I2 Maintenance'!$B$51:$B$81,AK$68)*(1-AK$67)+SUMIFS('I2 Maintenance'!$F$51:$F$81,'I2 Maintenance'!$B$51:$B$81,AK$69)*(AK$67) -> 18.69758333 | AL74: =SUMIFS('I2 Maintenance'!$F$51:$F$81,'I2 Maintenance'!$B$51:$B$81,AL$68)*(1-AL$67)+SUMIFS('I2 Maintenance'!$F$51:$F$81,'I2 Maintenance'!$B$51:$B$81,AL$69)*(AL$67) -> 19.68166667 | AM74: =SUMIFS('I2 Maintenance'!$F$51:$F$81,'I2 Maintenance'!$B$51:$B$81,AM$68)*(1-AM$67)+SUMIFS('I2 Maintenance'!$F$51:$F$81,'I2 Maintenance'!$B$51:$B$81,AM$69)*(AM$67) -> 20.70591667 | AN74: =SUMIFS('I2 Maintenance'!$F$51:$F$81,'I2 Maintenance'!$B$51:$B$81,AN$68)*(1-AN$67)+SUMIFS('I2 Maintenance'!$F$51:$F$81,'I2 Maintenance'!$B$51:$B$81,AN$69)*(AN$67) -> 21.73016667 | AO74: =SUMIFS('I2 Maintenance'!$F$51:$F$81,'I2 Maintenance'!$B$51:$B$81,AO$68)*(1-AO$67)+SUMIFS('I2 Maintenance'!$F$51:$F$81,'I2 Maintenance'!$B$51:$B$81,AO$69)*(AO$67) -> 22.75441667 | AP74: =SUMIFS('I2 Maintenance'!$F$51:$F$81,'I2 Maintenance'!$B$51:$B$81,AP$68)*(1-AP$67)+SUMIFS('I2 Maintenance'!$F$51:$F$81,'I2 Maintenance'!$B$51:$B$81,AP$69)*(AP$67) -> 23.77866667 | AQ74: =SUMIFS('I2 Maintenance'!$F$51:$F$81,'I2 Maintenance'!$B$51:$B$81,AQ$68)*(1-AQ$67)+SUMIFS('I2 Maintenance'!$F$51:$F$81,'I2 Maintenance'!$B$51:$B$81,AQ$69)*(AQ$67) -> 24.80291667
B75: HCV2 | C75: =SUMIFS('I2 Maintenance'!$G$51:$G$81,'I2 Maintenance'!$B$51:$B$81,C$68)*(1-C$67)+SUMIFS('I2 Maintenance'!$G$51:$G$81,'I2 Maintenance'!$B$51:$B$81,C$69)*(C$67) -> 0 | D75: =SUMIFS('I2 Maintenance'!$G$51:$G$81,'I2 Maintenance'!$B$51:$B$81,D$68)*(1-D$67)+SUMIFS('I2 Maintenance'!$G$51:$G$81,'I2 Maintenance'!$B$51:$B$81,D$69)*(D$67) -> 0 | E75: =SUMIFS('I2 Maintenance'!$G$51:$G$81,'I2 Maintenance'!$B$51:$B$81,E$68)*(1-E$67)+SUMIFS('I2 Maintenance'!$G$51:$G$81,'I2 Maintenance'!$B$51:$B$81,E$69)*(E$67) -> 0 | F75: =SUMIFS('I2 Maintenance'!$G$51:$G$81,'I2 Maintenance'!$B$51:$B$81,F$68)*(1-F$67)+SUMIFS('I2 Maintenance'!$G$51:$G$81,'I2 Maintenance'!$B$51:$B$81,F$69)*(F$67) -> 0 | G75: =SUMIFS('I2 Maintenance'!$G$51:$G$81,'I2 Maintenance'!$B$51:$B$81,G$68)*(1-G$67)+SUMIFS('I2 Maintenance'!$G$51:$G$81,'I2 Maintenance'!$B$51:$B$81,G$69)*(G$67) -> 0 | H75: =SUMIFS('I2 Maintenance'!$G$51:$G$81,'I2 Maintenance'!$B$51:$B$81,H$68)*(1-H$67)+SUMIFS('I2 Maintenance'!$G$51:$G$81,'I2 Maintenance'!$B$51:$B$81,H$69)*(H$67) -> 0 | I75: =SUMIFS('I2 Maintenance'!$G$51:$G$81,'I2 Maintenance'!$B$51:$B$81,I$68)*(1-I$67)+SUMIFS('I2 Maintenance'!$G$51:$G$81,'I2 Maintenance'!$B$51:$B$81,I$69)*(I$67) -> 0.2811666667 | J75: =SUMIFS('I2 Maintenance'!$G$51:$G$81,'I2 Maintenance'!$B$51:$B$81,J$68)*(1-J$67)+SUMIFS('I2 Maintenance'!$G$51:$G$81,'I2 Maintenance'!$B$51:$B$81,J$69)*(J$67) -> 0.5623333333 | K75: =SUMIFS('I2 Maintenance'!$G$51:$G$81,'I2 Maintenance'!$B$51:$B$81,K$68)*(1-K$67)+SUMIFS('I2 Maintenance'!$G$51:$G$81,'I2 Maintenance'!$B$51:$B$81,K$69)*(K$67) -> 0.8435 | L75: =SUMIFS('I2 Maintenance'!$G$51:$G$81,'I2 Maintenance'!$B$51:$B$81,L$68)*(1-L$67)+SUMIFS('I2 Maintenance'!$G$51:$G$81,'I2 Maintenance'!$B$51:$B$81,L$69)*(L$67) -> 1.124666667 | M75: =SUMIFS('I2 Maintenance'!$G$51:$G$81,'I2 Maintenance'!$B$51:$B$81,M$68)*(1-M$67)+SUMIFS('I2 Maintenance'!$G$51:$G$81,'I2 Maintenance'!$B$51:$B$81,M$69)*(M$67) -> 1.405833333 | N75: =SUMIFS('I2 Maintenance'!$G$51:$G$81,'I2 Maintenance'!$B$51:$B$81,N$68)*(1-N$67)+SUMIFS('I2 Maintenance'!$G$51:$G$81,'I2 Maintenance'!$B$51:$B$81,N$69)*(N$67) -> 2.008333333 | O75: =SUMIFS('I2 Maintenance'!$G$51:$G$81,'I2 Maintenance'!$B$51:$B$81,O$68)*(1-O$67)+SUMIFS('I2 Maintenance'!$G$51:$G$81,'I2 Maintenance'!$B$51:$B$81,O$69)*(O$67) -> 2.610833333 | P75: =SUMIFS('I2 Maintenance'!$G$51:$G$81,'I2 Maintenance'!$B$51:$B$81,P$68)*(1-P$67)+SUMIFS('I2 Maintenance'!$G$51:$G$81,'I2 Maintenance'!$B$51:$B$81,P$69)*(P$67) -> 3.213333333 | Q75: =SUMIFS('I2 Maintenance'!$G$51:$G$81,'I2 Maintenance'!$B$51:$B$81,Q$68)*(1-Q$67)+SUMIFS('I2 Maintenance'!$G$51:$G$81,'I2 Maintenance'!$B$51:$B$81,Q$69)*(Q$67) -> 3.815833333 | R75: =SUMIFS('I2 Maintenance'!$G$51:$G$81,'I2 Maintenance'!$B$51:$B$81,R$68)*(1-R$67)+SUMIFS('I2 Maintenance'!$G$51:$G$81,'I2 Maintenance'!$B$51:$B$81,R$69)*(R$67) -> 4.418333333 | S75: =SUMIFS('I2 Maintenance'!$G$51:$G$81,'I2 Maintenance'!$B$51:$B$81,S$68)*(1-S$67)+SUMIFS('I2 Maintenance'!$G$51:$G$81,'I2 Maintenance'!$B$51:$B$81,S$69)*(S$67) -> 5.24175 | T75: =SUMIFS('I2 Maintenance'!$G$51:$G$81,'I2 Maintenance'!$B$51:$B$81,T$68)*(1-T$67)+SUMIFS('I2 Maintenance'!$G$51:$G$81,'I2 Maintenance'!$B$51:$B$81,T$69)*(T$67) -> 6.065166667 | U75: =SUMIFS('I2 Maintenance'!$G$51:$G$81,'I2 Maintenance'!$B$51:$B$81,U$68)*(1-U$67)+SUMIFS('I2 Maintenance'!$G$51:$G$81,'I2 Maintenance'!$B$51:$B$81,U$69)*(U$67) -> 6.888583333 | V75: =SUMIFS('I2 Maintenance'!$G$51:$G$81,'I2 Maintenance'!$B$51:$B$81,V$68)*(1-V$67)+SUMIFS('I2 Maintenance'!$G$51:$G$81,'I2 Maintenance'!$B$51:$B$81,V$69)*(V$67) -> 7.712 | W75: =SUMIFS('I2 Maintenance'!$G$51:$G$81,'I2 Maintenance'!$B$51:$B$81,W$68)*(1-W$67)+SUMIFS('I2 Maintenance'!$G$51:$G$81,'I2 Maintenance'!$B$51:$B$81,W$69)*(W$67) -> 8.535416667 | X75: =SUMIFS('I2 Maintenance'!$G$51:$G$81,'I2 Maintenance'!$B$51:$B$81,X$68)*(1-X$67)+SUMIFS('I2 Maintenance'!$G$51:$G$81,'I2 Maintenance'!$B$51:$B$81,X$69)*(X$67) -> 9.559666667 | Y75: =SUMIFS('I2 Maintenance'!$G$51:$G$81,'I2 Maintenance'!$B$51:$B$81,Y$68)*(1-Y$67)+SUMIFS('I2 Maintenance'!$G$51:$G$81,'I2 Maintenance'!$B$51:$B$81,Y$69)*(Y$67) -> 10.58391667 | Z75: =SUMIFS('I2 Maintenance'!$G$51:$G$81,'I2 Maintenance'!$B$51:$B$81,Z$68)*(1-Z$67)+SUMIFS('I2 Maintenance'!$G$51:$G$81,'I2 Maintenance'!$B$51:$B$81,Z$69)*(Z$67) -> 11.60816667 | AA75: =SUMIFS('I2 Maintenance'!$G$51:$G$81,'I2 Maintenance'!$B$51:$B$81,AA$68)*(1-AA$67)+SUMIFS('I2 Maintenance'!$G$51:$G$81,'I2 Maintenance'!$B$51:$B$81,AA$69)*(AA$67) -> 12.63241667 | AB75: =SUMIFS('I2 Maintenance'!$G$51:$G$81,'I2 Maintenance'!$B$51:$B$81,AB$68)*(1-AB$67)+SUMIFS('I2 Maintenance'!$G$51:$G$81,'I2 Maintenance'!$B$51:$B$81,AB$69)*(AB$67) -> 13.65666667 | AC75: =SUMIFS('I2 Maintenance'!$G$51:$G$81,'I2 Maintenance'!$B$51:$B$81,AC$68)*(1-AC$67)+SUMIFS('I2 Maintenance'!$G$51:$G$81,'I2 Maintenance'!$B$51:$B$81,AC$69)*(AC$67) -> 14.80141667 | AD75: =SUMIFS('I2 Maintenance'!$G$51:$G$81,'I2 Maintenance'!$B$51:$B$81,AD$68)*(1-AD$67)+SUMIFS('I2 Maintenance'!$G$51:$G$81,'I2 Maintenance'!$B$51:$B$81,AD$69)*(AD$67) -> 15.94616667 | AE75: =SUMIFS('I2 Maintenance'!$G$51:$G$81,'I2 Maintenance'!$B$51:$B$81,AE$68)*(1-AE$67)+SUMIFS('I2 Maintenance'!$G$51:$G$81,'I2 Maintenance'!$B$51:$B$81,AE$69)*(AE$67) -> 17.09091667 | AF75: =SUMIFS('I2 Maintenance'!$G$51:$G$81,'I2 Maintenance'!$B$51:$B$81,AF$68)*(1-AF$67)+SUMIFS('I2 Maintenance'!$G$51:$G$81,'I2 Maintenance'!$B$51:$B$81,AF$69)*(AF$67) -> 18.23566667 | AG75: =SUMIFS('I2 Maintenance'!$G$51:$G$81,'I2 Maintenance'!$B$51:$B$81,AG$68)*(1-AG$67)+SUMIFS('I2 Maintenance'!$G$51:$G$81,'I2 Maintenance'!$B$51:$B$81,AG$69)*(AG$67) -> 19.38041667 | AH75: =SUMIFS('I2 Maintenance'!$G$51:$G$81,'I2 Maintenance'!$B$51:$B$81,AH$68)*(1-AH$67)+SUMIFS('I2 Maintenance'!$G$51:$G$81,'I2 Maintenance'!$B$51:$B$81,AH$69)*(AH$67) -> 20.6055 | AI75: =SUMIFS('I2 Maintenance'!$G$51:$G$81,'I2 Maintenance'!$B$51:$B$81,AI$68)*(1-AI$67)+SUMIFS('I2 Maintenance'!$G$51:$G$81,'I2 Maintenance'!$B$51:$B$81,AI$69)*(AI$67) -> 21.83058333 | AJ75: =SUMIFS('I2 Maintenance'!$G$51:$G$81,'I2 Maintenance'!$B$51:$B$81,AJ$68)*(1-AJ$67)+SUMIFS('I2 Maintenance'!$G$51:$G$81,'I2 Maintenance'!$B$51:$B$81,AJ$69)*(AJ$67) -> 23.05566667 | AK75: =SUMIFS('I2 Maintenance'!$G$51:$G$81,'I2 Maintenance'!$B$51:$B$81,AK$68)*(1-AK$67)+SUMIFS('I2 Maintenance'!$G$51:$G$81,'I2 Maintenance'!$B$51:$B$81,AK$69)*(AK$67) -> 24.28075 | AL75: =SUMIFS('I2 Maintenance'!$G$51:$G$81,'I2 Maintenance'!$B$51:$B$81,AL$68)*(1-AL$67)+SUMIFS('I2 Maintenance'!$G$51:$G$81,'I2 Maintenance'!$B$51:$B$81,AL$69)*(AL$67) -> 25.50583333 | AM75: =SUMIFS('I2 Maintenance'!$G$51:$G$81,'I2 Maintenance'!$B$51:$B$81,AM$68)*(1-AM$67)+SUMIFS('I2 Maintenance'!$G$51:$G$81,'I2 Maintenance'!$B$51:$B$81,AM$69)*(AM$67) -> 26.81125 | AN75: =SUMIFS('I2 Maintenance'!$G$51:$G$81,'I2 Maintenance'!$B$51:$B$81,AN$68)*(1-AN$67)+SUMIFS('I2 Maintenance'!$G$51:$G$81,'I2 Maintenance'!$B$51:$B$81,AN$69)*(AN$67) -> 28.11666667 | AO75: =SUMIFS('I2 Maintenance'!$G$51:$G$81,'I2 Maintenance'!$B$51:$B$81,AO$68)*(1-AO$67)+SUMIFS('I2 Maintenance'!$G$51:$G$81,'I2 Maintenance'!$B$51:$B$81,AO$69)*(AO$67) -> 29.42208333 | AP75: =SUMIFS('I2 Maintenance'!$G$51:$G$81,'I2 Maintenance'!$B$51:$B$81,AP$68)*(1-AP$67)+SUMIFS('I2 Maintenance'!$G$51:$G$81,'I2 Maintenance'!$B$51:$B$81,AP$69)*(AP$67) -> 30.7275 | AQ75: =SUMIFS('I2 Maintenance'!$G$51:$G$81,'I2 Maintenance'!$B$51:$B$81,AQ$68)*(1-AQ$67)+SUMIFS('I2 Maintenance'!$G$51:$G$81,'I2 Maintenance'!$B$51:$B$81,AQ$69)*(AQ$67) -> 32.03291667
B76: Bus | C76: =SUMIFS('I2 Maintenance'!$H$51:$H$81,'I2 Maintenance'!$B$51:$B$81,C$68)*(1-C$67)+SUMIFS('I2 Maintenance'!$H$51:$H$81,'I2 Maintenance'!$B$51:$B$81,C$69)*(C$67) -> 0 | D76: =SUMIFS('I2 Maintenance'!$H$51:$H$81,'I2 Maintenance'!$B$51:$B$81,D$68)*(1-D$67)+SUMIFS('I2 Maintenance'!$H$51:$H$81,'I2 Maintenance'!$B$51:$B$81,D$69)*(D$67) -> 0 | E76: =SUMIFS('I2 Maintenance'!$H$51:$H$81,'I2 Maintenance'!$B$51:$B$81,E$68)*(1-E$67)+SUMIFS('I2 Maintenance'!$H$51:$H$81,'I2 Maintenance'!$B$51:$B$81,E$69)*(E$67) -> 0 | F76: =SUMIFS('I2 Maintenance'!$H$51:$H$81,'I2 Maintenance'!$B$51:$B$81,F$68)*(1-F$67)+SUMIFS('I2 Maintenance'!$H$51:$H$81,'I2 Maintenance'!$B$51:$B$81,F$69)*(F$67) -> 0 | G76: =SUMIFS('I2 Maintenance'!$H$51:$H$81,'I2 Maintenance'!$B$51:$B$81,G$68)*(1-G$67)+SUMIFS('I2 Maintenance'!$H$51:$H$81,'I2 Maintenance'!$B$51:$B$81,G$69)*(G$67) -> 0 | H76: =SUMIFS('I2 Maintenance'!$H$51:$H$81,'I2 Maintenance'!$B$51:$B$81,H$68)*(1-H$67)+SUMIFS('I2 Maintenance'!$H$51:$H$81,'I2 Maintenance'!$B$51:$B$81,H$69)*(H$67) -> 0 | I76: =SUMIFS('I2 Maintenance'!$H$51:$H$81,'I2 Maintenance'!$B$51:$B$81,I$68)*(1-I$67)+SUMIFS('I2 Maintenance'!$H$51:$H$81,'I2 Maintenance'!$B$51:$B$81,I$69)*(I$67) -> 0.1606666667 | J76: =SUMIFS('I2 Maintenance'!$H$51:$H$81,'I2 Maintenance'!$B$51:$B$81,J$68)*(1-J$67)+SUMIFS('I2 Maintenance'!$H$51:$H$81,'I2 Maintenance'!$B$51:$B$81,J$69)*(J$67) -> 0.3213333333 | K76: =SUMIFS('I2 Maintenance'!$H$51:$H$81,'I2 Maintenance'!$B$51:$B$81,K$68)*(1-K$67)+SUMIFS('I2 Maintenance'!$H$51:$H$81,'I2 Maintenance'!$B$51:$B$81,K$69)*(K$67) -> 0.482 | L76: =SUMIFS('I2 Maintenance'!$H$51:$H$81,'I2 Maintenance'!$B$51:$B$81,L$68)*(1-L$67)+SUMIFS('I2 Maintenance'!$H$51:$H$81,'I2 Maintenance'!$B$51:$B$81,L$69)*(L$67) -> 0.6426666667 | M76: =SUMIFS('I2 Maintenance'!$H$51:$H$81,'I2 Maintenance'!$B$51:$B$81,M$68)*(1-M$67)+SUMIFS('I2 Maintenance'!$H$51:$H$81,'I2 Maintenance'!$B$51:$B$81,M$69)*(M$67) -> 0.8033333333 | N76: =SUMIFS('I2 Maintenance'!$H$51:$H$81,'I2 Maintenance'!$B$51:$B$81,N$68)*(1-N$67)+SUMIFS('I2 Maintenance'!$H$51:$H$81,'I2 Maintenance'!$B$51:$B$81,N$69)*(N$67) -> 1.205 | O76: =SUMIFS('I2 Maintenance'!$H$51:$H$81,'I2 Maintenance'!$B$51:$B$81,O$68)*(1-O$67)+SUMIFS('I2 Maintenance'!$H$51:$H$81,'I2 Maintenance'!$B$51:$B$81,O$69)*(O$67) -> 1.606666667 | P76: =SUMIFS('I2 Maintenance'!$H$51:$H$81,'I2 Maintenance'!$B$51:$B$81,P$68)*(1-P$67)+SUMIFS('I2 Maintenance'!$H$51:$H$81,'I2 Maintenance'!$B$51:$B$81,P$69)*(P$67) -> 2.008333333 | Q76: =SUMIFS('I2 Maintenance'!$H$51:$H$81,'I2 Maintenance'!$B$51:$B$81,Q$68)*(1-Q$67)+SUMIFS('I2 Maintenance'!$H$51:$H$81,'I2 Maintenance'!$B$51:$B$81,Q$69)*(Q$67) -> 2.41 | R76: =SUMIFS('I2 Maintenance'!$H$51:$H$81,'I2 Maintenance'!$B$51:$B$81,R$68)*(1-R$67)+SUMIFS('I2 Maintenance'!$H$51:$H$81,'I2 Maintenance'!$B$51:$B$81,R$69)*(R$67) -> 2.811666667 | S76: =SUMIFS('I2 Maintenance'!$H$51:$H$81,'I2 Maintenance'!$B$51:$B$81,S$68)*(1-S$67)+SUMIFS('I2 Maintenance'!$H$51:$H$81,'I2 Maintenance'!$B$51:$B$81,S$69)*(S$67) -> 3.394083333 | T76: =SUMIFS('I2 Maintenance'!$H$51:$H$81,'I2 Maintenance'!$B$51:$B$81,T$68)*(1-T$67)+SUMIFS('I2 Maintenance'!$H$51:$H$81,'I2 Maintenance'!$B$51:$B$81,T$69)*(T$67) -> 3.9765 | U76: =SUMIFS('I2 Maintenance'!$H$51:$H$81,'I2 Maintenance'!$B$51:$B$81,U$68)*(1-U$67)+SUMIFS('I2 Maintenance'!$H$51:$H$81,'I2 Maintenance'!$B$51:$B$81,U$69)*(U$67) -> 4.558916667 | V76: =SUMIFS('I2 Maintenance'!$H$51:$H$81,'I2 Maintenance'!$B$51:$B$81,V$68)*(1-V$67)+SUMIFS('I2 Maintenance'!$H$51:$H$81,'I2 Maintenance'!$B$51:$B$81,V$69)*(V$67) -> 5.141333333 | W76: =SUMIFS('I2 Maintenance'!$H$51:$H$81,'I2 Maintenance'!$B$51:$B$81,W$68)*(1-W$67)+SUMIFS('I2 Maintenance'!$H$51:$H$81,'I2 Maintenance'!$B$51:$B$81,W$69)*(W$67) -> 5.72375 | X76: =SUMIFS('I2 Maintenance'!$H$51:$H$81,'I2 Maintenance'!$B$51:$B$81,X$68)*(1-X$67)+SUMIFS('I2 Maintenance'!$H$51:$H$81,'I2 Maintenance'!$B$51:$B$81,X$69)*(X$67) -> 6.406583333 | Y76: =SUMIFS('I2 Maintenance'!$H$51:$H$81,'I2 Maintenance'!$B$51:$B$81,Y$68)*(1-Y$67)+SUMIFS('I2 Maintenance'!$H$51:$H$81,'I2 Maintenance'!$B$51:$B$81,Y$69)*(Y$67) -> 7.089416667 | Z76: =SUMIFS('I2 Maintenance'!$H$51:$H$81,'I2 Maintenance'!$B$51:$B$81,Z$68)*(1-Z$67)+SUMIFS('I2 Maintenance'!$H$51:$H$81,'I2 Maintenance'!$B$51:$B$81,Z$69)*(Z$67) -> 7.77225 | AA76: =SUMIFS('I2 Maintenance'!$H$51:$H$81,'I2 Maintenance'!$B$51:$B$81,AA$68)*(1-AA$67)+SUMIFS('I2 Maintenance'!$H$51:$H$81,'I2 Maintenance'!$B$51:$B$81,AA$69)*(AA$67) -> 8.455083333 | AB76: =SUMIFS('I2 Maintenance'!$H$51:$H$81,'I2 Maintenance'!$B$51:$B$81,AB$68)*(1-AB$67)+SUMIFS('I2 Maintenance'!$H$51:$H$81,'I2 Maintenance'!$B$51:$B$81,AB$69)*(AB$67) -> 9.137916667 | AC76: =SUMIFS('I2 Maintenance'!$H$51:$H$81,'I2 Maintenance'!$B$51:$B$81,AC$68)*(1-AC$67)+SUMIFS('I2 Maintenance'!$H$51:$H$81,'I2 Maintenance'!$B$51:$B$81,AC$69)*(AC$67) -> 9.901083333 | AD76: =SUMIFS('I2 Maintenance'!$H$51:$H$81,'I2 Maintenance'!$B$51:$B$81,AD$68)*(1-AD$67)+SUMIFS('I2 Maintenance'!$H$51:$H$81,'I2 Maintenance'!$B$51:$B$81,AD$69)*(AD$67) -> 10.66425 | AE76: =SUMIFS('I2 Maintenance'!$H$51:$H$81,'I2 Maintenance'!$B$51:$B$81,AE$68)*(1-AE$67)+SUMIFS('I2 Maintenance'!$H$51:$H$81,'I2 Maintenance'!$B$51:$B$81,AE$69)*(AE$67) -> 11.42741667 | AF76: =SUMIFS('I2 Maintenance'!$H$51:$H$81,'I2 Maintenance'!$B$51:$B$81,AF$68)*(1-AF$67)+SUMIFS('I2 Maintenance'!$H$51:$H$81,'I2 Maintenance'!$B$51:$B$81,AF$69)*(AF$67) -> 12.19058333 | AG76: =SUMIFS('I2 Maintenance'!$H$51:$H$81,'I2 Maintenance'!$B$51:$B$81,AG$68)*(1-AG$67)+SUMIFS('I2 Maintenance'!$H$51:$H$81,'I2 Maintenance'!$B$51:$B$81,AG$69)*(AG$67) -> 12.95375 | AH76: =SUMIFS('I2 Maintenance'!$H$51:$H$81,'I2 Maintenance'!$B$51:$B$81,AH$68)*(1-AH$67)+SUMIFS('I2 Maintenance'!$H$51:$H$81,'I2 Maintenance'!$B$51:$B$81,AH$69)*(AH$67) -> 13.75708333 | AI76: =SUMIFS('I2 Maintenance'!$H$51:$H$81,'I2 Maintenance'!$B$51:$B$81,AI$68)*(1-AI$67)+SUMIFS('I2 Maintenance'!$H$51:$H$81,'I2 Maintenance'!$B$51:$B$81,AI$69)*(AI$67) -> 14.56041667 | AJ76: =SUMIFS('I2 Maintenance'!$H$51:$H$81,'I2 Maintenance'!$B$51:$B$81,AJ$68)*(1-AJ$67)+SUMIFS('I2 Maintenance'!$H$51:$H$81,'I2 Maintenance'!$B$51:$B$81,AJ$69)*(AJ$67) -> 15.36375 | AK76: =SUMIFS('I2 Maintenance'!$H$51:$H$81,'I2 Maintenance'!$B$51:$B$81,AK$68)*(1-AK$67)+SUMIFS('I2 Maintenance'!$H$51:$H$81,'I2 Maintenance'!$B$51:$B$81,AK$69)*(AK$67) -> 16.16708333 | AL76: =SUMIFS('I2 Maintenance'!$H$51:$H$81,'I2 Maintenance'!$B$51:$B$81,AL$68)*(1-AL$67)+SUMIFS('I2 Maintenance'!$H$51:$H$81,'I2 Maintenance'!$B$51:$B$81,AL$69)*(AL$67) -> 16.97041667 | AM76: =SUMIFS('I2 Maintenance'!$H$51:$H$81,'I2 Maintenance'!$B$51:$B$81,AM$68)*(1-AM$67)+SUMIFS('I2 Maintenance'!$H$51:$H$81,'I2 Maintenance'!$B$51:$B$81,AM$69)*(AM$67) -> 17.834 | AN76: =SUMIFS('I2 Maintenance'!$H$51:$H$81,'I2 Maintenance'!$B$51:$B$81,AN$68)*(1-AN$67)+SUMIFS('I2 Maintenance'!$H$51:$H$81,'I2 Maintenance'!$B$51:$B$81,AN$69)*(AN$67) -> 18.69758333 | AO76: =SUMIFS('I2 Maintenance'!$H$51:$H$81,'I2 Maintenance'!$B$51:$B$81,AO$68)*(1-AO$67)+SUMIFS('I2 Maintenance'!$H$51:$H$81,'I2 Maintenance'!$B$51:$B$81,AO$69)*(AO$67) -> 19.56116667 | AP76: =SUMIFS('I2 Maintenance'!$H$51:$H$81,'I2 Maintenance'!$B$51:$B$81,AP$68)*(1-AP$67)+SUMIFS('I2 Maintenance'!$H$51:$H$81,'I2 Maintenance'!$B$51:$B$81,AP$69)*(AP$67) -> 20.42475 | AQ76: =SUMIFS('I2 Maintenance'!$H$51:$H$81,'I2 Maintenance'!$B$51:$B$81,AQ$68)*(1-AQ$67)+SUMIFS('I2 Maintenance'!$H$51:$H$81,'I2 Maintenance'!$B$51:$B$81,AQ$69)*(AQ$67) -> 21.28833333
Q78: =I71*Q28 -> 1169.2115
Q79: =I72*Q29 -> 77.90325
Q80: 90.81683333
Q81: 46.6335
Q82: 72.541
Q83: 10.122
Q84: =SUM(Q78:Q83) -> 1467.228083 | R84: =Q84*365/100 -> 5355.382504

Sheet C2.1Maintenance LoS (hidden)
A1: =MID(CELL("filename",A2),FIND("]",CELL("filename",A2))+1,256) -> C2.1Maintenance LoS
A2: Calculation of change in IRI
B5: Results
B7: =+'I2.1 Maintenance LoS'!D20 -> Urban arterial | C7: Scenario 1 | D7: Scenario 2 | E7: Scenario 3 | F7: Scenario 4 | G7: Scenario 5 | H7: Scenario 6
B8: IRI standard | C8: =TRANSPOSE('I2.1 Maintenance LoS'!D9:D14) -> 3 | D8: 3.2 | E8: 3.4 | F8: 3.6 | G8: 3.8 | H8: 4
B9: Road user costs | C9: =TRANSPOSE(C45:C50) -> 37760.48882 | D9: 56981.40131 | E9: 117519.0003 | F9: 165496.4669 | G9: 217595.9486 | H9: 279027.9609
B10: Road authority costs | C10: =TRANSPOSE(C53:C58) -> 261147.4036 | D10: 246365.4751 | E10: 200355.7254 | F10: 168180.8795 | G10: 158661.2071 | H10: 149680.3841
B11: Total costs, PV | C11: =SUM(C8:C10) -> 298910.8925 | D11: 303350.0764 | E11: 317878.1256 | F11: 333680.9465 | G11: 376260.9557 | H11: 428712.3449
B13: Calculations
B15: AADT | D15: 0 | E15: 1 | F15: 2 | G15: 3 | H15: 4 | I15: 5 | J15: 6 | K15: 7 | L15: 8 | M15: 9 | N15: 10 | O15: 11 | P15: 12 | Q15: 13 | R15: 14 | S15: 15 | T15: 16 | U15: 17 | V15: 18 | W15: 19 | X15: 20 | Y15: 21 | Z15: 22 | AA15: 23 | AB15: 24 | AC15: 25 | AD15: 26 | AE15: 27 | AF15: 28 | AG15: 29 | AH15: 30 | AI15: 31 | AJ15: 32 | AK15: 33 | AL15: 34 | AM15: 35 | AN15: 36 | AO15: 37 | AP15: 38 | AQ15: 39 | AR15: 40
B16: Passenger cars | D16: =INDEX('I2.1 Maintenance LoS'!$D$24:$G$29,MATCH('C2.1Maintenance LoS'!$B16,'I2.1 Maintenance LoS'!$B$24:$B$29,0),MATCH('I2.1 Maintenance LoS'!$D$20,'I2.1 Maintenance LoS'!$D$22:$G$22,0)) -> 15000 | E16: =ROUND(D16*(1+'I2.1 Maintenance LoS'!$D$33),0) -> 15300 | F16: =ROUND(E16*(1+'I2.1 Maintenance LoS'!$D$33),0) -> 15606 | G16: =ROUND(F16*(1+'I2.1 Maintenance LoS'!$D$33),0) -> 15918 | H16: =ROUND(G16*(1+'I2.1 Maintenance LoS'!$D$33),0) -> 16236 | I16: =ROUND(H16*(1+'I2.1 Maintenance LoS'!$D$33),0) -> 16561 | J16: =ROUND(I16*(1+'I2.1 Maintenance LoS'!$D$33),0) -> 16892 | K16: =ROUND(J16*(1+'I2.1 Maintenance LoS'!$D$33),0) -> 17230 | L16: =ROUND(K16*(1+'I2.1 Maintenance LoS'!$D$33),0) -> 17575 | M16: =ROUND(L16*(1+'I2.1 Maintenance LoS'!$D$33),0) -> 17927 | N16: =ROUND(M16*(1+'I2.1 Maintenance LoS'!$D$33),0) -> 18286 | O16: =ROUND(N16*(1+'I2.1 Maintenance LoS'!$D$33),0) -> 18652 | P16: =ROUND(O16*(1+'I2.1 Maintenance LoS'!$D$33),0) -> 19025 | Q16: =ROUND(P16*(1+'I2.1 Maintenance LoS'!$D$33),0) -> 19406 | R16: =ROUND(Q16*(1+'I2.1 Maintenance LoS'!$D$33),0) -> 19794 | S16: =ROUND(R16*(1+'I2.1 Maintenance LoS'!$D$33),0) -> 20190 | T16: =ROUND(S16*(1+'I2.1 Maintenance LoS'!$D$33),0) -> 20594 | U16: =ROUND(T16*(1+'I2.1 Maintenance LoS'!$D$33),0) -> 21006 | V16: =ROUND(U16*(1+'I2.1 Maintenance LoS'!$D$33),0) -> 21426 | W16: =ROUND(V16*(1+'I2.1 Maintenance LoS'!$D$33),0) -> 21855 | X16: =ROUND(W16*(1+'I2.1 Maintenance LoS'!$D$33),0) -> 22292 | Y16: =ROUND(X16*(1+'I2.1 Maintenance LoS'!$D$33),0) -> 22738 | Z16: =ROUND(Y16*(1+'I2.1 Maintenance LoS'!$D$33),0) -> 23193 | AA16: =ROUND(Z16*(1+'I2.1 Maintenance LoS'!$D$33),0) -> 23657 | AB16: =ROUND(AA16*(1+'I2.1 Maintenance LoS'!$D$33),0) -> 24130 | AC16: =ROUND(AB16*(1+'I2.1 Maintenance LoS'!$D$33),0) -> 24613 | AD16: =ROUND(AC16*(1+'I2.1 Maintenance LoS'!$D$33),0) -> 25105 | AE16: =ROUND(AD16*(1+'I2.1 Maintenance LoS'!$D$33),0) -> 25607 | AF16: =ROUND(AE16*(1+'I2.1 Maintenance LoS'!$D$33),0) -> 26119 | AG16: =ROUND(AF16*(1+'I2.1 Maintenance LoS'!$D$33),0) -> 26641 | AH16: =ROUND(AG16*(1+'I2.1 Maintenance LoS'!$D$33),0) -> 27174 | AI16: =ROUND(AH16*(1+'I2.1 Maintenance LoS'!$D$33),0) -> 27717 | AJ16: =ROUND(AI16*(1+'I2.1 Maintenance LoS'!$D$33),0) -> 28271 | AK16: =ROUND(AJ16*(1+'I2.1 Maintenance LoS'!$D$33),0) -> 28836 | AL16: =ROUND(AK16*(1+'I2.1 Maintenance LoS'!$D$33),0) -> 29413 | AM16: =ROUND(AL16*(1+'I2.1 Maintenance LoS'!$D$33),0) -> 30001 | AN16: =ROUND(AM16*(1+'I2.1 Maintenance LoS'!$D$33),0) -> 30601 | AO16: =ROUND(AN16*(1+'I2.1 Maintenance LoS'!$D$33),0) -> 31213 | AP16: =ROUND(AO16*(1+'I2.1 Maintenance LoS'!$D$33),0) -> 31837 | AQ16: =ROUND(AP16*(1+'I2.1 Maintenance LoS'!$D$33),0) -> 32474 | AR16: =ROUND(AQ16*(1+'I2.1 Maintenance LoS'!$D$33),0) -> 33123
B17: Light commercial vehicles | D17: =INDEX('I2.1 Maintenance LoS'!$D$24:$G$29,MATCH('C2.1Maintenance LoS'!$B17,'I2.1 Maintenance LoS'!$B$24:$B$29,0),MATCH('I2.1 Maintenance LoS'!$D$20,'I2.1 Maintenance LoS'!$D$22:$G$22,0)) -> 1000 | E17: =ROUND(D17*(1+'I2.1 Maintenance LoS'!$D$34),0) -> 1020 | F17: =ROUND(E17*(1+'I2.1 Maintenance LoS'!$D$34),0) -> 1040 | G17: =ROUND(F17*(1+'I2.1 Maintenance LoS'!$D$34),0) -> 1061 | H17: =ROUND(G17*(1+'I2.1 Maintenance LoS'!$D$34),0) -> 1082 | I17: =ROUND(H17*(1+'I2.1 Maintenance LoS'!$D$34),0) -> 1104 | J17: =ROUND(I17*(1+'I2.1 Maintenance LoS'!$D$34),0) -> 1126 | K17: =ROUND(J17*(1+'I2.1 Maintenance LoS'!$D$34),0) -> 1149 | L17: =ROUND(K17*(1+'I2.1 Maintenance LoS'!$D$34),0) -> 1172 | M17: =ROUND(L17*(1+'I2.1 Maintenance LoS'!$D$34),0) -> 1195 | N17: =ROUND(M17*(1+'I2.1 Maintenance LoS'!$D$34),0) -> 1219 | O17: =ROUND(N17*(1+'I2.1 Maintenance LoS'!$D$34),0) -> 1243 | P17: =ROUND(O17*(1+'I2.1 Maintenance LoS'!$D$34),0) -> 1268 | Q17: =ROUND(P17*(1+'I2.1 Maintenance LoS'!$D$34),0) -> 1293 | R17: =ROUND(Q17*(1+'I2.1 Maintenance LoS'!$D$34),0) -> 1319 | S17: =ROUND(R17*(1+'I2.1 Maintenance LoS'!$D$34),0) -> 1345 | T17: =ROUND(S17*(1+'I2.1 Maintenance LoS'!$D$34),0) -> 1372 | U17: =ROUND(T17*(1+'I2.1 Maintenance LoS'!$D$34),0) -> 1399 | V17: =ROUND(U17*(1+'I2.1 Maintenance LoS'!$D$34),0) -> 1427 | W17: =ROUND(V17*(1+'I2.1 Maintenance LoS'!$D$34),0) -> 1456 | X17: =ROUND(W17*(1+'I2.1 Maintenance LoS'!$D$34),0) -> 1485 | Y17: =ROUND(X17*(1+'I2.1 Maintenance LoS'!$D$34),0) -> 1515 | Z17: =ROUND(Y17*(1+'I2.1 Maintenance LoS'!$D$34),0) -> 1545 | AA17: =ROUND(Z17*(1+'I2.1 Maintenance LoS'!$D$34),0) -> 1576 | AB17: =ROUND(AA17*(1+'I2.1 Maintenance LoS'!$D$34),0) -> 1608 | AC17: =ROUND(AB17*(1+'I2.1 Maintenance LoS'!$D$34),0) -> 1640 | AD17: =ROUND(AC17*(1+'I2.1 Maintenance LoS'!$D$34),0) -> 1673 | AE17: =ROUND(AD17*(1+'I2.1 Maintenance LoS'!$D$34),0) -> 1706 | AF17: =ROUND(AE17*(1+'I2.1 Maintenance LoS'!$D$34),0) -> 1740 | AG17: =ROUND(AF17*(1+'I2.1 Maintenance LoS'!$D$34),0) -> 1775 | AH17: =ROUND(AG17*(1+'I2.1 Maintenance LoS'!$D$34),0) -> 1811 | AI17: =ROUND(AH17*(1+'I2.1 Maintenance LoS'!$D$34),0) -> 1847 | AJ17: =ROUND(AI17*(1+'I2.1 Maintenance LoS'!$D$34),0) -> 1884 | AK17: =ROUND(AJ17*(1+'I2.1 Maintenance LoS'!$D$34),0) -> 1922 | AL17: =ROUND(AK17*(1+'I2.1 Maintenance LoS'!$D$34),0) -> 1960 | AM17: =ROUND(AL17*(1+'I2.1 Maintenance LoS'!$D$34),0) -> 1999 | AN17: =ROUND(AM17*(1+'I2.1 Maintenance LoS'!$D$34),0) -> 2039 | AO17: =ROUND(AN17*(1+'I2.1 Maintenance LoS'!$D$34),0) -> 2080 | AP17: =ROUND(AO17*(1+'I2.1 Maintenance LoS'!$D$34),0) -> 2122 | AQ17: =ROUND(AP17*(1+'I2.1 Maintenance LoS'!$D$34),0) -> 2164 | AR17: =ROUND(AQ17*(1+'I2.1 Maintenance LoS'!$D$34),0) -> 2207
B18: Medium commercial vehicle | D18: =INDEX('I2.1 Maintenance LoS'!$D$24:$G$29,MATCH('C2.1Maintenance LoS'!$B18,'I2.1 Maintenance LoS'!$B$24:$B$29,0),MATCH('I2.1 Maintenance LoS'!$D$20,'I2.1 Maintenance LoS'!$D$22:$G$22,0)) -> 500 | E18: =ROUND(D18*(1+'I2.1 Maintenance LoS'!$D$34),0) -> 510 | F18: =ROUND(E18*(1+'I2.1 Maintenance LoS'!$D$34),0) -> 520 | G18: =ROUND(F18*(1+'I2.1 Maintenance LoS'!$D$34),0) -> 530 | H18: =ROUND(G18*(1+'I2.1 Maintenance LoS'!$D$34),0) -> 541 | I18: =ROUND(H18*(1+'I2.1 Maintenance LoS'!$D$34),0) -> 552 | J18: =ROUND(I18*(1+'I2.1 Maintenance LoS'!$D$34),0) -> 563 | K18: =ROUND(J18*(1+'I2.1 Maintenance LoS'!$D$34),0) -> 574 | L18: =ROUND(K18*(1+'I2.1 Maintenance LoS'!$D$34),0) -> 585 | M18: =ROUND(L18*(1+'I2.1 Maintenance LoS'!$D$34),0) -> 597 | N18: =ROUND(M18*(1+'I2.1 Maintenance LoS'!$D$34),0) -> 609 | O18: =ROUND(N18*(1+'I2.1 Maintenance LoS'!$D$34),0) -> 621 | P18: =ROUND(O18*(1+'I2.1 Maintenance LoS'!$D$34),0) -> 633 | Q18: =ROUND(P18*(1+'I2.1 Maintenance LoS'!$D$34),0) -> 646 | R18: =ROUND(Q18*(1+'I2.1 Maintenance LoS'!$D$34),0) -> 659 | S18: =ROUND(R18*(1+'I2.1 Maintenance LoS'!$D$34),0) -> 672 | T18: =ROUND(S18*(1+'I2.1 Maintenance LoS'!$D$34),0) -> 685 | U18: =ROUND(T18*(1+'I2.1 Maintenance LoS'!$D$34),0) -> 699 | V18: =ROUND(U18*(1+'I2.1 Maintenance LoS'!$D$34),0) -> 713 | W18: =ROUND(V18*(1+'I2.1 Maintenance LoS'!$D$34),0) -> 727 | X18: =ROUND(W18*(1+'I2.1 Maintenance LoS'!$D$34),0) -> 742 | Y18: =ROUND(X18*(1+'I2.1 Maintenance LoS'!$D$34),0) -> 757 | Z18: =ROUND(Y18*(1+'I2.1 Maintenance LoS'!$D$34),0) -> 772 | AA18: =ROUND(Z18*(1+'I2.1 Maintenance LoS'!$D$34),0) -> 787 | AB18: =ROUND(AA18*(1+'I2.1 Maintenance LoS'!$D$34),0) -> 803 | AC18: =ROUND(AB18*(1+'I2.1 Maintenance LoS'!$D$34),0) -> 819 | AD18: =ROUND(AC18*(1+'I2.1 Maintenance LoS'!$D$34),0) -> 835 | AE18: =ROUND(AD18*(1+'I2.1 Maintenance LoS'!$D$34),0) -> 852 | AF18: =ROUND(AE18*(1+'I2.1 Maintenance LoS'!$D$34),0) -> 869 | AG18: =ROUND(AF18*(1+'I2.1 Maintenance LoS'!$D$34),0) -> 886 | AH18: =ROUND(AG18*(1+'I2.1 Maintenance LoS'!$D$34),0) -> 904 | AI18: =ROUND(AH18*(1+'I2.1 Maintenance LoS'!$D$34),0) -> 922 | AJ18: =ROUND(AI18*(1+'I2.1 Maintenance LoS'!$D$34),0) -> 940 | AK18: =ROUND(AJ18*(1+'I2.1 Maintenance LoS'!$D$34),0) -> 959 | AL18: =ROUND(AK18*(1+'I2.1 Maintenance LoS'!$D$34),0) -> 978 | AM18: =ROUND(AL18*(1+'I2.1 Maintenance LoS'!$D$34),0) -> 998 | AN18: =ROUND(AM18*(1+'I2.1 Maintenance LoS'!$D$34),0) -> 1018 | AO18: =ROUND(AN18*(1+'I2.1 Maintenance LoS'!$D$34),0) -> 1038 | AP18: =ROUND(AO18*(1+'I2.1 Maintenance LoS'!$D$34),0) -> 1059 | AQ18: =ROUND(AP18*(1+'I2.1 Maintenance LoS'!$D$34),0) -> 1080 | AR18: =ROUND(AQ18*(1+'I2.1 Maintenance LoS'!$D$34),0) -> 1102
B19: HCV1 | D19: =INDEX('I2.1 Maintenance LoS'!$D$24:$G$29,MATCH('C2.1Maintenance LoS'!$B19,'I2.1 Maintenance LoS'!$B$24:$B$29,0),MATCH('I2.1 Maintenance LoS'!$D$20,'I2.1 Maintenance LoS'!$D$22:$G$22,0)) -> 200 | E19: =ROUND(D19*(1+'I2.1 Maintenance LoS'!$D$34),0) -> 204 | F19: =ROUND(E19*(1+'I2.1 Maintenance LoS'!$D$34),0) -> 208 | G19: =ROUND(F19*(1+'I2.1 Maintenance LoS'!$D$34),0) -> 212 | H19: =ROUND(G19*(1+'I2.1 Maintenance LoS'!$D$34),0) -> 216 | I19: =ROUND(H19*(1+'I2.1 Maintenance LoS'!$D$34),0) -> 220 | J19: =ROUND(I19*(1+'I2.1 Maintenance LoS'!$D$34),0) -> 224 | K19: =ROUND(J19*(1+'I2.1 Maintenance LoS'!$D$34),0) -> 228 | L19: =ROUND(K19*(1+'I2.1 Maintenance LoS'!$D$34),0) -> 233 | M19: =ROUND(L19*(1+'I2.1 Maintenance LoS'!$D$34),0) -> 238 | N19: =ROUND(M19*(1+'I2.1 Maintenance LoS'!$D$34),0) -> 243 | O19: =ROUND(N19*(1+'I2.1 Maintenance LoS'!$D$34),0) -> 248 | P19: =ROUND(O19*(1+'I2.1 Maintenance LoS'!$D$34),0) -> 253 | Q19: =ROUND(P19*(1+'I2.1 Maintenance LoS'!$D$34),0) -> 258 | R19: =ROUND(Q19*(1+'I2.1 Maintenance LoS'!$D$34),0) -> 263 | S19: =ROUND(R19*(1+'I2.1 Maintenance LoS'!$D$34),0) -> 268 | T19: =ROUND(S19*(1+'I2.1 Maintenance LoS'!$D$34),0) -> 273 | U19: =ROUND(T19*(1+'I2.1 Maintenance LoS'!$D$34),0) -> 278 | V19: =ROUND(U19*(1+'I2.1 Maintenance LoS'!$D$34),0) -> 284 | W19: =ROUND(V19*(1+'I2.1 Maintenance LoS'!$D$34),0) -> 290 | X19: =ROUND(W19*(1+'I2.1 Maintenance LoS'!$D$34),0) -> 296 | Y19: =ROUND(X19*(1+'I2.1 Maintenance LoS'!$D$34),0) -> 302 | Z19: =ROUND(Y19*(1+'I2.1 Maintenance LoS'!$D$34),0) -> 308 | AA19: =ROUND(Z19*(1+'I2.1 Maintenance LoS'!$D$34),0) -> 314 | AB19: =ROUND(AA19*(1+'I2.1 Maintenance LoS'!$D$34),0) -> 320 | AC19: =ROUND(AB19*(1+'I2.1 Maintenance LoS'!$D$34),0) -> 326 | AD19: =ROUND(AC19*(1+'I2.1 Maintenance LoS'!$D$34),0) -> 333 | AE19: =ROUND(AD19*(1+'I2.1 Maintenance LoS'!$D$34),0) -> 340 | AF19: =ROUND(AE19*(1+'I2.1 Maintenance LoS'!$D$34),0) -> 347 | AG19: =ROUND(AF19*(1+'I2.1 Maintenance LoS'!$D$34),0) -> 354 | AH19: =ROUND(AG19*(1+'I2.1 Maintenance LoS'!$D$34),0) -> 361 | AI19: =ROUND(AH19*(1+'I2.1 Maintenance LoS'!$D$34),0) -> 368 | AJ19: =ROUND(AI19*(1+'I2.1 Maintenance LoS'!$D$34),0) -> 375 | AK19: =ROUND(AJ19*(1+'I2.1 Maintenance LoS'!$D$34),0) -> 383 | AL19: =ROUND(AK19*(1+'I2.1 Maintenance LoS'!$D$34),0) -> 391 | AM19: =ROUND(AL19*(1+'I2.1 Maintenance LoS'!$D$34),0) -> 399 | AN19: =ROUND(AM19*(1+'I2.1 Maintenance LoS'!$D$34),0) -> 407 | AO19: =ROUND(AN19*(1+'I2.1 Maintenance LoS'!$D$34),0) -> 415 | AP19: =ROUND(AO19*(1+'I2.1 Maintenance LoS'!$D$34),0) -> 423 | AQ19: =ROUND(AP19*(1+'I2.1 Maintenance LoS'!$D$34),0) -> 431 | AR19: =ROUND(AQ19*(1+'I2.1 Maintenance LoS'!$D$34),0) -> 440
B20: HCV2 | D20: =INDEX('I2.1 Maintenance LoS'!$D$24:$G$29,MATCH('C2.1Maintenance LoS'!$B20,'I2.1 Maintenance LoS'!$B$24:$B$29,0),MATCH('I2.1 Maintenance LoS'!$D$20,'I2.1 Maintenance LoS'!$D$22:$G$22,0)) -> 200 | E20: =ROUND(D20*(1+'I2.1 Maintenance LoS'!$D$34),0) -> 204 | F20: =ROUND(E20*(1+'I2.1 Maintenance LoS'!$D$34),0) -> 208 | G20: =ROUND(F20*(1+'I2.1 Maintenance LoS'!$D$34),0) -> 212 | H20: =ROUND(G20*(1+'I2.1 Maintenance LoS'!$D$34),0) -> 216 | I20: =ROUND(H20*(1+'I2.1 Maintenance LoS'!$D$34),0) -> 220 | J20: =ROUND(I20*(1+'I2.1 Maintenance LoS'!$D$34),0) -> 224 | K20: =ROUND(J20*(1+'I2.1 Maintenance LoS'!$D$34),0) -> 228 | L20: =ROUND(K20*(1+'I2.1 Maintenance LoS'!$D$34),0) -> 233 | M20: =ROUND(L20*(1+'I2.1 Maintenance LoS'!$D$34),0) -> 238 | N20: =ROUND(M20*(1+'I2.1 Maintenance LoS'!$D$34),0) -> 243 | O20: =ROUND(N20*(1+'I2.1 Maintenance LoS'!$D$34),0) -> 248 | P20: =ROUND(O20*(1+'I2.1 Maintenance LoS'!$D$34),0) -> 253 | Q20: =ROUND(P20*(1+'I2.1 Maintenance LoS'!$D$34),0) -> 258 | R20: =ROUND(Q20*(1+'I2.1 Maintenance LoS'!$D$34),0) -> 263 | S20: =ROUND(R20*(1+'I2.1 Maintenance LoS'!$D$34),0) -> 268 | T20: =ROUND(S20*(1+'I2.1 Maintenance LoS'!$D$34),0) -> 273 | U20: =ROUND(T20*(1+'I2.1 Maintenance LoS'!$D$34),0) -> 278 | V20: =ROUND(U20*(1+'I2.1 Maintenance LoS'!$D$34),0) -> 284 | W20: =ROUND(V20*(1+'I2.1 Maintenance LoS'!$D$34),0) -> 290 | X20: =ROUND(W20*(1+'I2.1 Maintenance LoS'!$D$34),0) -> 296 | Y20: =ROUND(X20*(1+'I2.1 Maintenance LoS'!$D$34),0) -> 302 | Z20: =ROUND(Y20*(1+'I2.1 Maintenance LoS'!$D$34),0) -> 308 | AA20: =ROUND(Z20*(1+'I2.1 Maintenance LoS'!$D$34),0) -> 314 | AB20: =ROUND(AA20*(1+'I2.1 Maintenance LoS'!$D$34),0) -> 320 | AC20: =ROUND(AB20*(1+'I2.1 Maintenance LoS'!$D$34),0) -> 326 | AD20: =ROUND(AC20*(1+'I2.1 Maintenance LoS'!$D$34),0) -> 333 | AE20: =ROUND(AD20*(1+'I2.1 Maintenance LoS'!$D$34),0) -> 340 | AF20: =ROUND(AE20*(1+'I2.1 Maintenance LoS'!$D$34),0) -> 347 | AG20: =ROUND(AF20*(1+'I2.1 Maintenance LoS'!$D$34),0) -> 354 | AH20: =ROUND(AG20*(1+'I2.1 Maintenance LoS'!$D$34),0) -> 361 | AI20: =ROUND(AH20*(1+'I2.1 Maintenance LoS'!$D$34),0) -> 368 | AJ20: =ROUND(AI20*(1+'I2.1 Maintenance LoS'!$D$34),0) -> 375 | AK20: =ROUND(AJ20*(1+'I2.1 Maintenance LoS'!$D$34),0) -> 383 | AL20: =ROUND(AK20*(1+'I2.1 Maintenance LoS'!$D$34),0) -> 391 | AM20: =ROUND(AL20*(1+'I2.1 Maintenance LoS'!$D$34),0) -> 399 | AN20: =ROUND(AM20*(1+'I2.1 Maintenance LoS'!$D$34),0) -> 407 | AO20: =ROUND(AN20*(1+'I2.1 Maintenance LoS'!$D$34),0) -> 415 | AP20: =ROUND(AO20*(1+'I2.1 Maintenance LoS'!$D$34),0) -> 423 | AQ20: =ROUND(AP20*(1+'I2.1 Maintenance LoS'!$D$34),0) -> 431 | AR20: =ROUND(AQ20*(1+'I2.1 Maintenance LoS'!$D$34),0) -> 440
B21: Bus | D21: =INDEX('I2.1 Maintenance LoS'!$D$24:$G$29,MATCH('C2.1Maintenance LoS'!$B21,'I2.1 Maintenance LoS'!$B$24:$B$29,0),MATCH('I2.1 Maintenance LoS'!$D$20,'I2.1 Maintenance LoS'!$D$22:$G$22,0)) -> 50 | E21: =ROUND(D21*(1+'I2.1 Maintenance LoS'!$D$34),0) -> 51 | F21: =ROUND(E21*(1+'I2.1 Maintenance LoS'!$D$34),0) -> 52 | G21: =ROUND(F21*(1+'I2.1 Maintenance LoS'!$D$34),0) -> 53 | H21: =ROUND(G21*(1+'I2.1 Maintenance LoS'!$D$34),0) -> 54 | I21: =ROUND(H21*(1+'I2.1 Maintenance LoS'!$D$34),0) -> 55 | J21: =ROUND(I21*(1+'I2.1 Maintenance LoS'!$D$34),0) -> 56 | K21: =ROUND(J21*(1+'I2.1 Maintenance LoS'!$D$34),0) -> 57 | L21: =ROUND(K21*(1+'I2.1 Maintenance LoS'!$D$34),0) -> 58 | M21: =ROUND(L21*(1+'I2.1 Maintenance LoS'!$D$34),0) -> 59 | N21: =ROUND(M21*(1+'I2.1 Maintenance LoS'!$D$34),0) -> 60 | O21: =ROUND(N21*(1+'I2.1 Maintenance LoS'!$D$34),0) -> 61 | P21: =ROUND(O21*(1+'I2.1 Maintenance LoS'!$D$34),0) -> 62 | Q21: =ROUND(P21*(1+'I2.1 Maintenance LoS'!$D$34),0) -> 63 | R21: =ROUND(Q21*(1+'I2.1 Maintenance LoS'!$D$34),0) -> 64 | S21: =ROUND(R21*(1+'I2.1 Maintenance LoS'!$D$34),0) -> 65 | T21: =ROUND(S21*(1+'I2.1 Maintenance LoS'!$D$34),0) -> 66 | U21: =ROUND(T21*(1+'I2.1 Maintenance LoS'!$D$34),0) -> 67 | V21: =ROUND(U21*(1+'I2.1 Maintenance LoS'!$D$34),0) -> 68 | W21: =ROUND(V21*(1+'I2.1 Maintenance LoS'!$D$34),0) -> 69 | X21: =ROUND(W21*(1+'I2.1 Maintenance LoS'!$D$34),0) -> 70 | Y21: =ROUND(X21*(1+'I2.1 Maintenance LoS'!$D$34),0) -> 71 | Z21: =ROUND(Y21*(1+'I2.1 Maintenance LoS'!$D$34),0) -> 72 | AA21: =ROUND(Z21*(1+'I2.1 Maintenance LoS'!$D$34),0) -> 73 | AB21: =ROUND(AA21*(1+'I2.1 Maintenance LoS'!$D$34),0) -> 74 | AC21: =ROUND(AB21*(1+'I2.1 Maintenance LoS'!$D$34),0) -> 75 | AD21: =ROUND(AC21*(1+'I2.1 Maintenance LoS'!$D$34),0) -> 77 | AE21: =ROUND(AD21*(1+'I2.1 Maintenance LoS'!$D$34),0) -> 79 | AF21: =ROUND(AE21*(1+'I2.1 Maintenance LoS'!$D$34),0) -> 81 | AG21: =ROUND(AF21*(1+'I2.1 Maintenance LoS'!$D$34),0) -> 83 | AH21: =ROUND(AG21*(1+'I2.1 Maintenance LoS'!$D$34),0) -> 85 | AI21: =ROUND(AH21*(1+'I2.1 Maintenance LoS'!$D$34),0) -> 87 | AJ21: =ROUND(AI21*(1+'I2.1 Maintenance LoS'!$D$34),0) -> 89 | AK21: =ROUND(AJ21*(1+'I2.1 Maintenance LoS'!$D$34),0) -> 91 | AL21: =ROUND(AK21*(1+'I2.1 Maintenance LoS'!$D$34),0) -> 93 | AM21: =ROUND(AL21*(1+'I2.1 Maintenance LoS'!$D$34),0) -> 95 | AN21: =ROUND(AM21*(1+'I2.1 Maintenance LoS'!$D$34),0) -> 97 | AO21: =ROUND(AN21*(1+'I2.1 Maintenance LoS'!$D$34),0) -> 99 | AP21: =ROUND(AO21*(1+'I2.1 Maintenance LoS'!$D$34),0) -> 101 | AQ21: =ROUND(AP21*(1+'I2.1 Maintenance LoS'!$D$34),0) -> 103 | AR21: =ROUND(AQ21*(1+'I2.1 Maintenance LoS'!$D$34),0) -> 105
B22: ESA per day/lane | D22: =SUMPRODUCT('I2.1 Maintenance LoS'!$D$46:$D$51,D16:D21) -> 738 | E22: =SUMPRODUCT('I2.1 Maintenance LoS'!$D$46:$D$51,E16:E21) -> 752.76 | F22: =SUMPRODUCT('I2.1 Maintenance LoS'!$D$46:$D$51,F16:F21) -> 767.52 | G22: =SUMPRODUCT('I2.1 Maintenance LoS'!$D$46:$D$51,G16:G21) -> 782.28 | H22: =SUMPRODUCT('I2.1 Maintenance LoS'!$D$46:$D$51,H16:H21) -> 797.39 | I22: =SUMPRODUCT('I2.1 Maintenance LoS'!$D$46:$D$51,I16:I21) -> 812.5 | J22: =SUMPRODUCT('I2.1 Maintenance LoS'!$D$46:$D$51,J16:J21) -> 827.61 | K22: =SUMPRODUCT('I2.1 Maintenance LoS'!$D$46:$D$51,K16:K21) -> 842.72 | L22: =SUMPRODUCT('I2.1 Maintenance LoS'!$D$46:$D$51,L16:L21) -> 860.52 | M22: =SUMPRODUCT('I2.1 Maintenance LoS'!$D$46:$D$51,M16:M21) -> 878.67 | N22: =SUMPRODUCT('I2.1 Maintenance LoS'!$D$46:$D$51,N16:N21) -> 896.82 | O22: =SUMPRODUCT('I2.1 Maintenance LoS'!$D$46:$D$51,O16:O21) -> 914.97 | P22: =SUMPRODUCT('I2.1 Maintenance LoS'!$D$46:$D$51,P16:P21) -> 933.12 | Q22: =SUMPRODUCT('I2.1 Maintenance LoS'!$D$46:$D$51,Q16:Q21) -> 951.62 | R22: =SUMPRODUCT('I2.1 Maintenance LoS'!$D$46:$D$51,R16:R21) -> 970.12 | S22: =SUMPRODUCT('I2.1 Maintenance LoS'!$D$46:$D$51,S16:S21) -> 988.62 | T22: =SUMPRODUCT('I2.1 Maintenance LoS'!$D$46:$D$51,T16:T21) -> 1007.12 | U22: =SUMPRODUCT('I2.1 Maintenance LoS'!$D$46:$D$51,U16:U21) -> 1025.97 | V22: =SUMPRODUCT('I2.1 Maintenance LoS'!$D$46:$D$51,V16:V21) -> 1047.51 | W22: =SUMPRODUCT('I2.1 Maintenance LoS'!$D$46:$D$51,W16:W21) -> 1069.05 | X22: =SUMPRODUCT('I2.1 Maintenance LoS'!$D$46:$D$51,X16:X21) -> 1090.94 | Y22: =SUMPRODUCT('I2.1 Maintenance LoS'!$D$46:$D$51,Y16:Y21) -> 1112.83 | Z22: =SUMPRODUCT('I2.1 Maintenance LoS'!$D$46:$D$51,Z16:Z21) -> 1134.72 | AA22: =SUMPRODUCT('I2.1 Maintenance LoS'!$D$46:$D$51,AA16:AA21) -> 1156.61 | AB22: =SUMPRODUCT('I2.1 Maintenance LoS'!$D$46:$D$51,AB16:AB21) -> 1178.85 | AC22: =SUMPRODUCT('I2.1 Maintenance LoS'!$D$46:$D$51,AC16:AC21) -> 1201.09 | AD22: =SUMPRODUCT('I2.1 Maintenance LoS'!$D$46:$D$51,AD16:AD21) -> 1226.52 | AE22: =SUMPRODUCT('I2.1 Maintenance LoS'!$D$46:$D$51,AE16:AE21) -> 1252.3 | AF22: =SUMPRODUCT('I2.1 Maintenance LoS'!$D$46:$D$51,AF16:AF21) -> 1278.08 | AG22: =SUMPRODUCT('I2.1 Maintenance LoS'!$D$46:$D$51,AG16:AG21) -> 1303.86 | AH22: =SUMPRODUCT('I2.1 Maintenance LoS'!$D$46:$D$51,AH16:AH21) -> 1329.99 | AI22: =SUMPRODUCT('I2.1 Maintenance LoS'!$D$46:$D$51,AI16:AI21) -> 1356.12 | AJ22: =SUMPRODUCT('I2.1 Maintenance LoS'!$D$46:$D$51,AJ16:AJ21) -> 1382.25 | AK22: =SUMPRODUCT('I2.1 Maintenance LoS'!$D$46:$D$51,AK16:AK21) -> 1411.42 | AL22: =SUMPRODUCT('I2.1 Maintenance LoS'!$D$46:$D$51,AL16:AL21) -> 1440.59 | AM22: =SUMPRODUCT('I2.1 Maintenance LoS'!$D$46:$D$51,AM16:AM21) -> 1470.11 | AN22: =SUMPRODUCT('I2.1 Maintenance LoS'!$D$46:$D$51,AN16:AN21) -> 1499.63 | AO22: =SUMPRODUCT('I2.1 Maintenance LoS'!$D$46:$D$51,AO16:AO21) -> 1529.15 | AP22: =SUMPRODUCT('I2.1 Maintenance LoS'!$D$46:$D$51,AP16:AP21) -> 1559.02 | AQ22: =SUMPRODUCT('I2.1 Maintenance LoS'!$D$46:$D$51,AQ16:AQ21) -> 1588.89 | AR22: =SUMPRODUCT('I2.1 Maintenance LoS'!$D$46:$D$51,AR16:AR21) -> 1621.8
B24: IRI without intervention | D24: 0 | E24: 1 | F24: 2 | G24: 3 | H24: 4 | I24: 5 | J24: 6 | K24: 7 | L24: 8 | M24: 9 | N24: 10 | O24: 11 | P24: 12 | Q24: 13 | R24: 14 | S24: 15 | T24: 16 | U24: 17 | V24: 18 | W24: 19 | X24: 20 | Y24: 21 | Z24: 22 | AA24: 23 | AB24: 24 | AC24: 25 | AD24: 26 | AE24: 27 | AF24: 28 | AG24: 29 | AH24: 30 | AI24: 31 | AJ24: 32 | AK24: 33 | AL24: 34 | AM24: 35 | AN24: 36 | AO24: 37 | AP24: 38 | AQ24: 39 | AR24: 40
B25: IRI over time | D25: ='I2.1 Maintenance LoS'!$D$37 -> 1.5 | E25: =+D25+('I2.1 Maintenance LoS'!$D$43*D25+((0.2175*((1+INDEX('I2.1 Maintenance LoS'!$D$30:$G$30,1,MATCH('I2.1 Maintenance LoS'!$D$20,'I2.1 Maintenance LoS'!$D$22:$G$22,0)))^(-4.99))*SUM($E$22:E$22)*(1+'I2.1 Maintenance LoS'!$D$43))))*EXP('I2.1 Maintenance LoS'!$D$43) -> 1.530561538 | F25: =+E25+('I2.1 Maintenance LoS'!$D$43*E25+((0.2175*((1+INDEX('I2.1 Maintenance LoS'!$D$30:$G$30,1,MATCH('I2.1 Maintenance LoS'!$D$20,'I2.1 Maintenance LoS'!$D$22:$G$22,0)))^(-4.99))*SUM($E$22:F$22)*(1+'I2.1 Maintenance LoS'!$D$43))))*EXP('I2.1 Maintenance LoS'!$D$43) -> 1.568997887 | G25: =+F25+('I2.1 Maintenance LoS'!$D$43*F25+((0.2175*((1+INDEX('I2.1 Maintenance LoS'!$D$30:$G$30,1,MATCH('I2.1 Maintenance LoS'!$D$20,'I2.1 Maintenance LoS'!$D$22:$G$22,0)))^(-4.99))*SUM($E$22:G$22)*(1+'I2.1 Maintenance LoS'!$D$43))))*EXP('I2.1 Maintenance LoS'!$D$43) -> 1.615573698 | H25: =+G25+('I2.1 Maintenance LoS'!$D$43*G25+((0.2175*((1+INDEX('I2.1 Maintenance LoS'!$D$30:$G$30,1,MATCH('I2.1 Maintenance LoS'!$D$20,'I2.1 Maintenance LoS'!$D$22:$G$22,0)))^(-4.99))*SUM($E$22:H$22)*(1+'I2.1 Maintenance LoS'!$D$43))))*EXP('I2.1 Maintenance LoS'!$D$43) -> 1.670561106 | I25: =+H25+('I2.1 Maintenance LoS'!$D$43*H25+((0.2175*((1+INDEX('I2.1 Maintenance LoS'!$D$30:$G$30,1,MATCH('I2.1 Maintenance LoS'!$D$20,'I2.1 Maintenance LoS'!$D$22:$G$22,0)))^(-4.99))*SUM($E$22:I$22)*(1+'I2.1 Maintenance LoS'!$D$43))))*EXP('I2.1 Maintenance LoS'!$D$43) -> 1.734236476 | J25: =+I25+('I2.1 Maintenance LoS'!$D$43*I25+((0.2175*((1+INDEX('I2.1 Maintenance LoS'!$D$30:$G$30,1,MATCH('I2.1 Maintenance LoS'!$D$20,'I2.1 Maintenance LoS'!$D$22:$G$22,0)))^(-4.99))*SUM($E$22:J$22)*(1+'I2.1 Maintenance LoS'!$D$43))))*EXP('I2.1 Maintenance LoS'!$D$43) -> 1.806880466 | K25: =+J25+('I2.1 Maintenance LoS'!$D$43*J25+((0.2175*((1+INDEX('I2.1 Maintenance LoS'!$D$30:$G$30,1,MATCH('I2.1 Maintenance LoS'!$D$20,'I2.1 Maintenance LoS'!$D$22:$G$22,0)))^(-4.99))*SUM($E$22:K$22)*(1+'I2.1 Maintenance LoS'!$D$43))))*EXP('I2.1 Maintenance LoS'!$D$43) -> 1.888778093 | L25: =+K25+('I2.1 Maintenance LoS'!$D$43*K25+((0.2175*((1+INDEX('I2.1 Maintenance LoS'!$D$30:$G$30,1,MATCH('I2.1 Maintenance LoS'!$D$20,'I2.1 Maintenance LoS'!$D$22:$G$22,0)))^(-4.99))*SUM($E$22:L$22)*(1+'I2.1 Maintenance LoS'!$D$43))))*EXP('I2.1 Maintenance LoS'!$D$43) -> 1.980244739 | M25: =+L25+('I2.1 Maintenance LoS'!$D$43*L25+((0.2175*((1+INDEX('I2.1 Maintenance LoS'!$D$30:$G$30,1,MATCH('I2.1 Maintenance LoS'!$D$20,'I2.1 Maintenance LoS'!$D$22:$G$22,0)))^(-4.99))*SUM($E$22:M$22)*(1+'I2.1 Maintenance LoS'!$D$43))))*EXP('I2.1 Maintenance LoS'!$D$43) -> 2.081604059 | N25: =+M25+('I2.1 Maintenance LoS'!$D$43*M25+((0.2175*((1+INDEX('I2.1 Maintenance LoS'!$D$30:$G$30,1,MATCH('I2.1 Maintenance LoS'!$D$20,'I2.1 Maintenance LoS'!$D$22:$G$22,0)))^(-4.99))*SUM($E$22:N$22)*(1+'I2.1 Maintenance LoS'!$D$43))))*EXP('I2.1 Maintenance LoS'!$D$43) -> 2.193184737 | O25: =+N25+('I2.1 Maintenance LoS'!$D$43*N25+((0.2175*((1+INDEX('I2.1 Maintenance LoS'!$D$30:$G$30,1,MATCH('I2.1 Maintenance LoS'!$D$20,'I2.1 Maintenance LoS'!$D$22:$G$22,0)))^(-4.99))*SUM($E$22:O$22)*(1+'I2.1 Maintenance LoS'!$D$43))))*EXP('I2.1 Maintenance LoS'!$D$43) -> 2.315320564 | P25: =+O25+('I2.1 Maintenance LoS'!$D$43*O25+((0.2175*((1+INDEX('I2.1 Maintenance LoS'!$D$30:$G$30,1,MATCH('I2.1 Maintenance LoS'!$D$20,'I2.1 Maintenance LoS'!$D$22:$G$22,0)))^(-4.99))*SUM($E$22:P$22)*(1+'I2.1 Maintenance LoS'!$D$43))))*EXP('I2.1 Maintenance LoS'!$D$43) -> 2.448350516 | Q25: =+P25+('I2.1 Maintenance LoS'!$D$43*P25+((0.2175*((1+INDEX('I2.1 Maintenance LoS'!$D$30:$G$30,1,MATCH('I2.1 Maintenance LoS'!$D$20,'I2.1 Maintenance LoS'!$D$22:$G$22,0)))^(-4.99))*SUM($E$22:Q$22)*(1+'I2.1 Maintenance LoS'!$D$43))))*EXP('I2.1 Maintenance LoS'!$D$43) -> 2.592622209 | R25: =+Q25+('I2.1 Maintenance LoS'!$D$43*Q25+((0.2175*((1+INDEX('I2.1 Maintenance LoS'!$D$30:$G$30,1,MATCH('I2.1 Maintenance LoS'!$D$20,'I2.1 Maintenance LoS'!$D$22:$G$22,0)))^(-4.99))*SUM($E$22:R$22)*(1+'I2.1 Maintenance LoS'!$D$43))))*EXP('I2.1 Maintenance LoS'!$D$43) -> 2.748488661 | S25: =+R25+('I2.1 Maintenance LoS'!$D$43*R25+((0.2175*((1+INDEX('I2.1 Maintenance LoS'!$D$30:$G$30,1,MATCH('I2.1 Maintenance LoS'!$D$20,'I2.1 Maintenance LoS'!$D$22:$G$22,0)))^(-4.99))*SUM($E$22:S$22)*(1+'I2.1 Maintenance LoS'!$D$43))))*EXP('I2.1 Maintenance LoS'!$D$43) -> 2.916308374 | T25: =+S25+('I2.1 Maintenance LoS'!$D$43*S25+((0.2175*((1+INDEX('I2.1 Maintenance LoS'!$D$30:$G$30,1,MATCH('I2.1 Maintenance LoS'!$D$20,'I2.1 Maintenance LoS'!$D$22:$G$22,0)))^(-4.99))*SUM($E$22:T$22)*(1+'I2.1 Maintenance LoS'!$D$43))))*EXP('I2.1 Maintenance LoS'!$D$43) -> 3.096445419 | U25: =+T25+('I2.1 Maintenance LoS'!$D$43*T25+((0.2175*((1+INDEX('I2.1 Maintenance LoS'!$D$30:$G$30,1,MATCH('I2.1 Maintenance LoS'!$D$20,'I2.1 Maintenance LoS'!$D$22:$G$22,0)))^(-4.99))*SUM($E$22:U$22)*(1+'I2.1 Maintenance LoS'!$D$43))))*EXP('I2.1 Maintenance LoS'!$D$43) -> 3.289272899 | V25: =+U25+('I2.1 Maintenance LoS'!$D$43*U25+((0.2175*((1+INDEX('I2.1 Maintenance LoS'!$D$30:$G$30,1,MATCH('I2.1 Maintenance LoS'!$D$20,'I2.1 Maintenance LoS'!$D$22:$G$22,0)))^(-4.99))*SUM($E$22:V$22)*(1+'I2.1 Maintenance LoS'!$D$43))))*EXP('I2.1 Maintenance LoS'!$D$43) -> 3.495195648 | W25: =+V25+('I2.1 Maintenance LoS'!$D$43*V25+((0.2175*((1+INDEX('I2.1 Maintenance LoS'!$D$30:$G$30,1,MATCH('I2.1 Maintenance LoS'!$D$20,'I2.1 Maintenance LoS'!$D$22:$G$22,0)))^(-4.99))*SUM($E$22:W$22)*(1+'I2.1 Maintenance LoS'!$D$43))))*EXP('I2.1 Maintenance LoS'!$D$43) -> 3.714624789 | X25: =+W25+('I2.1 Maintenance LoS'!$D$43*W25+((0.2175*((1+INDEX('I2.1 Maintenance LoS'!$D$30:$G$30,1,MATCH('I2.1 Maintenance LoS'!$D$20,'I2.1 Maintenance LoS'!$D$22:$G$22,0)))^(-4.99))*SUM($E$22:X$22)*(1+'I2.1 Maintenance LoS'!$D$43))))*EXP('I2.1 Maintenance LoS'!$D$43) -> 3.947981207 | Y25: =+X25+('I2.1 Maintenance LoS'!$D$43*X25+((0.2175*((1+INDEX('I2.1 Maintenance LoS'!$D$30:$G$30,1,MATCH('I2.1 Maintenance LoS'!$D$20,'I2.1 Maintenance LoS'!$D$22:$G$22,0)))^(-4.99))*SUM($E$22:Y$22)*(1+'I2.1 Maintenance LoS'!$D$43))))*EXP('I2.1 Maintenance LoS'!$D$43) -> 4.195692327 | Z25: =+Y25+('I2.1 Maintenance LoS'!$D$43*Y25+((0.2175*((1+INDEX('I2.1 Maintenance LoS'!$D$30:$G$30,1,MATCH('I2.1 Maintenance LoS'!$D$20,'I2.1 Maintenance LoS'!$D$22:$G$22,0)))^(-4.99))*SUM($E$22:Z$22)*(1+'I2.1 Maintenance LoS'!$D$43))))*EXP('I2.1 Maintenance LoS'!$D$43) -> 4.458192214 | AA25: =+Z25+('I2.1 Maintenance LoS'!$D$43*Z25+((0.2175*((1+INDEX('I2.1 Maintenance LoS'!$D$30:$G$30,1,MATCH('I2.1 Maintenance LoS'!$D$20,'I2.1 Maintenance LoS'!$D$22:$G$22,0)))^(-4.99))*SUM($E$22:AA$22)*(1+'I2.1 Maintenance LoS'!$D$43))))*EXP('I2.1 Maintenance LoS'!$D$43) -> 4.735921675 | AB25: =+AA25+('I2.1 Maintenance LoS'!$D$43*AA25+((0.2175*((1+INDEX('I2.1 Maintenance LoS'!$D$30:$G$30,1,MATCH('I2.1 Maintenance LoS'!$D$20,'I2.1 Maintenance LoS'!$D$22:$G$22,0)))^(-4.99))*SUM($E$22:AB$22)*(1+'I2.1 Maintenance LoS'!$D$43))))*EXP('I2.1 Maintenance LoS'!$D$43) -> 5.029331741 | AC25: =+AB25+('I2.1 Maintenance LoS'!$D$43*AB25+((0.2175*((1+INDEX('I2.1 Maintenance LoS'!$D$30:$G$30,1,MATCH('I2.1 Maintenance LoS'!$D$20,'I2.1 Maintenance LoS'!$D$22:$G$22,0)))^(-4.99))*SUM($E$22:AC$22)*(1+'I2.1 Maintenance LoS'!$D$43))))*EXP('I2.1 Maintenance LoS'!$D$43) -> 5.338880451 | AD25: =+AC25+('I2.1 Maintenance LoS'!$D$43*AC25+((0.2175*((1+INDEX('I2.1 Maintenance LoS'!$D$30:$G$30,1,MATCH('I2.1 Maintenance LoS'!$D$20,'I2.1 Maintenance LoS'!$D$22:$G$22,0)))^(-4.99))*SUM($E$22:AD$22)*(1+'I2.1 Maintenance LoS'!$D$43))))*EXP('I2.1 Maintenance LoS'!$D$43) -> 5.665063715 | AE25: =+AD25+('I2.1 Maintenance LoS'!$D$43*AD25+((0.2175*((1+INDEX('I2.1 Maintenance LoS'!$D$30:$G$30,1,MATCH('I2.1 Maintenance LoS'!$D$20,'I2.1 Maintenance LoS'!$D$22:$G$22,0)))^(-4.99))*SUM($E$22:AE$22)*(1+'I2.1 Maintenance LoS'!$D$43))))*EXP('I2.1 Maintenance LoS'!$D$43) -> 6.008388522 | AF25: =+AE25+('I2.1 Maintenance LoS'!$D$43*AE25+((0.2175*((1+INDEX('I2.1 Maintenance LoS'!$D$30:$G$30,1,MATCH('I2.1 Maintenance LoS'!$D$20,'I2.1 Maintenance LoS'!$D$22:$G$22,0)))^(-4.99))*SUM($E$22:AF$22)*(1+'I2.1 Maintenance LoS'!$D$43))))*EXP('I2.1 Maintenance LoS'!$D$43) -> 6.369369738 | AG25: =+AF25+('I2.1 Maintenance LoS'!$D$43*AF25+((0.2175*((1+INDEX('I2.1 Maintenance LoS'!$D$30:$G$30,1,MATCH('I2.1 Maintenance LoS'!$D$20,'I2.1 Maintenance LoS'!$D$22:$G$22,0)))^(-4.99))*SUM($E$22:AG$22)*(1+'I2.1 Maintenance LoS'!$D$43))))*EXP('I2.1 Maintenance LoS'!$D$43) -> 6.748530229 | AH25: =+AG25+('I2.1 Maintenance LoS'!$D$43*AG25+((0.2175*((1+INDEX('I2.1 Maintenance LoS'!$D$30:$G$30,1,MATCH('I2.1 Maintenance LoS'!$D$20,'I2.1 Maintenance LoS'!$D$22:$G$22,0)))^(-4.99))*SUM($E$22:AH$22)*(1+'I2.1 Maintenance LoS'!$D$43))))*EXP('I2.1 Maintenance LoS'!$D$43) -> 7.146404356 | AI25: =+AH25+('I2.1 Maintenance LoS'!$D$43*AH25+((0.2175*((1+INDEX('I2.1 Maintenance LoS'!$D$30:$G$30,1,MATCH('I2.1 Maintenance LoS'!$D$20,'I2.1 Maintenance LoS'!$D$22:$G$22,0)))^(-4.99))*SUM($E$22:AI$22)*(1+'I2.1 Maintenance LoS'!$D$43))))*EXP('I2.1 Maintenance LoS'!$D$43) -> 7.563534783 | AJ25: =+AI25+('I2.1 Maintenance LoS'!$D$43*AI25+((0.2175*((1+INDEX('I2.1 Maintenance LoS'!$D$30:$G$30,1,MATCH('I2.1 Maintenance LoS'!$D$20,'I2.1 Maintenance LoS'!$D$22:$G$22,0)))^(-4.99))*SUM($E$22:AJ$22)*(1+'I2.1 Maintenance LoS'!$D$43))))*EXP('I2.1 Maintenance LoS'!$D$43) -> 8.000472607 | AK25: =+AJ25+('I2.1 Maintenance LoS'!$D$43*AJ25+((0.2175*((1+INDEX('I2.1 Maintenance LoS'!$D$30:$G$30,1,MATCH('I2.1 Maintenance LoS'!$D$20,'I2.1 Maintenance LoS'!$D$22:$G$22,0)))^(-4.99))*SUM($E$22:AK$22)*(1+'I2.1 Maintenance LoS'!$D$43))))*EXP('I2.1 Maintenance LoS'!$D$43) -> 8.457806793 | AL25: =+AK25+('I2.1 Maintenance LoS'!$D$43*AK25+((0.2175*((1+INDEX('I2.1 Maintenance LoS'!$D$30:$G$30,1,MATCH('I2.1 Maintenance LoS'!$D$20,'I2.1 Maintenance LoS'!$D$22:$G$22,0)))^(-4.99))*SUM($E$22:AL$22)*(1+'I2.1 Maintenance LoS'!$D$43))))*EXP('I2.1 Maintenance LoS'!$D$43) -> 8.936135458 | AM25: =+AL25+('I2.1 Maintenance LoS'!$D$43*AL25+((0.2175*((1+INDEX('I2.1 Maintenance LoS'!$D$30:$G$30,1,MATCH('I2.1 Maintenance LoS'!$D$20,'I2.1 Maintenance LoS'!$D$22:$G$22,0)))^(-4.99))*SUM($E$22:AM$22)*(1+'I2.1 Maintenance LoS'!$D$43))))*EXP('I2.1 Maintenance LoS'!$D$43) -> 9.436069387 | AN25: =+AM25+('I2.1 Maintenance LoS'!$D$43*AM25+((0.2175*((1+INDEX('I2.1 Maintenance LoS'!$D$30:$G$30,1,MATCH('I2.1 Maintenance LoS'!$D$20,'I2.1 Maintenance LoS'!$D$22:$G$22,0)))^(-4.99))*SUM($E$22:AN$22)*(1+'I2.1 Maintenance LoS'!$D$43))))*EXP('I2.1 Maintenance LoS'!$D$43) -> 9.958228851 | AO25: =+AN25+('I2.1 Maintenance LoS'!$D$43*AN25+((0.2175*((1+INDEX('I2.1 Maintenance LoS'!$D$30:$G$30,1,MATCH('I2.1 Maintenance LoS'!$D$20,'I2.1 Maintenance LoS'!$D$22:$G$22,0)))^(-4.99))*SUM($E$22:AO$22)*(1+'I2.1 Maintenance LoS'!$D$43))))*EXP('I2.1 Maintenance LoS'!$D$43) -> 10.50324376 | AP25: =+AO25+('I2.1 Maintenance LoS'!$D$43*AO25+((0.2175*((1+INDEX('I2.1 Maintenance LoS'!$D$30:$G$30,1,MATCH('I2.1 Maintenance LoS'!$D$20,'I2.1 Maintenance LoS'!$D$22:$G$22,0)))^(-4.99))*SUM($E$22:AP$22)*(1+'I2.1 Maintenance LoS'!$D$43))))*EXP('I2.1 Maintenance LoS'!$D$43) -> 11.07175719 | AQ25: =+AP25+('I2.1 Maintenance LoS'!$D$43*AP25+((0.2175*((1+INDEX('I2.1 Maintenance LoS'!$D$30:$G$30,1,MATCH('I2.1 Maintenance LoS'!$D$20,'I2.1 Maintenance LoS'!$D$22:$G$22,0)))^(-4.99))*SUM($E$22:AQ$22)*(1+'I2.1 Maintenance LoS'!$D$43))))*EXP('I2.1 Maintenance LoS'!$D$43) -> 11.66442219 | AR25: =+AQ25+('I2.1 Maintenance LoS'!$D$43*AQ25+((0.2175*((1+INDEX('I2.1 Maintenance LoS'!$D$30:$G$30,1,MATCH('I2.1 Maintenance LoS'!$D$20,'I2.1 Maintenance LoS'!$D$22:$G$22,0)))^(-4.99))*SUM($E$22:AR$22)*(1+'I2.1 Maintenance LoS'!$D$43))))*EXP('I2.1 Maintenance LoS'!$D$43) -> 12.28193128
B26: Annual increase | E26: =E25-D25 -> 0.03056153777 | F26: =F25-E25 -> 0.0384363492 | G26: 0.04657581072 | H26: 0.05498740844 | I26: 0.06367537022 | J26: 0.07264398962 | K26: 0.08189762692 | L26: 0.09146664564 | M26: 0.10135932 | N26: 0.1115806783 | O26: 0.122135827 | P26: 0.1330299517 | Q26: 0.1442716933 | R26: 0.1558664522 | S26: 0.1678197131 | T26: 0.1801370454 | U26: 0.1928274799 | V26: 0.2059227486 | W26: 0.2194291409 | X26: 0.2333564185 | Y26: 0.2477111202 | Z26: 0.2624998865 | AA26: 0.2777294609 | AB26: 0.2934100663 | AC26: 0.3095487099 | AD26: 0.3261832639 | AE26: 0.3433248072 | AF26: 0.3609812164 | AG26: 0.3791604904 | AH26: 0.3978741269 | AI26: 0.4171304276 | AJ26: 0.4369378233 | AK26: 0.4573341859 | AL26: 0.4783286654 | AM26: 0.4999339286 | AN26: 0.5221594646 | AO26: 0.5450149099 | AP26: 0.5685134251 | AQ26: 0.592665001 | AR26: 0.6175090935
B28: IRI under different scenarios | D28: 0 | E28: 1 | F28: 2 | G28: 3 | H28: 4 | I28: 5 | J28: 6 | K28: 7 | L28: 8 | M28: 9 | N28: 10 | O28: 11 | P28: 12 | Q28: 13 | R28: 14 | S28: 15 | T28: 16 | U28: 17 | V28: 18 | W28: 19 | X28: 20 | Y28: 21 | Z28: 22 | AA28: 23 | AB28: 24 | AC28: 25 | AD28: 26 | AE28: 27 | AF28: 28 | AG28: 29 | AH28: 30 | AI28: 31 | AJ28: 32 | AK28: 33 | AL28: 34 | AM28: 35 | AN28: 36 | AO28: 37 | AP28: 38 | AQ28: 39 | AR28: 40
B29: Scenario 1 | D29: ='I2.1 Maintenance LoS'!$D$37 -> 1.5 | E29: =IF(D37=1,'I2.1 Maintenance LoS'!$E9,D29+E$26) -> 1.530561538 | F29: =IF(E37=1,'I2.1 Maintenance LoS'!$E9,E29+F$26) -> 1.568997887 | G29: =IF(F37=1,'I2.1 Maintenance LoS'!$E9,F29+G$26) -> 1.615573698 | H29: =IF(G37=1,'I2.1 Maintenance LoS'!$E9,G29+H$26) -> 1.670561106 | I29: =IF(H37=1,'I2.1 Maintenance LoS'!$E9,H29+I$26) -> 1.734236476 | J29: =IF(I37=1,'I2.1 Maintenance LoS'!$E9,I29+J$26) -> 1.806880466 | K29: =IF(J37=1,'I2.1 Maintenance LoS'!$E9,J29+K$26) -> 1.888778093 | L29: =IF(K37=1,'I2.1 Maintenance LoS'!$E9,K29+L$26) -> 1.980244739 | M29: =IF(L37=1,'I2.1 Maintenance LoS'!$E9,L29+M$26) -> 2.081604059 | N29: =IF(M37=1,'I2.1 Maintenance LoS'!$E9,M29+N$26) -> 2.193184737 | O29: =IF(N37=1,'I2.1 Maintenance LoS'!$E9,N29+O$26) -> 2.315320564 | P29: =IF(O37=1,'I2.1 Maintenance LoS'!$E9,O29+P$26) -> 2.448350516 | Q29: =IF(P37=1,'I2.1 Maintenance LoS'!$E9,P29+Q$26) -> 2.592622209 | R29: =IF(Q37=1,'I2.1 Maintenance LoS'!$E9,Q29+R$26) -> 2.748488661 | S29: =IF(R37=1,'I2.1 Maintenance LoS'!$E9,R29+S$26) -> 2.916308374 | T29: =IF(S37=1,'I2.1 Maintenance LoS'!$E9,S29+T$26) -> 1.5 | U29: =IF(T37=1,'I2.1 Maintenance LoS'!$E9,T29+U$26) -> 1.69282748 | V29: =IF(U37=1,'I2.1 Maintenance LoS'!$E9,U29+V$26) -> 1.898750228 | W29: =IF(V37=1,'I2.1 Maintenance LoS'!$E9,V29+W$26) -> 2.118179369 | X29: =IF(W37=1,'I2.1 Maintenance LoS'!$E9,W29+X$26) -> 2.351535788 | Y29: =IF(X37=1,'I2.1 Maintenance LoS'!$E9,X29+Y$26) -> 2.599246908 | Z29: =IF(Y37=1,'I2.1 Maintenance LoS'!$E9,Y29+Z$26) -> 2.861746794 | AA29: =IF(Z37=1,'I2.1 Maintenance LoS'!$E9,Z29+AA$26) -> 1.5 | AB29: =IF(AA37=1,'I2.1 Maintenance LoS'!$E9,AA29+AB$26) -> 1.793410066 | AC29: =IF(AB37=1,'I2.1 Maintenance LoS'!$E9,AB29+AC$26) -> 2.102958776 | AD29: =IF(AC37=1,'I2.1 Maintenance LoS'!$E9,AC29+AD$26) -> 2.42914204 | AE29: =IF(AD37=1,'I2.1 Maintenance LoS'!$E9,AD29+AE$26) -> 2.772466847 | AF29: =IF(AE37=1,'I2.1 Maintenance LoS'!$E9,AE29+AF$26) -> 1.5 | AG29: =IF(AF37=1,'I2.1 Maintenance LoS'!$E9,AF29+AG$26) -> 1.87916049 | AH29: =IF(AG37=1,'I2.1 Maintenance LoS'!$E9,AG29+AH$26) -> 2.277034617 | AI29: =IF(AH37=1,'I2.1 Maintenance LoS'!$E9,AH29+AI$26) -> 2.694165045 | AJ29: =IF(AI37=1,'I2.1 Maintenance LoS'!$E9,AI29+AJ$26) -> 1.5 | AK29: =IF(AJ37=1,'I2.1 Maintenance LoS'!$E9,AJ29+AK$26) -> 1.957334186 | AL29: =IF(AK37=1,'I2.1 Maintenance LoS'!$E9,AK29+AL$26) -> 2.435662851 | AM29: =IF(AL37=1,'I2.1 Maintenance LoS'!$E9,AL29+AM$26) -> 2.93559678 | AN29: =IF(AM37=1,'I2.1 Maintenance LoS'!$E9,AM29+AN$26) -> 1.5 | AO29: =IF(AN37=1,'I2.1 Maintenance LoS'!$E9,AN29+AO$26) -> 2.04501491 | AP29: =IF(AO37=1,'I2.1 Maintenance LoS'!$E9,AO29+AP$26) -> 2.613528335 | AQ29: =IF(AP37=1,'I2.1 Maintenance LoS'!$E9,AP29+AQ$26) -> 1.5 | AR29: =IF(AQ37=1,'I2.1 Maintenance LoS'!$E9,AQ29+AR$26) -> 2.117509094
B30: Scenario 2 | D30: ='I2.1 Maintenance LoS'!$D$37 -> 1.5 | E30: =IF(D38=1,'I2.1 Maintenance LoS'!$E10,D30+E$26) -> 1.530561538 | F30: =IF(E38=1,'I2.1 Maintenance LoS'!$E10,E30+F$26) -> 1.568997887 | G30: =IF(F38=1,'I2.1 Maintenance LoS'!$E10,F30+G$26) -> 1.615573698 | H30: =IF(G38=1,'I2.1 Maintenance LoS'!$E10,G30+H$26) -> 1.670561106 | I30: =IF(H38=1,'I2.1 Maintenance LoS'!$E10,H30+I$26) -> 1.734236476 | J30: =IF(I38=1,'I2.1 Maintenance LoS'!$E10,I30+J$26) -> 1.806880466 | K30: =IF(J38=1,'I2.1 Maintenance LoS'!$E10,J30+K$26) -> 1.888778093 | L30: =IF(K38=1,'I2.1 Maintenance LoS'!$E10,K30+L$26) -> 1.980244739 | M30: =IF(L38=1,'I2.1 Maintenance LoS'!$E10,L30+M$26) -> 2.081604059 | N30: =IF(M38=1,'I2.1 Maintenance LoS'!$E10,M30+N$26) -> 2.193184737 | O30: =IF(N38=1,'I2.1 Maintenance LoS'!$E10,N30+O$26) -> 2.315320564 | P30: =IF(O38=1,'I2.1 Maintenance LoS'!$E10,O30+P$26) -> 2.448350516 | Q30: =IF(P38=1,'I2.1 Maintenance LoS'!$E10,P30+Q$26) -> 2.592622209 | R30: =IF(Q38=1,'I2.1 Maintenance LoS'!$E10,Q30+R$26) -> 2.748488661 | S30: =IF(R38=1,'I2.1 Maintenance LoS'!$E10,R30+S$26) -> 2.916308374 | T30: =IF(S38=1,'I2.1 Maintenance LoS'!$E10,S30+T$26) -> 3.096445419 | U30: =IF(T38=1,'I2.1 Maintenance LoS'!$E10,T30+U$26) -> 1.5 | V30: =IF(U38=1,'I2.1 Maintenance LoS'!$E10,U30+V$26) -> 1.705922749 | W30: =IF(V38=1,'I2.1 Maintenance LoS'!$E10,V30+W$26) -> 1.925351889 | X30: =IF(W38=1,'I2.1 Maintenance LoS'!$E10,W30+X$26) -> 2.158708308 | Y30: =IF(X38=1,'I2.1 Maintenance LoS'!$E10,X30+Y$26) -> 2.406419428 | Z30: =IF(Y38=1,'I2.1 Maintenance LoS'!$E10,Y30+Z$26) -> 2.668919315 | AA30: =IF(Z38=1,'I2.1 Maintenance LoS'!$E10,Z30+AA$26) -> 2.946648775 | AB30: =IF(AA38=1,'I2.1 Maintenance LoS'!$E10,AA30+AB$26) -> 1.5 | AC30: =IF(AB38=1,'I2.1 Maintenance LoS'!$E10,AB30+AC$26) -> 1.80954871 | AD30: =IF(AC38=1,'I2.1 Maintenance LoS'!$E10,AC30+AD$26) -> 2.135731974 | AE30: =IF(AD38=1,'I2.1 Maintenance LoS'!$E10,AD30+AE$26) -> 2.479056781 | AF30: =IF(AE38=1,'I2.1 Maintenance LoS'!$E10,AE30+AF$26) -> 2.840037997 | AG30: =IF(AF38=1,'I2.1 Maintenance LoS'!$E10,AF30+AG$26) -> 1.5 | AH30: =IF(AG38=1,'I2.1 Maintenance LoS'!$E10,AG30+AH$26) -> 1.897874127 | AI30: =IF(AH38=1,'I2.1 Maintenance LoS'!$E10,AH30+AI$26) -> 2.315004554 | AJ30: =IF(AI38=1,'I2.1 Maintenance LoS'!$E10,AI30+AJ$26) -> 2.751942378 | AK30: =IF(AJ38=1,'I2.1 Maintenance LoS'!$E10,AJ30+AK$26) -> 1.5 | AL30: =IF(AK38=1,'I2.1 Maintenance LoS'!$E10,AK30+AL$26) -> 1.978328665 | AM30: =IF(AL38=1,'I2.1 Maintenance LoS'!$E10,AL30+AM$26) -> 2.478262594 | AN30: =IF(AM38=1,'I2.1 Maintenance LoS'!$E10,AM30+AN$26) -> 3.000422059 | AO30: =IF(AN38=1,'I2.1 Maintenance LoS'!$E10,AN30+AO$26) -> 1.5 | AP30: =IF(AO38=1,'I2.1 Maintenance LoS'!$E10,AO30+AP$26) -> 2.068513425 | AQ30: =IF(AP38=1,'I2.1 Maintenance LoS'!$E10,AP30+AQ$26) -> 2.661178426 | AR30: =IF(AQ38=1,'I2.1 Maintenance LoS'!$E10,AQ30+AR$26) -> 1.5
B31: Scenario 3 | D31: ='I2.1 Maintenance LoS'!$D$37 -> 1.5 | E31: =IF(D39=1,'I2.1 Maintenance LoS'!$E11,D31+E$26) -> 1.530561538 | F31: =IF(E39=1,'I2.1 Maintenance LoS'!$E11,E31+F$26) -> 1.568997887 | G31: =IF(F39=1,'I2.1 Maintenance LoS'!$E11,F31+G$26) -> 1.615573698 | H31: =IF(G39=1,'I2.1 Maintenance LoS'!$E11,G31+H$26) -> 1.670561106 | I31: =IF(H39=1,'I2.1 Maintenance LoS'!$E11,H31+I$26) -> 1.734236476 | J31: =IF(I39=1,'I2.1 Maintenance LoS'!$E11,I31+J$26) -> 1.806880466 | K31: =IF(J39=1,'I2.1 Maintenance LoS'!$E11,J31+K$26) -> 1.888778093 | L31: =IF(K39=1,'I2.1 Maintenance LoS'!$E11,K31+L$26) -> 1.980244739 | M31: =IF(L39=1,'I2.1 Maintenance LoS'!$E11,L31+M$26) -> 2.081604059 | N31: =IF(M39=1,'I2.1 Maintenance LoS'!$E11,M31+N$26) -> 2.193184737 | O31: =IF(N39=1,'I2.1 Maintenance LoS'!$E11,N31+O$26) -> 2.315320564 | P31: =IF(O39=1,'I2.1 Maintenance LoS'!$E11,O31+P$26) -> 2.448350516 | Q31: =IF(P39=1,'I2.1 Maintenance LoS'!$E11,P31+Q$26) -> 2.592622209 | R31: =IF(Q39=1,'I2.1 Maintenance LoS'!$E11,Q31+R$26) -> 2.748488661 | S31: =IF(R39=1,'I2.1 Maintenance LoS'!$E11,R31+S$26) -> 2.916308374 | T31: =IF(S39=1,'I2.1 Maintenance LoS'!$E11,S31+T$26) -> 3.096445419 | U31: =IF(T39=1,'I2.1 Maintenance LoS'!$E11,T31+U$26) -> 3.289272899 | V31: =IF(U39=1,'I2.1 Maintenance LoS'!$E11,U31+V$26) -> 1.5 | W31: =IF(V39=1,'I2.1 Maintenance LoS'!$E11,V31+W$26) -> 1.719429141 | X31: =IF(W39=1,'I2.1 Maintenance LoS'!$E11,W31+X$26) -> 1.952785559 | Y31: =IF(X39=1,'I2.1 Maintenance LoS'!$E11,X31+Y$26) -> 2.20049668 | Z31: =IF(Y39=1,'I2.1 Maintenance LoS'!$E11,Y31+Z$26) -> 2.462996566 | AA31: =IF(Z39=1,'I2.1 Maintenance LoS'!$E11,Z31+AA$26) -> 2.740726027 | AB31: =IF(AA39=1,'I2.1 Maintenance LoS'!$E11,AA31+AB$26) -> 3.034136093 | AC31: =IF(AB39=1,'I2.1 Maintenance LoS'!$E11,AB31+AC$26) -> 3.343684803 | AD31: =IF(AC39=1,'I2.1 Maintenance LoS'!$E11,AC31+AD$26) -> 1.5 | AE31: =IF(AD39=1,'I2.1 Maintenance LoS'!$E11,AD31+AE$26) -> 1.843324807 | AF31: =IF(AE39=1,'I2.1 Maintenance LoS'!$E11,AE31+AF$26) -> 2.204306024 | AG31: =IF(AF39=1,'I2.1 Maintenance LoS'!$E11,AF31+AG$26) -> 2.583466514 | AH31: =IF(AG39=1,'I2.1 Maintenance LoS'!$E11,AG31+AH$26) -> 2.981340641 | AI31: =IF(AH39=1,'I2.1 Maintenance LoS'!$E11,AH31+AI$26) -> 3.398471068 | AJ31: =IF(AI39=1,'I2.1 Maintenance LoS'!$E11,AI31+AJ$26) -> 1.5 | AK31: =IF(AJ39=1,'I2.1 Maintenance LoS'!$E11,AJ31+AK$26) -> 1.957334186 | AL31: =IF(AK39=1,'I2.1 Maintenance LoS'!$E11,AK31+AL$26) -> 2.435662851 | AM31: =IF(AL39=1,'I2.1 Maintenance LoS'!$E11,AL31+AM$26) -> 2.93559678 | AN31: =IF(AM39=1,'I2.1 Maintenance LoS'!$E11,AM31+AN$26) -> 1.5 | AO31: =IF(AN39=1,'I2.1 Maintenance LoS'!$E11,AN31+AO$26) -> 2.04501491 | AP31: =IF(AO39=1,'I2.1 Maintenance LoS'!$E11,AO31+AP$26) -> 2.613528335 | AQ31: =IF(AP39=1,'I2.1 Maintenance LoS'!$E11,AP31+AQ$26) -> 3.206193336 | AR31: =IF(AQ39=1,'I2.1 Maintenance LoS'!$E11,AQ31+AR$26) -> 1.5
